Workbook

Sheet Index
A1: Index and File Details
B3: Index | H3: File Details
B5: Inputs | D5: Inputs / Calculations | F5: Outputs | I5: Model | J5: Transgrid | System Operability - Capex Forecast Model
I6: Author | J6: Transgrid
B7: Notes & Assumptions | D7: Calculations | F7: ='Outputs|Models'!$A$1 -> Outputs | Models | I7: Revision | J7: 2025-12-15
B8: Inputs | F8: ='Outputs|Tables'!$A$1 -> Outputs | Tables | I8: Status | J8: Regulatory proposal
F9: Outputs | Initiative
F10: Outputs | DGA
B12: Model Checks | H12: Instructions
B14: Worksheet | I14: Input Sheets
B15: =B8 -> Inputs | D15: =Inputs!C2 -> 0 | I15: Fill in any cells marked as input cells as seen on the right => | K15: user input
B16: =D7 -> Calculations | D16: =SUM(Calculations!A3:A236) -> 0 | I16: Historical / Not applicable
B17: =F7 -> Outputs | Models | D17: =SUM('Outputs|Models'!A2:A53) -> 0 | I17: Cells not marked as inputs should not be modified.
B18: =F8 -> Outputs | Tables | D18: =SUM('Outputs|Tables'!A2:A76) -> 0 | I18: Confidential information | K18: user input
B19: Outputs | Initiative | D19: =SUM('Outputs|Initiative'!A1:A90) -> 0
B20: Outputs | DGA | D20: =SUM('Outputs|DGA'!A1:A63) -> 0
B23: Total Error Check | D23: =IF(SUM(D15:D20)=0,0,1) -> 0
B25: End

Sheet Notes & Assumptions
A1: Assumptions & Notes
E3: User inputs in cells coloured like this
C4: * | E4: 1. Financial years are recorded in the Capex Forecast Model as tax years (e.g. 2017/18 is shown as 2018, 2018/19 is shown as 2019)
C5: * | E5: 2. Escalation is treated as follows:
E6: a. CPI escalation and Labour escalation are treated separately.
A9: Modifications
A10: Date | B10: Version | D10: Who | E10: Notes

Sheet Inputs
A2: Section Check | C2: =IF(SUM(V109,X120:AI120,W151,W187,H109)=0,0,1) -> 0
A4: Output Reporting Format and Year
A5: Real | B5: 2023 | C5: =IF(Real_or_Nom="Real", "Real $" & Report_Year, "$ Nominal") -> Real $2023
A7: Inflation and Labour Escalation
A9: Forecasts | K9: Rates
A10: Item | B10: Source | C10: Units | K10: =K15 -> 2023 | L10: 2024 | M10: 2025 | N10: 2026 | O10: 2027 | P10: 2028 | Q10: 2029 | R10: 2030 | S10: 2031 | T10: 2032 | U10: 2033
A11: Actual / Forecast Inflation | B11: ABS June to June / RBA Forecast | C11: % | K11: 0.06026962728 | L11: 0.03814510097 | M11: 0.02089337176 | N11: 0.02919304851 | O11: 0.02919304851 | P11: 0.02919304851 | Q11: 0.02919304851 | R11: 0.02919304851 | S11: 0.02919304851 | T11: 0.02919304851 | U11: 0.02919304851 | V11: ◄ Note: Actual June year on year inflation used for 2023 to 2025. Estimated inflation for 2026 to 2027 as per RBAs August 2025 MPS. Forecast inflation from current AER PTRM.
A12: Real labour escalation | B12: AER Final Determination / Transgrid proposal | C12: % | L12: 0.003904656476 | M12: 0.01307648255 | N12: 0.01154643895 | O12: 0.004330457586 | P12: 0.003009413338 | Q12: 0.00717348978 | R12: 0.00717348978 | S12: 0.00717348978 | T12: 0.00717348978 | U12: 0.00717348978 | V12: ◄ Note: Based on Final Decision values applied to both the opex and capex models with placeholder values for 2028-29 to 2032-33
A14: Cumulative Factors | K14: Cumulative factors
A15: Item | B15: Source | C15: Units | K15: 2023 | L15: =K15+1 -> 2024 | M15: 2025 | N15: 2026 | O15: 2027 | P15: 2028 | Q15: 2029 | R15: 2030 | S15: 2031 | T15: 2032 | U15: 2033 | V15: Nominal
A16: Inflation based to 2023 | B16: Calculated | C16: Factor | K16: 1 | L16: =K16*(1+L11) -> 1.038145101 | M16: 1.059835453 | N16: 1.09077528 | O16: 1.122618336 | P16: 1.155390987 | Q16: 1.189120373 | R16: 1.223834421 | S16: 1.259561879 | T16: 1.29633233 | U16: 1.334176223
A17: Labour based to 2027 | B17: Calculated | C17: Factor | K17: =L17 -> 1 | L17: =M17 -> 1 | M17: =N17 -> 1 | N17: =O17 -> 1 | O17: 1 | P17: =O17*(1+P12) -> 1.003009413 | Q17: 1.010204491 | R17: 1.017451183 | S17: 1.024749858 | T17: 1.032100891 | U17: 1.039504656
A18: Real 2023 to Real 2025 | B18: Calculated | C18: Factor | K18: =$M$16/$K$16 -> 1.059835453 | L18: 1.059835453 | M18: 1.059835453 | N18: 1.059835453 | O18: 1.059835453 | P18: 1.059835453 | Q18: 1.059835453 | R18: 1.059835453 | S18: 1.059835453 | T18: 1.059835453 | U18: 1.059835453
A19: Real 2023 End Period to Nominal Mid Period | B19: Calculated | C19: Factor | K19: =K16/$K$16/(1+K$11)^0.5 -> 0.9711623552 | L19: 1.018894058 | M19: 1.048934213 | N19: 1.075194081 | O19: 1.106582274 | P19: 1.138886784 | Q19: =Q16/$K$16/(1+Q$11)^0.5 -> 1.172134362 | R19: =R16/$K$16/(1+R$11)^0.5 -> 1.206352537 | S19: =S16/$K$16/(1+S$11)^0.5 -> 1.241569645 | T19: =T16/$K$16/(1+T$11)^0.5 -> 1.277814848 | U19: =U16/$K$16/(1+U$11)^0.5 -> 1.315118159
A21: Capital Expenditure
A23: Direct Non-Labour Costs
A25: Direct Non-Labour Costs | By Category | E25: Conversion | H25: Expenditure | I25: Mapping | K25: Spend Profile Assumption - As incurred | X25: ="$ Spend Profile - As incurred (June "&$F$27&" dollars)" -> $ Spend Profile - As incurred (June 2023 dollars) | AK25: As Commissioned Profile Assumption | AW25: ="Direct Expenditure - As Commmissioned Profile (June "&$F$27&" dollars)" -> Direct Expenditure - As Commmissioned Profile (June 2023 dollars) | BJ25: Mapping | BK25: DGA Mapping | BL25: Initiative Mapping
A26: Asset being developed | B26: Initiative | C26: Units | E26: Dollar Year From | F26: Dollar Year To | H26: Value | I26: RIN Category | J26: RAB Asset Class | K26: =K$15 -> 2023 | L26: =K26+1 -> 2024 | M26: 2025 | N26: 2026 | O26: 2027 | P26: 2028 | Q26: 2029 | R26: =Q26+1 -> 2030 | S26: =R26+1 -> 2031 | T26: =S26+1 -> 2032 | U26: =T26+1 -> 2033 | V26: Total | X26: =K26 -> 2023 | Y26: 2024 | Z26: 2025 | AA26: 2026 | AB26: 2027 | AC26: 2028 | AD26: 2029 | AE26: 2030 | AF26: 2031 | AG26: 2032 | AH26: 2033 | AI26: Total | AK26: =K26 -> 2023 | AL26: 2024 | AM26: 2025 | AN26: 2026 | AO26: 2027 | AP26: 2028 | AQ26: 2029 | AR26: 2030 | AS26: 2031 | AT26: 2032 | AU26: 2033 | AW26: =AK26 -> 2023 | AX26: =AL26 -> 2024 | AY26: =AM26 -> 2025 | AZ26: =AN26 -> 2026 | BA26: =AO26 -> 2027 | BB26: =AP26 -> 2028 | BC26: 2029 | BD26: 2030 | BE26: 2031 | BF26: 2032 | BG26: 2033 | BH26: Total
A27: Data Management and Network Modelling | B27: Data Management and Network Modelling | C27: $Millions | E27: 2025 | F27: =Report_Year -> 2023 | H27: 4.946791 | I27: Other | J27: Business IT | L27: 0 | M27: 0 | N27: 0 | O27: 0 | P27: 1 | Q27: 0 | R27: 0 | S27: 0 | T27: 0 | U27: 0 | V27: =SUM(K27:U27) -> 1 | W27: =IF(H27=0,0,IF(V27<>1,1,0)) -> 0 | X27: =IFERROR($H27*K27 *IF($E27<>"Nominal",INDEX($K$16:$U$16,,MATCH($F27,Years,0))/INDEX($K$16:$U$16,,MATCH($E27,Years,0)), 1/K$19),0) -> 0 | Y27: =IFERROR($H27*L27 *IF($E27<>"Nominal",INDEX($K$16:$U$16,,MATCH($F27,Years,0))/INDEX($K$16:$U$16,,MATCH($E27,Years,0)), 1/L$19),0) -> 0 | Z27: =IFERROR($H27*M27 *IF($E27<>"Nominal",INDEX($K$16:$U$16,,MATCH($F27,Years,0))/INDEX($K$16:$U$16,,MATCH($E27,Years,0)), 1/M$19),0) -> 0 | AA27: =IFERROR($H27*N27 *IF($E27<>"Nominal",INDEX($K$16:$U$16,,MATCH($F27,Years,0))/INDEX($K$16:$U$16,,MATCH($E27,Years,0)), 1/N$19),0) -> 0 | AB27: =IFERROR($H27*O27 *IF($E27<>"Nominal",INDEX($K$16:$U$16,,MATCH($F27,Years,0))/INDEX($K$16:$U$16,,MATCH($E27,Years,0)), 1/O$19),0) -> 0 | AC27: =IFERROR($H27*P27 *IF($E27<>"Nominal",INDEX($K$16:$U$16,,MATCH($F27,Years,0))/INDEX($K$16:$U$16,,MATCH($E27,Years,0)), 1/P$19),0) -> 4.667508516 | AD27: =IFERROR($H27*Q27 *IF($E27<>"Nominal",INDEX($K$16:$U$16,,MATCH($F27,Years,0))/INDEX($K$16:$U$16,,MATCH($E27,Years,0)), 1/Q$19),0) -> 0 | AE27: =IFERROR($H27*R27 *IF($E27<>"Nominal",INDEX($K$16:$U$16,,MATCH($F27,Years,0))/INDEX($K$16:$U$16,,MATCH($E27,Years,0)), 1/R$19),0) -> 0 | AF27: =IFERROR($H27*S27 *IF($E27<>"Nominal",INDEX($K$16:$U$16,,MATCH($F27,Years,0))/INDEX($K$16:$U$16,,MATCH($E27,Years,0)), 1/S$19),0) -> 0 | AG27: =IFERROR($H27*T27 *IF($E27<>"Nominal",INDEX($K$16:$U$16,,MATCH($F27,Years,0))/INDEX($K$16:$U$16,,MATCH($E27,Years,0)), 1/T$19),0) -> 0 | AH27: =IFERROR($H27*U27 *IF($E27<>"Nominal",INDEX($K$16:$U$16,,MATCH($F27,Years,0))/INDEX($K$16:$U$16,,MATCH($E27,Years,0)), 1/U$19),0) -> 0 | AI27: =SUM(X27:AH27) -> 4.667508516 | AM27: 0 | AN27: 0 | AO27: 0 | AP27: 0 | AQ27: 1 | AR27: 0 | AS27: 0 | AT27: 0 | AU27: 0 | AW27: =$AI27*AK27 -> 0 | AX27: =$AI27*AL27 -> 0 | AY27: =$AI27*AM27 -> 0 | AZ27: =$AI27*AN27 -> 0 | BA27: =$AI27*AO27 -> 0 | BB27: =$AI27*AP27 -> 0 | BC27: 4.667508516 | BD27: 0 | BE27: 0 | BF27: 0 | BG27: 0 | BH27: =SUM(AW27:BG27) -> 4.667508516 | BJ27: =J27&" - "&I27 -> Business IT - Other | BK27: SI Costs | BL27: =IFERROR(INDEX($B$259:$B$280,MATCH($B27,$A$259:$A$280,0)),"") -> Data management and network modelling system
A28: Enhanced EMS/SCADA | B28: SCADA/AEMS | C28: $Millions | E28: 2025 | F28: 2023 | H28: 7.7521215 | I28: SCADA, network control and protection systems | J28: Business IT | L28: 0 | M28: 0 | N28: 0 | O28: 0 | P28: 1 | Q28: 0 | R28: 0 | S28: 0 | T28: 0 | U28: 0 | V28: =SUM(K28:U28) -> 1 | W28: =IF(H28=0,0,IF(V28<>1,1,0)) -> 0 | X28: =IFERROR($H28*K28 *IF($E28<>"Nominal",INDEX($K$16:$U$16,,MATCH($F28,Years,0))/INDEX($K$16:$U$16,,MATCH($E28,Years,0)), 1/K$19),0) -> 0 | Y28: =IFERROR($H28*L28 *IF($E28<>"Nominal",INDEX($K$16:$U$16,,MATCH($F28,Years,0))/INDEX($K$16:$U$16,,MATCH($E28,Years,0)), 1/L$19),0) -> 0 | Z28: =IFERROR($H28*M28 *IF($E28<>"Nominal",INDEX($K$16:$U$16,,MATCH($F28,Years,0))/INDEX($K$16:$U$16,,MATCH($E28,Years,0)), 1/M$19),0) -> 0 | AA28: =IFERROR($H28*N28 *IF($E28<>"Nominal",INDEX($K$16:$U$16,,MATCH($F28,Years,0))/INDEX($K$16:$U$16,,MATCH($E28,Years,0)), 1/N$19),0) -> 0 | AB28: =IFERROR($H28*O28 *IF($E28<>"Nominal",INDEX($K$16:$U$16,,MATCH($F28,Years,0))/INDEX($K$16:$U$16,,MATCH($E28,Years,0)), 1/O$19),0) -> 0 | AC28: =IFERROR($H28*P28 *IF($E28<>"Nominal",INDEX($K$16:$U$16,,MATCH($F28,Years,0))/INDEX($K$16:$U$16,,MATCH($E28,Years,0)), 1/P$19),0) -> 7.314457619 | AD28: =IFERROR($H28*Q28 *IF($E28<>"Nominal",INDEX($K$16:$U$16,,MATCH($F28,Years,0))/INDEX($K$16:$U$16,,MATCH($E28,Years,0)), 1/Q$19),0) -> 0 | AE28: =IFERROR($H28*R28 *IF($E28<>"Nominal",INDEX($K$16:$U$16,,MATCH($F28,Years,0))/INDEX($K$16:$U$16,,MATCH($E28,Years,0)), 1/R$19),0) -> 0 | AF28: =IFERROR($H28*S28 *IF($E28<>"Nominal",INDEX($K$16:$U$16,,MATCH($F28,Years,0))/INDEX($K$16:$U$16,,MATCH($E28,Years,0)), 1/S$19),0) -> 0 | AG28: =IFERROR($H28*T28 *IF($E28<>"Nominal",INDEX($K$16:$U$16,,MATCH($F28,Years,0))/INDEX($K$16:$U$16,,MATCH($E28,Years,0)), 1/T$19),0) -> 0 | AH28: =IFERROR($H28*U28 *IF($E28<>"Nominal",INDEX($K$16:$U$16,,MATCH($F28,Years,0))/INDEX($K$16:$U$16,,MATCH($E28,Years,0)), 1/U$19),0) -> 0 | AI28: 7.314457619 | AM28: 0 | AN28: 0 | AO28: 0 | AP28: 0 | AQ28: 1 | AR28: 0 | AS28: 0 | AT28: 0 | AU28: 0 | AW28: 0 | AX28: 0 | AY28: 0 | AZ28: 0 | BA28: 0 | BB28: 0 | BC28: 7.314457619 | BD28: 0 | BE28: 0 | BF28: 0 | BG28: 0 | BH28: 7.314457619 | BJ28: Business IT - SCADA, network control and protection systems | BK28: SI Costs | BL28: =IFERROR(INDEX($B$259:$B$280,MATCH($B28,$A$259:$A$280,0)),"") -> SCADA/AEMS system
A29: Operational forecasts and look-ahead contingency assessment | B29: Operational forecasts and look-ahead contingency assessment | C29: $Millions | E29: 2025 | F29: 2023 | H29: 1.1874315 | I29: SCADA, network control and protection systems | J29: Communications (short life) | L29: 0 | M29: 0 | N29: 0 | O29: 0 | P29: 0 | Q29: 0 | R29: 1 | S29: 0 | T29: 0 | U29: 0 | V29: =SUM(K29:U29) -> 1 | W29: =IF(H29=0,0,IF(V29<>1,1,0)) -> 0 | X29: =IFERROR($H29*K29 *IF($E29<>"Nominal",INDEX($K$16:$U$16,,MATCH($F29,Years,0))/INDEX($K$16:$U$16,,MATCH($E29,Years,0)), 1/K$19),0) -> 0 | Y29: =IFERROR($H29*L29 *IF($E29<>"Nominal",INDEX($K$16:$U$16,,MATCH($F29,Years,0))/INDEX($K$16:$U$16,,MATCH($E29,Years,0)), 1/L$19),0) -> 0 | Z29: =IFERROR($H29*M29 *IF($E29<>"Nominal",INDEX($K$16:$U$16,,MATCH($F29,Years,0))/INDEX($K$16:$U$16,,MATCH($E29,Years,0)), 1/M$19),0) -> 0 | AA29: =IFERROR($H29*N29 *IF($E29<>"Nominal",INDEX($K$16:$U$16,,MATCH($F29,Years,0))/INDEX($K$16:$U$16,,MATCH($E29,Years,0)), 1/N$19),0) -> 0 | AB29: =IFERROR($H29*O29 *IF($E29<>"Nominal",INDEX($K$16:$U$16,,MATCH($F29,Years,0))/INDEX($K$16:$U$16,,MATCH($E29,Years,0)), 1/O$19),0) -> 0 | AC29: =IFERROR($H29*P29 *IF($E29<>"Nominal",INDEX($K$16:$U$16,,MATCH($F29,Years,0))/INDEX($K$16:$U$16,,MATCH($E29,Years,0)), 1/P$19),0) -> 0 | AD29: =IFERROR($H29*Q29 *IF($E29<>"Nominal",INDEX($K$16:$U$16,,MATCH($F29,Years,0))/INDEX($K$16:$U$16,,MATCH($E29,Years,0)), 1/Q$19),0) -> 0 | AE29: =IFERROR($H29*R29 *IF($E29<>"Nominal",INDEX($K$16:$U$16,,MATCH($F29,Years,0))/INDEX($K$16:$U$16,,MATCH($E29,Years,0)), 1/R$19),0) -> 1.120392319 | AF29: =IFERROR($H29*S29 *IF($E29<>"Nominal",INDEX($K$16:$U$16,,MATCH($F29,Years,0))/INDEX($K$16:$U$16,,MATCH($E29,Years,0)), 1/S$19),0) -> 0 | AG29: =IFERROR($H29*T29 *IF($E29<>"Nominal",INDEX($K$16:$U$16,,MATCH($F29,Years,0))/INDEX($K$16:$U$16,,MATCH($E29,Years,0)), 1/T$19),0) -> 0 | AH29: =IFERROR($H29*U29 *IF($E29<>"Nominal",INDEX($K$16:$U$16,,MATCH($F29,Years,0))/INDEX($K$16:$U$16,,MATCH($E29,Years,0)), 1/U$19),0) -> 0 | AI29: 1.120392319 | AM29: 0 | AN29: 0 | AO29: 0 | AP29: 0 | AQ29: 0 | AR29: 0 | AS29: 1 | AT29: 0 | AU29: 0 | AW29: 0 | AX29: 0 | AY29: 0 | AZ29: 0 | BA29: 0 | BB29: 0 | BC29: 0 | BD29: 0 | BE29: 1.120392319 | BF29: 0 | BG29: 0 | BH29: 1.120392319 | BJ29: Communications (short life) - SCADA, network control and protection systems | BK29: SI Costs | BL29: Operational forecasts and look-ahead contingency assessment
A30: Wide Area Monitoring | B30: Wide Area Monitoring | C30: $Millions | E30: 2025 | F30: 2023 | H30: 1.703987 | I30: SCADA, network control and protection systems | J30: Communications (short life) | L30: 0 | M30: 0 | N30: 0 | O30: 0 | P30: 0 | Q30: 0 | R30: 1 | S30: 0 | T30: 0 | U30: 0 | V30: =SUM(K30:U30) -> 1 | W30: =IF(H30=0,0,IF(V30<>1,1,0)) -> 0 | X30: =IFERROR($H30*K30 *IF($E30<>"Nominal",INDEX($K$16:$U$16,,MATCH($F30,Years,0))/INDEX($K$16:$U$16,,MATCH($E30,Years,0)), 1/K$19),0) -> 0 | Y30: =IFERROR($H30*L30 *IF($E30<>"Nominal",INDEX($K$16:$U$16,,MATCH($F30,Years,0))/INDEX($K$16:$U$16,,MATCH($E30,Years,0)), 1/L$19),0) -> 0 | Z30: =IFERROR($H30*M30 *IF($E30<>"Nominal",INDEX($K$16:$U$16,,MATCH($F30,Years,0))/INDEX($K$16:$U$16,,MATCH($E30,Years,0)), 1/M$19),0) -> 0 | AA30: =IFERROR($H30*N30 *IF($E30<>"Nominal",INDEX($K$16:$U$16,,MATCH($F30,Years,0))/INDEX($K$16:$U$16,,MATCH($E30,Years,0)), 1/N$19),0) -> 0 | AB30: =IFERROR($H30*O30 *IF($E30<>"Nominal",INDEX($K$16:$U$16,,MATCH($F30,Years,0))/INDEX($K$16:$U$16,,MATCH($E30,Years,0)), 1/O$19),0) -> 0 | AC30: =IFERROR($H30*P30 *IF($E30<>"Nominal",INDEX($K$16:$U$16,,MATCH($F30,Years,0))/INDEX($K$16:$U$16,,MATCH($E30,Years,0)), 1/P$19),0) -> 0 | AD30: =IFERROR($H30*Q30 *IF($E30<>"Nominal",INDEX($K$16:$U$16,,MATCH($F30,Years,0))/INDEX($K$16:$U$16,,MATCH($E30,Years,0)), 1/Q$19),0) -> 0 | AE30: =IFERROR($H30*R30 *IF($E30<>"Nominal",INDEX($K$16:$U$16,,MATCH($F30,Years,0))/INDEX($K$16:$U$16,,MATCH($E30,Years,0)), 1/R$19),0) -> 1.607784488 | AF30: =IFERROR($H30*S30 *IF($E30<>"Nominal",INDEX($K$16:$U$16,,MATCH($F30,Years,0))/INDEX($K$16:$U$16,,MATCH($E30,Years,0)), 1/S$19),0) -> 0 | AG30: =IFERROR($H30*T30 *IF($E30<>"Nominal",INDEX($K$16:$U$16,,MATCH($F30,Years,0))/INDEX($K$16:$U$16,,MATCH($E30,Years,0)), 1/T$19),0) -> 0 | AH30: =IFERROR($H30*U30 *IF($E30<>"Nominal",INDEX($K$16:$U$16,,MATCH($F30,Years,0))/INDEX($K$16:$U$16,,MATCH($E30,Years,0)), 1/U$19),0) -> 0 | AI30: 1.607784488 | AM30: 0 | AN30: 0 | AO30: 0 | AP30: 0 | AQ30: 0 | AR30: 0 | AS30: 1 | AT30: 0 | AU30: 0 | AW30: 0 | AX30: 0 | AY30: 0 | AZ30: 0 | BA30: 0 | BB30: =$AI30*AP30 -> 0 | BC30: 0 | BD30: 0 | BE30: 1.607784488 | BF30: 0 | BG30: 0 | BH30: 1.607784488 | BJ30: Communications (short life) - SCADA, network control and protection systems | BK30: SI Costs | BL30: Wide area monitoring
A31: Smart Transmission Device Management | B31: Smart Transmission Device Management | C31: $Millions | E31: 2025 | F31: 2023 | H31: 0.6358315 | I31: SCADA, network control and protection systems | J31: Communications (short life) | L31: 0 | M31: 0 | N31: 0 | O31: 0 | P31: 0 | Q31: 0 | R31: 1 | S31: 0 | T31: 0 | U31: 0 | V31: 1 | W31: 0 | X31: =IFERROR($H31*K31 *IF($E31<>"Nominal",INDEX($K$16:$U$16,,MATCH($F31,Years,0))/INDEX($K$16:$U$16,,MATCH($E31,Years,0)), 1/K$19),0) -> 0 | Y31: =IFERROR($H31*L31 *IF($E31<>"Nominal",INDEX($K$16:$U$16,,MATCH($F31,Years,0))/INDEX($K$16:$U$16,,MATCH($E31,Years,0)), 1/L$19),0) -> 0 | Z31: =IFERROR($H31*M31 *IF($E31<>"Nominal",INDEX($K$16:$U$16,,MATCH($F31,Years,0))/INDEX($K$16:$U$16,,MATCH($E31,Years,0)), 1/M$19),0) -> 0 | AA31: =IFERROR($H31*N31 *IF($E31<>"Nominal",INDEX($K$16:$U$16,,MATCH($F31,Years,0))/INDEX($K$16:$U$16,,MATCH($E31,Years,0)), 1/N$19),0) -> 0 | AB31: =IFERROR($H31*O31 *IF($E31<>"Nominal",INDEX($K$16:$U$16,,MATCH($F31,Years,0))/INDEX($K$16:$U$16,,MATCH($E31,Years,0)), 1/O$19),0) -> 0 | AC31: =IFERROR($H31*P31 *IF($E31<>"Nominal",INDEX($K$16:$U$16,,MATCH($F31,Years,0))/INDEX($K$16:$U$16,,MATCH($E31,Years,0)), 1/P$19),0) -> 0 | AD31: =IFERROR($H31*Q31 *IF($E31<>"Nominal",INDEX($K$16:$U$16,,MATCH($F31,Years,0))/INDEX($K$16:$U$16,,MATCH($E31,Years,0)), 1/Q$19),0) -> 0 | AE31: =IFERROR($H31*R31 *IF($E31<>"Nominal",INDEX($K$16:$U$16,,MATCH($F31,Years,0))/INDEX($K$16:$U$16,,MATCH($E31,Years,0)), 1/R$19),0) -> 0.5999341676 | AF31: =IFERROR($H31*S31 *IF($E31<>"Nominal",INDEX($K$16:$U$16,,MATCH($F31,Years,0))/INDEX($K$16:$U$16,,MATCH($E31,Years,0)), 1/S$19),0) -> 0 | AG31: =IFERROR($H31*T31 *IF($E31<>"Nominal",INDEX($K$16:$U$16,,MATCH($F31,Years,0))/INDEX($K$16:$U$16,,MATCH($E31,Years,0)), 1/T$19),0) -> 0 | AH31: =IFERROR($H31*U31 *IF($E31<>"Nominal",INDEX($K$16:$U$16,,MATCH($F31,Years,0))/INDEX($K$16:$U$16,,MATCH($E31,Years,0)), 1/U$19),0) -> 0 | AI31: 0.5999341676 | AM31: 0 | AN31: 0 | AO31: 0 | AP31: 0 | AQ31: 0 | AR31: 0 | AS31: 1 | AT31: 0 | AU31: 0 | AW31: 0 | AX31: 0 | AY31: 0 | AZ31: 0 | BA31: 0 | BB31: 0 | BC31: 0 | BD31: 0 | BE31: 0.5999341676 | BF31: 0 | BG31: 0 | BH31: 0.5999341676 | BJ31: Communications (short life) - SCADA, network control and protection systems | BK31: SI Costs | BL31: Smart Transmission Device Management
A32: Fault level and system parameter monitoring | B32: Fault level and system parameter monitoring | C32: $Millions | E32: 2025 | F32: 2023 | H32: 0.7262315 | I32: SCADA, network control and protection systems | J32: Communications (short life) | L32: 0 | M32: 0 | N32: 0 | O32: 0 | P32: 0 | Q32: 0 | R32: 1 | S32: 0 | T32: 0 | U32: 0 | V32: 1 | W32: 0 | X32: =IFERROR($H32*K32 *IF($E32<>"Nominal",INDEX($K$16:$U$16,,MATCH($F32,Years,0))/INDEX($K$16:$U$16,,MATCH($E32,Years,0)), 1/K$19),0) -> 0 | Y32: =IFERROR($H32*L32 *IF($E32<>"Nominal",INDEX($K$16:$U$16,,MATCH($F32,Years,0))/INDEX($K$16:$U$16,,MATCH($E32,Years,0)), 1/L$19),0) -> 0 | Z32: =IFERROR($H32*M32 *IF($E32<>"Nominal",INDEX($K$16:$U$16,,MATCH($F32,Years,0))/INDEX($K$16:$U$16,,MATCH($E32,Years,0)), 1/M$19),0) -> 0 | AA32: =IFERROR($H32*N32 *IF($E32<>"Nominal",INDEX($K$16:$U$16,,MATCH($F32,Years,0))/INDEX($K$16:$U$16,,MATCH($E32,Years,0)), 1/N$19),0) -> 0 | AB32: =IFERROR($H32*O32 *IF($E32<>"Nominal",INDEX($K$16:$U$16,,MATCH($F32,Years,0))/INDEX($K$16:$U$16,,MATCH($E32,Years,0)), 1/O$19),0) -> 0 | AC32: =IFERROR($H32*P32 *IF($E32<>"Nominal",INDEX($K$16:$U$16,,MATCH($F32,Years,0))/INDEX($K$16:$U$16,,MATCH($E32,Years,0)), 1/P$19),0) -> 0 | AD32: =IFERROR($H32*Q32 *IF($E32<>"Nominal",INDEX($K$16:$U$16,,MATCH($F32,Years,0))/INDEX($K$16:$U$16,,MATCH($E32,Years,0)), 1/Q$19),0) -> 0 | AE32: =IFERROR($H32*R32 *IF($E32<>"Nominal",INDEX($K$16:$U$16,,MATCH($F32,Years,0))/INDEX($K$16:$U$16,,MATCH($E32,Years,0)), 1/R$19),0) -> 0.6852304273 | AF32: =IFERROR($H32*S32 *IF($E32<>"Nominal",INDEX($K$16:$U$16,,MATCH($F32,Years,0))/INDEX($K$16:$U$16,,MATCH($E32,Years,0)), 1/S$19),0) -> 0 | AG32: =IFERROR($H32*T32 *IF($E32<>"Nominal",INDEX($K$16:$U$16,,MATCH($F32,Years,0))/INDEX($K$16:$U$16,,MATCH($E32,Years,0)), 1/T$19),0) -> 0 | AH32: =IFERROR($H32*U32 *IF($E32<>"Nominal",INDEX($K$16:$U$16,,MATCH($F32,Years,0))/INDEX($K$16:$U$16,,MATCH($E32,Years,0)), 1/U$19),0) -> 0 | AI32: 0.6852304273 | AM32: 0 | AN32: 0 | AO32: 0 | AP32: 0 | AQ32: 0 | AR32: 0 | AS32: 1 | AT32: 0 | AU32: 0 | AW32: 0 | AX32: 0 | AY32: 0 | AZ32: 0 | BA32: 0 | BB32: 0 | BC32: 0 | BD32: 0 | BE32: 0.6852304273 | BF32: 0 | BG32: 0 | BH32: 0.6852304273 | BJ32: Communications (short life) - SCADA, network control and protection systems | BK32: SI Costs | BL32: Fault level and system parameter monitoring and power system analysis capability
A33: Alarm Management technologies | B33: Alarm Management technologies | C33: $Millions | E33: 2025 | F33: 2023 | H33: 0.8279095 | I33: SCADA, network control and protection systems | J33: Communications (short life) | L33: 0 | M33: 0 | N33: 0 | O33: 0 | P33: 1 | Q33: 0 | R33: 0 | S33: 0 | T33: 0 | U33: 0 | V33: 1 | W33: 0 | X33: =IFERROR($H33*K33 *IF($E33<>"Nominal",INDEX($K$16:$U$16,,MATCH($F33,Years,0))/INDEX($K$16:$U$16,,MATCH($E33,Years,0)), 1/K$19),0) -> 0 | Y33: =IFERROR($H33*L33 *IF($E33<>"Nominal",INDEX($K$16:$U$16,,MATCH($F33,Years,0))/INDEX($K$16:$U$16,,MATCH($E33,Years,0)), 1/L$19),0) -> 0 | Z33: =IFERROR($H33*M33 *IF($E33<>"Nominal",INDEX($K$16:$U$16,,MATCH($F33,Years,0))/INDEX($K$16:$U$16,,MATCH($E33,Years,0)), 1/M$19),0) -> 0 | AA33: =IFERROR($H33*N33 *IF($E33<>"Nominal",INDEX($K$16:$U$16,,MATCH($F33,Years,0))/INDEX($K$16:$U$16,,MATCH($E33,Years,0)), 1/N$19),0) -> 0 | AB33: =IFERROR($H33*O33 *IF($E33<>"Nominal",INDEX($K$16:$U$16,,MATCH($F33,Years,0))/INDEX($K$16:$U$16,,MATCH($E33,Years,0)), 1/O$19),0) -> 0 | AC33: =IFERROR($H33*P33 *IF($E33<>"Nominal",INDEX($K$16:$U$16,,MATCH($F33,Years,0))/INDEX($K$16:$U$16,,MATCH($E33,Years,0)), 1/P$19),0) -> 0.7811679615 | AD33: =IFERROR($H33*Q33 *IF($E33<>"Nominal",INDEX($K$16:$U$16,,MATCH($F33,Years,0))/INDEX($K$16:$U$16,,MATCH($E33,Years,0)), 1/Q$19),0) -> 0 | AE33: =IFERROR($H33*R33 *IF($E33<>"Nominal",INDEX($K$16:$U$16,,MATCH($F33,Years,0))/INDEX($K$16:$U$16,,MATCH($E33,Years,0)), 1/R$19),0) -> 0 | AF33: =IFERROR($H33*S33 *IF($E33<>"Nominal",INDEX($K$16:$U$16,,MATCH($F33,Years,0))/INDEX($K$16:$U$16,,MATCH($E33,Years,0)), 1/S$19),0) -> 0 | AG33: =IFERROR($H33*T33 *IF($E33<>"Nominal",INDEX($K$16:$U$16,,MATCH($F33,Years,0))/INDEX($K$16:$U$16,,MATCH($E33,Years,0)), 1/T$19),0) -> 0 | AH33: =IFERROR($H33*U33 *IF($E33<>"Nominal",INDEX($K$16:$U$16,,MATCH($F33,Years,0))/INDEX($K$16:$U$16,,MATCH($E33,Years,0)), 1/U$19),0) -> 0 | AI33: 0.7811679615 | AM33: 0 | AN33: 0 | AO33: 0 | AP33: 0 | AQ33: 1 | AR33: 0 | AS33: 0 | AT33: 0 | AU33: 0 | AW33: 0 | AX33: 0 | AY33: 0 | AZ33: 0 | BA33: 0 | BB33: =$AI33*AP33 -> 0 | BC33: 0.7811679615 | BD33: 0 | BE33: 0 | BF33: 0 | BG33: 0 | BH33: 0.7811679615 | BJ33: Communications (short life) - SCADA, network control and protection systems | BK33: SI Costs | BL33: Alarm management, visualisation and situation awareness enhancement
A34: Operator Visualisation and Situational Awareness technology | B34: Operator Visualisation and Situational Awareness technology | C34: $Millions | E34: 2025 | F34: 2023 | H34: 1.1001065 | I34: SCADA, network control and protection systems | J34: Communications (short life) | L34: 0 | M34: 0 | N34: 0 | O34: 0 | P34: 0 | Q34: 1 | R34: 0 | S34: 0 | T34: 0 | U34: 0 | V34: 1 | W34: 0 | X34: =IFERROR($H34*K34 *IF($E34<>"Nominal",INDEX($K$16:$U$16,,MATCH($F34,Years,0))/INDEX($K$16:$U$16,,MATCH($E34,Years,0)), 1/K$19),0) -> 0 | Y34: =IFERROR($H34*L34 *IF($E34<>"Nominal",INDEX($K$16:$U$16,,MATCH($F34,Years,0))/INDEX($K$16:$U$16,,MATCH($E34,Years,0)), 1/L$19),0) -> 0 | Z34: =IFERROR($H34*M34 *IF($E34<>"Nominal",INDEX($K$16:$U$16,,MATCH($F34,Years,0))/INDEX($K$16:$U$16,,MATCH($E34,Years,0)), 1/M$19),0) -> 0 | AA34: =IFERROR($H34*N34 *IF($E34<>"Nominal",INDEX($K$16:$U$16,,MATCH($F34,Years,0))/INDEX($K$16:$U$16,,MATCH($E34,Years,0)), 1/N$19),0) -> 0 | AB34: =IFERROR($H34*O34 *IF($E34<>"Nominal",INDEX($K$16:$U$16,,MATCH($F34,Years,0))/INDEX($K$16:$U$16,,MATCH($E34,Years,0)), 1/O$19),0) -> 0 | AC34: =IFERROR($H34*P34 *IF($E34<>"Nominal",INDEX($K$16:$U$16,,MATCH($F34,Years,0))/INDEX($K$16:$U$16,,MATCH($E34,Years,0)), 1/P$19),0) -> 0 | AD34: =IFERROR($H34*Q34 *IF($E34<>"Nominal",INDEX($K$16:$U$16,,MATCH($F34,Years,0))/INDEX($K$16:$U$16,,MATCH($E34,Years,0)), 1/Q$19),0) -> 1.037997453 | AE34: =IFERROR($H34*R34 *IF($E34<>"Nominal",INDEX($K$16:$U$16,,MATCH($F34,Years,0))/INDEX($K$16:$U$16,,MATCH($E34,Years,0)), 1/R$19),0) -> 0 | AF34: =IFERROR($H34*S34 *IF($E34<>"Nominal",INDEX($K$16:$U$16,,MATCH($F34,Years,0))/INDEX($K$16:$U$16,,MATCH($E34,Years,0)), 1/S$19),0) -> 0 | AG34: =IFERROR($H34*T34 *IF($E34<>"Nominal",INDEX($K$16:$U$16,,MATCH($F34,Years,0))/INDEX($K$16:$U$16,,MATCH($E34,Years,0)), 1/T$19),0) -> 0 | AH34: =IFERROR($H34*U34 *IF($E34<>"Nominal",INDEX($K$16:$U$16,,MATCH($F34,Years,0))/INDEX($K$16:$U$16,,MATCH($E34,Years,0)), 1/U$19),0) -> 0 | AI34: 1.037997453 | AM34: 0 | AN34: 0 | AO34: 0 | AP34: 0 | AQ34: 1 | AR34: 0 | AS34: 0 | AT34: 0 | AU34: 0 | AW34: 0 | AX34: 0 | AY34: 0 | AZ34: 0 | BA34: 0 | BB34: 0 | BC34: 1.037997453 | BD34: 0 | BE34: 0 | BF34: 0 | BG34: 0 | BH34: 1.037997453 | BJ34: Communications (short life) - SCADA, network control and protection systems | BK34: SI Costs | BL34: Alarm management, visualisation and situation awareness enhancement
A35: Training technologies | B35: Training technologies | C35: $Millions | E35: 2025 | F35: 2023 | H35: 0.351004 | I35: SCADA, network control and protection systems | J35: Communications (short life) | L35: 0 | M35: 0 | N35: 0 | O35: 0 | P35: 1 | Q35: 0 | R35: 0 | S35: 0 | T35: 0 | U35: 0 | V35: 1 | W35: 0 | X35: =IFERROR($H35*K35 *IF($E35<>"Nominal",INDEX($K$16:$U$16,,MATCH($F35,Years,0))/INDEX($K$16:$U$16,,MATCH($E35,Years,0)), 1/K$19),0) -> 0 | Y35: =IFERROR($H35*L35 *IF($E35<>"Nominal",INDEX($K$16:$U$16,,MATCH($F35,Years,0))/INDEX($K$16:$U$16,,MATCH($E35,Years,0)), 1/L$19),0) -> 0 | Z35: =IFERROR($H35*M35 *IF($E35<>"Nominal",INDEX($K$16:$U$16,,MATCH($F35,Years,0))/INDEX($K$16:$U$16,,MATCH($E35,Years,0)), 1/M$19),0) -> 0 | AA35: =IFERROR($H35*N35 *IF($E35<>"Nominal",INDEX($K$16:$U$16,,MATCH($F35,Years,0))/INDEX($K$16:$U$16,,MATCH($E35,Years,0)), 1/N$19),0) -> 0 | AB35: =IFERROR($H35*O35 *IF($E35<>"Nominal",INDEX($K$16:$U$16,,MATCH($F35,Years,0))/INDEX($K$16:$U$16,,MATCH($E35,Years,0)), 1/O$19),0) -> 0 | AC35: =IFERROR($H35*P35 *IF($E35<>"Nominal",INDEX($K$16:$U$16,,MATCH($F35,Years,0))/INDEX($K$16:$U$16,,MATCH($E35,Years,0)), 1/P$19),0) -> 0.3311872604 | AD35: =IFERROR($H35*Q35 *IF($E35<>"Nominal",INDEX($K$16:$U$16,,MATCH($F35,Years,0))/INDEX($K$16:$U$16,,MATCH($E35,Years,0)), 1/Q$19),0) -> 0 | AE35: =IFERROR($H35*R35 *IF($E35<>"Nominal",INDEX($K$16:$U$16,,MATCH($F35,Years,0))/INDEX($K$16:$U$16,,MATCH($E35,Years,0)), 1/R$19),0) -> 0 | AF35: =IFERROR($H35*S35 *IF($E35<>"Nominal",INDEX($K$16:$U$16,,MATCH($F35,Years,0))/INDEX($K$16:$U$16,,MATCH($E35,Years,0)), 1/S$19),0) -> 0 | AG35: =IFERROR($H35*T35 *IF($E35<>"Nominal",INDEX($K$16:$U$16,,MATCH($F35,Years,0))/INDEX($K$16:$U$16,,MATCH($E35,Years,0)), 1/T$19),0) -> 0 | AH35: =IFERROR($H35*U35 *IF($E35<>"Nominal",INDEX($K$16:$U$16,,MATCH($F35,Years,0))/INDEX($K$16:$U$16,,MATCH($E35,Years,0)), 1/U$19),0) -> 0 | AI35: 0.3311872604 | AM35: 0 | AN35: 0 | AO35: 0 | AP35: 0 | AQ35: 1 | AR35: 0 | AS35: 0 | AT35: 0 | AU35: 0 | AW35: 0 | AX35: 0 | AY35: 0 | AZ35: 0 | BA35: 0 | BB35: 0 | BC35: 0.3311872604 | BD35: 0 | BE35: 0 | BF35: 0 | BG35: 0 | BH35: 0.3311872604 | BJ35: Communications (short life) - SCADA, network control and protection systems | BK35: SI Costs | BL35: Training technologies, operational document management system and operational planning systems
A36: Operational Documentation Management System | B36: Operational Documentation Management System | C36: $Millions | E36: 2025 | F36: 2023 | H36: 0.0625 | I36: Other | J36: Business IT | L36: 0 | M36: 0 | N36: 0 | O36: 0 | P36: 1 | Q36: 0 | R36: 0 | S36: 0 | T36: 0 | U36: 0 | V36: 1 | W36: 0 | X36: =IFERROR($H36*K36 *IF($E36<>"Nominal",INDEX($K$16:$U$16,,MATCH($F36,Years,0))/INDEX($K$16:$U$16,,MATCH($E36,Years,0)), 1/K$19),0) -> 0 | Y36: =IFERROR($H36*L36 *IF($E36<>"Nominal",INDEX($K$16:$U$16,,MATCH($F36,Years,0))/INDEX($K$16:$U$16,,MATCH($E36,Years,0)), 1/L$19),0) -> 0 | Z36: =IFERROR($H36*M36 *IF($E36<>"Nominal",INDEX($K$16:$U$16,,MATCH($F36,Years,0))/INDEX($K$16:$U$16,,MATCH($E36,Years,0)), 1/M$19),0) -> 0 | AA36: =IFERROR($H36*N36 *IF($E36<>"Nominal",INDEX($K$16:$U$16,,MATCH($F36,Years,0))/INDEX($K$16:$U$16,,MATCH($E36,Years,0)), 1/N$19),0) -> 0 | AB36: =IFERROR($H36*O36 *IF($E36<>"Nominal",INDEX($K$16:$U$16,,MATCH($F36,Years,0))/INDEX($K$16:$U$16,,MATCH($E36,Years,0)), 1/O$19),0) -> 0 | AC36: =IFERROR($H36*P36 *IF($E36<>"Nominal",INDEX($K$16:$U$16,,MATCH($F36,Years,0))/INDEX($K$16:$U$16,,MATCH($E36,Years,0)), 1/P$19),0) -> 0.05897141849 | AD36: =IFERROR($H36*Q36 *IF($E36<>"Nominal",INDEX($K$16:$U$16,,MATCH($F36,Years,0))/INDEX($K$16:$U$16,,MATCH($E36,Years,0)), 1/Q$19),0) -> 0 | AE36: =IFERROR($H36*R36 *IF($E36<>"Nominal",INDEX($K$16:$U$16,,MATCH($F36,Years,0))/INDEX($K$16:$U$16,,MATCH($E36,Years,0)), 1/R$19),0) -> 0 | AF36: =IFERROR($H36*S36 *IF($E36<>"Nominal",INDEX($K$16:$U$16,,MATCH($F36,Years,0))/INDEX($K$16:$U$16,,MATCH($E36,Years,0)), 1/S$19),0) -> 0 | AG36: =IFERROR($H36*T36 *IF($E36<>"Nominal",INDEX($K$16:$U$16,,MATCH($F36,Years,0))/INDEX($K$16:$U$16,,MATCH($E36,Years,0)), 1/T$19),0) -> 0 | AH36: =IFERROR($H36*U36 *IF($E36<>"Nominal",INDEX($K$16:$U$16,,MATCH($F36,Years,0))/INDEX($K$16:$U$16,,MATCH($E36,Years,0)), 1/U$19),0) -> 0 | AI36: 0.05897141849 | AM36: 0 | AN36: 0 | AO36: 0 | AP36: 1 | AQ36: 0 | AR36: 0 | AS36: 0 | AT36: 0 | AU36: 0 | AW36: 0 | AX36: 0 | AY36: 0 | AZ36: 0 | BA36: 0 | BB36: =$AI36*AP36 -> 0.05897141849 | BC36: 0 | BD36: 0 | BE36: 0 | BF36: 0 | BG36: 0 | BH36: 0.05897141849 | BJ36: Business IT - Other | BK36: SI Costs | BL36: Training technologies, operational document management system and operational planning systems
A37: Operational Planning Systems | B37: Operational Planning Systems | C37: $Millions | E37: 2025 | F37: 2023 | H37: 0.315419 | I37: Other | J37: Business IT | L37: 0 | M37: 0 | N37: 0 | O37: 1 | P37: 0 | Q37: 0 | R37: 0 | S37: 0 | T37: 0 | U37: 0 | V37: 1 | W37: 0 | X37: =IFERROR($H37*K37 *IF($E37<>"Nominal",INDEX($K$16:$U$16,,MATCH($F37,Years,0))/INDEX($K$16:$U$16,,MATCH($E37,Years,0)), 1/K$19),0) -> 0 | Y37: =IFERROR($H37*L37 *IF($E37<>"Nominal",INDEX($K$16:$U$16,,MATCH($F37,Years,0))/INDEX($K$16:$U$16,,MATCH($E37,Years,0)), 1/L$19),0) -> 0 | Z37: =IFERROR($H37*M37 *IF($E37<>"Nominal",INDEX($K$16:$U$16,,MATCH($F37,Years,0))/INDEX($K$16:$U$16,,MATCH($E37,Years,0)), 1/M$19),0) -> 0 | AA37: =IFERROR($H37*N37 *IF($E37<>"Nominal",INDEX($K$16:$U$16,,MATCH($F37,Years,0))/INDEX($K$16:$U$16,,MATCH($E37,Years,0)), 1/N$19),0) -> 0 | AB37: =IFERROR($H37*O37 *IF($E37<>"Nominal",INDEX($K$16:$U$16,,MATCH($F37,Years,0))/INDEX($K$16:$U$16,,MATCH($E37,Years,0)), 1/O$19),0) -> 0.2976112936 | AC37: =IFERROR($H37*P37 *IF($E37<>"Nominal",INDEX($K$16:$U$16,,MATCH($F37,Years,0))/INDEX($K$16:$U$16,,MATCH($E37,Years,0)), 1/P$19),0) -> 0 | AD37: =IFERROR($H37*Q37 *IF($E37<>"Nominal",INDEX($K$16:$U$16,,MATCH($F37,Years,0))/INDEX($K$16:$U$16,,MATCH($E37,Years,0)), 1/Q$19),0) -> 0 | AE37: =IFERROR($H37*R37 *IF($E37<>"Nominal",INDEX($K$16:$U$16,,MATCH($F37,Years,0))/INDEX($K$16:$U$16,,MATCH($E37,Years,0)), 1/R$19),0) -> 0 | AF37: =IFERROR($H37*S37 *IF($E37<>"Nominal",INDEX($K$16:$U$16,,MATCH($F37,Years,0))/INDEX($K$16:$U$16,,MATCH($E37,Years,0)), 1/S$19),0) -> 0 | AG37: =IFERROR($H37*T37 *IF($E37<>"Nominal",INDEX($K$16:$U$16,,MATCH($F37,Years,0))/INDEX($K$16:$U$16,,MATCH($E37,Years,0)), 1/T$19),0) -> 0 | AH37: =IFERROR($H37*U37 *IF($E37<>"Nominal",INDEX($K$16:$U$16,,MATCH($F37,Years,0))/INDEX($K$16:$U$16,,MATCH($E37,Years,0)), 1/U$19),0) -> 0 | AI37: 0.2976112936 | AM37: 0 | AN37: 0 | AO37: 0 | AP37: 1 | AQ37: 0 | AR37: 0 | AS37: 0 | AT37: 0 | AU37: 0 | AW37: 0 | AX37: 0 | AY37: 0 | AZ37: 0 | BA37: 0 | BB37: 0.2976112936 | BC37: 0 | BD37: 0 | BE37: 0 | BF37: 0 | BG37: 0 | BH37: 0.2976112936 | BJ37: Business IT - Other | BK37: SI Costs | BL37: Training technologies, operational document management system and operational planning systems
A38: Data Management and Network Modelling | B38: Data Management and Network Modelling | C38: $Millions | E38: 2025 | F38: 2023 | H38: 15.69426332 | I38: Other | J38: Business IT | L38: 0 | M38: 0 | N38: 0 | O38: 0.04166666667 | P38: 0.5 | Q38: 0.4583333333 | R38: 0 | S38: 0 | T38: 0 | U38: 0 | V38: 1 | W38: 0 | X38: =IFERROR($H38*K38 *IF($E38<>"Nominal",INDEX($K$16:$U$16,,MATCH($F38,Years,0))/INDEX($K$16:$U$16,,MATCH($E38,Years,0)), 1/K$19),0) -> 0 | Y38: =IFERROR($H38*L38 *IF($E38<>"Nominal",INDEX($K$16:$U$16,,MATCH($F38,Years,0))/INDEX($K$16:$U$16,,MATCH($E38,Years,0)), 1/L$19),0) -> 0 | Z38: =IFERROR($H38*M38 *IF($E38<>"Nominal",INDEX($K$16:$U$16,,MATCH($F38,Years,0))/INDEX($K$16:$U$16,,MATCH($E38,Years,0)), 1/M$19),0) -> 0 | AA38: =IFERROR($H38*N38 *IF($E38<>"Nominal",INDEX($K$16:$U$16,,MATCH($F38,Years,0))/INDEX($K$16:$U$16,,MATCH($E38,Years,0)), 1/N$19),0) -> 0 | AB38: =IFERROR($H38*O38 *IF($E38<>"Nominal",INDEX($K$16:$U$16,,MATCH($F38,Years,0))/INDEX($K$16:$U$16,,MATCH($E38,Years,0)), 1/O$19),0) -> 0.6170086468 | AC38: =IFERROR($H38*P38 *IF($E38<>"Nominal",INDEX($K$16:$U$16,,MATCH($F38,Years,0))/INDEX($K$16:$U$16,,MATCH($E38,Years,0)), 1/P$19),0) -> 7.404103762 | AD38: =IFERROR($H38*Q38 *IF($E38<>"Nominal",INDEX($K$16:$U$16,,MATCH($F38,Years,0))/INDEX($K$16:$U$16,,MATCH($E38,Years,0)), 1/Q$19),0) -> 6.787095115 | AE38: =IFERROR($H38*R38 *IF($E38<>"Nominal",INDEX($K$16:$U$16,,MATCH($F38,Years,0))/INDEX($K$16:$U$16,,MATCH($E38,Years,0)), 1/R$19),0) -> 0 | AF38: =IFERROR($H38*S38 *IF($E38<>"Nominal",INDEX($K$16:$U$16,,MATCH($F38,Years,0))/INDEX($K$16:$U$16,,MATCH($E38,Years,0)), 1/S$19),0) -> 0 | AG38: =IFERROR($H38*T38 *IF($E38<>"Nominal",INDEX($K$16:$U$16,,MATCH($F38,Years,0))/INDEX($K$16:$U$16,,MATCH($E38,Years,0)), 1/T$19),0) -> 0 | AH38: =IFERROR($H38*U38 *IF($E38<>"Nominal",INDEX($K$16:$U$16,,MATCH($F38,Years,0))/INDEX($K$16:$U$16,,MATCH($E38,Years,0)), 1/U$19),0) -> 0 | AI38: 14.80820752 | AM38: 0 | AN38: 0 | AO38: 0 | AP38: 0 | AQ38: 1 | AR38: 0 | AS38: 0 | AT38: 0 | AU38: 0 | AW38: 0 | AX38: 0 | AY38: 0 | AZ38: 0 | BA38: 0 | BB38: 0 | BC38: 14.80820752 | BD38: 0 | BE38: 0 | BF38: 0 | BG38: 0 | BH38: 14.80820752 | BJ38: Business IT - Other | BK38: SI Costs | BL38: Data management and network modelling system
A39: Enhanced EMS/SCADA | B39: SCADA/AEMS | C39: $Millions | E39: 2025 | F39: 2023 | H39: 13.456887 | I39: SCADA, network control and protection systems | J39: Communications (short life) | L39: 0 | M39: 0 | N39: 0 | O39: 0.02659960373 | P39: 0.1941045571 | Q39: 0.1941045571 | R39: 0.3191952448 | S39: 0.2659960373 | T39: 0 | U39: 0 | V39: 1 | W39: 0 | X39: =IFERROR($H39*K39 *IF($E39<>"Nominal",INDEX($K$16:$U$16,,MATCH($F39,Years,0))/INDEX($K$16:$U$16,,MATCH($E39,Years,0)), 1/K$19),0) -> 0 | Y39: =IFERROR($H39*L39 *IF($E39<>"Nominal",INDEX($K$16:$U$16,,MATCH($F39,Years,0))/INDEX($K$16:$U$16,,MATCH($E39,Years,0)), 1/L$19),0) -> 0 | Z39: =IFERROR($H39*M39 *IF($E39<>"Nominal",INDEX($K$16:$U$16,,MATCH($F39,Years,0))/INDEX($K$16:$U$16,,MATCH($E39,Years,0)), 1/M$19),0) -> 0 | AA39: =IFERROR($H39*N39 *IF($E39<>"Nominal",INDEX($K$16:$U$16,,MATCH($F39,Years,0))/INDEX($K$16:$U$16,,MATCH($E39,Years,0)), 1/N$19),0) -> 0 | AB39: =IFERROR($H39*O39 *IF($E39<>"Nominal",INDEX($K$16:$U$16,,MATCH($F39,Years,0))/INDEX($K$16:$U$16,,MATCH($E39,Years,0)), 1/O$19),0) -> 0.3377390904 | AC39: =IFERROR($H39*P39 *IF($E39<>"Nominal",INDEX($K$16:$U$16,,MATCH($F39,Years,0))/INDEX($K$16:$U$16,,MATCH($E39,Years,0)), 1/P$19),0) -> 2.464574179 | AD39: =IFERROR($H39*Q39 *IF($E39<>"Nominal",INDEX($K$16:$U$16,,MATCH($F39,Years,0))/INDEX($K$16:$U$16,,MATCH($E39,Years,0)), 1/Q$19),0) -> 2.464574179 | AE39: =IFERROR($H39*R39 *IF($E39<>"Nominal",INDEX($K$16:$U$16,,MATCH($F39,Years,0))/INDEX($K$16:$U$16,,MATCH($E39,Years,0)), 1/R$19),0) -> 4.052869085 | AF39: =IFERROR($H39*S39 *IF($E39<>"Nominal",INDEX($K$16:$U$16,,MATCH($F39,Years,0))/INDEX($K$16:$U$16,,MATCH($E39,Years,0)), 1/S$19),0) -> 3.377390904 | AG39: =IFERROR($H39*T39 *IF($E39<>"Nominal",INDEX($K$16:$U$16,,MATCH($F39,Years,0))/INDEX($K$16:$U$16,,MATCH($E39,Years,0)), 1/T$19),0) -> 0 | AH39: =IFERROR($H39*U39 *IF($E39<>"Nominal",INDEX($K$16:$U$16,,MATCH($F39,Years,0))/INDEX($K$16:$U$16,,MATCH($E39,Years,0)), 1/U$19),0) -> 0 | AI39: 12.69714744 | AM39: 0 | AN39: 0 | AO39: 0 | AP39: 0 | AQ39: 0.6383904896 | AR39: 0 | AS39: 0.3616095104 | AT39: 0 | AU39: 0 | AW39: 0 | AX39: 0 | AY39: 0 | AZ39: 0 | BA39: 0 | BB39: =$AI39*AP39 -> 0 | BC39: 8.10573817 | BD39: 0 | BE39: 4.591409268 | BF39: 0 | BG39: 0 | BH39: 12.69714744 | BJ39: Communications (short life) - SCADA, network control and protection systems | BK39: SI Costs | BL39: SCADA/AEMS system
A40: Operational forecasts and look-ahead contingency assessment | B40: Operational forecasts and look-ahead contingency assessment | C40: $Millions | E40: 2025 | F40: 2023 | H40: 1.01184225 | I40: SCADA, network control and protection systems | J40: Communications (short life) | L40: 0 | M40: 0 | N40: 0 | O40: 0 | P40: 0 | Q40: 0 | R40: 0.7142857143 | S40: 0.2857142857 | T40: 0 | U40: 0 | V40: 1 | W40: 0 | X40: =IFERROR($H40*K40 *IF($E40<>"Nominal",INDEX($K$16:$U$16,,MATCH($F40,Years,0))/INDEX($K$16:$U$16,,MATCH($E40,Years,0)), 1/K$19),0) -> 0 | Y40: =IFERROR($H40*L40 *IF($E40<>"Nominal",INDEX($K$16:$U$16,,MATCH($F40,Years,0))/INDEX($K$16:$U$16,,MATCH($E40,Years,0)), 1/L$19),0) -> 0 | Z40: =IFERROR($H40*M40 *IF($E40<>"Nominal",INDEX($K$16:$U$16,,MATCH($F40,Years,0))/INDEX($K$16:$U$16,,MATCH($E40,Years,0)), 1/M$19),0) -> 0 | AA40: =IFERROR($H40*N40 *IF($E40<>"Nominal",INDEX($K$16:$U$16,,MATCH($F40,Years,0))/INDEX($K$16:$U$16,,MATCH($E40,Years,0)), 1/N$19),0) -> 0 | AB40: =IFERROR($H40*O40 *IF($E40<>"Nominal",INDEX($K$16:$U$16,,MATCH($F40,Years,0))/INDEX($K$16:$U$16,,MATCH($E40,Years,0)), 1/O$19),0) -> 0 | AC40: =IFERROR($H40*P40 *IF($E40<>"Nominal",INDEX($K$16:$U$16,,MATCH($F40,Years,0))/INDEX($K$16:$U$16,,MATCH($E40,Years,0)), 1/P$19),0) -> 0 | AD40: =IFERROR($H40*Q40 *IF($E40<>"Nominal",INDEX($K$16:$U$16,,MATCH($F40,Years,0))/INDEX($K$16:$U$16,,MATCH($E40,Years,0)), 1/Q$19),0) -> 0 | AE40: =IFERROR($H40*R40 *IF($E40<>"Nominal",INDEX($K$16:$U$16,,MATCH($F40,Years,0))/INDEX($K$16:$U$16,,MATCH($E40,Years,0)), 1/R$19),0) -> 0.6819402602 | AF40: =IFERROR($H40*S40 *IF($E40<>"Nominal",INDEX($K$16:$U$16,,MATCH($F40,Years,0))/INDEX($K$16:$U$16,,MATCH($E40,Years,0)), 1/S$19),0) -> 0.2727761041 | AG40: =IFERROR($H40*T40 *IF($E40<>"Nominal",INDEX($K$16:$U$16,,MATCH($F40,Years,0))/INDEX($K$16:$U$16,,MATCH($E40,Years,0)), 1/T$19),0) -> 0 | AH40: =IFERROR($H40*U40 *IF($E40<>"Nominal",INDEX($K$16:$U$16,,MATCH($F40,Years,0))/INDEX($K$16:$U$16,,MATCH($E40,Years,0)), 1/U$19),0) -> 0 | AI40: 0.9547163643 | AM40: 0 | AN40: 0 | AO40: 0 | AP40: 0 | AQ40: 0 | AR40: 0 | AS40: 1 | AT40: 0 | AU40: 0 | AW40: 0 | AX40: 0 | AY40: 0 | AZ40: 0 | BA40: 0 | BB40: 0 | BC40: 0 | BD40: 0 | BE40: 0.9547163643 | BF40: 0 | BG40: 0 | BH40: 0.9547163643 | BJ40: Communications (short life) - SCADA, network control and protection systems | BK40: SI Costs | BL40: Operational forecasts and look-ahead contingency assessment
A41: Wide Area and High-Speed Monitoring | B41: Wide Area Monitoring | C41: $Millions | E41: 2025 | F41: 2023 | H41: 2.85088625 | I41: SCADA, network control and protection systems | J41: Communications (short life) | L41: 0 | M41: 0 | N41: 0 | O41: 0 | P41: 0 | Q41: 0 | R41: 0.7142857143 | S41: 0.2857142857 | T41: 0 | U41: 0 | V41: 1 | W41: 0 | X41: =IFERROR($H41*K41 *IF($E41<>"Nominal",INDEX($K$16:$U$16,,MATCH($F41,Years,0))/INDEX($K$16:$U$16,,MATCH($E41,Years,0)), 1/K$19),0) -> 0 | Y41: =IFERROR($H41*L41 *IF($E41<>"Nominal",INDEX($K$16:$U$16,,MATCH($F41,Years,0))/INDEX($K$16:$U$16,,MATCH($E41,Years,0)), 1/L$19),0) -> 0 | Z41: =IFERROR($H41*M41 *IF($E41<>"Nominal",INDEX($K$16:$U$16,,MATCH($F41,Years,0))/INDEX($K$16:$U$16,,MATCH($E41,Years,0)), 1/M$19),0) -> 0 | AA41: =IFERROR($H41*N41 *IF($E41<>"Nominal",INDEX($K$16:$U$16,,MATCH($F41,Years,0))/INDEX($K$16:$U$16,,MATCH($E41,Years,0)), 1/N$19),0) -> 0 | AB41: =IFERROR($H41*O41 *IF($E41<>"Nominal",INDEX($K$16:$U$16,,MATCH($F41,Years,0))/INDEX($K$16:$U$16,,MATCH($E41,Years,0)), 1/O$19),0) -> 0 | AC41: =IFERROR($H41*P41 *IF($E41<>"Nominal",INDEX($K$16:$U$16,,MATCH($F41,Years,0))/INDEX($K$16:$U$16,,MATCH($E41,Years,0)), 1/P$19),0) -> 0 | AD41: =IFERROR($H41*Q41 *IF($E41<>"Nominal",INDEX($K$16:$U$16,,MATCH($F41,Years,0))/INDEX($K$16:$U$16,,MATCH($E41,Years,0)), 1/Q$19),0) -> 0 | AE41: =IFERROR($H41*R41 *IF($E41<>"Nominal",INDEX($K$16:$U$16,,MATCH($F41,Years,0))/INDEX($K$16:$U$16,,MATCH($E41,Years,0)), 1/R$19),0) -> 1.921380641 | AF41: =IFERROR($H41*S41 *IF($E41<>"Nominal",INDEX($K$16:$U$16,,MATCH($F41,Years,0))/INDEX($K$16:$U$16,,MATCH($E41,Years,0)), 1/S$19),0) -> 0.7685522565 | AG41: =IFERROR($H41*T41 *IF($E41<>"Nominal",INDEX($K$16:$U$16,,MATCH($F41,Years,0))/INDEX($K$16:$U$16,,MATCH($E41,Years,0)), 1/T$19),0) -> 0 | AH41: =IFERROR($H41*U41 *IF($E41<>"Nominal",INDEX($K$16:$U$16,,MATCH($F41,Years,0))/INDEX($K$16:$U$16,,MATCH($E41,Years,0)), 1/U$19),0) -> 0 | AI41: =SUM(X41:AH41) -> 2.689932898 | AM41: 0 | AN41: 0 | AO41: 0 | AP41: 0 | AQ41: 0 | AR41: 0 | AS41: 1 | AT41: 0 | AU41: 0 | AW41: =$AI41*AK41 -> 0 | AX41: =$AI41*AL41 -> 0 | AY41: =$AI41*AM41 -> 0 | AZ41: =$AI41*AN41 -> 0 | BA41: =$AI41*AO41 -> 0 | BB41: =$AI41*AP41 -> 0 | BC41: =$AI41*AQ41 -> 0 | BD41: =$AI41*AR41 -> 0 | BE41: =$AI41*AS41 -> 2.689932898 | BF41: =$AI41*AT41 -> 0 | BG41: =$AI41*AU41 -> 0 | BH41: =SUM(AW41:BG41) -> 2.689932898 | BJ41: Communications (short life) - SCADA, network control and protection systems | BK41: SI Costs | BL41: Wide area monitoring
A42: Smart Transmission Device Management | B42: Smart Transmission Device Management | C42: $Millions | E42: 2025 | F42: 2023 | H42: 2.58132825 | I42: SCADA, network control and protection systems | J42: Communications (short life) | L42: 0 | M42: 0 | N42: 0 | O42: 0 | P42: 0 | Q42: 0 | R42: 0.7142857143 | S42: 0.2857142857 | T42: 0 | U42: 0 | V42: 1 | W42: 0 | X42: =IFERROR($H42*K42 *IF($E42<>"Nominal",INDEX($K$16:$U$16,,MATCH($F42,Years,0))/INDEX($K$16:$U$16,,MATCH($E42,Years,0)), 1/K$19),0) -> 0 | Y42: =IFERROR($H42*L42 *IF($E42<>"Nominal",INDEX($K$16:$U$16,,MATCH($F42,Years,0))/INDEX($K$16:$U$16,,MATCH($E42,Years,0)), 1/L$19),0) -> 0 | Z42: =IFERROR($H42*M42 *IF($E42<>"Nominal",INDEX($K$16:$U$16,,MATCH($F42,Years,0))/INDEX($K$16:$U$16,,MATCH($E42,Years,0)), 1/M$19),0) -> 0 | AA42: =IFERROR($H42*N42 *IF($E42<>"Nominal",INDEX($K$16:$U$16,,MATCH($F42,Years,0))/INDEX($K$16:$U$16,,MATCH($E42,Years,0)), 1/N$19),0) -> 0 | AB42: =IFERROR($H42*O42 *IF($E42<>"Nominal",INDEX($K$16:$U$16,,MATCH($F42,Years,0))/INDEX($K$16:$U$16,,MATCH($E42,Years,0)), 1/O$19),0) -> 0 | AC42: =IFERROR($H42*P42 *IF($E42<>"Nominal",INDEX($K$16:$U$16,,MATCH($F42,Years,0))/INDEX($K$16:$U$16,,MATCH($E42,Years,0)), 1/P$19),0) -> 0 | AD42: =IFERROR($H42*Q42 *IF($E42<>"Nominal",INDEX($K$16:$U$16,,MATCH($F42,Years,0))/INDEX($K$16:$U$16,,MATCH($E42,Years,0)), 1/Q$19),0) -> 0 | AE42: =IFERROR($H42*R42 *IF($E42<>"Nominal",INDEX($K$16:$U$16,,MATCH($F42,Years,0))/INDEX($K$16:$U$16,,MATCH($E42,Years,0)), 1/R$19),0) -> 1.739709583 | AF42: =IFERROR($H42*S42 *IF($E42<>"Nominal",INDEX($K$16:$U$16,,MATCH($F42,Years,0))/INDEX($K$16:$U$16,,MATCH($E42,Years,0)), 1/S$19),0) -> 0.6958838331 | AG42: =IFERROR($H42*T42 *IF($E42<>"Nominal",INDEX($K$16:$U$16,,MATCH($F42,Years,0))/INDEX($K$16:$U$16,,MATCH($E42,Years,0)), 1/T$19),0) -> 0 | AH42: =IFERROR($H42*U42 *IF($E42<>"Nominal",INDEX($K$16:$U$16,,MATCH($F42,Years,0))/INDEX($K$16:$U$16,,MATCH($E42,Years,0)), 1/U$19),0) -> 0 | AI42: 2.435593416 | AM42: 0 | AN42: 0 | AO42: 0 | AP42: 0 | AQ42: 0 | AR42: 0 | AS42: 1 | AT42: 0 | AU42: 0 | AW42: 0 | AX42: 0 | AY42: 0 | AZ42: 0 | BA42: 0 | BB42: 0 | BC42: 0 | BD42: 0 | BE42: 2.435593416 | BF42: 0 | BG42: 0 | BH42: 2.435593416 | BJ42: Communications (short life) - SCADA, network control and protection systems | BK42: SI Costs | BL42: Smart Transmission Device Management
A43: Fault level and system parameter monitoring | B43: Fault level and system parameter monitoring | C43: $Millions | E43: 2025 | F43: 2023 | H43: 4.77510425 | I43: SCADA, network control and protection systems | J43: Communications (short life) | L43: 0 | M43: 0 | N43: 0 | O43: 0 | P43: 0 | Q43: 0.08333333333 | R43: 0.9166666667 | S43: 0 | T43: 0 | U43: 0 | V43: 1 | W43: 0 | X43: =IFERROR($H43*K43 *IF($E43<>"Nominal",INDEX($K$16:$U$16,,MATCH($F43,Years,0))/INDEX($K$16:$U$16,,MATCH($E43,Years,0)), 1/K$19),0) -> 0 | Y43: =IFERROR($H43*L43 *IF($E43<>"Nominal",INDEX($K$16:$U$16,,MATCH($F43,Years,0))/INDEX($K$16:$U$16,,MATCH($E43,Years,0)), 1/L$19),0) -> 0 | Z43: =IFERROR($H43*M43 *IF($E43<>"Nominal",INDEX($K$16:$U$16,,MATCH($F43,Years,0))/INDEX($K$16:$U$16,,MATCH($E43,Years,0)), 1/M$19),0) -> 0 | AA43: =IFERROR($H43*N43 *IF($E43<>"Nominal",INDEX($K$16:$U$16,,MATCH($F43,Years,0))/INDEX($K$16:$U$16,,MATCH($E43,Years,0)), 1/N$19),0) -> 0 | AB43: =IFERROR($H43*O43 *IF($E43<>"Nominal",INDEX($K$16:$U$16,,MATCH($F43,Years,0))/INDEX($K$16:$U$16,,MATCH($E43,Years,0)), 1/O$19),0) -> 0 | AC43: =IFERROR($H43*P43 *IF($E43<>"Nominal",INDEX($K$16:$U$16,,MATCH($F43,Years,0))/INDEX($K$16:$U$16,,MATCH($E43,Years,0)), 1/P$19),0) -> 0 | AD43: =IFERROR($H43*Q43 *IF($E43<>"Nominal",INDEX($K$16:$U$16,,MATCH($F43,Years,0))/INDEX($K$16:$U$16,,MATCH($E43,Years,0)), 1/Q$19),0) -> 0.3754595614 | AE43: =IFERROR($H43*R43 *IF($E43<>"Nominal",INDEX($K$16:$U$16,,MATCH($F43,Years,0))/INDEX($K$16:$U$16,,MATCH($E43,Years,0)), 1/R$19),0) -> 4.130055176 | AF43: =IFERROR($H43*S43 *IF($E43<>"Nominal",INDEX($K$16:$U$16,,MATCH($F43,Years,0))/INDEX($K$16:$U$16,,MATCH($E43,Years,0)), 1/S$19),0) -> 0 | AG43: =IFERROR($H43*T43 *IF($E43<>"Nominal",INDEX($K$16:$U$16,,MATCH($F43,Years,0))/INDEX($K$16:$U$16,,MATCH($E43,Years,0)), 1/T$19),0) -> 0 | AH43: =IFERROR($H43*U43 *IF($E43<>"Nominal",INDEX($K$16:$U$16,,MATCH($F43,Years,0))/INDEX($K$16:$U$16,,MATCH($E43,Years,0)), 1/U$19),0) -> 0 | AI43: 4.505514737 | AM43: 0 | AN43: 0 | AO43: 0 | AP43: 0 | AQ43: 0 | AR43: 0 | AS43: 1 | AT43: 0 | AU43: 0 | AW43: 0 | AX43: 0 | AY43: 0 | AZ43: 0 | BA43: 0 | BB43: 0 | BC43: 0 | BD43: 0 | BE43: 4.505514737 | BF43: 0 | BG43: 0 | BH43: 4.505514737 | BJ43: Communications (short life) - SCADA, network control and protection systems | BK43: SI Costs | BL43: Fault level and system parameter monitoring and power system analysis capability
A44: Alarm Management technologies | B44: Alarm Management technologies | C44: $Millions | E44: 2025 | F44: 2023 | H44: 11.441591 | I44: SCADA, network control and protection systems | J44: Communications (short life) | L44: 0 | M44: 0 | N44: 0 | O44: 0.02702702703 | P44: 0.3243243243 | Q44: 0.3243243243 | R44: 0.3243243243 | S44: 0 | T44: 0 | U44: 0 | V44: 1 | W44: 0 | X44: =IFERROR($H44*K44 *IF($E44<>"Nominal",INDEX($K$16:$U$16,,MATCH($F44,Years,0))/INDEX($K$16:$U$16,,MATCH($E44,Years,0)), 1/K$19),0) -> 0 | Y44: =IFERROR($H44*L44 *IF($E44<>"Nominal",INDEX($K$16:$U$16,,MATCH($F44,Years,0))/INDEX($K$16:$U$16,,MATCH($E44,Years,0)), 1/L$19),0) -> 0 | Z44: =IFERROR($H44*M44 *IF($E44<>"Nominal",INDEX($K$16:$U$16,,MATCH($F44,Years,0))/INDEX($K$16:$U$16,,MATCH($E44,Years,0)), 1/M$19),0) -> 0 | AA44: =IFERROR($H44*N44 *IF($E44<>"Nominal",INDEX($K$16:$U$16,,MATCH($F44,Years,0))/INDEX($K$16:$U$16,,MATCH($E44,Years,0)), 1/N$19),0) -> 0 | AB44: =IFERROR($H44*O44 *IF($E44<>"Nominal",INDEX($K$16:$U$16,,MATCH($F44,Years,0))/INDEX($K$16:$U$16,,MATCH($E44,Years,0)), 1/O$19),0) -> 0.2917737734 | AC44: =IFERROR($H44*P44 *IF($E44<>"Nominal",INDEX($K$16:$U$16,,MATCH($F44,Years,0))/INDEX($K$16:$U$16,,MATCH($E44,Years,0)), 1/P$19),0) -> 3.501285281 | AD44: =IFERROR($H44*Q44 *IF($E44<>"Nominal",INDEX($K$16:$U$16,,MATCH($F44,Years,0))/INDEX($K$16:$U$16,,MATCH($E44,Years,0)), 1/Q$19),0) -> 3.501285281 | AE44: =IFERROR($H44*R44 *IF($E44<>"Nominal",INDEX($K$16:$U$16,,MATCH($F44,Years,0))/INDEX($K$16:$U$16,,MATCH($E44,Years,0)), 1/R$19),0) -> 3.501285281 | AF44: =IFERROR($H44*S44 *IF($E44<>"Nominal",INDEX($K$16:$U$16,,MATCH($F44,Years,0))/INDEX($K$16:$U$16,,MATCH($E44,Years,0)), 1/S$19),0) -> 0 | AG44: =IFERROR($H44*T44 *IF($E44<>"Nominal",INDEX($K$16:$U$16,,MATCH($F44,Years,0))/INDEX($K$16:$U$16,,MATCH($E44,Years,0)), 1/T$19),0) -> 0 | AH44: =IFERROR($H44*U44 *IF($E44<>"Nominal",INDEX($K$16:$U$16,,MATCH($F44,Years,0))/INDEX($K$16:$U$16,,MATCH($E44,Years,0)), 1/U$19),0) -> 0 | AI44: 10.79562962 | AM44: 0 | AN44: 0 | AO44: 0 | AP44: 0 | AQ44: 0.6486486486 | AR44: 0 | AS44: 0.3513513514 | AT44: 0 | AU44: 0 | AW44: 0 | AX44: 0 | AY44: 0 | AZ44: 0 | BA44: 0 | BB44: 0 | BC44: 7.002570562 | BD44: 0 | BE44: 3.793059055 | BF44: 0 | BG44: 0 | BH44: 10.79562962 | BJ44: Communications (short life) - SCADA, network control and protection systems | BK44: SI Costs | BL44: Alarm management, visualisation and situation awareness enhancement
A45: Operator Visualisation and Situational Awareness technology | B45: Operator Visualisation and Situational Awareness technology | C45: $Millions | E45: 2025 | F45: 2023 | H45: 9.423637 | I45: SCADA, network control and protection systems | J45: Communications (short life) | L45: 0 | M45: 0 | N45: 0 | O45: 0 | P45: 0 | Q45: 0.2916666667 | R45: 0.5 | S45: 0.2083333333 | T45: 0 | U45: 0 | V45: 1 | W45: 0 | X45: =IFERROR($H45*K45 *IF($E45<>"Nominal",INDEX($K$16:$U$16,,MATCH($F45,Years,0))/INDEX($K$16:$U$16,,MATCH($E45,Years,0)), 1/K$19),0) -> 0 | Y45: =IFERROR($H45*L45 *IF($E45<>"Nominal",INDEX($K$16:$U$16,,MATCH($F45,Years,0))/INDEX($K$16:$U$16,,MATCH($E45,Years,0)), 1/L$19),0) -> 0 | Z45: =IFERROR($H45*M45 *IF($E45<>"Nominal",INDEX($K$16:$U$16,,MATCH($F45,Years,0))/INDEX($K$16:$U$16,,MATCH($E45,Years,0)), 1/M$19),0) -> 0 | AA45: =IFERROR($H45*N45 *IF($E45<>"Nominal",INDEX($K$16:$U$16,,MATCH($F45,Years,0))/INDEX($K$16:$U$16,,MATCH($E45,Years,0)), 1/N$19),0) -> 0 | AB45: =IFERROR($H45*O45 *IF($E45<>"Nominal",INDEX($K$16:$U$16,,MATCH($F45,Years,0))/INDEX($K$16:$U$16,,MATCH($E45,Years,0)), 1/O$19),0) -> 0 | AC45: =IFERROR($H45*P45 *IF($E45<>"Nominal",INDEX($K$16:$U$16,,MATCH($F45,Years,0))/INDEX($K$16:$U$16,,MATCH($E45,Years,0)), 1/P$19),0) -> 0 | AD45: =IFERROR($H45*Q45 *IF($E45<>"Nominal",INDEX($K$16:$U$16,,MATCH($F45,Years,0))/INDEX($K$16:$U$16,,MATCH($E45,Years,0)), 1/Q$19),0) -> 2.593384459 | AE45: =IFERROR($H45*R45 *IF($E45<>"Nominal",INDEX($K$16:$U$16,,MATCH($F45,Years,0))/INDEX($K$16:$U$16,,MATCH($E45,Years,0)), 1/R$19),0) -> 4.44580193 | AF45: =IFERROR($H45*S45 *IF($E45<>"Nominal",INDEX($K$16:$U$16,,MATCH($F45,Years,0))/INDEX($K$16:$U$16,,MATCH($E45,Years,0)), 1/S$19),0) -> 1.852417471 | AG45: =IFERROR($H45*T45 *IF($E45<>"Nominal",INDEX($K$16:$U$16,,MATCH($F45,Years,0))/INDEX($K$16:$U$16,,MATCH($E45,Years,0)), 1/T$19),0) -> 0 | AH45: =IFERROR($H45*U45 *IF($E45<>"Nominal",INDEX($K$16:$U$16,,MATCH($F45,Years,0))/INDEX($K$16:$U$16,,MATCH($E45,Years,0)), 1/U$19),0) -> 0 | AI45: 8.89160386 | AM45: 0 | AN45: 0 | AO45: 0 | AP45: 0 | AQ45: 0.25 | AR45: 0 | AS45: 0.75 | AT45: 0 | AU45: 0 | AW45: 0 | AX45: 0 | AY45: 0 | AZ45: 0 | BA45: 0 | BB45: 0 | BC45: 2.222900965 | BD45: 0 | BE45: 6.668702895 | BF45: 0 | BG45: 0 | BH45: 8.89160386 | BJ45: Communications (short life) - SCADA, network control and protection systems | BK45: SI Costs | BL45: Alarm management, visualisation and situation awareness enhancement
A46: Training technologies | B46: Training technologies | C46: $Millions | E46: 2025 | F46: 2023 | H46: 5.3436975 | I46: SCADA, network control and protection systems | J46: Communications (short life) | L46: 0 | M46: 0 | N46: 0 | O46: 0 | P46: 0.3636363636 | Q46: 0.6363636364 | R46: 0 | S46: 0 | T46: 0 | U46: 0 | V46: 1 | W46: 0 | X46: =IFERROR($H46*K46 *IF($E46<>"Nominal",INDEX($K$16:$U$16,,MATCH($F46,Years,0))/INDEX($K$16:$U$16,,MATCH($E46,Years,0)), 1/K$19),0) -> 0 | Y46: =IFERROR($H46*L46 *IF($E46<>"Nominal",INDEX($K$16:$U$16,,MATCH($F46,Years,0))/INDEX($K$16:$U$16,,MATCH($E46,Years,0)), 1/L$19),0) -> 0 | Z46: =IFERROR($H46*M46 *IF($E46<>"Nominal",INDEX($K$16:$U$16,,MATCH($F46,Years,0))/INDEX($K$16:$U$16,,MATCH($E46,Years,0)), 1/M$19),0) -> 0 | AA46: =IFERROR($H46*N46 *IF($E46<>"Nominal",INDEX($K$16:$U$16,,MATCH($F46,Years,0))/INDEX($K$16:$U$16,,MATCH($E46,Years,0)), 1/N$19),0) -> 0 | AB46: =IFERROR($H46*O46 *IF($E46<>"Nominal",INDEX($K$16:$U$16,,MATCH($F46,Years,0))/INDEX($K$16:$U$16,,MATCH($E46,Years,0)), 1/O$19),0) -> 0 | AC46: =IFERROR($H46*P46 *IF($E46<>"Nominal",INDEX($K$16:$U$16,,MATCH($F46,Years,0))/INDEX($K$16:$U$16,,MATCH($E46,Years,0)), 1/P$19),0) -> 1.833456998 | AD46: =IFERROR($H46*Q46 *IF($E46<>"Nominal",INDEX($K$16:$U$16,,MATCH($F46,Years,0))/INDEX($K$16:$U$16,,MATCH($E46,Years,0)), 1/Q$19),0) -> 3.208549747 | AE46: =IFERROR($H46*R46 *IF($E46<>"Nominal",INDEX($K$16:$U$16,,MATCH($F46,Years,0))/INDEX($K$16:$U$16,,MATCH($E46,Years,0)), 1/R$19),0) -> 0 | AF46: =IFERROR($H46*S46 *IF($E46<>"Nominal",INDEX($K$16:$U$16,,MATCH($F46,Years,0))/INDEX($K$16:$U$16,,MATCH($E46,Years,0)), 1/S$19),0) -> 0 | AG46: =IFERROR($H46*T46 *IF($E46<>"Nominal",INDEX($K$16:$U$16,,MATCH($F46,Years,0))/INDEX($K$16:$U$16,,MATCH($E46,Years,0)), 1/T$19),0) -> 0 | AH46: =IFERROR($H46*U46 *IF($E46<>"Nominal",INDEX($K$16:$U$16,,MATCH($F46,Years,0))/INDEX($K$16:$U$16,,MATCH($E46,Years,0)), 1/U$19),0) -> 0 | AI46: 5.042006745 | AM46: 0 | AN46: 0 | AO46: 0 | AP46: 0 | AQ46: 1 | AR46: 0 | AS46: 0 | AT46: 0 | AU46: 0 | AW46: 0 | AX46: 0 | AY46: 0 | AZ46: 0 | BA46: 0 | BB46: 0 | BC46: 5.042006745 | BD46: 0 | BE46: 0 | BF46: 0 | BG46: 0 | BH46: 5.042006745 | BJ46: Communications (short life) - SCADA, network control and protection systems | BK46: SI Costs | BL46: Training technologies, operational document management system and operational planning systems
A47: Operational Documentation Management System | B47: Operational Documentation Management System | C47: $Millions | E47: 2025 | F47: 2023 | H47: 1.535558 | I47: Other | J47: Business IT | L47: 0 | M47: 0 | N47: 0 | O47: 0.09090909091 | P47: 0.9090909091 | Q47: 0 | R47: 0 | S47: 0 | T47: 0 | U47: 0 | V47: 1 | W47: 0 | X47: =IFERROR($H47*K47 *IF($E47<>"Nominal",INDEX($K$16:$U$16,,MATCH($F47,Years,0))/INDEX($K$16:$U$16,,MATCH($E47,Years,0)), 1/K$19),0) -> 0 | Y47: =IFERROR($H47*L47 *IF($E47<>"Nominal",INDEX($K$16:$U$16,,MATCH($F47,Years,0))/INDEX($K$16:$U$16,,MATCH($E47,Years,0)), 1/L$19),0) -> 0 | Z47: =IFERROR($H47*M47 *IF($E47<>"Nominal",INDEX($K$16:$U$16,,MATCH($F47,Years,0))/INDEX($K$16:$U$16,,MATCH($E47,Years,0)), 1/M$19),0) -> 0 | AA47: =IFERROR($H47*N47 *IF($E47<>"Nominal",INDEX($K$16:$U$16,,MATCH($F47,Years,0))/INDEX($K$16:$U$16,,MATCH($E47,Years,0)), 1/N$19),0) -> 0 | AB47: =IFERROR($H47*O47 *IF($E47<>"Nominal",INDEX($K$16:$U$16,,MATCH($F47,Years,0))/INDEX($K$16:$U$16,,MATCH($E47,Years,0)), 1/O$19),0) -> 0.1317149577 | AC47: =IFERROR($H47*P47 *IF($E47<>"Nominal",INDEX($K$16:$U$16,,MATCH($F47,Years,0))/INDEX($K$16:$U$16,,MATCH($E47,Years,0)), 1/P$19),0) -> 1.317149577 | AD47: =IFERROR($H47*Q47 *IF($E47<>"Nominal",INDEX($K$16:$U$16,,MATCH($F47,Years,0))/INDEX($K$16:$U$16,,MATCH($E47,Years,0)), 1/Q$19),0) -> 0 | AE47: =IFERROR($H47*R47 *IF($E47<>"Nominal",INDEX($K$16:$U$16,,MATCH($F47,Years,0))/INDEX($K$16:$U$16,,MATCH($E47,Years,0)), 1/R$19),0) -> 0 | AF47: =IFERROR($H47*S47 *IF($E47<>"Nominal",INDEX($K$16:$U$16,,MATCH($F47,Years,0))/INDEX($K$16:$U$16,,MATCH($E47,Years,0)), 1/S$19),0) -> 0 | AG47: =IFERROR($H47*T47 *IF($E47<>"Nominal",INDEX($K$16:$U$16,,MATCH($F47,Years,0))/INDEX($K$16:$U$16,,MATCH($E47,Years,0)), 1/T$19),0) -> 0 | AH47: =IFERROR($H47*U47 *IF($E47<>"Nominal",INDEX($K$16:$U$16,,MATCH($F47,Years,0))/INDEX($K$16:$U$16,,MATCH($E47,Years,0)), 1/U$19),0) -> 0 | AI47: 1.448864535 | AM47: 0 | AN47: 0 | AO47: 0 | AP47: 1 | AQ47: 0 | AR47: 0 | AS47: 0 | AT47: 0 | AU47: 0 | AW47: 0 | AX47: 0 | AY47: 0 | AZ47: 0 | BA47: 0 | BB47: 1.448864535 | BC47: 0 | BD47: 0 | BE47: 0 | BF47: 0 | BG47: 0 | BH47: 1.448864535 | BJ47: Business IT - Other | BK47: SI Costs | BL47: Training technologies, operational document management system and operational planning systems
A48: Operational Planning Systems | B48: Operational Planning Systems | C48: $Millions | E48: 2025 | F48: 2023 | H48: 2.1746205 | I48: Other | J48: Business IT | L48: 0 | M48: 0 | N48: 0 | O48: 0.6363636364 | P48: 0.3636363636 | Q48: 0 | R48: 0 | S48: 0 | T48: 0 | U48: 0 | V48: 1 | W48: 0 | X48: =IFERROR($H48*K48 *IF($E48<>"Nominal",INDEX($K$16:$U$16,,MATCH($F48,Years,0))/INDEX($K$16:$U$16,,MATCH($E48,Years,0)), 1/K$19),0) -> 0 | Y48: =IFERROR($H48*L48 *IF($E48<>"Nominal",INDEX($K$16:$U$16,,MATCH($F48,Years,0))/INDEX($K$16:$U$16,,MATCH($E48,Years,0)), 1/L$19),0) -> 0 | Z48: =IFERROR($H48*M48 *IF($E48<>"Nominal",INDEX($K$16:$U$16,,MATCH($F48,Years,0))/INDEX($K$16:$U$16,,MATCH($E48,Years,0)), 1/M$19),0) -> 0 | AA48: =IFERROR($H48*N48 *IF($E48<>"Nominal",INDEX($K$16:$U$16,,MATCH($F48,Years,0))/INDEX($K$16:$U$16,,MATCH($E48,Years,0)), 1/N$19),0) -> 0 | AB48: =IFERROR($H48*O48 *IF($E48<>"Nominal",INDEX($K$16:$U$16,,MATCH($F48,Years,0))/INDEX($K$16:$U$16,,MATCH($E48,Years,0)), 1/O$19),0) -> 1.305721002 | AC48: =IFERROR($H48*P48 *IF($E48<>"Nominal",INDEX($K$16:$U$16,,MATCH($F48,Years,0))/INDEX($K$16:$U$16,,MATCH($E48,Years,0)), 1/P$19),0) -> 0.7461262869 | AD48: =IFERROR($H48*Q48 *IF($E48<>"Nominal",INDEX($K$16:$U$16,,MATCH($F48,Years,0))/INDEX($K$16:$U$16,,MATCH($E48,Years,0)), 1/Q$19),0) -> 0 | AE48: =IFERROR($H48*R48 *IF($E48<>"Nominal",INDEX($K$16:$U$16,,MATCH($F48,Years,0))/INDEX($K$16:$U$16,,MATCH($E48,Years,0)), 1/R$19),0) -> 0 | AF48: =IFERROR($H48*S48 *IF($E48<>"Nominal",INDEX($K$16:$U$16,,MATCH($F48,Years,0))/INDEX($K$16:$U$16,,MATCH($E48,Years,0)), 1/S$19),0) -> 0 | AG48: =IFERROR($H48*T48 *IF($E48<>"Nominal",INDEX($K$16:$U$16,,MATCH($F48,Years,0))/INDEX($K$16:$U$16,,MATCH($E48,Years,0)), 1/T$19),0) -> 0 | AH48: =IFERROR($H48*U48 *IF($E48<>"Nominal",INDEX($K$16:$U$16,,MATCH($F48,Years,0))/INDEX($K$16:$U$16,,MATCH($E48,Years,0)), 1/U$19),0) -> 0 | AI48: 2.051847289 | AM48: 0 | AN48: 0 | AO48: 0 | AP48: 1 | AQ48: 0 | AR48: 0 | AS48: 0 | AT48: 0 | AU48: 0 | AW48: 0 | AX48: 0 | AY48: 0 | AZ48: 0 | BA48: 0 | BB48: 2.051847289 | BC48: 0 | BD48: 0 | BE48: 0 | BF48: 0 | BG48: 0 | BH48: 2.051847289 | BJ48: Business IT - Other | BK48: SI Costs | BL48: Training technologies, operational document management system and operational planning systems
A49: C-i-C | B49: NC Control Room Facilities Interim Upgrade | C49: $Millions | E49: 2025 | F49: 2023 | H49: 0.63 | I49: Other | J49: Minor Plant, Motor Vehicles & Mobile Plant | L49: 0 | M49: 0 | N49: 0 | O49: 0.75 | P49: 0.25 | Q49: 0 | R49: 0 | S49: 0 | T49: 0 | U49: 0 | V49: 1 | W49: 0 | X49: =IFERROR($H49*K49 *IF($E49<>"Nominal",INDEX($K$16:$U$16,,MATCH($F49,Years,0))/INDEX($K$16:$U$16,,MATCH($E49,Years,0)), 1/K$19),0) -> 0 | Y49: =IFERROR($H49*L49 *IF($E49<>"Nominal",INDEX($K$16:$U$16,,MATCH($F49,Years,0))/INDEX($K$16:$U$16,,MATCH($E49,Years,0)), 1/L$19),0) -> 0 | Z49: =IFERROR($H49*M49 *IF($E49<>"Nominal",INDEX($K$16:$U$16,,MATCH($F49,Years,0))/INDEX($K$16:$U$16,,MATCH($E49,Years,0)), 1/M$19),0) -> 0 | AA49: =IFERROR($H49*N49 *IF($E49<>"Nominal",INDEX($K$16:$U$16,,MATCH($F49,Years,0))/INDEX($K$16:$U$16,,MATCH($E49,Years,0)), 1/N$19),0) -> 0 | AB49: =IFERROR($H49*O49 *IF($E49<>"Nominal",INDEX($K$16:$U$16,,MATCH($F49,Years,0))/INDEX($K$16:$U$16,,MATCH($E49,Years,0)), 1/O$19),0) -> 0.4458239238 | AC49: =IFERROR($H49*P49 *IF($E49<>"Nominal",INDEX($K$16:$U$16,,MATCH($F49,Years,0))/INDEX($K$16:$U$16,,MATCH($E49,Years,0)), 1/P$19),0) -> 0.1486079746 | AD49: =IFERROR($H49*Q49 *IF($E49<>"Nominal",INDEX($K$16:$U$16,,MATCH($F49,Years,0))/INDEX($K$16:$U$16,,MATCH($E49,Years,0)), 1/Q$19),0) -> 0 | AE49: =IFERROR($H49*R49 *IF($E49<>"Nominal",INDEX($K$16:$U$16,,MATCH($F49,Years,0))/INDEX($K$16:$U$16,,MATCH($E49,Years,0)), 1/R$19),0) -> 0 | AF49: =IFERROR($H49*S49 *IF($E49<>"Nominal",INDEX($K$16:$U$16,,MATCH($F49,Years,0))/INDEX($K$16:$U$16,,MATCH($E49,Years,0)), 1/S$19),0) -> 0 | AG49: =IFERROR($H49*T49 *IF($E49<>"Nominal",INDEX($K$16:$U$16,,MATCH($F49,Years,0))/INDEX($K$16:$U$16,,MATCH($E49,Years,0)), 1/T$19),0) -> 0 | AH49: =IFERROR($H49*U49 *IF($E49<>"Nominal",INDEX($K$16:$U$16,,MATCH($F49,Years,0))/INDEX($K$16:$U$16,,MATCH($E49,Years,0)), 1/U$19),0) -> 0 | AI49: 0.5944318984 | AM49: 0 | AN49: 0 | AO49: 0 | AP49: 1 | AQ49: 0 | AR49: 0 | AS49: 0 | AT49: 0 | AU49: 0 | AW49: 0 | AX49: 0 | AY49: 0 | AZ49: 0 | BA49: 0 | BB49: 0.5944318984 | BC49: 0 | BD49: 0 | BE49: 0 | BF49: 0 | BG49: 0 | BH49: 0.5944318984 | BJ49: Minor Plant, Motor Vehicles & Mobile Plant - Other | BK49: Non SI Costs | BL49: Facilities
A50: C-i-C | B50: NC Control Room Facilities Interim Upgrade | C50: $Millions | E50: 2025 | F50: 2023 | H50: 0.48 | I50: Other | J50: Minor Plant, Motor Vehicles & Mobile Plant | L50: 0 | M50: 0 | N50: 0 | O50: 1 | P50: 0 | Q50: 0 | R50: 0 | S50: 0 | T50: 0 | U50: 0 | V50: 1 | W50: 0 | X50: =IFERROR($H50*K50 *IF($E50<>"Nominal",INDEX($K$16:$U$16,,MATCH($F50,Years,0))/INDEX($K$16:$U$16,,MATCH($E50,Years,0)), 1/K$19),0) -> 0 | Y50: =IFERROR($H50*L50 *IF($E50<>"Nominal",INDEX($K$16:$U$16,,MATCH($F50,Years,0))/INDEX($K$16:$U$16,,MATCH($E50,Years,0)), 1/L$19),0) -> 0 | Z50: =IFERROR($H50*M50 *IF($E50<>"Nominal",INDEX($K$16:$U$16,,MATCH($F50,Years,0))/INDEX($K$16:$U$16,,MATCH($E50,Years,0)), 1/M$19),0) -> 0 | AA50: =IFERROR($H50*N50 *IF($E50<>"Nominal",INDEX($K$16:$U$16,,MATCH($F50,Years,0))/INDEX($K$16:$U$16,,MATCH($E50,Years,0)), 1/N$19),0) -> 0 | AB50: =IFERROR($H50*O50 *IF($E50<>"Nominal",INDEX($K$16:$U$16,,MATCH($F50,Years,0))/INDEX($K$16:$U$16,,MATCH($E50,Years,0)), 1/O$19),0) -> 0.452900494 | AC50: =IFERROR($H50*P50 *IF($E50<>"Nominal",INDEX($K$16:$U$16,,MATCH($F50,Years,0))/INDEX($K$16:$U$16,,MATCH($E50,Years,0)), 1/P$19),0) -> 0 | AD50: =IFERROR($H50*Q50 *IF($E50<>"Nominal",INDEX($K$16:$U$16,,MATCH($F50,Years,0))/INDEX($K$16:$U$16,,MATCH($E50,Years,0)), 1/Q$19),0) -> 0 | AE50: =IFERROR($H50*R50 *IF($E50<>"Nominal",INDEX($K$16:$U$16,,MATCH($F50,Years,0))/INDEX($K$16:$U$16,,MATCH($E50,Years,0)), 1/R$19),0) -> 0 | AF50: =IFERROR($H50*S50 *IF($E50<>"Nominal",INDEX($K$16:$U$16,,MATCH($F50,Years,0))/INDEX($K$16:$U$16,,MATCH($E50,Years,0)), 1/S$19),0) -> 0 | AG50: =IFERROR($H50*T50 *IF($E50<>"Nominal",INDEX($K$16:$U$16,,MATCH($F50,Years,0))/INDEX($K$16:$U$16,,MATCH($E50,Years,0)), 1/T$19),0) -> 0 | AH50: =IFERROR($H50*U50 *IF($E50<>"Nominal",INDEX($K$16:$U$16,,MATCH($F50,Years,0))/INDEX($K$16:$U$16,,MATCH($E50,Years,0)), 1/U$19),0) -> 0 | AI50: 0.452900494 | AM50: 0 | AN50: 0 | AO50: 0 | AP50: 1 | AQ50: 0 | AR50: 0 | AS50: 0 | AT50: 0 | AU50: 0 | AW50: 0 | AX50: 0 | AY50: 0 | AZ50: 0 | BA50: 0 | BB50: 0.452900494 | BC50: 0 | BD50: 0 | BE50: 0 | BF50: 0 | BG50: 0 | BH50: 0.452900494 | BJ50: Minor Plant, Motor Vehicles & Mobile Plant - Other | BK50: Non SI Costs | BL50: Facilities
A51: C-i-C | B51: NC Control Room Facilities Interim Upgrade | C51: $Millions | E51: 2025 | F51: 2023 | H51: 0.16 | I51: Other | J51: Minor Plant, Motor Vehicles & Mobile Plant | L51: 0 | M51: 0 | N51: 0 | O51: 1 | P51: 0 | Q51: 0 | R51: 0 | S51: 0 | T51: 0 | U51: 0 | V51: 1 | W51: 0 | X51: =IFERROR($H51*K51 *IF($E51<>"Nominal",INDEX($K$16:$U$16,,MATCH($F51,Years,0))/INDEX($K$16:$U$16,,MATCH($E51,Years,0)), 1/K$19),0) -> 0 | Y51: =IFERROR($H51*L51 *IF($E51<>"Nominal",INDEX($K$16:$U$16,,MATCH($F51,Years,0))/INDEX($K$16:$U$16,,MATCH($E51,Years,0)), 1/L$19),0) -> 0 | Z51: =IFERROR($H51*M51 *IF($E51<>"Nominal",INDEX($K$16:$U$16,,MATCH($F51,Years,0))/INDEX($K$16:$U$16,,MATCH($E51,Years,0)), 1/M$19),0) -> 0 | AA51: =IFERROR($H51*N51 *IF($E51<>"Nominal",INDEX($K$16:$U$16,,MATCH($F51,Years,0))/INDEX($K$16:$U$16,,MATCH($E51,Years,0)), 1/N$19),0) -> 0 | AB51: =IFERROR($H51*O51 *IF($E51<>"Nominal",INDEX($K$16:$U$16,,MATCH($F51,Years,0))/INDEX($K$16:$U$16,,MATCH($E51,Years,0)), 1/O$19),0) -> 0.1509668313 | AC51: =IFERROR($H51*P51 *IF($E51<>"Nominal",INDEX($K$16:$U$16,,MATCH($F51,Years,0))/INDEX($K$16:$U$16,,MATCH($E51,Years,0)), 1/P$19),0) -> 0 | AD51: =IFERROR($H51*Q51 *IF($E51<>"Nominal",INDEX($K$16:$U$16,,MATCH($F51,Years,0))/INDEX($K$16:$U$16,,MATCH($E51,Years,0)), 1/Q$19),0) -> 0 | AE51: =IFERROR($H51*R51 *IF($E51<>"Nominal",INDEX($K$16:$U$16,,MATCH($F51,Years,0))/INDEX($K$16:$U$16,,MATCH($E51,Years,0)), 1/R$19),0) -> 0 | AF51: =IFERROR($H51*S51 *IF($E51<>"Nominal",INDEX($K$16:$U$16,,MATCH($F51,Years,0))/INDEX($K$16:$U$16,,MATCH($E51,Years,0)), 1/S$19),0) -> 0 | AG51: =IFERROR($H51*T51 *IF($E51<>"Nominal",INDEX($K$16:$U$16,,MATCH($F51,Years,0))/INDEX($K$16:$U$16,,MATCH($E51,Years,0)), 1/T$19),0) -> 0 | AH51: =IFERROR($H51*U51 *IF($E51<>"Nominal",INDEX($K$16:$U$16,,MATCH($F51,Years,0))/INDEX($K$16:$U$16,,MATCH($E51,Years,0)), 1/U$19),0) -> 0 | AI51: 0.1509668313 | AM51: 0 | AN51: 0 | AO51: 0 | AP51: 1 | AQ51: 0 | AR51: 0 | AS51: 0 | AT51: 0 | AU51: 0 | AW51: 0 | AX51: 0 | AY51: 0 | AZ51: 0 | BA51: 0 | BB51: 0.1509668313 | BC51: 0 | BD51: 0 | BE51: 0 | BF51: 0 | BG51: 0 | BH51: 0.1509668313 | BJ51: Minor Plant, Motor Vehicles & Mobile Plant - Other | BK51: Non SI Costs | BL51: Facilities
A52: C-i-C | B52: NC Data Center facilites upgrade | C52: $Millions | E52: 2025 | F52: 2023 | H52: 0.75 | I52: Other | J52: Minor Plant, Motor Vehicles & Mobile Plant | L52: 0 | M52: 0 | N52: 0 | O52: 1 | P52: 0 | Q52: 0 | R52: 0 | S52: 0 | T52: 0 | U52: 0 | V52: 1 | W52: 0 | X52: =IFERROR($H52*K52 *IF($E52<>"Nominal",INDEX($K$16:$U$16,,MATCH($F52,Years,0))/INDEX($K$16:$U$16,,MATCH($E52,Years,0)), 1/K$19),0) -> 0 | Y52: =IFERROR($H52*L52 *IF($E52<>"Nominal",INDEX($K$16:$U$16,,MATCH($F52,Years,0))/INDEX($K$16:$U$16,,MATCH($E52,Years,0)), 1/L$19),0) -> 0 | Z52: =IFERROR($H52*M52 *IF($E52<>"Nominal",INDEX($K$16:$U$16,,MATCH($F52,Years,0))/INDEX($K$16:$U$16,,MATCH($E52,Years,0)), 1/M$19),0) -> 0 | AA52: =IFERROR($H52*N52 *IF($E52<>"Nominal",INDEX($K$16:$U$16,,MATCH($F52,Years,0))/INDEX($K$16:$U$16,,MATCH($E52,Years,0)), 1/N$19),0) -> 0 | AB52: =IFERROR($H52*O52 *IF($E52<>"Nominal",INDEX($K$16:$U$16,,MATCH($F52,Years,0))/INDEX($K$16:$U$16,,MATCH($E52,Years,0)), 1/O$19),0) -> 0.7076570219 | AC52: =IFERROR($H52*P52 *IF($E52<>"Nominal",INDEX($K$16:$U$16,,MATCH($F52,Years,0))/INDEX($K$16:$U$16,,MATCH($E52,Years,0)), 1/P$19),0) -> 0 | AD52: =IFERROR($H52*Q52 *IF($E52<>"Nominal",INDEX($K$16:$U$16,,MATCH($F52,Years,0))/INDEX($K$16:$U$16,,MATCH($E52,Years,0)), 1/Q$19),0) -> 0 | AE52: =IFERROR($H52*R52 *IF($E52<>"Nominal",INDEX($K$16:$U$16,,MATCH($F52,Years,0))/INDEX($K$16:$U$16,,MATCH($E52,Years,0)), 1/R$19),0) -> 0 | AF52: =IFERROR($H52*S52 *IF($E52<>"Nominal",INDEX($K$16:$U$16,,MATCH($F52,Years,0))/INDEX($K$16:$U$16,,MATCH($E52,Years,0)), 1/S$19),0) -> 0 | AG52: =IFERROR($H52*T52 *IF($E52<>"Nominal",INDEX($K$16:$U$16,,MATCH($F52,Years,0))/INDEX($K$16:$U$16,,MATCH($E52,Years,0)), 1/T$19),0) -> 0 | AH52: =IFERROR($H52*U52 *IF($E52<>"Nominal",INDEX($K$16:$U$16,,MATCH($F52,Years,0))/INDEX($K$16:$U$16,,MATCH($E52,Years,0)), 1/U$19),0) -> 0 | AI52: 0.7076570219 | AM52: 0 | AN52: 0 | AO52: 1 | AP52: 0 | AQ52: 0 | AR52: 0 | AS52: 0 | AT52: 0 | AU52: 0 | AW52: 0 | AX52: 0 | AY52: 0 | AZ52: 0 | BA52: 0.7076570219 | BB52: 0 | BC52: 0 | BD52: 0 | BE52: 0 | BF52: 0 | BG52: 0 | BH52: 0.7076570219 | BJ52: Minor Plant, Motor Vehicles & Mobile Plant - Other | BK52: Non SI Costs | BL52: Facilities
A53: C-i-C | B53: NC Control Room Facilities Interim Upgrade | C53: $Millions | E53: 2025 | F53: 2023 | H53: 0.27 | I53: Other | J53: Minor Plant, Motor Vehicles & Mobile Plant | L53: 0 | M53: 0 | N53: 0 | O53: 0 | P53: 0 | Q53: 0 | R53: 0 | S53: 1 | T53: 0 | U53: 0 | V53: 1 | W53: 0 | X53: =IFERROR($H53*K53 *IF($E53<>"Nominal",INDEX($K$16:$U$16,,MATCH($F53,Years,0))/INDEX($K$16:$U$16,,MATCH($E53,Years,0)), 1/K$19),0) -> 0 | Y53: =IFERROR($H53*L53 *IF($E53<>"Nominal",INDEX($K$16:$U$16,,MATCH($F53,Years,0))/INDEX($K$16:$U$16,,MATCH($E53,Years,0)), 1/L$19),0) -> 0 | Z53: =IFERROR($H53*M53 *IF($E53<>"Nominal",INDEX($K$16:$U$16,,MATCH($F53,Years,0))/INDEX($K$16:$U$16,,MATCH($E53,Years,0)), 1/M$19),0) -> 0 | AA53: =IFERROR($H53*N53 *IF($E53<>"Nominal",INDEX($K$16:$U$16,,MATCH($F53,Years,0))/INDEX($K$16:$U$16,,MATCH($E53,Years,0)), 1/N$19),0) -> 0 | AB53: =IFERROR($H53*O53 *IF($E53<>"Nominal",INDEX($K$16:$U$16,,MATCH($F53,Years,0))/INDEX($K$16:$U$16,,MATCH($E53,Years,0)), 1/O$19),0) -> 0 | AC53: =IFERROR($H53*P53 *IF($E53<>"Nominal",INDEX($K$16:$U$16,,MATCH($F53,Years,0))/INDEX($K$16:$U$16,,MATCH($E53,Years,0)), 1/P$19),0) -> 0 | AD53: =IFERROR($H53*Q53 *IF($E53<>"Nominal",INDEX($K$16:$U$16,,MATCH($F53,Years,0))/INDEX($K$16:$U$16,,MATCH($E53,Years,0)), 1/Q$19),0) -> 0 | AE53: =IFERROR($H53*R53 *IF($E53<>"Nominal",INDEX($K$16:$U$16,,MATCH($F53,Years,0))/INDEX($K$16:$U$16,,MATCH($E53,Years,0)), 1/R$19),0) -> 0 | AF53: =IFERROR($H53*S53 *IF($E53<>"Nominal",INDEX($K$16:$U$16,,MATCH($F53,Years,0))/INDEX($K$16:$U$16,,MATCH($E53,Years,0)), 1/S$19),0) -> 0.2547565279 | AG53: =IFERROR($H53*T53 *IF($E53<>"Nominal",INDEX($K$16:$U$16,,MATCH($F53,Years,0))/INDEX($K$16:$U$16,,MATCH($E53,Years,0)), 1/T$19),0) -> 0 | AH53: =IFERROR($H53*U53 *IF($E53<>"Nominal",INDEX($K$16:$U$16,,MATCH($F53,Years,0))/INDEX($K$16:$U$16,,MATCH($E53,Years,0)), 1/U$19),0) -> 0 | AI53: 0.2547565279 | AM53: 0 | AN53: 0 | AO53: 0 | AP53: 0 | AQ53: 0 | AR53: 0 | AS53: 1 | AT53: 0 | AU53: 0 | AW53: 0 | AX53: 0 | AY53: 0 | AZ53: 0 | BA53: 0 | BB53: 0 | BC53: 0 | BD53: 0 | BE53: 0.2547565279 | BF53: 0 | BG53: 0 | BH53: 0.2547565279 | BJ53: Minor Plant, Motor Vehicles & Mobile Plant - Other | BK53: Non SI Costs | BL53: Facilities
A54: C-i-C | B54: SW Control Room Facilities Interim Upgrade | C54: $Millions | E54: 2025 | F54: 2023 | H54: 1.26 | I54: Other | J54: Minor Plant, Motor Vehicles & Mobile Plant | L54: 0 | M54: 0 | N54: 0 | O54: 0.75 | P54: 0.25 | Q54: 0 | R54: 0 | S54: 0 | T54: 0 | U54: 0 | V54: 1 | W54: 0 | X54: =IFERROR($H54*K54 *IF($E54<>"Nominal",INDEX($K$16:$U$16,,MATCH($F54,Years,0))/INDEX($K$16:$U$16,,MATCH($E54,Years,0)), 1/K$19),0) -> 0 | Y54: =IFERROR($H54*L54 *IF($E54<>"Nominal",INDEX($K$16:$U$16,,MATCH($F54,Years,0))/INDEX($K$16:$U$16,,MATCH($E54,Years,0)), 1/L$19),0) -> 0 | Z54: =IFERROR($H54*M54 *IF($E54<>"Nominal",INDEX($K$16:$U$16,,MATCH($F54,Years,0))/INDEX($K$16:$U$16,,MATCH($E54,Years,0)), 1/M$19),0) -> 0 | AA54: =IFERROR($H54*N54 *IF($E54<>"Nominal",INDEX($K$16:$U$16,,MATCH($F54,Years,0))/INDEX($K$16:$U$16,,MATCH($E54,Years,0)), 1/N$19),0) -> 0 | AB54: =IFERROR($H54*O54 *IF($E54<>"Nominal",INDEX($K$16:$U$16,,MATCH($F54,Years,0))/INDEX($K$16:$U$16,,MATCH($E54,Years,0)), 1/O$19),0) -> 0.8916478476 | AC54: =IFERROR($H54*P54 *IF($E54<>"Nominal",INDEX($K$16:$U$16,,MATCH($F54,Years,0))/INDEX($K$16:$U$16,,MATCH($E54,Years,0)), 1/P$19),0) -> 0.2972159492 | AD54: =IFERROR($H54*Q54 *IF($E54<>"Nominal",INDEX($K$16:$U$16,,MATCH($F54,Years,0))/INDEX($K$16:$U$16,,MATCH($E54,Years,0)), 1/Q$19),0) -> 0 | AE54: =IFERROR($H54*R54 *IF($E54<>"Nominal",INDEX($K$16:$U$16,,MATCH($F54,Years,0))/INDEX($K$16:$U$16,,MATCH($E54,Years,0)), 1/R$19),0) -> 0 | AF54: =IFERROR($H54*S54 *IF($E54<>"Nominal",INDEX($K$16:$U$16,,MATCH($F54,Years,0))/INDEX($K$16:$U$16,,MATCH($E54,Years,0)), 1/S$19),0) -> 0 | AG54: =IFERROR($H54*T54 *IF($E54<>"Nominal",INDEX($K$16:$U$16,,MATCH($F54,Years,0))/INDEX($K$16:$U$16,,MATCH($E54,Years,0)), 1/T$19),0) -> 0 | AH54: =IFERROR($H54*U54 *IF($E54<>"Nominal",INDEX($K$16:$U$16,,MATCH($F54,Years,0))/INDEX($K$16:$U$16,,MATCH($E54,Years,0)), 1/U$19),0) -> 0 | AI54: 1.188863797 | AM54: 0 | AN54: 0 | AO54: 0 | AP54: 1 | AQ54: 0 | AR54: 0 | AS54: 0 | AT54: 0 | AU54: 0 | AW54: 0 | AX54: 0 | AY54: 0 | AZ54: 0 | BA54: 0 | BB54: 1.188863797 | BC54: 0 | BD54: 0 | BE54: 0 | BF54: 0 | BG54: 0 | BH54: 1.188863797 | BJ54: Minor Plant, Motor Vehicles & Mobile Plant - Other | BK54: Non SI Costs | BL54: Facilities
A55: C-i-C | B55: SW Control Room Facilities Interim Upgrade | C55: $Millions | E55: 2025 | F55: 2023 | H55: 0.48 | I55: Other | J55: Minor Plant, Motor Vehicles & Mobile Plant | L55: 0 | M55: 0 | N55: 0 | O55: 1 | P55: 0 | Q55: 0 | R55: 0 | S55: 0 | T55: 0 | U55: 0 | V55: 1 | W55: 0 | X55: =IFERROR($H55*K55 *IF($E55<>"Nominal",INDEX($K$16:$U$16,,MATCH($F55,Years,0))/INDEX($K$16:$U$16,,MATCH($E55,Years,0)), 1/K$19),0) -> 0 | Y55: =IFERROR($H55*L55 *IF($E55<>"Nominal",INDEX($K$16:$U$16,,MATCH($F55,Years,0))/INDEX($K$16:$U$16,,MATCH($E55,Years,0)), 1/L$19),0) -> 0 | Z55: =IFERROR($H55*M55 *IF($E55<>"Nominal",INDEX($K$16:$U$16,,MATCH($F55,Years,0))/INDEX($K$16:$U$16,,MATCH($E55,Years,0)), 1/M$19),0) -> 0 | AA55: =IFERROR($H55*N55 *IF($E55<>"Nominal",INDEX($K$16:$U$16,,MATCH($F55,Years,0))/INDEX($K$16:$U$16,,MATCH($E55,Years,0)), 1/N$19),0) -> 0 | AB55: =IFERROR($H55*O55 *IF($E55<>"Nominal",INDEX($K$16:$U$16,,MATCH($F55,Years,0))/INDEX($K$16:$U$16,,MATCH($E55,Years,0)), 1/O$19),0) -> 0.452900494 | AC55: =IFERROR($H55*P55 *IF($E55<>"Nominal",INDEX($K$16:$U$16,,MATCH($F55,Years,0))/INDEX($K$16:$U$16,,MATCH($E55,Years,0)), 1/P$19),0) -> 0 | AD55: =IFERROR($H55*Q55 *IF($E55<>"Nominal",INDEX($K$16:$U$16,,MATCH($F55,Years,0))/INDEX($K$16:$U$16,,MATCH($E55,Years,0)), 1/Q$19),0) -> 0 | AE55: =IFERROR($H55*R55 *IF($E55<>"Nominal",INDEX($K$16:$U$16,,MATCH($F55,Years,0))/INDEX($K$16:$U$16,,MATCH($E55,Years,0)), 1/R$19),0) -> 0 | AF55: =IFERROR($H55*S55 *IF($E55<>"Nominal",INDEX($K$16:$U$16,,MATCH($F55,Years,0))/INDEX($K$16:$U$16,,MATCH($E55,Years,0)), 1/S$19),0) -> 0 | AG55: =IFERROR($H55*T55 *IF($E55<>"Nominal",INDEX($K$16:$U$16,,MATCH($F55,Years,0))/INDEX($K$16:$U$16,,MATCH($E55,Years,0)), 1/T$19),0) -> 0 | AH55: =IFERROR($H55*U55 *IF($E55<>"Nominal",INDEX($K$16:$U$16,,MATCH($F55,Years,0))/INDEX($K$16:$U$16,,MATCH($E55,Years,0)), 1/U$19),0) -> 0 | AI55: 0.452900494 | AM55: 0 | AN55: 0 | AO55: 0 | AP55: 1 | AQ55: 0 | AR55: 0 | AS55: 0 | AT55: 0 | AU55: 0 | AW55: 0 | AX55: 0 | AY55: 0 | AZ55: 0 | BA55: 0 | BB55: 0.452900494 | BC55: 0 | BD55: 0 | BE55: 0 | BF55: 0 | BG55: 0 | BH55: 0.452900494 | BJ55: Minor Plant, Motor Vehicles & Mobile Plant - Other | BK55: Non SI Costs | BL55: Facilities
A56: C-i-C | B56: SW Control Room Facilities Interim Upgrade | C56: $Millions | E56: 2025 | F56: 2023 | H56: 0.16 | I56: Other | J56: Minor Plant, Motor Vehicles & Mobile Plant | L56: 0 | M56: 0 | N56: 0 | O56: 1 | P56: 0 | Q56: 0 | R56: 0 | S56: 0 | T56: 0 | U56: 0 | V56: 1 | W56: 0 | X56: =IFERROR($H56*K56 *IF($E56<>"Nominal",INDEX($K$16:$U$16,,MATCH($F56,Years,0))/INDEX($K$16:$U$16,,MATCH($E56,Years,0)), 1/K$19),0) -> 0 | Y56: =IFERROR($H56*L56 *IF($E56<>"Nominal",INDEX($K$16:$U$16,,MATCH($F56,Years,0))/INDEX($K$16:$U$16,,MATCH($E56,Years,0)), 1/L$19),0) -> 0 | Z56: =IFERROR($H56*M56 *IF($E56<>"Nominal",INDEX($K$16:$U$16,,MATCH($F56,Years,0))/INDEX($K$16:$U$16,,MATCH($E56,Years,0)), 1/M$19),0) -> 0 | AA56: =IFERROR($H56*N56 *IF($E56<>"Nominal",INDEX($K$16:$U$16,,MATCH($F56,Years,0))/INDEX($K$16:$U$16,,MATCH($E56,Years,0)), 1/N$19),0) -> 0 | AB56: =IFERROR($H56*O56 *IF($E56<>"Nominal",INDEX($K$16:$U$16,,MATCH($F56,Years,0))/INDEX($K$16:$U$16,,MATCH($E56,Years,0)), 1/O$19),0) -> 0.1509668313 | AC56: =IFERROR($H56*P56 *IF($E56<>"Nominal",INDEX($K$16:$U$16,,MATCH($F56,Years,0))/INDEX($K$16:$U$16,,MATCH($E56,Years,0)), 1/P$19),0) -> 0 | AD56: =IFERROR($H56*Q56 *IF($E56<>"Nominal",INDEX($K$16:$U$16,,MATCH($F56,Years,0))/INDEX($K$16:$U$16,,MATCH($E56,Years,0)), 1/Q$19),0) -> 0 | AE56: =IFERROR($H56*R56 *IF($E56<>"Nominal",INDEX($K$16:$U$16,,MATCH($F56,Years,0))/INDEX($K$16:$U$16,,MATCH($E56,Years,0)), 1/R$19),0) -> 0 | AF56: =IFERROR($H56*S56 *IF($E56<>"Nominal",INDEX($K$16:$U$16,,MATCH($F56,Years,0))/INDEX($K$16:$U$16,,MATCH($E56,Years,0)), 1/S$19),0) -> 0 | AG56: =IFERROR($H56*T56 *IF($E56<>"Nominal",INDEX($K$16:$U$16,,MATCH($F56,Years,0))/INDEX($K$16:$U$16,,MATCH($E56,Years,0)), 1/T$19),0) -> 0 | AH56: =IFERROR($H56*U56 *IF($E56<>"Nominal",INDEX($K$16:$U$16,,MATCH($F56,Years,0))/INDEX($K$16:$U$16,,MATCH($E56,Years,0)), 1/U$19),0) -> 0 | AI56: 0.1509668313 | AM56: 0 | AN56: 0 | AO56: 0 | AP56: 1 | AQ56: 0 | AR56: 0 | AS56: 0 | AT56: 0 | AU56: 0 | AW56: 0 | AX56: 0 | AY56: 0 | AZ56: 0 | BA56: 0 | BB56: 0.1509668313 | BC56: 0 | BD56: 0 | BE56: 0 | BF56: 0 | BG56: 0 | BH56: 0.1509668313 | BJ56: Minor Plant, Motor Vehicles & Mobile Plant - Other | BK56: Non SI Costs | BL56: Facilities
A57: C-i-C | B57: SW Data Centre power expansion | C57: $Millions | E57: 2025 | F57: 2023 | H57: 0.66 | I57: Other | J57: Minor Plant, Motor Vehicles & Mobile Plant | L57: 0 | M57: 0 | N57: 0 | O57: 1 | P57: 0 | Q57: 0 | R57: 0 | S57: 0 | T57: 0 | U57: 0 | V57: 1 | W57: 0 | X57: =IFERROR($H57*K57 *IF($E57<>"Nominal",INDEX($K$16:$U$16,,MATCH($F57,Years,0))/INDEX($K$16:$U$16,,MATCH($E57,Years,0)), 1/K$19),0) -> 0 | Y57: =IFERROR($H57*L57 *IF($E57<>"Nominal",INDEX($K$16:$U$16,,MATCH($F57,Years,0))/INDEX($K$16:$U$16,,MATCH($E57,Years,0)), 1/L$19),0) -> 0 | Z57: =IFERROR($H57*M57 *IF($E57<>"Nominal",INDEX($K$16:$U$16,,MATCH($F57,Years,0))/INDEX($K$16:$U$16,,MATCH($E57,Years,0)), 1/M$19),0) -> 0 | AA57: =IFERROR($H57*N57 *IF($E57<>"Nominal",INDEX($K$16:$U$16,,MATCH($F57,Years,0))/INDEX($K$16:$U$16,,MATCH($E57,Years,0)), 1/N$19),0) -> 0 | AB57: =IFERROR($H57*O57 *IF($E57<>"Nominal",INDEX($K$16:$U$16,,MATCH($F57,Years,0))/INDEX($K$16:$U$16,,MATCH($E57,Years,0)), 1/O$19),0) -> 0.6227381793 | AC57: =IFERROR($H57*P57 *IF($E57<>"Nominal",INDEX($K$16:$U$16,,MATCH($F57,Years,0))/INDEX($K$16:$U$16,,MATCH($E57,Years,0)), 1/P$19),0) -> 0 | AD57: =IFERROR($H57*Q57 *IF($E57<>"Nominal",INDEX($K$16:$U$16,,MATCH($F57,Years,0))/INDEX($K$16:$U$16,,MATCH($E57,Years,0)), 1/Q$19),0) -> 0 | AE57: =IFERROR($H57*R57 *IF($E57<>"Nominal",INDEX($K$16:$U$16,,MATCH($F57,Years,0))/INDEX($K$16:$U$16,,MATCH($E57,Years,0)), 1/R$19),0) -> 0 | AF57: =IFERROR($H57*S57 *IF($E57<>"Nominal",INDEX($K$16:$U$16,,MATCH($F57,Years,0))/INDEX($K$16:$U$16,,MATCH($E57,Years,0)), 1/S$19),0) -> 0 | AG57: =IFERROR($H57*T57 *IF($E57<>"Nominal",INDEX($K$16:$U$16,,MATCH($F57,Years,0))/INDEX($K$16:$U$16,,MATCH($E57,Years,0)), 1/T$19),0) -> 0 | AH57: =IFERROR($H57*U57 *IF($E57<>"Nominal",INDEX($K$16:$U$16,,MATCH($F57,Years,0))/INDEX($K$16:$U$16,,MATCH($E57,Years,0)), 1/U$19),0) -> 0 | AI57: 0.6227381793 | AM57: 0 | AN57: 0 | AO57: 1 | AP57: 0 | AQ57: 0 | AR57: 0 | AS57: 0 | AT57: 0 | AU57: 0 | AW57: 0 | AX57: 0 | AY57: 0 | AZ57: 0 | BA57: 0.6227381793 | BB57: 0 | BC57: 0 | BD57: 0 | BE57: 0 | BF57: 0 | BG57: 0 | BH57: 0.6227381793 | BJ57: Minor Plant, Motor Vehicles & Mobile Plant - Other | BK57: Non SI Costs | BL57: Facilities
A58: C-i-C | B58: SW Control Room Facilities Interim Upgrade | C58: $Millions | E58: 2025 | F58: 2023 | H58: 0.27 | I58: Other | J58: Minor Plant, Motor Vehicles & Mobile Plant | L58: 0 | M58: 0 | N58: 0 | O58: 0 | P58: 0 | Q58: 0 | R58: 0 | S58: 1 | T58: 0 | U58: 0 | V58: 1 | W58: 0 | X58: =IFERROR($H58*K58 *IF($E58<>"Nominal",INDEX($K$16:$U$16,,MATCH($F58,Years,0))/INDEX($K$16:$U$16,,MATCH($E58,Years,0)), 1/K$19),0) -> 0 | Y58: =IFERROR($H58*L58 *IF($E58<>"Nominal",INDEX($K$16:$U$16,,MATCH($F58,Years,0))/INDEX($K$16:$U$16,,MATCH($E58,Years,0)), 1/L$19),0) -> 0 | Z58: =IFERROR($H58*M58 *IF($E58<>"Nominal",INDEX($K$16:$U$16,,MATCH($F58,Years,0))/INDEX($K$16:$U$16,,MATCH($E58,Years,0)), 1/M$19),0) -> 0 | AA58: =IFERROR($H58*N58 *IF($E58<>"Nominal",INDEX($K$16:$U$16,,MATCH($F58,Years,0))/INDEX($K$16:$U$16,,MATCH($E58,Years,0)), 1/N$19),0) -> 0 | AB58: =IFERROR($H58*O58 *IF($E58<>"Nominal",INDEX($K$16:$U$16,,MATCH($F58,Years,0))/INDEX($K$16:$U$16,,MATCH($E58,Years,0)), 1/O$19),0) -> 0 | AC58: =IFERROR($H58*P58 *IF($E58<>"Nominal",INDEX($K$16:$U$16,,MATCH($F58,Years,0))/INDEX($K$16:$U$16,,MATCH($E58,Years,0)), 1/P$19),0) -> 0 | AD58: =IFERROR($H58*Q58 *IF($E58<>"Nominal",INDEX($K$16:$U$16,,MATCH($F58,Years,0))/INDEX($K$16:$U$16,,MATCH($E58,Years,0)), 1/Q$19),0) -> 0 | AE58: =IFERROR($H58*R58 *IF($E58<>"Nominal",INDEX($K$16:$U$16,,MATCH($F58,Years,0))/INDEX($K$16:$U$16,,MATCH($E58,Years,0)), 1/R$19),0) -> 0 | AF58: =IFERROR($H58*S58 *IF($E58<>"Nominal",INDEX($K$16:$U$16,,MATCH($F58,Years,0))/INDEX($K$16:$U$16,,MATCH($E58,Years,0)), 1/S$19),0) -> 0.2547565279 | AG58: =IFERROR($H58*T58 *IF($E58<>"Nominal",INDEX($K$16:$U$16,,MATCH($F58,Years,0))/INDEX($K$16:$U$16,,MATCH($E58,Years,0)), 1/T$19),0) -> 0 | AH58: =IFERROR($H58*U58 *IF($E58<>"Nominal",INDEX($K$16:$U$16,,MATCH($F58,Years,0))/INDEX($K$16:$U$16,,MATCH($E58,Years,0)), 1/U$19),0) -> 0 | AI58: 0.2547565279 | AM58: 0 | AN58: 0 | AO58: 0 | AP58: 0 | AQ58: 0 | AR58: 0 | AS58: 1 | AT58: 0 | AU58: 0 | AW58: 0 | AX58: 0 | AY58: 0 | AZ58: 0 | BA58: 0 | BB58: 0 | BC58: 0 | BD58: 0 | BE58: 0.2547565279 | BF58: 0 | BG58: 0 | BH58: 0.2547565279 | BJ58: Minor Plant, Motor Vehicles & Mobile Plant - Other | BK58: Non SI Costs | BL58: Facilities
A59: C-i-C | B59: Operator Visualisation and Situational Awareness technology | C59: $Millions | E59: 2025 | F59: =Report_Year -> 2023 | H59: 1 | I59: SCADA, network control and protection systems | J59: Communications (short life) | L59: 0 | M59: 0 | N59: 0 | O59: 0 | P59: 0 | Q59: 0.35 | R59: 0.6 | S59: 0.05 | T59: 0 | U59: 0 | V59: 1 | W59: 0 | X59: =IFERROR($H59*K59 *IF($E59<>"Nominal",INDEX($K$16:$U$16,,MATCH($F59,Years,0))/INDEX($K$16:$U$16,,MATCH($E59,Years,0)), 1/K$19),0) -> 0 | Y59: =IFERROR($H59*L59 *IF($E59<>"Nominal",INDEX($K$16:$U$16,,MATCH($F59,Years,0))/INDEX($K$16:$U$16,,MATCH($E59,Years,0)), 1/L$19),0) -> 0 | Z59: =IFERROR($H59*M59 *IF($E59<>"Nominal",INDEX($K$16:$U$16,,MATCH($F59,Years,0))/INDEX($K$16:$U$16,,MATCH($E59,Years,0)), 1/M$19),0) -> 0 | AA59: =IFERROR($H59*N59 *IF($E59<>"Nominal",INDEX($K$16:$U$16,,MATCH($F59,Years,0))/INDEX($K$16:$U$16,,MATCH($E59,Years,0)), 1/N$19),0) -> 0 | AB59: =IFERROR($H59*O59 *IF($E59<>"Nominal",INDEX($K$16:$U$16,,MATCH($F59,Years,0))/INDEX($K$16:$U$16,,MATCH($E59,Years,0)), 1/O$19),0) -> 0 | AC59: =IFERROR($H59*P59 *IF($E59<>"Nominal",INDEX($K$16:$U$16,,MATCH($F59,Years,0))/INDEX($K$16:$U$16,,MATCH($E59,Years,0)), 1/P$19),0) -> 0 | AD59: =IFERROR($H59*Q59 *IF($E59<>"Nominal",INDEX($K$16:$U$16,,MATCH($F59,Years,0))/INDEX($K$16:$U$16,,MATCH($E59,Years,0)), 1/Q$19),0) -> 0.3302399435 | AE59: =IFERROR($H59*R59 *IF($E59<>"Nominal",INDEX($K$16:$U$16,,MATCH($F59,Years,0))/INDEX($K$16:$U$16,,MATCH($E59,Years,0)), 1/R$19),0) -> 0.5661256175 | AF59: =IFERROR($H59*S59 *IF($E59<>"Nominal",INDEX($K$16:$U$16,,MATCH($F59,Years,0))/INDEX($K$16:$U$16,,MATCH($E59,Years,0)), 1/S$19),0) -> 0.04717713479 | AG59: =IFERROR($H59*T59 *IF($E59<>"Nominal",INDEX($K$16:$U$16,,MATCH($F59,Years,0))/INDEX($K$16:$U$16,,MATCH($E59,Years,0)), 1/T$19),0) -> 0 | AH59: =IFERROR($H59*U59 *IF($E59<>"Nominal",INDEX($K$16:$U$16,,MATCH($F59,Years,0))/INDEX($K$16:$U$16,,MATCH($E59,Years,0)), 1/U$19),0) -> 0 | AI59: 0.9435426958 | AM59: 0 | AN59: 0 | AO59: 0 | AP59: 0 | AQ59: 0.3 | AR59: 0 | AS59: 0.7 | AT59: 0 | AU59: 0 | AW59: 0 | AX59: 0 | AY59: 0 | AZ59: 0 | BA59: 0 | BB59: 0 | BC59: 0.2830628088 | BD59: 0 | BE59: 0.6604798871 | BF59: 0 | BG59: 0 | BH59: 0.9435426958 | BJ59: Communications (short life) - SCADA, network control and protection systems | BK59: Non SI Costs | BL59: Alarm management, visualisation and situation awareness enhancement
A60: C-i-C | B60: Alarm Management technologies | C60: $Millions | E60: 2025 | F60: 2023 | H60: 0.75 | I60: SCADA, network control and protection systems | J60: Communications (short life) | L60: 0 | M60: 0 | N60: 0 | O60: 0 | P60: 0 | Q60: 0.2 | R60: 0.8 | S60: 0 | T60: 0 | U60: 0 | V60: 1 | W60: 0 | X60: =IFERROR($H60*K60 *IF($E60<>"Nominal",INDEX($K$16:$U$16,,MATCH($F60,Years,0))/INDEX($K$16:$U$16,,MATCH($E60,Years,0)), 1/K$19),0) -> 0 | Y60: =IFERROR($H60*L60 *IF($E60<>"Nominal",INDEX($K$16:$U$16,,MATCH($F60,Years,0))/INDEX($K$16:$U$16,,MATCH($E60,Years,0)), 1/L$19),0) -> 0 | Z60: =IFERROR($H60*M60 *IF($E60<>"Nominal",INDEX($K$16:$U$16,,MATCH($F60,Years,0))/INDEX($K$16:$U$16,,MATCH($E60,Years,0)), 1/M$19),0) -> 0 | AA60: =IFERROR($H60*N60 *IF($E60<>"Nominal",INDEX($K$16:$U$16,,MATCH($F60,Years,0))/INDEX($K$16:$U$16,,MATCH($E60,Years,0)), 1/N$19),0) -> 0 | AB60: =IFERROR($H60*O60 *IF($E60<>"Nominal",INDEX($K$16:$U$16,,MATCH($F60,Years,0))/INDEX($K$16:$U$16,,MATCH($E60,Years,0)), 1/O$19),0) -> 0 | AC60: =IFERROR($H60*P60 *IF($E60<>"Nominal",INDEX($K$16:$U$16,,MATCH($F60,Years,0))/INDEX($K$16:$U$16,,MATCH($E60,Years,0)), 1/P$19),0) -> 0 | AD60: =IFERROR($H60*Q60 *IF($E60<>"Nominal",INDEX($K$16:$U$16,,MATCH($F60,Years,0))/INDEX($K$16:$U$16,,MATCH($E60,Years,0)), 1/Q$19),0) -> 0.1415314044 | AE60: =IFERROR($H60*R60 *IF($E60<>"Nominal",INDEX($K$16:$U$16,,MATCH($F60,Years,0))/INDEX($K$16:$U$16,,MATCH($E60,Years,0)), 1/R$19),0) -> 0.5661256175 | AF60: =IFERROR($H60*S60 *IF($E60<>"Nominal",INDEX($K$16:$U$16,,MATCH($F60,Years,0))/INDEX($K$16:$U$16,,MATCH($E60,Years,0)), 1/S$19),0) -> 0 | AG60: =IFERROR($H60*T60 *IF($E60<>"Nominal",INDEX($K$16:$U$16,,MATCH($F60,Years,0))/INDEX($K$16:$U$16,,MATCH($E60,Years,0)), 1/T$19),0) -> 0 | AH60: =IFERROR($H60*U60 *IF($E60<>"Nominal",INDEX($K$16:$U$16,,MATCH($F60,Years,0))/INDEX($K$16:$U$16,,MATCH($E60,Years,0)), 1/U$19),0) -> 0 | AI60: 0.7076570219 | AM60: 0 | AN60: 0 | AO60: 0 | AP60: 0 | AQ60: 0.1333333333 | AR60: 0 | AS60: 0.8666666667 | AT60: 0 | AU60: 0 | AW60: 0 | AX60: 0 | AY60: 0 | AZ60: 0 | BA60: 0 | BB60: 0 | BC60: 0.09435426958 | BD60: 0 | BE60: 0.6133027523 | BF60: 0 | BG60: 0 | BH60: 0.7076570219 | BJ60: Communications (short life) - SCADA, network control and protection systems | BK60: Non SI Costs | BL60: Alarm management, visualisation and situation awareness enhancement
A61: C-i-C | B61: Operational forecasts and look-ahead contingency assessment | C61: $Millions | E61: 2025 | F61: 2023 | H61: 0.75 | I61: SCADA, network control and protection systems | J61: Communications (short life) | L61: 0 | M61: 0 | N61: 0 | O61: 0 | P61: 0 | Q61: 0 | R61: 0.6666666667 | S61: 0.3333333333 | T61: 0 | U61: 0 | V61: 1 | W61: 0 | X61: =IFERROR($H61*K61 *IF($E61<>"Nominal",INDEX($K$16:$U$16,,MATCH($F61,Years,0))/INDEX($K$16:$U$16,,MATCH($E61,Years,0)), 1/K$19),0) -> 0 | Y61: =IFERROR($H61*L61 *IF($E61<>"Nominal",INDEX($K$16:$U$16,,MATCH($F61,Years,0))/INDEX($K$16:$U$16,,MATCH($E61,Years,0)), 1/L$19),0) -> 0 | Z61: =IFERROR($H61*M61 *IF($E61<>"Nominal",INDEX($K$16:$U$16,,MATCH($F61,Years,0))/INDEX($K$16:$U$16,,MATCH($E61,Years,0)), 1/M$19),0) -> 0 | AA61: =IFERROR($H61*N61 *IF($E61<>"Nominal",INDEX($K$16:$U$16,,MATCH($F61,Years,0))/INDEX($K$16:$U$16,,MATCH($E61,Years,0)), 1/N$19),0) -> 0 | AB61: =IFERROR($H61*O61 *IF($E61<>"Nominal",INDEX($K$16:$U$16,,MATCH($F61,Years,0))/INDEX($K$16:$U$16,,MATCH($E61,Years,0)), 1/O$19),0) -> 0 | AC61: =IFERROR($H61*P61 *IF($E61<>"Nominal",INDEX($K$16:$U$16,,MATCH($F61,Years,0))/INDEX($K$16:$U$16,,MATCH($E61,Years,0)), 1/P$19),0) -> 0 | AD61: =IFERROR($H61*Q61 *IF($E61<>"Nominal",INDEX($K$16:$U$16,,MATCH($F61,Years,0))/INDEX($K$16:$U$16,,MATCH($E61,Years,0)), 1/Q$19),0) -> 0 | AE61: =IFERROR($H61*R61 *IF($E61<>"Nominal",INDEX($K$16:$U$16,,MATCH($F61,Years,0))/INDEX($K$16:$U$16,,MATCH($E61,Years,0)), 1/R$19),0) -> 0.4717713479 | AF61: =IFERROR($H61*S61 *IF($E61<>"Nominal",INDEX($K$16:$U$16,,MATCH($F61,Years,0))/INDEX($K$16:$U$16,,MATCH($E61,Years,0)), 1/S$19),0) -> 0.235885674 | AG61: =IFERROR($H61*T61 *IF($E61<>"Nominal",INDEX($K$16:$U$16,,MATCH($F61,Years,0))/INDEX($K$16:$U$16,,MATCH($E61,Years,0)), 1/T$19),0) -> 0 | AH61: =IFERROR($H61*U61 *IF($E61<>"Nominal",INDEX($K$16:$U$16,,MATCH($F61,Years,0))/INDEX($K$16:$U$16,,MATCH($E61,Years,0)), 1/U$19),0) -> 0 | AI61: 0.7076570219 | AM61: 0 | AN61: 0 | AO61: 0 | AP61: 0 | AQ61: 0 | AR61: 0 | AS61: 1 | AT61: 0 | AU61: 0 | AW61: 0 | AX61: 0 | AY61: 0 | AZ61: 0 | BA61: 0 | BB61: 0 | BC61: 0 | BD61: 0 | BE61: 0.7076570219 | BF61: 0 | BG61: 0 | BH61: 0.7076570219 | BJ61: Communications (short life) - SCADA, network control and protection systems | BK61: Non SI Costs | BL61: Operational forecasts and look-ahead contingency assessment
A62: Data Management and Network Modelling | B62: Data Management and Network Modelling | C62: $Millions | E62: 2025 | F62: 2023 | H62: 0.8652805 | I62: Other | J62: Business IT | L62: 0 | M62: 0 | N62: 0 | O62: 0.04166666667 | P62: 0.5 | Q62: 0.4583333333 | R62: 0 | S62: 0 | T62: 0 | U62: 0 | V62: 1 | W62: 0 | X62: =IFERROR($H62*K62 *IF($E62<>"Nominal",INDEX($K$16:$U$16,,MATCH($F62,Years,0))/INDEX($K$16:$U$16,,MATCH($E62,Years,0)), 1/K$19),0) -> 0 | Y62: =IFERROR($H62*L62 *IF($E62<>"Nominal",INDEX($K$16:$U$16,,MATCH($F62,Years,0))/INDEX($K$16:$U$16,,MATCH($E62,Years,0)), 1/L$19),0) -> 0 | Z62: =IFERROR($H62*M62 *IF($E62<>"Nominal",INDEX($K$16:$U$16,,MATCH($F62,Years,0))/INDEX($K$16:$U$16,,MATCH($E62,Years,0)), 1/M$19),0) -> 0 | AA62: =IFERROR($H62*N62 *IF($E62<>"Nominal",INDEX($K$16:$U$16,,MATCH($F62,Years,0))/INDEX($K$16:$U$16,,MATCH($E62,Years,0)), 1/N$19),0) -> 0 | AB62: =IFERROR($H62*O62 *IF($E62<>"Nominal",INDEX($K$16:$U$16,,MATCH($F62,Years,0))/INDEX($K$16:$U$16,,MATCH($E62,Years,0)), 1/O$19),0) -> 0.03401787898 | AC62: =IFERROR($H62*P62 *IF($E62<>"Nominal",INDEX($K$16:$U$16,,MATCH($F62,Years,0))/INDEX($K$16:$U$16,,MATCH($E62,Years,0)), 1/P$19),0) -> 0.4082145478 | AD62: =IFERROR($H62*Q62 *IF($E62<>"Nominal",INDEX($K$16:$U$16,,MATCH($F62,Years,0))/INDEX($K$16:$U$16,,MATCH($E62,Years,0)), 1/Q$19),0) -> 0.3741966688 | AE62: =IFERROR($H62*R62 *IF($E62<>"Nominal",INDEX($K$16:$U$16,,MATCH($F62,Years,0))/INDEX($K$16:$U$16,,MATCH($E62,Years,0)), 1/R$19),0) -> 0 | AF62: =IFERROR($H62*S62 *IF($E62<>"Nominal",INDEX($K$16:$U$16,,MATCH($F62,Years,0))/INDEX($K$16:$U$16,,MATCH($E62,Years,0)), 1/S$19),0) -> 0 | AG62: =IFERROR($H62*T62 *IF($E62<>"Nominal",INDEX($K$16:$U$16,,MATCH($F62,Years,0))/INDEX($K$16:$U$16,,MATCH($E62,Years,0)), 1/T$19),0) -> 0 | AH62: =IFERROR($H62*U62 *IF($E62<>"Nominal",INDEX($K$16:$U$16,,MATCH($F62,Years,0))/INDEX($K$16:$U$16,,MATCH($E62,Years,0)), 1/U$19),0) -> 0 | AI62: 0.8164290956 | AM62: 0 | AN62: 0 | AO62: 0 | AP62: 0 | AQ62: 1 | AR62: 0 | AS62: 0 | AT62: 0 | AU62: 0 | AW62: 0 | AX62: 0 | AY62: 0 | AZ62: 0 | BA62: 0 | BB62: 0 | BC62: 0.8164290956 | BD62: 0 | BE62: 0 | BF62: 0 | BG62: 0 | BH62: 0.8164290956 | BJ62: Business IT - Other | BK62: SI Costs | BL62: Data management and network modelling system
A63: Enhanced EMS/SCADA | B63: SCADA/AEMS | C63: $Millions | E63: 2025 | F63: 2023 | H63: 1.140682 | I63: SCADA, network control and protection systems | J63: Communications (short life) | L63: 0 | M63: 0 | N63: 0 | O63: 0.02127659574 | P63: 0.2553191489 | Q63: 0.2553191489 | R63: 0.2553191489 | S63: 0.2127659574 | T63: 0 | U63: 0 | V63: 1 | W63: 0 | X63: =IFERROR($H63*K63 *IF($E63<>"Nominal",INDEX($K$16:$U$16,,MATCH($F63,Years,0))/INDEX($K$16:$U$16,,MATCH($E63,Years,0)), 1/K$19),0) -> 0 | Y63: =IFERROR($H63*L63 *IF($E63<>"Nominal",INDEX($K$16:$U$16,,MATCH($F63,Years,0))/INDEX($K$16:$U$16,,MATCH($E63,Years,0)), 1/L$19),0) -> 0 | Z63: =IFERROR($H63*M63 *IF($E63<>"Nominal",INDEX($K$16:$U$16,,MATCH($F63,Years,0))/INDEX($K$16:$U$16,,MATCH($E63,Years,0)), 1/M$19),0) -> 0 | AA63: =IFERROR($H63*N63 *IF($E63<>"Nominal",INDEX($K$16:$U$16,,MATCH($F63,Years,0))/INDEX($K$16:$U$16,,MATCH($E63,Years,0)), 1/N$19),0) -> 0 | AB63: =IFERROR($H63*O63 *IF($E63<>"Nominal",INDEX($K$16:$U$16,,MATCH($F63,Years,0))/INDEX($K$16:$U$16,,MATCH($E63,Years,0)), 1/O$19),0) -> 0.02289962062 | AC63: =IFERROR($H63*P63 *IF($E63<>"Nominal",INDEX($K$16:$U$16,,MATCH($F63,Years,0))/INDEX($K$16:$U$16,,MATCH($E63,Years,0)), 1/P$19),0) -> 0.2747954475 | AD63: =IFERROR($H63*Q63 *IF($E63<>"Nominal",INDEX($K$16:$U$16,,MATCH($F63,Years,0))/INDEX($K$16:$U$16,,MATCH($E63,Years,0)), 1/Q$19),0) -> 0.2747954475 | AE63: =IFERROR($H63*R63 *IF($E63<>"Nominal",INDEX($K$16:$U$16,,MATCH($F63,Years,0))/INDEX($K$16:$U$16,,MATCH($E63,Years,0)), 1/R$19),0) -> 0.2747954475 | AF63: =IFERROR($H63*S63 *IF($E63<>"Nominal",INDEX($K$16:$U$16,,MATCH($F63,Years,0))/INDEX($K$16:$U$16,,MATCH($E63,Years,0)), 1/S$19),0) -> 0.2289962062 | AG63: =IFERROR($H63*T63 *IF($E63<>"Nominal",INDEX($K$16:$U$16,,MATCH($F63,Years,0))/INDEX($K$16:$U$16,,MATCH($E63,Years,0)), 1/T$19),0) -> 0 | AH63: =IFERROR($H63*U63 *IF($E63<>"Nominal",INDEX($K$16:$U$16,,MATCH($F63,Years,0))/INDEX($K$16:$U$16,,MATCH($E63,Years,0)), 1/U$19),0) -> 0 | AI63: 1.076282169 | AM63: 0 | AN63: 0 | AO63: 0 | AP63: 0 | AQ63: 0.5106382979 | AR63: 0 | AS63: 0.4893617021 | AT63: 0 | AU63: 0 | AW63: 0 | AX63: 0 | AY63: 0 | AZ63: 0 | BA63: 0 | BB63: 0 | BC63: 0.549590895 | BD63: 0 | BE63: 0.5266912744 | BF63: 0 | BG63: 0 | BH63: 1.076282169 | BJ63: Communications (short life) - SCADA, network control and protection systems | BK63: SI Costs | BL63: SCADA/AEMS system
A64: Operational forecasts and look-ahead contingency assessment | B64: Operational forecasts and look-ahead contingency assessment | C64: $Millions | E64: 2025 | F64: 2023 | H64: 0.189409 | I64: SCADA, network control and protection systems | J64: Communications (short life) | L64: 0 | M64: 0 | N64: 0 | O64: 0 | P64: 0 | Q64: 0 | R64: 0.7142857143 | S64: 0.2857142857 | T64: 0 | U64: 0 | V64: 1 | W64: 0 | X64: =IFERROR($H64*K64 *IF($E64<>"Nominal",INDEX($K$16:$U$16,,MATCH($F64,Years,0))/INDEX($K$16:$U$16,,MATCH($E64,Years,0)), 1/K$19),0) -> 0 | Y64: =IFERROR($H64*L64 *IF($E64<>"Nominal",INDEX($K$16:$U$16,,MATCH($F64,Years,0))/INDEX($K$16:$U$16,,MATCH($E64,Years,0)), 1/L$19),0) -> 0 | Z64: =IFERROR($H64*M64 *IF($E64<>"Nominal",INDEX($K$16:$U$16,,MATCH($F64,Years,0))/INDEX($K$16:$U$16,,MATCH($E64,Years,0)), 1/M$19),0) -> 0 | AA64: =IFERROR($H64*N64 *IF($E64<>"Nominal",INDEX($K$16:$U$16,,MATCH($F64,Years,0))/INDEX($K$16:$U$16,,MATCH($E64,Years,0)), 1/N$19),0) -> 0 | AB64: =IFERROR($H64*O64 *IF($E64<>"Nominal",INDEX($K$16:$U$16,,MATCH($F64,Years,0))/INDEX($K$16:$U$16,,MATCH($E64,Years,0)), 1/O$19),0) -> 0 | AC64: =IFERROR($H64*P64 *IF($E64<>"Nominal",INDEX($K$16:$U$16,,MATCH($F64,Years,0))/INDEX($K$16:$U$16,,MATCH($E64,Years,0)), 1/P$19),0) -> 0 | AD64: =IFERROR($H64*Q64 *IF($E64<>"Nominal",INDEX($K$16:$U$16,,MATCH($F64,Years,0))/INDEX($K$16:$U$16,,MATCH($E64,Years,0)), 1/Q$19),0) -> 0 | AE64: =IFERROR($H64*R64 *IF($E64<>"Nominal",INDEX($K$16:$U$16,,MATCH($F64,Years,0))/INDEX($K$16:$U$16,,MATCH($E64,Years,0)), 1/R$19),0) -> 0.1276539132 | AF64: =IFERROR($H64*S64 *IF($E64<>"Nominal",INDEX($K$16:$U$16,,MATCH($F64,Years,0))/INDEX($K$16:$U$16,,MATCH($E64,Years,0)), 1/S$19),0) -> 0.05106156528 | AG64: =IFERROR($H64*T64 *IF($E64<>"Nominal",INDEX($K$16:$U$16,,MATCH($F64,Years,0))/INDEX($K$16:$U$16,,MATCH($E64,Years,0)), 1/T$19),0) -> 0 | AH64: =IFERROR($H64*U64 *IF($E64<>"Nominal",INDEX($K$16:$U$16,,MATCH($F64,Years,0))/INDEX($K$16:$U$16,,MATCH($E64,Years,0)), 1/U$19),0) -> 0 | AI64: 0.1787154785 | AM64: 0 | AN64: 0 | AO64: 0 | AP64: 0 | AQ64: 0 | AR64: 0 | AS64: 1 | AT64: 0 | AU64: 0 | AW64: 0 | AX64: 0 | AY64: 0 | AZ64: 0 | BA64: 0 | BB64: 0 | BC64: 0 | BD64: 0 | BE64: 0.1787154785 | BF64: 0 | BG64: 0 | BH64: 0.1787154785 | BJ64: Communications (short life) - SCADA, network control and protection systems | BK64: SI Costs | BL64: Operational forecasts and look-ahead contingency assessment
A65: Wide Area and High-Speed Monitoring | B65: Wide Area Monitoring | C65: $Millions | E65: 2025 | F65: 2023 | H65: 0.443352 | I65: SCADA, network control and protection systems | J65: Communications (short life) | L65: 0 | M65: 0 | N65: 0 | O65: 0 | P65: 0 | Q65: 0 | R65: 0.7142857143 | S65: 0.2857142857 | T65: 0 | U65: 0 | V65: 1 | W65: 0 | X65: =IFERROR($H65*K65 *IF($E65<>"Nominal",INDEX($K$16:$U$16,,MATCH($F65,Years,0))/INDEX($K$16:$U$16,,MATCH($E65,Years,0)), 1/K$19),0) -> 0 | Y65: =IFERROR($H65*L65 *IF($E65<>"Nominal",INDEX($K$16:$U$16,,MATCH($F65,Years,0))/INDEX($K$16:$U$16,,MATCH($E65,Years,0)), 1/L$19),0) -> 0 | Z65: =IFERROR($H65*M65 *IF($E65<>"Nominal",INDEX($K$16:$U$16,,MATCH($F65,Years,0))/INDEX($K$16:$U$16,,MATCH($E65,Years,0)), 1/M$19),0) -> 0 | AA65: =IFERROR($H65*N65 *IF($E65<>"Nominal",INDEX($K$16:$U$16,,MATCH($F65,Years,0))/INDEX($K$16:$U$16,,MATCH($E65,Years,0)), 1/N$19),0) -> 0 | AB65: =IFERROR($H65*O65 *IF($E65<>"Nominal",INDEX($K$16:$U$16,,MATCH($F65,Years,0))/INDEX($K$16:$U$16,,MATCH($E65,Years,0)), 1/O$19),0) -> 0 | AC65: =IFERROR($H65*P65 *IF($E65<>"Nominal",INDEX($K$16:$U$16,,MATCH($F65,Years,0))/INDEX($K$16:$U$16,,MATCH($E65,Years,0)), 1/P$19),0) -> 0 | AD65: =IFERROR($H65*Q65 *IF($E65<>"Nominal",INDEX($K$16:$U$16,,MATCH($F65,Years,0))/INDEX($K$16:$U$16,,MATCH($E65,Years,0)), 1/Q$19),0) -> 0 | AE65: =IFERROR($H65*R65 *IF($E65<>"Nominal",INDEX($K$16:$U$16,,MATCH($F65,Years,0))/INDEX($K$16:$U$16,,MATCH($E65,Years,0)), 1/R$19),0) -> 0.2988011009 | AF65: =IFERROR($H65*S65 *IF($E65<>"Nominal",INDEX($K$16:$U$16,,MATCH($F65,Years,0))/INDEX($K$16:$U$16,,MATCH($E65,Years,0)), 1/S$19),0) -> 0.1195204404 | AG65: =IFERROR($H65*T65 *IF($E65<>"Nominal",INDEX($K$16:$U$16,,MATCH($F65,Years,0))/INDEX($K$16:$U$16,,MATCH($E65,Years,0)), 1/T$19),0) -> 0 | AH65: =IFERROR($H65*U65 *IF($E65<>"Nominal",INDEX($K$16:$U$16,,MATCH($F65,Years,0))/INDEX($K$16:$U$16,,MATCH($E65,Years,0)), 1/U$19),0) -> 0 | AI65: 0.4183215413 | AM65: 0 | AN65: 0 | AO65: 0 | AP65: 0 | AQ65: 0 | AR65: 0 | AS65: 1 | AT65: 0 | AU65: 0 | AW65: 0 | AX65: 0 | AY65: 0 | AZ65: 0 | BA65: 0 | BB65: 0 | BC65: 0 | BD65: 0 | BE65: 0.4183215413 | BF65: 0 | BG65: 0 | BH65: 0.4183215413 | BJ65: Communications (short life) - SCADA, network control and protection systems | BK65: SI Costs | BL65: Wide area monitoring
A66: Smart Transmission Device Management | B66: Smart Transmission Device Management | C66: $Millions | E66: 2025 | F66: 2023 | H66: 0.259095 | I66: SCADA, network control and protection systems | J66: Communications (short life) | L66: 0 | M66: 0 | N66: 0 | O66: 0 | P66: 0 | Q66: 0 | R66: 0.7142857143 | S66: 0.2857142857 | T66: 0 | U66: 0 | V66: 1 | W66: 0 | X66: =IFERROR($H66*K66 *IF($E66<>"Nominal",INDEX($K$16:$U$16,,MATCH($F66,Years,0))/INDEX($K$16:$U$16,,MATCH($E66,Years,0)), 1/K$19),0) -> 0 | Y66: =IFERROR($H66*L66 *IF($E66<>"Nominal",INDEX($K$16:$U$16,,MATCH($F66,Years,0))/INDEX($K$16:$U$16,,MATCH($E66,Years,0)), 1/L$19),0) -> 0 | Z66: =IFERROR($H66*M66 *IF($E66<>"Nominal",INDEX($K$16:$U$16,,MATCH($F66,Years,0))/INDEX($K$16:$U$16,,MATCH($E66,Years,0)), 1/M$19),0) -> 0 | AA66: =IFERROR($H66*N66 *IF($E66<>"Nominal",INDEX($K$16:$U$16,,MATCH($F66,Years,0))/INDEX($K$16:$U$16,,MATCH($E66,Years,0)), 1/N$19),0) -> 0 | AB66: =IFERROR($H66*O66 *IF($E66<>"Nominal",INDEX($K$16:$U$16,,MATCH($F66,Years,0))/INDEX($K$16:$U$16,,MATCH($E66,Years,0)), 1/O$19),0) -> 0 | AC66: =IFERROR($H66*P66 *IF($E66<>"Nominal",INDEX($K$16:$U$16,,MATCH($F66,Years,0))/INDEX($K$16:$U$16,,MATCH($E66,Years,0)), 1/P$19),0) -> 0 | AD66: =IFERROR($H66*Q66 *IF($E66<>"Nominal",INDEX($K$16:$U$16,,MATCH($F66,Years,0))/INDEX($K$16:$U$16,,MATCH($E66,Years,0)), 1/Q$19),0) -> 0 | AE66: =IFERROR($H66*R66 *IF($E66<>"Nominal",INDEX($K$16:$U$16,,MATCH($F66,Years,0))/INDEX($K$16:$U$16,,MATCH($E66,Years,0)), 1/R$19),0) -> 0.1746194248 | AF66: =IFERROR($H66*S66 *IF($E66<>"Nominal",INDEX($K$16:$U$16,,MATCH($F66,Years,0))/INDEX($K$16:$U$16,,MATCH($E66,Years,0)), 1/S$19),0) -> 0.06984776994 | AG66: =IFERROR($H66*T66 *IF($E66<>"Nominal",INDEX($K$16:$U$16,,MATCH($F66,Years,0))/INDEX($K$16:$U$16,,MATCH($E66,Years,0)), 1/T$19),0) -> 0 | AH66: =IFERROR($H66*U66 *IF($E66<>"Nominal",INDEX($K$16:$U$16,,MATCH($F66,Years,0))/INDEX($K$16:$U$16,,MATCH($E66,Years,0)), 1/U$19),0) -> 0 | AI66: 0.2444671948 | AM66: 0 | AN66: 0 | AO66: 0 | AP66: 0 | AQ66: 0 | AR66: 0 | AS66: 1 | AT66: 0 | AU66: 0 | AW66: 0 | AX66: 0 | AY66: 0 | AZ66: 0 | BA66: 0 | BB66: 0 | BC66: 0 | BD66: 0 | BE66: 0.2444671948 | BF66: 0 | BG66: 0 | BH66: 0.2444671948 | BJ66: Communications (short life) - SCADA, network control and protection systems | BK66: SI Costs | BL66: Smart Transmission Device Management
A67: Fault level and system parameter monitoring | B67: Fault level and system parameter monitoring | C67: $Millions | E67: 2025 | F67: 2023 | H67: 0.3881345 | I67: SCADA, network control and protection systems | J67: Communications (short life) | L67: 0 | M67: 0 | N67: 0 | O67: 0 | P67: 0 | Q67: 0.08333333333 | R67: 0.9166666667 | S67: 0 | T67: 0 | U67: 0 | V67: 1 | W67: 0 | X67: =IFERROR($H67*K67 *IF($E67<>"Nominal",INDEX($K$16:$U$16,,MATCH($F67,Years,0))/INDEX($K$16:$U$16,,MATCH($E67,Years,0)), 1/K$19),0) -> 0 | Y67: =IFERROR($H67*L67 *IF($E67<>"Nominal",INDEX($K$16:$U$16,,MATCH($F67,Years,0))/INDEX($K$16:$U$16,,MATCH($E67,Years,0)), 1/L$19),0) -> 0 | Z67: =IFERROR($H67*M67 *IF($E67<>"Nominal",INDEX($K$16:$U$16,,MATCH($F67,Years,0))/INDEX($K$16:$U$16,,MATCH($E67,Years,0)), 1/M$19),0) -> 0 | AA67: =IFERROR($H67*N67 *IF($E67<>"Nominal",INDEX($K$16:$U$16,,MATCH($F67,Years,0))/INDEX($K$16:$U$16,,MATCH($E67,Years,0)), 1/N$19),0) -> 0 | AB67: =IFERROR($H67*O67 *IF($E67<>"Nominal",INDEX($K$16:$U$16,,MATCH($F67,Years,0))/INDEX($K$16:$U$16,,MATCH($E67,Years,0)), 1/O$19),0) -> 0 | AC67: =IFERROR($H67*P67 *IF($E67<>"Nominal",INDEX($K$16:$U$16,,MATCH($F67,Years,0))/INDEX($K$16:$U$16,,MATCH($E67,Years,0)), 1/P$19),0) -> 0 | AD67: =IFERROR($H67*Q67 *IF($E67<>"Nominal",INDEX($K$16:$U$16,,MATCH($F67,Years,0))/INDEX($K$16:$U$16,,MATCH($E67,Years,0)), 1/Q$19),0) -> 0.03051845604 | AE67: =IFERROR($H67*R67 *IF($E67<>"Nominal",INDEX($K$16:$U$16,,MATCH($F67,Years,0))/INDEX($K$16:$U$16,,MATCH($E67,Years,0)), 1/R$19),0) -> 0.3357030164 | AF67: =IFERROR($H67*S67 *IF($E67<>"Nominal",INDEX($K$16:$U$16,,MATCH($F67,Years,0))/INDEX($K$16:$U$16,,MATCH($E67,Years,0)), 1/S$19),0) -> 0 | AG67: =IFERROR($H67*T67 *IF($E67<>"Nominal",INDEX($K$16:$U$16,,MATCH($F67,Years,0))/INDEX($K$16:$U$16,,MATCH($E67,Years,0)), 1/T$19),0) -> 0 | AH67: =IFERROR($H67*U67 *IF($E67<>"Nominal",INDEX($K$16:$U$16,,MATCH($F67,Years,0))/INDEX($K$16:$U$16,,MATCH($E67,Years,0)), 1/U$19),0) -> 0 | AI67: 0.3662214725 | AM67: 0 | AN67: 0 | AO67: 0 | AP67: 0 | AQ67: 0 | AR67: 0 | AS67: 1 | AT67: 0 | AU67: 0 | AW67: 0 | AX67: 0 | AY67: 0 | AZ67: 0 | BA67: 0 | BB67: 0 | BC67: 0 | BD67: 0 | BE67: 0.3662214725 | BF67: 0 | BG67: 0 | BH67: 0.3662214725 | BJ67: Communications (short life) - SCADA, network control and protection systems | BK67: SI Costs | BL67: Fault level and system parameter monitoring and power system analysis capability
A68: Alarm Management technologies | B68: Alarm Management technologies | C68: $Millions | E68: 2025 | F68: 2023 | H68: 0.6671065 | I68: SCADA, network control and protection systems | J68: Communications (short life) | L68: 0 | M68: 0 | N68: 0 | O68: 0.02702702703 | P68: 0.3243243243 | Q68: 0.3243243243 | R68: 0.3243243243 | S68: 0 | T68: 0 | U68: 0 | V68: 1 | W68: 0 | X68: =IFERROR($H68*K68 *IF($E68<>"Nominal",INDEX($K$16:$U$16,,MATCH($F68,Years,0))/INDEX($K$16:$U$16,,MATCH($E68,Years,0)), 1/K$19),0) -> 0 | Y68: =IFERROR($H68*L68 *IF($E68<>"Nominal",INDEX($K$16:$U$16,,MATCH($F68,Years,0))/INDEX($K$16:$U$16,,MATCH($E68,Years,0)), 1/L$19),0) -> 0 | Z68: =IFERROR($H68*M68 *IF($E68<>"Nominal",INDEX($K$16:$U$16,,MATCH($F68,Years,0))/INDEX($K$16:$U$16,,MATCH($E68,Years,0)), 1/M$19),0) -> 0 | AA68: =IFERROR($H68*N68 *IF($E68<>"Nominal",INDEX($K$16:$U$16,,MATCH($F68,Years,0))/INDEX($K$16:$U$16,,MATCH($E68,Years,0)), 1/N$19),0) -> 0 | AB68: =IFERROR($H68*O68 *IF($E68<>"Nominal",INDEX($K$16:$U$16,,MATCH($F68,Years,0))/INDEX($K$16:$U$16,,MATCH($E68,Years,0)), 1/O$19),0) -> 0.01701198555 | AC68: =IFERROR($H68*P68 *IF($E68<>"Nominal",INDEX($K$16:$U$16,,MATCH($F68,Years,0))/INDEX($K$16:$U$16,,MATCH($E68,Years,0)), 1/P$19),0) -> 0.2041438266 | AD68: =IFERROR($H68*Q68 *IF($E68<>"Nominal",INDEX($K$16:$U$16,,MATCH($F68,Years,0))/INDEX($K$16:$U$16,,MATCH($E68,Years,0)), 1/Q$19),0) -> 0.2041438266 | AE68: =IFERROR($H68*R68 *IF($E68<>"Nominal",INDEX($K$16:$U$16,,MATCH($F68,Years,0))/INDEX($K$16:$U$16,,MATCH($E68,Years,0)), 1/R$19),0) -> 0.2041438266 | AF68: =IFERROR($H68*S68 *IF($E68<>"Nominal",INDEX($K$16:$U$16,,MATCH($F68,Years,0))/INDEX($K$16:$U$16,,MATCH($E68,Years,0)), 1/S$19),0) -> 0 | AG68: =IFERROR($H68*T68 *IF($E68<>"Nominal",INDEX($K$16:$U$16,,MATCH($F68,Years,0))/INDEX($K$16:$U$16,,MATCH($E68,Years,0)), 1/T$19),0) -> 0 | AH68: =IFERROR($H68*U68 *IF($E68<>"Nominal",INDEX($K$16:$U$16,,MATCH($F68,Years,0))/INDEX($K$16:$U$16,,MATCH($E68,Years,0)), 1/U$19),0) -> 0 | AI68: 0.6294434654 | AM68: 0 | AN68: 0 | AO68: 0 | AP68: 0 | AQ68: 0.6486486486 | AR68: 0 | AS68: 0.3513513514 | AT68: 0 | AU68: 0 | AW68: 0 | AX68: 0 | AY68: 0 | AZ68: 0 | BA68: 0 | BB68: 0 | BC68: 0.4082876532 | BD68: 0 | BE68: 0.2211558122 | BF68: 0 | BG68: 0 | BH68: 0.6294434654 | BJ68: Communications (short life) - SCADA, network control and protection systems | BK68: SI Costs | BL68: Alarm management, visualisation and situation awareness enhancement
A69: Operator Visualisation and Situational Awareness technology | B69: Operator Visualisation and Situational Awareness technology | C69: $Millions | E69: 2025 | F69: 2023 | H69: 0.300465 | I69: SCADA, network control and protection systems | J69: Communications (short life) | L69: 0 | M69: 0 | N69: 0 | O69: 0 | P69: 0 | Q69: 0.2916666667 | R69: 0.5 | S69: 0.2083333333 | T69: 0 | U69: 0 | V69: 1 | W69: 0 | X69: =IFERROR($H69*K69 *IF($E69<>"Nominal",INDEX($K$16:$U$16,,MATCH($F69,Years,0))/INDEX($K$16:$U$16,,MATCH($E69,Years,0)), 1/K$19),0) -> 0 | Y69: =IFERROR($H69*L69 *IF($E69<>"Nominal",INDEX($K$16:$U$16,,MATCH($F69,Years,0))/INDEX($K$16:$U$16,,MATCH($E69,Years,0)), 1/L$19),0) -> 0 | Z69: =IFERROR($H69*M69 *IF($E69<>"Nominal",INDEX($K$16:$U$16,,MATCH($F69,Years,0))/INDEX($K$16:$U$16,,MATCH($E69,Years,0)), 1/M$19),0) -> 0 | AA69: =IFERROR($H69*N69 *IF($E69<>"Nominal",INDEX($K$16:$U$16,,MATCH($F69,Years,0))/INDEX($K$16:$U$16,,MATCH($E69,Years,0)), 1/N$19),0) -> 0 | AB69: =IFERROR($H69*O69 *IF($E69<>"Nominal",INDEX($K$16:$U$16,,MATCH($F69,Years,0))/INDEX($K$16:$U$16,,MATCH($E69,Years,0)), 1/O$19),0) -> 0 | AC69: =IFERROR($H69*P69 *IF($E69<>"Nominal",INDEX($K$16:$U$16,,MATCH($F69,Years,0))/INDEX($K$16:$U$16,,MATCH($E69,Years,0)), 1/P$19),0) -> 0 | AD69: =IFERROR($H69*Q69 *IF($E69<>"Nominal",INDEX($K$16:$U$16,,MATCH($F69,Years,0))/INDEX($K$16:$U$16,,MATCH($E69,Years,0)), 1/Q$19),0) -> 0.08268795386 | AE69: =IFERROR($H69*R69 *IF($E69<>"Nominal",INDEX($K$16:$U$16,,MATCH($F69,Years,0))/INDEX($K$16:$U$16,,MATCH($E69,Years,0)), 1/R$19),0) -> 0.1417507781 | AF69: =IFERROR($H69*S69 *IF($E69<>"Nominal",INDEX($K$16:$U$16,,MATCH($F69,Years,0))/INDEX($K$16:$U$16,,MATCH($E69,Years,0)), 1/S$19),0) -> 0.05906282419 | AG69: =IFERROR($H69*T69 *IF($E69<>"Nominal",INDEX($K$16:$U$16,,MATCH($F69,Years,0))/INDEX($K$16:$U$16,,MATCH($E69,Years,0)), 1/T$19),0) -> 0 | AH69: =IFERROR($H69*U69 *IF($E69<>"Nominal",INDEX($K$16:$U$16,,MATCH($F69,Years,0))/INDEX($K$16:$U$16,,MATCH($E69,Years,0)), 1/U$19),0) -> 0 | AI69: 0.2835015561 | AM69: 0 | AN69: 0 | AO69: 0 | AP69: 0 | AQ69: 0.25 | AR69: 0 | AS69: 0.75 | AT69: 0 | AU69: 0 | AW69: 0 | AX69: 0 | AY69: 0 | AZ69: 0 | BA69: 0 | BB69: 0 | BC69: 0.07087538903 | BD69: 0 | BE69: 0.2126261671 | BF69: 0 | BG69: 0 | BH69: 0.2835015561 | BJ69: Communications (short life) - SCADA, network control and protection systems | BK69: SI Costs | BL69: Alarm management, visualisation and situation awareness enhancement
A70: Training technologies | B70: Training technologies | C70: $Millions | E70: 2025 | F70: 2023 | H70: 0.317359 | I70: SCADA, network control and protection systems | J70: Communications (short life) | L70: 0 | M70: 0 | N70: 0 | O70: 0 | P70: 0.3636363636 | Q70: 0.6363636364 | R70: 0 | S70: 0 | T70: 0 | U70: 0 | V70: 1 | W70: 0 | X70: =IFERROR($H70*K70 *IF($E70<>"Nominal",INDEX($K$16:$U$16,,MATCH($F70,Years,0))/INDEX($K$16:$U$16,,MATCH($E70,Years,0)), 1/K$19),0) -> 0 | Y70: =IFERROR($H70*L70 *IF($E70<>"Nominal",INDEX($K$16:$U$16,,MATCH($F70,Years,0))/INDEX($K$16:$U$16,,MATCH($E70,Years,0)), 1/L$19),0) -> 0 | Z70: =IFERROR($H70*M70 *IF($E70<>"Nominal",INDEX($K$16:$U$16,,MATCH($F70,Years,0))/INDEX($K$16:$U$16,,MATCH($E70,Years,0)), 1/M$19),0) -> 0 | AA70: =IFERROR($H70*N70 *IF($E70<>"Nominal",INDEX($K$16:$U$16,,MATCH($F70,Years,0))/INDEX($K$16:$U$16,,MATCH($E70,Years,0)), 1/N$19),0) -> 0 | AB70: =IFERROR($H70*O70 *IF($E70<>"Nominal",INDEX($K$16:$U$16,,MATCH($F70,Years,0))/INDEX($K$16:$U$16,,MATCH($E70,Years,0)), 1/O$19),0) -> 0 | AC70: =IFERROR($H70*P70 *IF($E70<>"Nominal",INDEX($K$16:$U$16,,MATCH($F70,Years,0))/INDEX($K$16:$U$16,,MATCH($E70,Years,0)), 1/P$19),0) -> 0.1088879151 | AD70: =IFERROR($H70*Q70 *IF($E70<>"Nominal",INDEX($K$16:$U$16,,MATCH($F70,Years,0))/INDEX($K$16:$U$16,,MATCH($E70,Years,0)), 1/Q$19),0) -> 0.1905538514 | AE70: =IFERROR($H70*R70 *IF($E70<>"Nominal",INDEX($K$16:$U$16,,MATCH($F70,Years,0))/INDEX($K$16:$U$16,,MATCH($E70,Years,0)), 1/R$19),0) -> 0 | AF70: =IFERROR($H70*S70 *IF($E70<>"Nominal",INDEX($K$16:$U$16,,MATCH($F70,Years,0))/INDEX($K$16:$U$16,,MATCH($E70,Years,0)), 1/S$19),0) -> 0 | AG70: =IFERROR($H70*T70 *IF($E70<>"Nominal",INDEX($K$16:$U$16,,MATCH($F70,Years,0))/INDEX($K$16:$U$16,,MATCH($E70,Years,0)), 1/T$19),0) -> 0 | AH70: =IFERROR($H70*U70 *IF($E70<>"Nominal",INDEX($K$16:$U$16,,MATCH($F70,Years,0))/INDEX($K$16:$U$16,,MATCH($E70,Years,0)), 1/U$19),0) -> 0 | AI70: 0.2994417664 | AM70: 0 | AN70: 0 | AO70: 0 | AP70: 0 | AQ70: 1 | AR70: 0 | AS70: 0 | AT70: 0 | AU70: 0 | AW70: 0 | AX70: 0 | AY70: 0 | AZ70: 0 | BA70: 0 | BB70: 0 | BC70: 0.2994417664 | BD70: 0 | BE70: 0 | BF70: 0 | BG70: 0 | BH70: 0.2994417664 | BJ70: Communications (short life) - SCADA, network control and protection systems | BK70: SI Costs | BL70: Training technologies, operational document management system and operational planning systems
A71: Operational Documentation Management System | B71: Operational Documentation Management System | C71: $Millions | E71: 2025 | F71: 2023 | H71: 0.0632505 | I71: Other | J71: Business IT | L71: 0 | M71: 0 | N71: 0 | O71: 0.09090909091 | P71: 0.9090909091 | Q71: 0 | R71: 0 | S71: 0 | T71: 0 | U71: 0 | V71: 1 | W71: 0 | X71: =IFERROR($H71*K71 *IF($E71<>"Nominal",INDEX($K$16:$U$16,,MATCH($F71,Years,0))/INDEX($K$16:$U$16,,MATCH($E71,Years,0)), 1/K$19),0) -> 0 | Y71: =IFERROR($H71*L71 *IF($E71<>"Nominal",INDEX($K$16:$U$16,,MATCH($F71,Years,0))/INDEX($K$16:$U$16,,MATCH($E71,Years,0)), 1/L$19),0) -> 0 | Z71: =IFERROR($H71*M71 *IF($E71<>"Nominal",INDEX($K$16:$U$16,,MATCH($F71,Years,0))/INDEX($K$16:$U$16,,MATCH($E71,Years,0)), 1/M$19),0) -> 0 | AA71: =IFERROR($H71*N71 *IF($E71<>"Nominal",INDEX($K$16:$U$16,,MATCH($F71,Years,0))/INDEX($K$16:$U$16,,MATCH($E71,Years,0)), 1/N$19),0) -> 0 | AB71: =IFERROR($H71*O71 *IF($E71<>"Nominal",INDEX($K$16:$U$16,,MATCH($F71,Years,0))/INDEX($K$16:$U$16,,MATCH($E71,Years,0)), 1/O$19),0) -> 0.005425413389 | AC71: =IFERROR($H71*P71 *IF($E71<>"Nominal",INDEX($K$16:$U$16,,MATCH($F71,Years,0))/INDEX($K$16:$U$16,,MATCH($E71,Years,0)), 1/P$19),0) -> 0.05425413389 | AD71: =IFERROR($H71*Q71 *IF($E71<>"Nominal",INDEX($K$16:$U$16,,MATCH($F71,Years,0))/INDEX($K$16:$U$16,,MATCH($E71,Years,0)), 1/Q$19),0) -> 0 | AE71: =IFERROR($H71*R71 *IF($E71<>"Nominal",INDEX($K$16:$U$16,,MATCH($F71,Years,0))/INDEX($K$16:$U$16,,MATCH($E71,Years,0)), 1/R$19),0) -> 0 | AF71: =IFERROR($H71*S71 *IF($E71<>"Nominal",INDEX($K$16:$U$16,,MATCH($F71,Years,0))/INDEX($K$16:$U$16,,MATCH($E71,Years,0)), 1/S$19),0) -> 0 | AG71: =IFERROR($H71*T71 *IF($E71<>"Nominal",INDEX($K$16:$U$16,,MATCH($F71,Years,0))/INDEX($K$16:$U$16,,MATCH($E71,Years,0)), 1/T$19),0) -> 0 | AH71: =IFERROR($H71*U71 *IF($E71<>"Nominal",INDEX($K$16:$U$16,,MATCH($F71,Years,0))/INDEX($K$16:$U$16,,MATCH($E71,Years,0)), 1/U$19),0) -> 0 | AI71: 0.05967954728 | AM71: 0 | AN71: 0 | AO71: 0 | AP71: 1 | AQ71: 0 | AR71: 0 | AS71: 0 | AT71: 0 | AU71: 0 | AW71: 0 | AX71: 0 | AY71: 0 | AZ71: 0 | BA71: 0 | BB71: 0.05967954728 | BC71: 0 | BD71: 0 | BE71: 0 | BF71: 0 | BG71: 0 | BH71: 0.05967954728 | BJ71: Business IT - Other | BK71: SI Costs | BL71: Training technologies, operational document management system and operational planning systems
A72: Operational Planning Systems | B72: Operational Planning Systems | C72: $Millions | E72: 2025 | F72: 2023 | H72: 0.0748875 | I72: Other | J72: Business IT | L72: 0 | M72: 0 | N72: 0 | O72: 0.6363636364 | P72: 0.3636363636 | Q72: 0 | R72: 0 | S72: 0 | T72: 0 | U72: 0 | V72: 1 | W72: 0 | X72: =IFERROR($H72*K72 *IF($E72<>"Nominal",INDEX($K$16:$U$16,,MATCH($F72,Years,0))/INDEX($K$16:$U$16,,MATCH($E72,Years,0)), 1/K$19),0) -> 0 | Y72: =IFERROR($H72*L72 *IF($E72<>"Nominal",INDEX($K$16:$U$16,,MATCH($F72,Years,0))/INDEX($K$16:$U$16,,MATCH($E72,Years,0)), 1/L$19),0) -> 0 | Z72: =IFERROR($H72*M72 *IF($E72<>"Nominal",INDEX($K$16:$U$16,,MATCH($F72,Years,0))/INDEX($K$16:$U$16,,MATCH($E72,Years,0)), 1/M$19),0) -> 0 | AA72: =IFERROR($H72*N72 *IF($E72<>"Nominal",INDEX($K$16:$U$16,,MATCH($F72,Years,0))/INDEX($K$16:$U$16,,MATCH($E72,Years,0)), 1/N$19),0) -> 0 | AB72: =IFERROR($H72*O72 *IF($E72<>"Nominal",INDEX($K$16:$U$16,,MATCH($F72,Years,0))/INDEX($K$16:$U$16,,MATCH($E72,Years,0)), 1/O$19),0) -> 0.04496517049 | AC72: =IFERROR($H72*P72 *IF($E72<>"Nominal",INDEX($K$16:$U$16,,MATCH($F72,Years,0))/INDEX($K$16:$U$16,,MATCH($E72,Years,0)), 1/P$19),0) -> 0.02569438314 | AD72: =IFERROR($H72*Q72 *IF($E72<>"Nominal",INDEX($K$16:$U$16,,MATCH($F72,Years,0))/INDEX($K$16:$U$16,,MATCH($E72,Years,0)), 1/Q$19),0) -> 0 | AE72: =IFERROR($H72*R72 *IF($E72<>"Nominal",INDEX($K$16:$U$16,,MATCH($F72,Years,0))/INDEX($K$16:$U$16,,MATCH($E72,Years,0)), 1/R$19),0) -> 0 | AF72: =IFERROR($H72*S72 *IF($E72<>"Nominal",INDEX($K$16:$U$16,,MATCH($F72,Years,0))/INDEX($K$16:$U$16,,MATCH($E72,Years,0)), 1/S$19),0) -> 0 | AG72: =IFERROR($H72*T72 *IF($E72<>"Nominal",INDEX($K$16:$U$16,,MATCH($F72,Years,0))/INDEX($K$16:$U$16,,MATCH($E72,Years,0)), 1/T$19),0) -> 0 | AH72: =IFERROR($H72*U72 *IF($E72<>"Nominal",INDEX($K$16:$U$16,,MATCH($F72,Years,0))/INDEX($K$16:$U$16,,MATCH($E72,Years,0)), 1/U$19),0) -> 0 | AI72: 0.07065955363 | AM72: 0 | AN72: 0 | AO72: 0 | AP72: 1 | AQ72: 0 | AR72: 0 | AS72: 0 | AT72: 0 | AU72: 0 | AW72: 0 | AX72: 0 | AY72: 0 | AZ72: 0 | BA72: 0 | BB72: 0.07065955363 | BC72: 0 | BD72: 0 | BE72: 0 | BF72: 0 | BG72: 0 | BH72: 0.07065955363 | BJ72: Business IT - Other | BK72: SI Costs | BL72: Training technologies, operational document management system and operational planning systems
A73: C-i-C | B73: Operational Planning Systems | C73: $Millions | E73: 2025 | F73: 2023 | H73: 0.9 | I73: Other | J73: Business IT | L73: 0 | M73: 0 | N73: 0 | O73: 1 | P73: 0 | Q73: 0 | R73: 0 | S73: 0 | T73: 0 | U73: 0 | V73: 1 | W73: 0 | X73: =IFERROR($H73*K73 *IF($E73<>"Nominal",INDEX($K$16:$U$16,,MATCH($F73,Years,0))/INDEX($K$16:$U$16,,MATCH($E73,Years,0)), 1/K$19),0) -> 0 | Y73: =IFERROR($H73*L73 *IF($E73<>"Nominal",INDEX($K$16:$U$16,,MATCH($F73,Years,0))/INDEX($K$16:$U$16,,MATCH($E73,Years,0)), 1/L$19),0) -> 0 | Z73: =IFERROR($H73*M73 *IF($E73<>"Nominal",INDEX($K$16:$U$16,,MATCH($F73,Years,0))/INDEX($K$16:$U$16,,MATCH($E73,Years,0)), 1/M$19),0) -> 0 | AA73: =IFERROR($H73*N73 *IF($E73<>"Nominal",INDEX($K$16:$U$16,,MATCH($F73,Years,0))/INDEX($K$16:$U$16,,MATCH($E73,Years,0)), 1/N$19),0) -> 0 | AB73: =IFERROR($H73*O73 *IF($E73<>"Nominal",INDEX($K$16:$U$16,,MATCH($F73,Years,0))/INDEX($K$16:$U$16,,MATCH($E73,Years,0)), 1/O$19),0) -> 0.8491884263 | AC73: =IFERROR($H73*P73 *IF($E73<>"Nominal",INDEX($K$16:$U$16,,MATCH($F73,Years,0))/INDEX($K$16:$U$16,,MATCH($E73,Years,0)), 1/P$19),0) -> 0 | AD73: =IFERROR($H73*Q73 *IF($E73<>"Nominal",INDEX($K$16:$U$16,,MATCH($F73,Years,0))/INDEX($K$16:$U$16,,MATCH($E73,Years,0)), 1/Q$19),0) -> 0 | AE73: =IFERROR($H73*R73 *IF($E73<>"Nominal",INDEX($K$16:$U$16,,MATCH($F73,Years,0))/INDEX($K$16:$U$16,,MATCH($E73,Years,0)), 1/R$19),0) -> 0 | AF73: =IFERROR($H73*S73 *IF($E73<>"Nominal",INDEX($K$16:$U$16,,MATCH($F73,Years,0))/INDEX($K$16:$U$16,,MATCH($E73,Years,0)), 1/S$19),0) -> 0 | AG73: =IFERROR($H73*T73 *IF($E73<>"Nominal",INDEX($K$16:$U$16,,MATCH($F73,Years,0))/INDEX($K$16:$U$16,,MATCH($E73,Years,0)), 1/T$19),0) -> 0 | AH73: =IFERROR($H73*U73 *IF($E73<>"Nominal",INDEX($K$16:$U$16,,MATCH($F73,Years,0))/INDEX($K$16:$U$16,,MATCH($E73,Years,0)), 1/U$19),0) -> 0 | AI73: 0.8491884263 | AM73: 0 | AN73: 0 | AO73: 0 | AP73: 1 | AQ73: 0 | AR73: 0 | AS73: 0 | AT73: 0 | AU73: 0 | AW73: 0 | AX73: 0 | AY73: 0 | AZ73: 0 | BA73: 0 | BB73: 0.8491884263 | BC73: 0 | BD73: 0 | BE73: 0 | BF73: 0 | BG73: 0 | BH73: 0.8491884263 | BJ73: Business IT - Other | BK73: Non SI Costs | BL73: Training technologies, operational document management system and operational planning systems
A74: C-i-C | B74: SCADA/AEMS | C74: $Millions | E74: 2025 | F74: 2023 | H74: 0.55 | I74: SCADA, network control and protection systems | J74: Business IT | L74: 0 | M74: 0 | N74: 0 | O74: 1 | P74: 0 | Q74: 0 | R74: 0 | S74: 0 | T74: 0 | U74: 0 | V74: 1 | W74: 0 | X74: =IFERROR($H74*K74 *IF($E74<>"Nominal",INDEX($K$16:$U$16,,MATCH($F74,Years,0))/INDEX($K$16:$U$16,,MATCH($E74,Years,0)), 1/K$19),0) -> 0 | Y74: =IFERROR($H74*L74 *IF($E74<>"Nominal",INDEX($K$16:$U$16,,MATCH($F74,Years,0))/INDEX($K$16:$U$16,,MATCH($E74,Years,0)), 1/L$19),0) -> 0 | Z74: =IFERROR($H74*M74 *IF($E74<>"Nominal",INDEX($K$16:$U$16,,MATCH($F74,Years,0))/INDEX($K$16:$U$16,,MATCH($E74,Years,0)), 1/M$19),0) -> 0 | AA74: =IFERROR($H74*N74 *IF($E74<>"Nominal",INDEX($K$16:$U$16,,MATCH($F74,Years,0))/INDEX($K$16:$U$16,,MATCH($E74,Years,0)), 1/N$19),0) -> 0 | AB74: =IFERROR($H74*O74 *IF($E74<>"Nominal",INDEX($K$16:$U$16,,MATCH($F74,Years,0))/INDEX($K$16:$U$16,,MATCH($E74,Years,0)), 1/O$19),0) -> 0.5189484827 | AC74: =IFERROR($H74*P74 *IF($E74<>"Nominal",INDEX($K$16:$U$16,,MATCH($F74,Years,0))/INDEX($K$16:$U$16,,MATCH($E74,Years,0)), 1/P$19),0) -> 0 | AD74: =IFERROR($H74*Q74 *IF($E74<>"Nominal",INDEX($K$16:$U$16,,MATCH($F74,Years,0))/INDEX($K$16:$U$16,,MATCH($E74,Years,0)), 1/Q$19),0) -> 0 | AE74: =IFERROR($H74*R74 *IF($E74<>"Nominal",INDEX($K$16:$U$16,,MATCH($F74,Years,0))/INDEX($K$16:$U$16,,MATCH($E74,Years,0)), 1/R$19),0) -> 0 | AF74: =IFERROR($H74*S74 *IF($E74<>"Nominal",INDEX($K$16:$U$16,,MATCH($F74,Years,0))/INDEX($K$16:$U$16,,MATCH($E74,Years,0)), 1/S$19),0) -> 0 | AG74: =IFERROR($H74*T74 *IF($E74<>"Nominal",INDEX($K$16:$U$16,,MATCH($F74,Years,0))/INDEX($K$16:$U$16,,MATCH($E74,Years,0)), 1/T$19),0) -> 0 | AH74: =IFERROR($H74*U74 *IF($E74<>"Nominal",INDEX($K$16:$U$16,,MATCH($F74,Years,0))/INDEX($K$16:$U$16,,MATCH($E74,Years,0)), 1/U$19),0) -> 0 | AI74: 0.5189484827 | AM74: 0 | AN74: 0 | AO74: 0 | AP74: 1 | AQ74: 0 | AR74: 0 | AS74: 0 | AT74: 0 | AU74: 0 | AW74: 0 | AX74: 0 | AY74: 0 | AZ74: 0 | BA74: 0 | BB74: 0.5189484827 | BC74: 0 | BD74: 0 | BE74: 0 | BF74: 0 | BG74: 0 | BH74: 0.5189484827 | BJ74: Business IT - SCADA, network control and protection systems | BK74: Non SI Costs | BL74: SCADA/AEMS system
A75: C-i-C | B75: SCADA/AEMS | C75: $Millions | E75: 2025 | F75: 2023 | H75: 0.2775 | I75: SCADA, network control and protection systems | J75: Business IT | L75: 0 | M75: 0 | N75: 0 | O75: 1 | P75: 0 | Q75: 0 | R75: 0 | S75: 0 | T75: 0 | U75: 0 | V75: 1 | W75: 0 | X75: =IFERROR($H75*K75 *IF($E75<>"Nominal",INDEX($K$16:$U$16,,MATCH($F75,Years,0))/INDEX($K$16:$U$16,,MATCH($E75,Years,0)), 1/K$19),0) -> 0 | Y75: =IFERROR($H75*L75 *IF($E75<>"Nominal",INDEX($K$16:$U$16,,MATCH($F75,Years,0))/INDEX($K$16:$U$16,,MATCH($E75,Years,0)), 1/L$19),0) -> 0 | Z75: =IFERROR($H75*M75 *IF($E75<>"Nominal",INDEX($K$16:$U$16,,MATCH($F75,Years,0))/INDEX($K$16:$U$16,,MATCH($E75,Years,0)), 1/M$19),0) -> 0 | AA75: =IFERROR($H75*N75 *IF($E75<>"Nominal",INDEX($K$16:$U$16,,MATCH($F75,Years,0))/INDEX($K$16:$U$16,,MATCH($E75,Years,0)), 1/N$19),0) -> 0 | AB75: =IFERROR($H75*O75 *IF($E75<>"Nominal",INDEX($K$16:$U$16,,MATCH($F75,Years,0))/INDEX($K$16:$U$16,,MATCH($E75,Years,0)), 1/O$19),0) -> 0.2618330981 | AC75: =IFERROR($H75*P75 *IF($E75<>"Nominal",INDEX($K$16:$U$16,,MATCH($F75,Years,0))/INDEX($K$16:$U$16,,MATCH($E75,Years,0)), 1/P$19),0) -> 0 | AD75: =IFERROR($H75*Q75 *IF($E75<>"Nominal",INDEX($K$16:$U$16,,MATCH($F75,Years,0))/INDEX($K$16:$U$16,,MATCH($E75,Years,0)), 1/Q$19),0) -> 0 | AE75: =IFERROR($H75*R75 *IF($E75<>"Nominal",INDEX($K$16:$U$16,,MATCH($F75,Years,0))/INDEX($K$16:$U$16,,MATCH($E75,Years,0)), 1/R$19),0) -> 0 | AF75: =IFERROR($H75*S75 *IF($E75<>"Nominal",INDEX($K$16:$U$16,,MATCH($F75,Years,0))/INDEX($K$16:$U$16,,MATCH($E75,Years,0)), 1/S$19),0) -> 0 | AG75: =IFERROR($H75*T75 *IF($E75<>"Nominal",INDEX($K$16:$U$16,,MATCH($F75,Years,0))/INDEX($K$16:$U$16,,MATCH($E75,Years,0)), 1/T$19),0) -> 0 | AH75: =IFERROR($H75*U75 *IF($E75<>"Nominal",INDEX($K$16:$U$16,,MATCH($F75,Years,0))/INDEX($K$16:$U$16,,MATCH($E75,Years,0)), 1/U$19),0) -> 0 | AI75: 0.2618330981 | AM75: 0 | AN75: 0 | AO75: 0 | AP75: 1 | AQ75: 0 | AR75: 0 | AS75: 0 | AT75: 0 | AU75: 0 | AW75: 0 | AX75: 0 | AY75: 0 | AZ75: 0 | BA75: 0 | BB75: 0.2618330981 | BC75: 0 | BD75: 0 | BE75: 0 | BF75: 0 | BG75: 0 | BH75: 0.2618330981 | BJ75: Business IT - SCADA, network control and protection systems | BK75: Non SI Costs | BL75: SCADA/AEMS system
A76: C-i-C | B76: SCADA/AEMS | C76: $Millions | E76: 2025 | F76: 2023 | H76: 0.15 | I76: SCADA, network control and protection systems | J76: Business IT | L76: 0 | M76: 0 | N76: 0 | O76: 1 | P76: 0 | Q76: 0 | R76: 0 | S76: 0 | T76: 0 | U76: 0 | V76: 1 | W76: 0 | X76: =IFERROR($H76*K76 *IF($E76<>"Nominal",INDEX($K$16:$U$16,,MATCH($F76,Years,0))/INDEX($K$16:$U$16,,MATCH($E76,Years,0)), 1/K$19),0) -> 0 | Y76: =IFERROR($H76*L76 *IF($E76<>"Nominal",INDEX($K$16:$U$16,,MATCH($F76,Years,0))/INDEX($K$16:$U$16,,MATCH($E76,Years,0)), 1/L$19),0) -> 0 | Z76: =IFERROR($H76*M76 *IF($E76<>"Nominal",INDEX($K$16:$U$16,,MATCH($F76,Years,0))/INDEX($K$16:$U$16,,MATCH($E76,Years,0)), 1/M$19),0) -> 0 | AA76: =IFERROR($H76*N76 *IF($E76<>"Nominal",INDEX($K$16:$U$16,,MATCH($F76,Years,0))/INDEX($K$16:$U$16,,MATCH($E76,Years,0)), 1/N$19),0) -> 0 | AB76: =IFERROR($H76*O76 *IF($E76<>"Nominal",INDEX($K$16:$U$16,,MATCH($F76,Years,0))/INDEX($K$16:$U$16,,MATCH($E76,Years,0)), 1/O$19),0) -> 0.1415314044 | AC76: =IFERROR($H76*P76 *IF($E76<>"Nominal",INDEX($K$16:$U$16,,MATCH($F76,Years,0))/INDEX($K$16:$U$16,,MATCH($E76,Years,0)), 1/P$19),0) -> 0 | AD76: =IFERROR($H76*Q76 *IF($E76<>"Nominal",INDEX($K$16:$U$16,,MATCH($F76,Years,0))/INDEX($K$16:$U$16,,MATCH($E76,Years,0)), 1/Q$19),0) -> 0 | AE76: =IFERROR($H76*R76 *IF($E76<>"Nominal",INDEX($K$16:$U$16,,MATCH($F76,Years,0))/INDEX($K$16:$U$16,,MATCH($E76,Years,0)), 1/R$19),0) -> 0 | AF76: =IFERROR($H76*S76 *IF($E76<>"Nominal",INDEX($K$16:$U$16,,MATCH($F76,Years,0))/INDEX($K$16:$U$16,,MATCH($E76,Years,0)), 1/S$19),0) -> 0 | AG76: =IFERROR($H76*T76 *IF($E76<>"Nominal",INDEX($K$16:$U$16,,MATCH($F76,Years,0))/INDEX($K$16:$U$16,,MATCH($E76,Years,0)), 1/T$19),0) -> 0 | AH76: =IFERROR($H76*U76 *IF($E76<>"Nominal",INDEX($K$16:$U$16,,MATCH($F76,Years,0))/INDEX($K$16:$U$16,,MATCH($E76,Years,0)), 1/U$19),0) -> 0 | AI76: 0.1415314044 | AM76: 0 | AN76: 0 | AO76: 0 | AP76: 1 | AQ76: 0 | AR76: 0 | AS76: 0 | AT76: 0 | AU76: 0 | AW76: 0 | AX76: 0 | AY76: 0 | AZ76: 0 | BA76: 0 | BB76: 0.1415314044 | BC76: 0 | BD76: 0 | BE76: 0 | BF76: 0 | BG76: 0 | BH76: 0.1415314044 | BJ76: Business IT - SCADA, network control and protection systems | BK76: Non SI Costs | BL76: SCADA/AEMS system
A77: C-i-C | B77: SCADA/AEMS | C77: $Millions | E77: 2025 | F77: 2023 | H77: 0.7 | I77: SCADA, network control and protection systems | J77: Business IT | L77: 0 | M77: 0 | N77: 0 | O77: 1 | P77: 0 | Q77: 0 | R77: 0 | S77: 0 | T77: 0 | U77: 0 | V77: 1 | W77: 0 | X77: =IFERROR($H77*K77 *IF($E77<>"Nominal",INDEX($K$16:$U$16,,MATCH($F77,Years,0))/INDEX($K$16:$U$16,,MATCH($E77,Years,0)), 1/K$19),0) -> 0 | Y77: =IFERROR($H77*L77 *IF($E77<>"Nominal",INDEX($K$16:$U$16,,MATCH($F77,Years,0))/INDEX($K$16:$U$16,,MATCH($E77,Years,0)), 1/L$19),0) -> 0 | Z77: =IFERROR($H77*M77 *IF($E77<>"Nominal",INDEX($K$16:$U$16,,MATCH($F77,Years,0))/INDEX($K$16:$U$16,,MATCH($E77,Years,0)), 1/M$19),0) -> 0 | AA77: =IFERROR($H77*N77 *IF($E77<>"Nominal",INDEX($K$16:$U$16,,MATCH($F77,Years,0))/INDEX($K$16:$U$16,,MATCH($E77,Years,0)), 1/N$19),0) -> 0 | AB77: =IFERROR($H77*O77 *IF($E77<>"Nominal",INDEX($K$16:$U$16,,MATCH($F77,Years,0))/INDEX($K$16:$U$16,,MATCH($E77,Years,0)), 1/O$19),0) -> 0.6604798871 | AC77: =IFERROR($H77*P77 *IF($E77<>"Nominal",INDEX($K$16:$U$16,,MATCH($F77,Years,0))/INDEX($K$16:$U$16,,MATCH($E77,Years,0)), 1/P$19),0) -> 0 | AD77: =IFERROR($H77*Q77 *IF($E77<>"Nominal",INDEX($K$16:$U$16,,MATCH($F77,Years,0))/INDEX($K$16:$U$16,,MATCH($E77,Years,0)), 1/Q$19),0) -> 0 | AE77: =IFERROR($H77*R77 *IF($E77<>"Nominal",INDEX($K$16:$U$16,,MATCH($F77,Years,0))/INDEX($K$16:$U$16,,MATCH($E77,Years,0)), 1/R$19),0) -> 0 | AF77: =IFERROR($H77*S77 *IF($E77<>"Nominal",INDEX($K$16:$U$16,,MATCH($F77,Years,0))/INDEX($K$16:$U$16,,MATCH($E77,Years,0)), 1/S$19),0) -> 0 | AG77: =IFERROR($H77*T77 *IF($E77<>"Nominal",INDEX($K$16:$U$16,,MATCH($F77,Years,0))/INDEX($K$16:$U$16,,MATCH($E77,Years,0)), 1/T$19),0) -> 0 | AH77: =IFERROR($H77*U77 *IF($E77<>"Nominal",INDEX($K$16:$U$16,,MATCH($F77,Years,0))/INDEX($K$16:$U$16,,MATCH($E77,Years,0)), 1/U$19),0) -> 0 | AI77: 0.6604798871 | AM77: 0 | AN77: 0 | AO77: 0 | AP77: 1 | AQ77: 0 | AR77: 0 | AS77: 0 | AT77: 0 | AU77: 0 | AW77: 0 | AX77: 0 | AY77: 0 | AZ77: 0 | BA77: 0 | BB77: 0.6604798871 | BC77: 0 | BD77: 0 | BE77: 0 | BF77: 0 | BG77: 0 | BH77: 0.6604798871 | BJ77: Business IT - SCADA, network control and protection systems | BK77: Non SI Costs | BL77: SCADA/AEMS system
A78: C-i-C | B78: SCADA/AEMS | C78: $Millions | E78: 2025 | F78: 2023 | H78: 0.315 | I78: SCADA, network control and protection systems | J78: Business IT | L78: 0 | M78: 0 | N78: 0 | O78: 1 | P78: 0 | Q78: 0 | R78: 0 | S78: 0 | T78: 0 | U78: 0 | V78: 1 | W78: 0 | X78: =IFERROR($H78*K78 *IF($E78<>"Nominal",INDEX($K$16:$U$16,,MATCH($F78,Years,0))/INDEX($K$16:$U$16,,MATCH($E78,Years,0)), 1/K$19),0) -> 0 | Y78: =IFERROR($H78*L78 *IF($E78<>"Nominal",INDEX($K$16:$U$16,,MATCH($F78,Years,0))/INDEX($K$16:$U$16,,MATCH($E78,Years,0)), 1/L$19),0) -> 0 | Z78: =IFERROR($H78*M78 *IF($E78<>"Nominal",INDEX($K$16:$U$16,,MATCH($F78,Years,0))/INDEX($K$16:$U$16,,MATCH($E78,Years,0)), 1/M$19),0) -> 0 | AA78: =IFERROR($H78*N78 *IF($E78<>"Nominal",INDEX($K$16:$U$16,,MATCH($F78,Years,0))/INDEX($K$16:$U$16,,MATCH($E78,Years,0)), 1/N$19),0) -> 0 | AB78: =IFERROR($H78*O78 *IF($E78<>"Nominal",INDEX($K$16:$U$16,,MATCH($F78,Years,0))/INDEX($K$16:$U$16,,MATCH($E78,Years,0)), 1/O$19),0) -> 0.2972159492 | AC78: =IFERROR($H78*P78 *IF($E78<>"Nominal",INDEX($K$16:$U$16,,MATCH($F78,Years,0))/INDEX($K$16:$U$16,,MATCH($E78,Years,0)), 1/P$19),0) -> 0 | AD78: =IFERROR($H78*Q78 *IF($E78<>"Nominal",INDEX($K$16:$U$16,,MATCH($F78,Years,0))/INDEX($K$16:$U$16,,MATCH($E78,Years,0)), 1/Q$19),0) -> 0 | AE78: =IFERROR($H78*R78 *IF($E78<>"Nominal",INDEX($K$16:$U$16,,MATCH($F78,Years,0))/INDEX($K$16:$U$16,,MATCH($E78,Years,0)), 1/R$19),0) -> 0 | AF78: =IFERROR($H78*S78 *IF($E78<>"Nominal",INDEX($K$16:$U$16,,MATCH($F78,Years,0))/INDEX($K$16:$U$16,,MATCH($E78,Years,0)), 1/S$19),0) -> 0 | AG78: =IFERROR($H78*T78 *IF($E78<>"Nominal",INDEX($K$16:$U$16,,MATCH($F78,Years,0))/INDEX($K$16:$U$16,,MATCH($E78,Years,0)), 1/T$19),0) -> 0 | AH78: =IFERROR($H78*U78 *IF($E78<>"Nominal",INDEX($K$16:$U$16,,MATCH($F78,Years,0))/INDEX($K$16:$U$16,,MATCH($E78,Years,0)), 1/U$19),0) -> 0 | AI78: 0.2972159492 | AM78: 0 | AN78: 0 | AO78: 0 | AP78: 1 | AQ78: 0 | AR78: 0 | AS78: 0 | AT78: 0 | AU78: 0 | AW78: 0 | AX78: 0 | AY78: 0 | AZ78: 0 | BA78: 0 | BB78: 0.2972159492 | BC78: 0 | BD78: 0 | BE78: 0 | BF78: 0 | BG78: 0 | BH78: 0.2972159492 | BJ78: Business IT - SCADA, network control and protection systems | BK78: Non SI Costs | BL78: SCADA/AEMS system
A79: C-i-C | B79: SCADA/AEMS | C79: $Millions | E79: 2025 | F79: 2023 | H79: 0.46 | I79: SCADA, network control and protection systems | J79: Business IT | L79: 0 | M79: 0 | N79: 0 | O79: 1 | P79: 0 | Q79: 0 | R79: 0 | S79: 0 | T79: 0 | U79: 0 | V79: 1 | W79: 0 | X79: =IFERROR($H79*K79 *IF($E79<>"Nominal",INDEX($K$16:$U$16,,MATCH($F79,Years,0))/INDEX($K$16:$U$16,,MATCH($E79,Years,0)), 1/K$19),0) -> 0 | Y79: =IFERROR($H79*L79 *IF($E79<>"Nominal",INDEX($K$16:$U$16,,MATCH($F79,Years,0))/INDEX($K$16:$U$16,,MATCH($E79,Years,0)), 1/L$19),0) -> 0 | Z79: =IFERROR($H79*M79 *IF($E79<>"Nominal",INDEX($K$16:$U$16,,MATCH($F79,Years,0))/INDEX($K$16:$U$16,,MATCH($E79,Years,0)), 1/M$19),0) -> 0 | AA79: =IFERROR($H79*N79 *IF($E79<>"Nominal",INDEX($K$16:$U$16,,MATCH($F79,Years,0))/INDEX($K$16:$U$16,,MATCH($E79,Years,0)), 1/N$19),0) -> 0 | AB79: =IFERROR($H79*O79 *IF($E79<>"Nominal",INDEX($K$16:$U$16,,MATCH($F79,Years,0))/INDEX($K$16:$U$16,,MATCH($E79,Years,0)), 1/O$19),0) -> 0.4340296401 | AC79: =IFERROR($H79*P79 *IF($E79<>"Nominal",INDEX($K$16:$U$16,,MATCH($F79,Years,0))/INDEX($K$16:$U$16,,MATCH($E79,Years,0)), 1/P$19),0) -> 0 | AD79: =IFERROR($H79*Q79 *IF($E79<>"Nominal",INDEX($K$16:$U$16,,MATCH($F79,Years,0))/INDEX($K$16:$U$16,,MATCH($E79,Years,0)), 1/Q$19),0) -> 0 | AE79: =IFERROR($H79*R79 *IF($E79<>"Nominal",INDEX($K$16:$U$16,,MATCH($F79,Years,0))/INDEX($K$16:$U$16,,MATCH($E79,Years,0)), 1/R$19),0) -> 0 | AF79: =IFERROR($H79*S79 *IF($E79<>"Nominal",INDEX($K$16:$U$16,,MATCH($F79,Years,0))/INDEX($K$16:$U$16,,MATCH($E79,Years,0)), 1/S$19),0) -> 0 | AG79: =IFERROR($H79*T79 *IF($E79<>"Nominal",INDEX($K$16:$U$16,,MATCH($F79,Years,0))/INDEX($K$16:$U$16,,MATCH($E79,Years,0)), 1/T$19),0) -> 0 | AH79: =IFERROR($H79*U79 *IF($E79<>"Nominal",INDEX($K$16:$U$16,,MATCH($F79,Years,0))/INDEX($K$16:$U$16,,MATCH($E79,Years,0)), 1/U$19),0) -> 0 | AI79: 0.4340296401 | AM79: 0 | AN79: 0 | AO79: 0 | AP79: 1 | AQ79: 0 | AR79: 0 | AS79: 0 | AT79: 0 | AU79: 0 | AW79: 0 | AX79: 0 | AY79: 0 | AZ79: 0 | BA79: 0 | BB79: 0.4340296401 | BC79: 0 | BD79: 0 | BE79: 0 | BF79: 0 | BG79: 0 | BH79: 0.4340296401 | BJ79: Business IT - SCADA, network control and protection systems | BK79: Non SI Costs | BL79: SCADA/AEMS system
A80: C-i-C | B80: SCADA/AEMS | C80: $Millions | E80: 2025 | F80: 2023 | H80: 0.14 | I80: SCADA, network control and protection systems | J80: Business IT | L80: 0 | M80: 0 | N80: 0 | O80: 1 | P80: 0 | Q80: 0 | R80: 0 | S80: 0 | T80: 0 | U80: 0 | V80: 1 | W80: 0 | X80: =IFERROR($H80*K80 *IF($E80<>"Nominal",INDEX($K$16:$U$16,,MATCH($F80,Years,0))/INDEX($K$16:$U$16,,MATCH($E80,Years,0)), 1/K$19),0) -> 0 | Y80: =IFERROR($H80*L80 *IF($E80<>"Nominal",INDEX($K$16:$U$16,,MATCH($F80,Years,0))/INDEX($K$16:$U$16,,MATCH($E80,Years,0)), 1/L$19),0) -> 0 | Z80: =IFERROR($H80*M80 *IF($E80<>"Nominal",INDEX($K$16:$U$16,,MATCH($F80,Years,0))/INDEX($K$16:$U$16,,MATCH($E80,Years,0)), 1/M$19),0) -> 0 | AA80: =IFERROR($H80*N80 *IF($E80<>"Nominal",INDEX($K$16:$U$16,,MATCH($F80,Years,0))/INDEX($K$16:$U$16,,MATCH($E80,Years,0)), 1/N$19),0) -> 0 | AB80: =IFERROR($H80*O80 *IF($E80<>"Nominal",INDEX($K$16:$U$16,,MATCH($F80,Years,0))/INDEX($K$16:$U$16,,MATCH($E80,Years,0)), 1/O$19),0) -> 0.1320959774 | AC80: =IFERROR($H80*P80 *IF($E80<>"Nominal",INDEX($K$16:$U$16,,MATCH($F80,Years,0))/INDEX($K$16:$U$16,,MATCH($E80,Years,0)), 1/P$19),0) -> 0 | AD80: =IFERROR($H80*Q80 *IF($E80<>"Nominal",INDEX($K$16:$U$16,,MATCH($F80,Years,0))/INDEX($K$16:$U$16,,MATCH($E80,Years,0)), 1/Q$19),0) -> 0 | AE80: =IFERROR($H80*R80 *IF($E80<>"Nominal",INDEX($K$16:$U$16,,MATCH($F80,Years,0))/INDEX($K$16:$U$16,,MATCH($E80,Years,0)), 1/R$19),0) -> 0 | AF80: =IFERROR($H80*S80 *IF($E80<>"Nominal",INDEX($K$16:$U$16,,MATCH($F80,Years,0))/INDEX($K$16:$U$16,,MATCH($E80,Years,0)), 1/S$19),0) -> 0 | AG80: =IFERROR($H80*T80 *IF($E80<>"Nominal",INDEX($K$16:$U$16,,MATCH($F80,Years,0))/INDEX($K$16:$U$16,,MATCH($E80,Years,0)), 1/T$19),0) -> 0 | AH80: =IFERROR($H80*U80 *IF($E80<>"Nominal",INDEX($K$16:$U$16,,MATCH($F80,Years,0))/INDEX($K$16:$U$16,,MATCH($E80,Years,0)), 1/U$19),0) -> 0 | AI80: 0.1320959774 | AM80: 0 | AN80: 0 | AO80: 0 | AP80: 1 | AQ80: 0 | AR80: 0 | AS80: 0 | AT80: 0 | AU80: 0 | AW80: 0 | AX80: 0 | AY80: 0 | AZ80: 0 | BA80: 0 | BB80: 0.1320959774 | BC80: 0 | BD80: 0 | BE80: 0 | BF80: 0 | BG80: 0 | BH80: 0.1320959774 | BJ80: Business IT - SCADA, network control and protection systems | BK80: Non SI Costs | BL80: SCADA/AEMS system
A81: C-i-C | B81: SCADA/AEMS | C81: $Millions | E81: 2025 | F81: 2023 | H81: 0.035 | I81: SCADA, network control and protection systems | J81: Business IT | L81: 0 | M81: 0 | N81: 0 | O81: 1 | P81: 0 | Q81: 0 | R81: 0 | S81: 0 | T81: 0 | U81: 0 | V81: 1 | W81: 0 | X81: =IFERROR($H81*K81 *IF($E81<>"Nominal",INDEX($K$16:$U$16,,MATCH($F81,Years,0))/INDEX($K$16:$U$16,,MATCH($E81,Years,0)), 1/K$19),0) -> 0 | Y81: =IFERROR($H81*L81 *IF($E81<>"Nominal",INDEX($K$16:$U$16,,MATCH($F81,Years,0))/INDEX($K$16:$U$16,,MATCH($E81,Years,0)), 1/L$19),0) -> 0 | Z81: =IFERROR($H81*M81 *IF($E81<>"Nominal",INDEX($K$16:$U$16,,MATCH($F81,Years,0))/INDEX($K$16:$U$16,,MATCH($E81,Years,0)), 1/M$19),0) -> 0 | AA81: =IFERROR($H81*N81 *IF($E81<>"Nominal",INDEX($K$16:$U$16,,MATCH($F81,Years,0))/INDEX($K$16:$U$16,,MATCH($E81,Years,0)), 1/N$19),0) -> 0 | AB81: =IFERROR($H81*O81 *IF($E81<>"Nominal",INDEX($K$16:$U$16,,MATCH($F81,Years,0))/INDEX($K$16:$U$16,,MATCH($E81,Years,0)), 1/O$19),0) -> 0.03302399435 | AC81: =IFERROR($H81*P81 *IF($E81<>"Nominal",INDEX($K$16:$U$16,,MATCH($F81,Years,0))/INDEX($K$16:$U$16,,MATCH($E81,Years,0)), 1/P$19),0) -> 0 | AD81: =IFERROR($H81*Q81 *IF($E81<>"Nominal",INDEX($K$16:$U$16,,MATCH($F81,Years,0))/INDEX($K$16:$U$16,,MATCH($E81,Years,0)), 1/Q$19),0) -> 0 | AE81: =IFERROR($H81*R81 *IF($E81<>"Nominal",INDEX($K$16:$U$16,,MATCH($F81,Years,0))/INDEX($K$16:$U$16,,MATCH($E81,Years,0)), 1/R$19),0) -> 0 | AF81: =IFERROR($H81*S81 *IF($E81<>"Nominal",INDEX($K$16:$U$16,,MATCH($F81,Years,0))/INDEX($K$16:$U$16,,MATCH($E81,Years,0)), 1/S$19),0) -> 0 | AG81: =IFERROR($H81*T81 *IF($E81<>"Nominal",INDEX($K$16:$U$16,,MATCH($F81,Years,0))/INDEX($K$16:$U$16,,MATCH($E81,Years,0)), 1/T$19),0) -> 0 | AH81: =IFERROR($H81*U81 *IF($E81<>"Nominal",INDEX($K$16:$U$16,,MATCH($F81,Years,0))/INDEX($K$16:$U$16,,MATCH($E81,Years,0)), 1/U$19),0) -> 0 | AI81: 0.03302399435 | AM81: 0 | AN81: 0 | AO81: 0 | AP81: 1 | AQ81: 0 | AR81: 0 | AS81: 0 | AT81: 0 | AU81: 0 | AW81: 0 | AX81: 0 | AY81: 0 | AZ81: 0 | BA81: 0 | BB81: 0.03302399435 | BC81: 0 | BD81: 0 | BE81: 0 | BF81: 0 | BG81: 0 | BH81: 0.03302399435 | BJ81: Business IT - SCADA, network control and protection systems | BK81: Non SI Costs | BL81: SCADA/AEMS system
A82: C-i-C | B82: SCADA/AEMS | C82: $Millions | E82: 2025 | F82: 2023 | H82: 0.06 | I82: SCADA, network control and protection systems | J82: Business IT | L82: 0 | M82: 0 | N82: 0 | O82: 1 | P82: 0 | Q82: 0 | R82: 0 | S82: 0 | T82: 0 | U82: 0 | V82: 1 | W82: 0 | X82: =IFERROR($H82*K82 *IF($E82<>"Nominal",INDEX($K$16:$U$16,,MATCH($F82,Years,0))/INDEX($K$16:$U$16,,MATCH($E82,Years,0)), 1/K$19),0) -> 0 | Y82: =IFERROR($H82*L82 *IF($E82<>"Nominal",INDEX($K$16:$U$16,,MATCH($F82,Years,0))/INDEX($K$16:$U$16,,MATCH($E82,Years,0)), 1/L$19),0) -> 0 | Z82: =IFERROR($H82*M82 *IF($E82<>"Nominal",INDEX($K$16:$U$16,,MATCH($F82,Years,0))/INDEX($K$16:$U$16,,MATCH($E82,Years,0)), 1/M$19),0) -> 0 | AA82: =IFERROR($H82*N82 *IF($E82<>"Nominal",INDEX($K$16:$U$16,,MATCH($F82,Years,0))/INDEX($K$16:$U$16,,MATCH($E82,Years,0)), 1/N$19),0) -> 0 | AB82: =IFERROR($H82*O82 *IF($E82<>"Nominal",INDEX($K$16:$U$16,,MATCH($F82,Years,0))/INDEX($K$16:$U$16,,MATCH($E82,Years,0)), 1/O$19),0) -> 0.05661256175 | AC82: =IFERROR($H82*P82 *IF($E82<>"Nominal",INDEX($K$16:$U$16,,MATCH($F82,Years,0))/INDEX($K$16:$U$16,,MATCH($E82,Years,0)), 1/P$19),0) -> 0 | AD82: =IFERROR($H82*Q82 *IF($E82<>"Nominal",INDEX($K$16:$U$16,,MATCH($F82,Years,0))/INDEX($K$16:$U$16,,MATCH($E82,Years,0)), 1/Q$19),0) -> 0 | AE82: =IFERROR($H82*R82 *IF($E82<>"Nominal",INDEX($K$16:$U$16,,MATCH($F82,Years,0))/INDEX($K$16:$U$16,,MATCH($E82,Years,0)), 1/R$19),0) -> 0 | AF82: =IFERROR($H82*S82 *IF($E82<>"Nominal",INDEX($K$16:$U$16,,MATCH($F82,Years,0))/INDEX($K$16:$U$16,,MATCH($E82,Years,0)), 1/S$19),0) -> 0 | AG82: =IFERROR($H82*T82 *IF($E82<>"Nominal",INDEX($K$16:$U$16,,MATCH($F82,Years,0))/INDEX($K$16:$U$16,,MATCH($E82,Years,0)), 1/T$19),0) -> 0 | AH82: =IFERROR($H82*U82 *IF($E82<>"Nominal",INDEX($K$16:$U$16,,MATCH($F82,Years,0))/INDEX($K$16:$U$16,,MATCH($E82,Years,0)), 1/U$19),0) -> 0 | AI82: 0.05661256175 | AM82: 0 | AN82: 0 | AO82: 0 | AP82: 1 | AQ82: 0 | AR82: 0 | AS82: 0 | AT82: 0 | AU82: 0 | AW82: 0 | AX82: 0 | AY82: 0 | AZ82: 0 | BA82: 0 | BB82: 0.05661256175 | BC82: 0 | BD82: 0 | BE82: 0 | BF82: 0 | BG82: 0 | BH82: 0.05661256175 | BJ82: Business IT - SCADA, network control and protection systems | BK82: Non SI Costs | BL82: SCADA/AEMS system
A83: C-i-C | B83: SCADA/AEMS | C83: $Millions | E83: 2025 | F83: 2023 | H83: 0.2 | I83: SCADA, network control and protection systems | J83: Business IT | L83: 0 | M83: 0 | N83: 0 | O83: 1 | P83: 0 | Q83: 0 | R83: 0 | S83: 0 | T83: 0 | U83: 0 | V83: 1 | W83: 0 | X83: =IFERROR($H83*K83 *IF($E83<>"Nominal",INDEX($K$16:$U$16,,MATCH($F83,Years,0))/INDEX($K$16:$U$16,,MATCH($E83,Years,0)), 1/K$19),0) -> 0 | Y83: =IFERROR($H83*L83 *IF($E83<>"Nominal",INDEX($K$16:$U$16,,MATCH($F83,Years,0))/INDEX($K$16:$U$16,,MATCH($E83,Years,0)), 1/L$19),0) -> 0 | Z83: =IFERROR($H83*M83 *IF($E83<>"Nominal",INDEX($K$16:$U$16,,MATCH($F83,Years,0))/INDEX($K$16:$U$16,,MATCH($E83,Years,0)), 1/M$19),0) -> 0 | AA83: =IFERROR($H83*N83 *IF($E83<>"Nominal",INDEX($K$16:$U$16,,MATCH($F83,Years,0))/INDEX($K$16:$U$16,,MATCH($E83,Years,0)), 1/N$19),0) -> 0 | AB83: =IFERROR($H83*O83 *IF($E83<>"Nominal",INDEX($K$16:$U$16,,MATCH($F83,Years,0))/INDEX($K$16:$U$16,,MATCH($E83,Years,0)), 1/O$19),0) -> 0.1887085392 | AC83: =IFERROR($H83*P83 *IF($E83<>"Nominal",INDEX($K$16:$U$16,,MATCH($F83,Years,0))/INDEX($K$16:$U$16,,MATCH($E83,Years,0)), 1/P$19),0) -> 0 | AD83: =IFERROR($H83*Q83 *IF($E83<>"Nominal",INDEX($K$16:$U$16,,MATCH($F83,Years,0))/INDEX($K$16:$U$16,,MATCH($E83,Years,0)), 1/Q$19),0) -> 0 | AE83: =IFERROR($H83*R83 *IF($E83<>"Nominal",INDEX($K$16:$U$16,,MATCH($F83,Years,0))/INDEX($K$16:$U$16,,MATCH($E83,Years,0)), 1/R$19),0) -> 0 | AF83: =IFERROR($H83*S83 *IF($E83<>"Nominal",INDEX($K$16:$U$16,,MATCH($F83,Years,0))/INDEX($K$16:$U$16,,MATCH($E83,Years,0)), 1/S$19),0) -> 0 | AG83: =IFERROR($H83*T83 *IF($E83<>"Nominal",INDEX($K$16:$U$16,,MATCH($F83,Years,0))/INDEX($K$16:$U$16,,MATCH($E83,Years,0)), 1/T$19),0) -> 0 | AH83: =IFERROR($H83*U83 *IF($E83<>"Nominal",INDEX($K$16:$U$16,,MATCH($F83,Years,0))/INDEX($K$16:$U$16,,MATCH($E83,Years,0)), 1/U$19),0) -> 0 | AI83: 0.1887085392 | AM83: 0 | AN83: 0 | AO83: 0 | AP83: 1 | AQ83: 0 | AR83: 0 | AS83: 0 | AT83: 0 | AU83: 0 | AW83: 0 | AX83: 0 | AY83: 0 | AZ83: 0 | BA83: 0 | BB83: 0.1887085392 | BC83: 0 | BD83: 0 | BE83: 0 | BF83: 0 | BG83: 0 | BH83: 0.1887085392 | BJ83: Business IT - SCADA, network control and protection systems | BK83: Non SI Costs | BL83: SCADA/AEMS system
A84: C-i-C | B84: SCADA/AEMS | C84: $Millions | E84: 2025 | F84: 2023 | H84: 0.05 | I84: Other | J84: Business IT | L84: 0 | M84: 0 | N84: 0 | O84: 0.3333333333 | P84: 0.6666666667 | Q84: 0 | R84: 0 | S84: 0 | T84: 0 | U84: 0 | V84: 1 | W84: 0 | X84: =IFERROR($H84*K84 *IF($E84<>"Nominal",INDEX($K$16:$U$16,,MATCH($F84,Years,0))/INDEX($K$16:$U$16,,MATCH($E84,Years,0)), 1/K$19),0) -> 0 | Y84: =IFERROR($H84*L84 *IF($E84<>"Nominal",INDEX($K$16:$U$16,,MATCH($F84,Years,0))/INDEX($K$16:$U$16,,MATCH($E84,Years,0)), 1/L$19),0) -> 0 | Z84: =IFERROR($H84*M84 *IF($E84<>"Nominal",INDEX($K$16:$U$16,,MATCH($F84,Years,0))/INDEX($K$16:$U$16,,MATCH($E84,Years,0)), 1/M$19),0) -> 0 | AA84: =IFERROR($H84*N84 *IF($E84<>"Nominal",INDEX($K$16:$U$16,,MATCH($F84,Years,0))/INDEX($K$16:$U$16,,MATCH($E84,Years,0)), 1/N$19),0) -> 0 | AB84: =IFERROR($H84*O84 *IF($E84<>"Nominal",INDEX($K$16:$U$16,,MATCH($F84,Years,0))/INDEX($K$16:$U$16,,MATCH($E84,Years,0)), 1/O$19),0) -> 0.0157257116 | AC84: =IFERROR($H84*P84 *IF($E84<>"Nominal",INDEX($K$16:$U$16,,MATCH($F84,Years,0))/INDEX($K$16:$U$16,,MATCH($E84,Years,0)), 1/P$19),0) -> 0.03145142319 | AD84: =IFERROR($H84*Q84 *IF($E84<>"Nominal",INDEX($K$16:$U$16,,MATCH($F84,Years,0))/INDEX($K$16:$U$16,,MATCH($E84,Years,0)), 1/Q$19),0) -> 0 | AE84: =IFERROR($H84*R84 *IF($E84<>"Nominal",INDEX($K$16:$U$16,,MATCH($F84,Years,0))/INDEX($K$16:$U$16,,MATCH($E84,Years,0)), 1/R$19),0) -> 0 | AF84: =IFERROR($H84*S84 *IF($E84<>"Nominal",INDEX($K$16:$U$16,,MATCH($F84,Years,0))/INDEX($K$16:$U$16,,MATCH($E84,Years,0)), 1/S$19),0) -> 0 | AG84: =IFERROR($H84*T84 *IF($E84<>"Nominal",INDEX($K$16:$U$16,,MATCH($F84,Years,0))/INDEX($K$16:$U$16,,MATCH($E84,Years,0)), 1/T$19),0) -> 0 | AH84: =IFERROR($H84*U84 *IF($E84<>"Nominal",INDEX($K$16:$U$16,,MATCH($F84,Years,0))/INDEX($K$16:$U$16,,MATCH($E84,Years,0)), 1/U$19),0) -> 0 | AI84: 0.04717713479 | AM84: 0 | AN84: 0 | AO84: 0 | AP84: 0 | AQ84: 1 | AR84: 0 | AS84: 0 | AT84: 0 | AU84: 0 | AW84: 0 | AX84: 0 | AY84: 0 | AZ84: 0 | BA84: 0 | BB84: 0 | BC84: 0.04717713479 | BD84: 0 | BE84: 0 | BF84: 0 | BG84: 0 | BH84: 0.04717713479 | BJ84: Business IT - Other | BK84: Non SI Costs | BL84: SCADA/AEMS system
A85: C-i-C | B85: Wide Area Monitoring | C85: $Millions | E85: 2025 | F85: 2023 | H85: 0.4 | I85: Other | J85: Business IT | L85: 0 | M85: 0 | N85: 0 | O85: 0 | P85: 0 | Q85: 0 | R85: 1 | S85: 0 | T85: 0 | U85: 0 | V85: 1 | W85: 0 | X85: =IFERROR($H85*K85 *IF($E85<>"Nominal",INDEX($K$16:$U$16,,MATCH($F85,Years,0))/INDEX($K$16:$U$16,,MATCH($E85,Years,0)), 1/K$19),0) -> 0 | Y85: =IFERROR($H85*L85 *IF($E85<>"Nominal",INDEX($K$16:$U$16,,MATCH($F85,Years,0))/INDEX($K$16:$U$16,,MATCH($E85,Years,0)), 1/L$19),0) -> 0 | Z85: =IFERROR($H85*M85 *IF($E85<>"Nominal",INDEX($K$16:$U$16,,MATCH($F85,Years,0))/INDEX($K$16:$U$16,,MATCH($E85,Years,0)), 1/M$19),0) -> 0 | AA85: =IFERROR($H85*N85 *IF($E85<>"Nominal",INDEX($K$16:$U$16,,MATCH($F85,Years,0))/INDEX($K$16:$U$16,,MATCH($E85,Years,0)), 1/N$19),0) -> 0 | AB85: =IFERROR($H85*O85 *IF($E85<>"Nominal",INDEX($K$16:$U$16,,MATCH($F85,Years,0))/INDEX($K$16:$U$16,,MATCH($E85,Years,0)), 1/O$19),0) -> 0 | AC85: =IFERROR($H85*P85 *IF($E85<>"Nominal",INDEX($K$16:$U$16,,MATCH($F85,Years,0))/INDEX($K$16:$U$16,,MATCH($E85,Years,0)), 1/P$19),0) -> 0 | AD85: =IFERROR($H85*Q85 *IF($E85<>"Nominal",INDEX($K$16:$U$16,,MATCH($F85,Years,0))/INDEX($K$16:$U$16,,MATCH($E85,Years,0)), 1/Q$19),0) -> 0 | AE85: =IFERROR($H85*R85 *IF($E85<>"Nominal",INDEX($K$16:$U$16,,MATCH($F85,Years,0))/INDEX($K$16:$U$16,,MATCH($E85,Years,0)), 1/R$19),0) -> 0.3774170783 | AF85: =IFERROR($H85*S85 *IF($E85<>"Nominal",INDEX($K$16:$U$16,,MATCH($F85,Years,0))/INDEX($K$16:$U$16,,MATCH($E85,Years,0)), 1/S$19),0) -> 0 | AG85: =IFERROR($H85*T85 *IF($E85<>"Nominal",INDEX($K$16:$U$16,,MATCH($F85,Years,0))/INDEX($K$16:$U$16,,MATCH($E85,Years,0)), 1/T$19),0) -> 0 | AH85: =IFERROR($H85*U85 *IF($E85<>"Nominal",INDEX($K$16:$U$16,,MATCH($F85,Years,0))/INDEX($K$16:$U$16,,MATCH($E85,Years,0)), 1/U$19),0) -> 0 | AI85: 0.3774170783 | AM85: 0 | AN85: 0 | AO85: 0 | AP85: 0 | AQ85: 0 | AR85: 0 | AS85: 1 | AT85: 0 | AU85: 0 | AW85: 0 | AX85: 0 | AY85: 0 | AZ85: 0 | BA85: 0 | BB85: 0 | BC85: 0 | BD85: 0 | BE85: 0.3774170783 | BF85: 0 | BG85: 0 | BH85: 0.3774170783 | BJ85: Business IT - Other | BK85: Non SI Costs | BL85: Wide area monitoring
A86: C-i-C | B86: Wide Area Monitoring | C86: $Millions | E86: 2025 | F86: 2023 | H86: 0.5 | I86: Other | J86: Business IT | L86: 0 | M86: 0 | N86: 0 | O86: 0 | P86: 0 | Q86: 0 | R86: 1 | S86: 0 | T86: 0 | U86: 0 | V86: 1 | W86: 0 | X86: =IFERROR($H86*K86 *IF($E86<>"Nominal",INDEX($K$16:$U$16,,MATCH($F86,Years,0))/INDEX($K$16:$U$16,,MATCH($E86,Years,0)), 1/K$19),0) -> 0 | Y86: =IFERROR($H86*L86 *IF($E86<>"Nominal",INDEX($K$16:$U$16,,MATCH($F86,Years,0))/INDEX($K$16:$U$16,,MATCH($E86,Years,0)), 1/L$19),0) -> 0 | Z86: =IFERROR($H86*M86 *IF($E86<>"Nominal",INDEX($K$16:$U$16,,MATCH($F86,Years,0))/INDEX($K$16:$U$16,,MATCH($E86,Years,0)), 1/M$19),0) -> 0 | AA86: =IFERROR($H86*N86 *IF($E86<>"Nominal",INDEX($K$16:$U$16,,MATCH($F86,Years,0))/INDEX($K$16:$U$16,,MATCH($E86,Years,0)), 1/N$19),0) -> 0 | AB86: =IFERROR($H86*O86 *IF($E86<>"Nominal",INDEX($K$16:$U$16,,MATCH($F86,Years,0))/INDEX($K$16:$U$16,,MATCH($E86,Years,0)), 1/O$19),0) -> 0 | AC86: =IFERROR($H86*P86 *IF($E86<>"Nominal",INDEX($K$16:$U$16,,MATCH($F86,Years,0))/INDEX($K$16:$U$16,,MATCH($E86,Years,0)), 1/P$19),0) -> 0 | AD86: =IFERROR($H86*Q86 *IF($E86<>"Nominal",INDEX($K$16:$U$16,,MATCH($F86,Years,0))/INDEX($K$16:$U$16,,MATCH($E86,Years,0)), 1/Q$19),0) -> 0 | AE86: =IFERROR($H86*R86 *IF($E86<>"Nominal",INDEX($K$16:$U$16,,MATCH($F86,Years,0))/INDEX($K$16:$U$16,,MATCH($E86,Years,0)), 1/R$19),0) -> 0.4717713479 | AF86: =IFERROR($H86*S86 *IF($E86<>"Nominal",INDEX($K$16:$U$16,,MATCH($F86,Years,0))/INDEX($K$16:$U$16,,MATCH($E86,Years,0)), 1/S$19),0) -> 0 | AG86: =IFERROR($H86*T86 *IF($E86<>"Nominal",INDEX($K$16:$U$16,,MATCH($F86,Years,0))/INDEX($K$16:$U$16,,MATCH($E86,Years,0)), 1/T$19),0) -> 0 | AH86: =IFERROR($H86*U86 *IF($E86<>"Nominal",INDEX($K$16:$U$16,,MATCH($F86,Years,0))/INDEX($K$16:$U$16,,MATCH($E86,Years,0)), 1/U$19),0) -> 0 | AI86: 0.4717713479 | AM86: 0 | AN86: 0 | AO86: 0 | AP86: 0 | AQ86: 0 | AR86: 0 | AS86: 1 | AT86: 0 | AU86: 0 | AW86: 0 | AX86: 0 | AY86: 0 | AZ86: 0 | BA86: 0 | BB86: 0 | BC86: 0 | BD86: 0 | BE86: 0.4717713479 | BF86: 0 | BG86: 0 | BH86: 0.4717713479 | BJ86: Business IT - Other | BK86: Non SI Costs | BL86: Wide area monitoring
A87: C-i-C | B87: Wide Area Monitoring | C87: $Millions | E87: 2025 | F87: 2023 | H87: 0.08 | I87: Other | J87: Business IT | L87: 0 | M87: 0 | N87: 0 | O87: 0 | P87: 0 | Q87: 0 | R87: 1 | S87: 0 | T87: 0 | U87: 0 | V87: 1 | W87: 0 | X87: =IFERROR($H87*K87 *IF($E87<>"Nominal",INDEX($K$16:$U$16,,MATCH($F87,Years,0))/INDEX($K$16:$U$16,,MATCH($E87,Years,0)), 1/K$19),0) -> 0 | Y87: =IFERROR($H87*L87 *IF($E87<>"Nominal",INDEX($K$16:$U$16,,MATCH($F87,Years,0))/INDEX($K$16:$U$16,,MATCH($E87,Years,0)), 1/L$19),0) -> 0 | Z87: =IFERROR($H87*M87 *IF($E87<>"Nominal",INDEX($K$16:$U$16,,MATCH($F87,Years,0))/INDEX($K$16:$U$16,,MATCH($E87,Years,0)), 1/M$19),0) -> 0 | AA87: =IFERROR($H87*N87 *IF($E87<>"Nominal",INDEX($K$16:$U$16,,MATCH($F87,Years,0))/INDEX($K$16:$U$16,,MATCH($E87,Years,0)), 1/N$19),0) -> 0 | AB87: =IFERROR($H87*O87 *IF($E87<>"Nominal",INDEX($K$16:$U$16,,MATCH($F87,Years,0))/INDEX($K$16:$U$16,,MATCH($E87,Years,0)), 1/O$19),0) -> 0 | AC87: =IFERROR($H87*P87 *IF($E87<>"Nominal",INDEX($K$16:$U$16,,MATCH($F87,Years,0))/INDEX($K$16:$U$16,,MATCH($E87,Years,0)), 1/P$19),0) -> 0 | AD87: =IFERROR($H87*Q87 *IF($E87<>"Nominal",INDEX($K$16:$U$16,,MATCH($F87,Years,0))/INDEX($K$16:$U$16,,MATCH($E87,Years,0)), 1/Q$19),0) -> 0 | AE87: =IFERROR($H87*R87 *IF($E87<>"Nominal",INDEX($K$16:$U$16,,MATCH($F87,Years,0))/INDEX($K$16:$U$16,,MATCH($E87,Years,0)), 1/R$19),0) -> 0.07548341567 | AF87: =IFERROR($H87*S87 *IF($E87<>"Nominal",INDEX($K$16:$U$16,,MATCH($F87,Years,0))/INDEX($K$16:$U$16,,MATCH($E87,Years,0)), 1/S$19),0) -> 0 | AG87: =IFERROR($H87*T87 *IF($E87<>"Nominal",INDEX($K$16:$U$16,,MATCH($F87,Years,0))/INDEX($K$16:$U$16,,MATCH($E87,Years,0)), 1/T$19),0) -> 0 | AH87: =IFERROR($H87*U87 *IF($E87<>"Nominal",INDEX($K$16:$U$16,,MATCH($F87,Years,0))/INDEX($K$16:$U$16,,MATCH($E87,Years,0)), 1/U$19),0) -> 0 | AI87: 0.07548341567 | AM87: 0 | AN87: 0 | AO87: 0 | AP87: 0 | AQ87: 0 | AR87: 0 | AS87: 1 | AT87: 0 | AU87: 0 | AW87: 0 | AX87: 0 | AY87: 0 | AZ87: 0 | BA87: 0 | BB87: 0 | BC87: 0 | BD87: 0 | BE87: 0.07548341567 | BF87: 0 | BG87: 0 | BH87: 0.07548341567 | BJ87: Business IT - Other | BK87: Non SI Costs | BL87: Wide area monitoring
A88: C-i-C | B88: Wide Area Monitoring | C88: $Millions | E88: 2025 | F88: 2023 | H88: 0.02 | I88: Other | J88: Business IT | L88: 0 | M88: 0 | N88: 0 | O88: 0 | P88: 0 | Q88: 0 | R88: 1 | S88: 0 | T88: 0 | U88: 0 | V88: 1 | W88: 0 | X88: =IFERROR($H88*K88 *IF($E88<>"Nominal",INDEX($K$16:$U$16,,MATCH($F88,Years,0))/INDEX($K$16:$U$16,,MATCH($E88,Years,0)), 1/K$19),0) -> 0 | Y88: =IFERROR($H88*L88 *IF($E88<>"Nominal",INDEX($K$16:$U$16,,MATCH($F88,Years,0))/INDEX($K$16:$U$16,,MATCH($E88,Years,0)), 1/L$19),0) -> 0 | Z88: =IFERROR($H88*M88 *IF($E88<>"Nominal",INDEX($K$16:$U$16,,MATCH($F88,Years,0))/INDEX($K$16:$U$16,,MATCH($E88,Years,0)), 1/M$19),0) -> 0 | AA88: =IFERROR($H88*N88 *IF($E88<>"Nominal",INDEX($K$16:$U$16,,MATCH($F88,Years,0))/INDEX($K$16:$U$16,,MATCH($E88,Years,0)), 1/N$19),0) -> 0 | AB88: =IFERROR($H88*O88 *IF($E88<>"Nominal",INDEX($K$16:$U$16,,MATCH($F88,Years,0))/INDEX($K$16:$U$16,,MATCH($E88,Years,0)), 1/O$19),0) -> 0 | AC88: =IFERROR($H88*P88 *IF($E88<>"Nominal",INDEX($K$16:$U$16,,MATCH($F88,Years,0))/INDEX($K$16:$U$16,,MATCH($E88,Years,0)), 1/P$19),0) -> 0 | AD88: =IFERROR($H88*Q88 *IF($E88<>"Nominal",INDEX($K$16:$U$16,,MATCH($F88,Years,0))/INDEX($K$16:$U$16,,MATCH($E88,Years,0)), 1/Q$19),0) -> 0 | AE88: =IFERROR($H88*R88 *IF($E88<>"Nominal",INDEX($K$16:$U$16,,MATCH($F88,Years,0))/INDEX($K$16:$U$16,,MATCH($E88,Years,0)), 1/R$19),0) -> 0.01887085392 | AF88: =IFERROR($H88*S88 *IF($E88<>"Nominal",INDEX($K$16:$U$16,,MATCH($F88,Years,0))/INDEX($K$16:$U$16,,MATCH($E88,Years,0)), 1/S$19),0) -> 0 | AG88: =IFERROR($H88*T88 *IF($E88<>"Nominal",INDEX($K$16:$U$16,,MATCH($F88,Years,0))/INDEX($K$16:$U$16,,MATCH($E88,Years,0)), 1/T$19),0) -> 0 | AH88: =IFERROR($H88*U88 *IF($E88<>"Nominal",INDEX($K$16:$U$16,,MATCH($F88,Years,0))/INDEX($K$16:$U$16,,MATCH($E88,Years,0)), 1/U$19),0) -> 0 | AI88: 0.01887085392 | AM88: 0 | AN88: 0 | AO88: 0 | AP88: 0 | AQ88: 0 | AR88: 0 | AS88: 1 | AT88: 0 | AU88: 0 | AW88: 0 | AX88: 0 | AY88: 0 | AZ88: 0 | BA88: 0 | BB88: 0 | BC88: 0 | BD88: 0 | BE88: 0.01887085392 | BF88: 0 | BG88: 0 | BH88: 0.01887085392 | BJ88: Business IT - Other | BK88: Non SI Costs | BL88: Wide area monitoring
A89: C-i-C | B89: Wide Area Monitoring | C89: $Millions | E89: 2025 | F89: 2023 | H89: 0.01 | I89: SCADA, network control and protection systems | J89: Communications (short life) | L89: 0 | M89: 0 | N89: 0 | O89: 0 | P89: 0 | Q89: 0 | R89: 1 | S89: 0 | T89: 0 | U89: 0 | V89: 1 | W89: 0 | X89: =IFERROR($H89*K89 *IF($E89<>"Nominal",INDEX($K$16:$U$16,,MATCH($F89,Years,0))/INDEX($K$16:$U$16,,MATCH($E89,Years,0)), 1/K$19),0) -> 0 | Y89: =IFERROR($H89*L89 *IF($E89<>"Nominal",INDEX($K$16:$U$16,,MATCH($F89,Years,0))/INDEX($K$16:$U$16,,MATCH($E89,Years,0)), 1/L$19),0) -> 0 | Z89: =IFERROR($H89*M89 *IF($E89<>"Nominal",INDEX($K$16:$U$16,,MATCH($F89,Years,0))/INDEX($K$16:$U$16,,MATCH($E89,Years,0)), 1/M$19),0) -> 0 | AA89: =IFERROR($H89*N89 *IF($E89<>"Nominal",INDEX($K$16:$U$16,,MATCH($F89,Years,0))/INDEX($K$16:$U$16,,MATCH($E89,Years,0)), 1/N$19),0) -> 0 | AB89: =IFERROR($H89*O89 *IF($E89<>"Nominal",INDEX($K$16:$U$16,,MATCH($F89,Years,0))/INDEX($K$16:$U$16,,MATCH($E89,Years,0)), 1/O$19),0) -> 0 | AC89: =IFERROR($H89*P89 *IF($E89<>"Nominal",INDEX($K$16:$U$16,,MATCH($F89,Years,0))/INDEX($K$16:$U$16,,MATCH($E89,Years,0)), 1/P$19),0) -> 0 | AD89: =IFERROR($H89*Q89 *IF($E89<>"Nominal",INDEX($K$16:$U$16,,MATCH($F89,Years,0))/INDEX($K$16:$U$16,,MATCH($E89,Years,0)), 1/Q$19),0) -> 0 | AE89: =IFERROR($H89*R89 *IF($E89<>"Nominal",INDEX($K$16:$U$16,,MATCH($F89,Years,0))/INDEX($K$16:$U$16,,MATCH($E89,Years,0)), 1/R$19),0) -> 0.009435426958 | AF89: =IFERROR($H89*S89 *IF($E89<>"Nominal",INDEX($K$16:$U$16,,MATCH($F89,Years,0))/INDEX($K$16:$U$16,,MATCH($E89,Years,0)), 1/S$19),0) -> 0 | AG89: =IFERROR($H89*T89 *IF($E89<>"Nominal",INDEX($K$16:$U$16,,MATCH($F89,Years,0))/INDEX($K$16:$U$16,,MATCH($E89,Years,0)), 1/T$19),0) -> 0 | AH89: =IFERROR($H89*U89 *IF($E89<>"Nominal",INDEX($K$16:$U$16,,MATCH($F89,Years,0))/INDEX($K$16:$U$16,,MATCH($E89,Years,0)), 1/U$19),0) -> 0 | AI89: 0.009435426958 | AM89: 0 | AN89: 0 | AO89: 0 | AP89: 0 | AQ89: 0 | AR89: 0 | AS89: 1 | AT89: 0 | AU89: 0 | AW89: 0 | AX89: 0 | AY89: 0 | AZ89: 0 | BA89: 0 | BB89: 0 | BC89: 0 | BD89: 0 | BE89: 0.009435426958 | BF89: 0 | BG89: 0 | BH89: 0.009435426958 | BJ89: Communications (short life) - SCADA, network control and protection systems | BK89: Non SI Costs | BL89: Wide area monitoring
A90: C-i-C | B90: Wide Area Monitoring | C90: $Millions | E90: 2025 | F90: 2023 | H90: 0.015 | I90: SCADA, network control and protection systems | J90: Communications (short life) | L90: 0 | M90: 0 | N90: 0 | O90: 0 | P90: 0 | Q90: 0 | R90: 1 | S90: 0 | T90: 0 | U90: 0 | V90: 1 | W90: 0 | X90: =IFERROR($H90*K90 *IF($E90<>"Nominal",INDEX($K$16:$U$16,,MATCH($F90,Years,0))/INDEX($K$16:$U$16,,MATCH($E90,Years,0)), 1/K$19),0) -> 0 | Y90: =IFERROR($H90*L90 *IF($E90<>"Nominal",INDEX($K$16:$U$16,,MATCH($F90,Years,0))/INDEX($K$16:$U$16,,MATCH($E90,Years,0)), 1/L$19),0) -> 0 | Z90: =IFERROR($H90*M90 *IF($E90<>"Nominal",INDEX($K$16:$U$16,,MATCH($F90,Years,0))/INDEX($K$16:$U$16,,MATCH($E90,Years,0)), 1/M$19),0) -> 0 | AA90: =IFERROR($H90*N90 *IF($E90<>"Nominal",INDEX($K$16:$U$16,,MATCH($F90,Years,0))/INDEX($K$16:$U$16,,MATCH($E90,Years,0)), 1/N$19),0) -> 0 | AB90: =IFERROR($H90*O90 *IF($E90<>"Nominal",INDEX($K$16:$U$16,,MATCH($F90,Years,0))/INDEX($K$16:$U$16,,MATCH($E90,Years,0)), 1/O$19),0) -> 0 | AC90: =IFERROR($H90*P90 *IF($E90<>"Nominal",INDEX($K$16:$U$16,,MATCH($F90,Years,0))/INDEX($K$16:$U$16,,MATCH($E90,Years,0)), 1/P$19),0) -> 0 | AD90: =IFERROR($H90*Q90 *IF($E90<>"Nominal",INDEX($K$16:$U$16,,MATCH($F90,Years,0))/INDEX($K$16:$U$16,,MATCH($E90,Years,0)), 1/Q$19),0) -> 0 | AE90: =IFERROR($H90*R90 *IF($E90<>"Nominal",INDEX($K$16:$U$16,,MATCH($F90,Years,0))/INDEX($K$16:$U$16,,MATCH($E90,Years,0)), 1/R$19),0) -> 0.01415314044 | AF90: =IFERROR($H90*S90 *IF($E90<>"Nominal",INDEX($K$16:$U$16,,MATCH($F90,Years,0))/INDEX($K$16:$U$16,,MATCH($E90,Years,0)), 1/S$19),0) -> 0 | AG90: =IFERROR($H90*T90 *IF($E90<>"Nominal",INDEX($K$16:$U$16,,MATCH($F90,Years,0))/INDEX($K$16:$U$16,,MATCH($E90,Years,0)), 1/T$19),0) -> 0 | AH90: =IFERROR($H90*U90 *IF($E90<>"Nominal",INDEX($K$16:$U$16,,MATCH($F90,Years,0))/INDEX($K$16:$U$16,,MATCH($E90,Years,0)), 1/U$19),0) -> 0 | AI90: 0.01415314044 | AM90: 0 | AN90: 0 | AO90: 0 | AP90: 0 | AQ90: 0 | AR90: 0 | AS90: 1 | AT90: 0 | AU90: 0 | AW90: 0 | AX90: 0 | AY90: 0 | AZ90: 0 | BA90: 0 | BB90: 0 | BC90: 0 | BD90: 0 | BE90: 0.01415314044 | BF90: 0 | BG90: 0 | BH90: 0.01415314044 | BJ90: Communications (short life) - SCADA, network control and protection systems | BK90: Non SI Costs | BL90: Wide area monitoring
A91: C-i-C | B91: Shared | C91: $Millions | E91: 2025 | F91: =Report_Year -> 2023 | H91: 0.6 | I91: Other | J91: Business IT | L91: 0 | M91: 0 | N91: 0 | O91: 0 | P91: 1 | Q91: 0 | R91: 0 | S91: 0 | T91: 0 | U91: 0 | V91: 1 | W91: 0 | X91: =IFERROR($H91*K91 *IF($E91<>"Nominal",INDEX($K$16:$U$16,,MATCH($F91,Years,0))/INDEX($K$16:$U$16,,MATCH($E91,Years,0)), 1/K$19),0) -> 0 | Y91: =IFERROR($H91*L91 *IF($E91<>"Nominal",INDEX($K$16:$U$16,,MATCH($F91,Years,0))/INDEX($K$16:$U$16,,MATCH($E91,Years,0)), 1/L$19),0) -> 0 | Z91: =IFERROR($H91*M91 *IF($E91<>"Nominal",INDEX($K$16:$U$16,,MATCH($F91,Years,0))/INDEX($K$16:$U$16,,MATCH($E91,Years,0)), 1/M$19),0) -> 0 | AA91: =IFERROR($H91*N91 *IF($E91<>"Nominal",INDEX($K$16:$U$16,,MATCH($F91,Years,0))/INDEX($K$16:$U$16,,MATCH($E91,Years,0)), 1/N$19),0) -> 0 | AB91: =IFERROR($H91*O91 *IF($E91<>"Nominal",INDEX($K$16:$U$16,,MATCH($F91,Years,0))/INDEX($K$16:$U$16,,MATCH($E91,Years,0)), 1/O$19),0) -> 0 | AC91: =IFERROR($H91*P91 *IF($E91<>"Nominal",INDEX($K$16:$U$16,,MATCH($F91,Years,0))/INDEX($K$16:$U$16,,MATCH($E91,Years,0)), 1/P$19),0) -> 0.5661256175 | AD91: =IFERROR($H91*Q91 *IF($E91<>"Nominal",INDEX($K$16:$U$16,,MATCH($F91,Years,0))/INDEX($K$16:$U$16,,MATCH($E91,Years,0)), 1/Q$19),0) -> 0 | AE91: =IFERROR($H91*R91 *IF($E91<>"Nominal",INDEX($K$16:$U$16,,MATCH($F91,Years,0))/INDEX($K$16:$U$16,,MATCH($E91,Years,0)), 1/R$19),0) -> 0 | AF91: =IFERROR($H91*S91 *IF($E91<>"Nominal",INDEX($K$16:$U$16,,MATCH($F91,Years,0))/INDEX($K$16:$U$16,,MATCH($E91,Years,0)), 1/S$19),0) -> 0 | AG91: =IFERROR($H91*T91 *IF($E91<>"Nominal",INDEX($K$16:$U$16,,MATCH($F91,Years,0))/INDEX($K$16:$U$16,,MATCH($E91,Years,0)), 1/T$19),0) -> 0 | AH91: =IFERROR($H91*U91 *IF($E91<>"Nominal",INDEX($K$16:$U$16,,MATCH($F91,Years,0))/INDEX($K$16:$U$16,,MATCH($E91,Years,0)), 1/U$19),0) -> 0 | AI91: 0.5661256175 | AM91: 0 | AN91: 0 | AO91: 0 | AP91: 0 | AQ91: 1 | AR91: 0 | AS91: 0 | AT91: 0 | AU91: 0 | AW91: 0 | AX91: 0 | AY91: 0 | AZ91: 0 | BA91: 0 | BB91: 0 | BC91: 0.5661256175 | BD91: 0 | BE91: 0 | BF91: 0 | BG91: 0 | BH91: 0.5661256175 | BJ91: Business IT - Other | BK91: Non SI Costs | BL91: Program implementation
A92: Enhanced EMS/SCADA | B92: SCADA/AEMS | C92: $Millions | E92: 2025 | F92: 2023 | H92: 3.3666625 | I92: Other | J92: Business IT | L92: 0 | M92: 0 | N92: 0 | O92: 0 | P92: 0.5 | Q92: 0.5 | R92: 0 | S92: 0 | T92: 0 | U92: 0 | V92: 1 | W92: 0 | X92: =IFERROR($H92*K92 *IF($E92<>"Nominal",INDEX($K$16:$U$16,,MATCH($F92,Years,0))/INDEX($K$16:$U$16,,MATCH($E92,Years,0)), 1/K$19),0) -> 0 | Y92: =IFERROR($H92*L92 *IF($E92<>"Nominal",INDEX($K$16:$U$16,,MATCH($F92,Years,0))/INDEX($K$16:$U$16,,MATCH($E92,Years,0)), 1/L$19),0) -> 0 | Z92: =IFERROR($H92*M92 *IF($E92<>"Nominal",INDEX($K$16:$U$16,,MATCH($F92,Years,0))/INDEX($K$16:$U$16,,MATCH($E92,Years,0)), 1/M$19),0) -> 0 | AA92: =IFERROR($H92*N92 *IF($E92<>"Nominal",INDEX($K$16:$U$16,,MATCH($F92,Years,0))/INDEX($K$16:$U$16,,MATCH($E92,Years,0)), 1/N$19),0) -> 0 | AB92: =IFERROR($H92*O92 *IF($E92<>"Nominal",INDEX($K$16:$U$16,,MATCH($F92,Years,0))/INDEX($K$16:$U$16,,MATCH($E92,Years,0)), 1/O$19),0) -> 0 | AC92: =IFERROR($H92*P92 *IF($E92<>"Nominal",INDEX($K$16:$U$16,,MATCH($F92,Years,0))/INDEX($K$16:$U$16,,MATCH($E92,Years,0)), 1/P$19),0) -> 1.588294906 | AD92: =IFERROR($H92*Q92 *IF($E92<>"Nominal",INDEX($K$16:$U$16,,MATCH($F92,Years,0))/INDEX($K$16:$U$16,,MATCH($E92,Years,0)), 1/Q$19),0) -> 1.588294906 | AE92: =IFERROR($H92*R92 *IF($E92<>"Nominal",INDEX($K$16:$U$16,,MATCH($F92,Years,0))/INDEX($K$16:$U$16,,MATCH($E92,Years,0)), 1/R$19),0) -> 0 | AF92: =IFERROR($H92*S92 *IF($E92<>"Nominal",INDEX($K$16:$U$16,,MATCH($F92,Years,0))/INDEX($K$16:$U$16,,MATCH($E92,Years,0)), 1/S$19),0) -> 0 | AG92: =IFERROR($H92*T92 *IF($E92<>"Nominal",INDEX($K$16:$U$16,,MATCH($F92,Years,0))/INDEX($K$16:$U$16,,MATCH($E92,Years,0)), 1/T$19),0) -> 0 | AH92: =IFERROR($H92*U92 *IF($E92<>"Nominal",INDEX($K$16:$U$16,,MATCH($F92,Years,0))/INDEX($K$16:$U$16,,MATCH($E92,Years,0)), 1/U$19),0) -> 0 | AI92: 3.176589811 | AM92: 0 | AN92: 0 | AO92: 0 | AP92: 0 | AQ92: 1 | AR92: 0 | AS92: 0 | AT92: 0 | AU92: 0 | AW92: 0 | AX92: 0 | AY92: 0 | AZ92: 0 | BA92: 0 | BB92: 0 | BC92: 3.176589811 | BD92: 0 | BE92: 0 | BF92: 0 | BG92: 0 | BH92: 3.176589811 | BJ92: Business IT - Other | BK92: SI Costs | BL92: =IFERROR(INDEX($B$259:$B$280,MATCH($B92,$A$259:$A$280,0)),"") -> SCADA/AEMS system
A93: P50 Estimate | B93: P50 Estimate | C93: $Millions | E93: 2025 | F93: 2023 | H93: 9.500071373 | I93: Other | J93: Communications (short life) | L93: 0 | M93: 0 | N93: 0 | O93: 0.2068965517 | P93: 0.2068965517 | Q93: 0.2068965517 | R93: 0.2068965517 | S93: 0.1724137931 | T93: 0 | U93: 0 | V93: 1 | W93: 0 | X93: =IFERROR($H93*K93 *IF($E93<>"Nominal",INDEX($K$16:$U$16,,MATCH($F93,Years,0))/INDEX($K$16:$U$16,,MATCH($E93,Years,0)), 1/K$19),0) -> 0 | Y93: =IFERROR($H93*L93 *IF($E93<>"Nominal",INDEX($K$16:$U$16,,MATCH($F93,Years,0))/INDEX($K$16:$U$16,,MATCH($E93,Years,0)), 1/L$19),0) -> 0 | Z93: =IFERROR($H93*M93 *IF($E93<>"Nominal",INDEX($K$16:$U$16,,MATCH($F93,Years,0))/INDEX($K$16:$U$16,,MATCH($E93,Years,0)), 1/M$19),0) -> 0 | AA93: =IFERROR($H93*N93 *IF($E93<>"Nominal",INDEX($K$16:$U$16,,MATCH($F93,Years,0))/INDEX($K$16:$U$16,,MATCH($E93,Years,0)), 1/N$19),0) -> 0 | AB93: =IFERROR($H93*O93 *IF($E93<>"Nominal",INDEX($K$16:$U$16,,MATCH($F93,Years,0))/INDEX($K$16:$U$16,,MATCH($E93,Years,0)), 1/O$19),0) -> 1.85456337 | AC93: =IFERROR($H93*P93 *IF($E93<>"Nominal",INDEX($K$16:$U$16,,MATCH($F93,Years,0))/INDEX($K$16:$U$16,,MATCH($E93,Years,0)), 1/P$19),0) -> 1.85456337 | AD93: =IFERROR($H93*Q93 *IF($E93<>"Nominal",INDEX($K$16:$U$16,,MATCH($F93,Years,0))/INDEX($K$16:$U$16,,MATCH($E93,Years,0)), 1/Q$19),0) -> 1.85456337 | AE93: =IFERROR($H93*R93 *IF($E93<>"Nominal",INDEX($K$16:$U$16,,MATCH($F93,Years,0))/INDEX($K$16:$U$16,,MATCH($E93,Years,0)), 1/R$19),0) -> 1.85456337 | AF93: =IFERROR($H93*S93 *IF($E93<>"Nominal",INDEX($K$16:$U$16,,MATCH($F93,Years,0))/INDEX($K$16:$U$16,,MATCH($E93,Years,0)), 1/S$19),0) -> 1.545469475 | AG93: =IFERROR($H93*T93 *IF($E93<>"Nominal",INDEX($K$16:$U$16,,MATCH($F93,Years,0))/INDEX($K$16:$U$16,,MATCH($E93,Years,0)), 1/T$19),0) -> 0 | AH93: =IFERROR($H93*U93 *IF($E93<>"Nominal",INDEX($K$16:$U$16,,MATCH($F93,Years,0))/INDEX($K$16:$U$16,,MATCH($E93,Years,0)), 1/U$19),0) -> 0 | AI93: 8.963722954 | AM93: 0 | AN93: 0 | AO93: 0 | AP93: 0 | AQ93: 0 | AR93: 0 | AS93: 1 | AT93: 0 | AU93: 0 | AW93: 0 | AX93: 0 | AY93: 0 | AZ93: 0 | BA93: 0 | BB93: 0 | BC93: 0 | BD93: 0 | BE93: 8.963722954 | BF93: 0 | BG93: 0 | BH93: 8.963722954 | BJ93: Communications (short life) - Other | BK93: Non SI Costs | BL93: Contingency/risk
A94: P50 Estimate | B94: P50 Estimate | C94: $Millions | E94: 2025 | F94: 2023 | H94: 6.222451705 | I94: Other | J94: Business IT | L94: 0 | M94: 0 | N94: 0 | O94: 0.2068965517 | P94: 0.2068965517 | Q94: 0.2068965517 | R94: 0.2068965517 | S94: 0.1724137931 | T94: 0 | U94: 0 | V94: =SUM(K94:U94) -> 1 | W94: =IF(H94=0,0,IF(V94<>1,1,0)) -> 0 | X94: =IFERROR($H94*K94 *IF($E94<>"Nominal",INDEX($K$16:$U$16,,MATCH($F94,Years,0))/INDEX($K$16:$U$16,,MATCH($E94,Years,0)), 1/K$19),0) -> 0 | Y94: =IFERROR($H94*L94 *IF($E94<>"Nominal",INDEX($K$16:$U$16,,MATCH($F94,Years,0))/INDEX($K$16:$U$16,,MATCH($E94,Years,0)), 1/L$19),0) -> 0 | Z94: =IFERROR($H94*M94 *IF($E94<>"Nominal",INDEX($K$16:$U$16,,MATCH($F94,Years,0))/INDEX($K$16:$U$16,,MATCH($E94,Years,0)), 1/M$19),0) -> 0 | AA94: =IFERROR($H94*N94 *IF($E94<>"Nominal",INDEX($K$16:$U$16,,MATCH($F94,Years,0))/INDEX($K$16:$U$16,,MATCH($E94,Years,0)), 1/N$19),0) -> 0 | AB94: =IFERROR($H94*O94 *IF($E94<>"Nominal",INDEX($K$16:$U$16,,MATCH($F94,Years,0))/INDEX($K$16:$U$16,,MATCH($E94,Years,0)), 1/O$19),0) -> 1.214720453 | AC94: =IFERROR($H94*P94 *IF($E94<>"Nominal",INDEX($K$16:$U$16,,MATCH($F94,Years,0))/INDEX($K$16:$U$16,,MATCH($E94,Years,0)), 1/P$19),0) -> 1.214720453 | AD94: =IFERROR($H94*Q94 *IF($E94<>"Nominal",INDEX($K$16:$U$16,,MATCH($F94,Years,0))/INDEX($K$16:$U$16,,MATCH($E94,Years,0)), 1/Q$19),0) -> 1.214720453 | AE94: =IFERROR($H94*R94 *IF($E94<>"Nominal",INDEX($K$16:$U$16,,MATCH($F94,Years,0))/INDEX($K$16:$U$16,,MATCH($E94,Years,0)), 1/R$19),0) -> 1.214720453 | AF94: =IFERROR($H94*S94 *IF($E94<>"Nominal",INDEX($K$16:$U$16,,MATCH($F94,Years,0))/INDEX($K$16:$U$16,,MATCH($E94,Years,0)), 1/S$19),0) -> 1.012267044 | AG94: =IFERROR($H94*T94 *IF($E94<>"Nominal",INDEX($K$16:$U$16,,MATCH($F94,Years,0))/INDEX($K$16:$U$16,,MATCH($E94,Years,0)), 1/T$19),0) -> 0 | AH94: =IFERROR($H94*U94 *IF($E94<>"Nominal",INDEX($K$16:$U$16,,MATCH($F94,Years,0))/INDEX($K$16:$U$16,,MATCH($E94,Years,0)), 1/U$19),0) -> 0 | AI94: 5.871148857 | AM94: 0 | AN94: 0 | AO94: 0 | AP94: 0 | AQ94: 0 | AR94: 0 | AS94: 1 | AT94: 0 | AU94: 0 | AW94: 0 | AX94: 0 | AY94: 0 | AZ94: 0 | BA94: 0 | BB94: 0 | BC94: 0 | BD94: 0 | BE94: 5.871148857 | BF94: 0 | BG94: 0 | BH94: 5.871148857 | BJ94: Business IT - Other | BK94: Non SI Costs | BL94: Contingency/risk
A95: P50 Estimate | B95: P50 Estimate | C95: $Millions | E95: 2025 | F95: 2023 | H95: 0.764207922 | I95: Other | J95: Minor Plant, Motor Vehicles & Mobile Plant | L95: 0 | M95: 0 | N95: 0 | O95: 0.2068965517 | P95: 0.2068965517 | Q95: 0.2068965517 | R95: 0.2068965517 | S95: 0.1724137931 | T95: 0 | U95: 0 | V95: 1 | W95: 0 | X95: =IFERROR($H95*K95 *IF($E95<>"Nominal",INDEX($K$16:$U$16,,MATCH($F95,Years,0))/INDEX($K$16:$U$16,,MATCH($E95,Years,0)), 1/K$19),0) -> 0 | Y95: =IFERROR($H95*L95 *IF($E95<>"Nominal",INDEX($K$16:$U$16,,MATCH($F95,Years,0))/INDEX($K$16:$U$16,,MATCH($E95,Years,0)), 1/L$19),0) -> 0 | Z95: =IFERROR($H95*M95 *IF($E95<>"Nominal",INDEX($K$16:$U$16,,MATCH($F95,Years,0))/INDEX($K$16:$U$16,,MATCH($E95,Years,0)), 1/M$19),0) -> 0 | AA95: =IFERROR($H95*N95 *IF($E95<>"Nominal",INDEX($K$16:$U$16,,MATCH($F95,Years,0))/INDEX($K$16:$U$16,,MATCH($E95,Years,0)), 1/N$19),0) -> 0 | AB95: =IFERROR($H95*O95 *IF($E95<>"Nominal",INDEX($K$16:$U$16,,MATCH($F95,Years,0))/INDEX($K$16:$U$16,,MATCH($E95,Years,0)), 1/O$19),0) -> 0.1491854075 | AC95: =IFERROR($H95*P95 *IF($E95<>"Nominal",INDEX($K$16:$U$16,,MATCH($F95,Years,0))/INDEX($K$16:$U$16,,MATCH($E95,Years,0)), 1/P$19),0) -> 0.1491854075 | AD95: =IFERROR($H95*Q95 *IF($E95<>"Nominal",INDEX($K$16:$U$16,,MATCH($F95,Years,0))/INDEX($K$16:$U$16,,MATCH($E95,Years,0)), 1/Q$19),0) -> 0.1491854075 | AE95: =IFERROR($H95*R95 *IF($E95<>"Nominal",INDEX($K$16:$U$16,,MATCH($F95,Years,0))/INDEX($K$16:$U$16,,MATCH($E95,Years,0)), 1/R$19),0) -> 0.1491854075 | AF95: =IFERROR($H95*S95 *IF($E95<>"Nominal",INDEX($K$16:$U$16,,MATCH($F95,Years,0))/INDEX($K$16:$U$16,,MATCH($E95,Years,0)), 1/S$19),0) -> 0.1243211729 | AG95: =IFERROR($H95*T95 *IF($E95<>"Nominal",INDEX($K$16:$U$16,,MATCH($F95,Years,0))/INDEX($K$16:$U$16,,MATCH($E95,Years,0)), 1/T$19),0) -> 0 | AH95: =IFERROR($H95*U95 *IF($E95<>"Nominal",INDEX($K$16:$U$16,,MATCH($F95,Years,0))/INDEX($K$16:$U$16,,MATCH($E95,Years,0)), 1/U$19),0) -> 0 | AI95: 0.7210628029 | AM95: 0 | AN95: 0 | AO95: 0 | AP95: 0 | AQ95: 0 | AR95: 0 | AS95: 1 | AT95: 0 | AU95: 0 | AW95: 0 | AX95: 0 | AY95: 0 | AZ95: 0 | BA95: 0 | BB95: 0 | BC95: 0 | BD95: 0 | BE95: 0.7210628029 | BF95: 0 | BG95: 0 | BH95: 0.7210628029 | BJ95: Minor Plant, Motor Vehicles & Mobile Plant - Other | BK95: Non SI Costs | BL95: Contingency/risk
A96: Shared | B96: Shared | C96: $Millions | E96: 2025 | F96: 2023 | H96: 0.300183413 | I96: Other | J96: Communications (short life) | L96: 0 | M96: 0 | N96: 0 | O96: 0.9523330544 | P96: 0.04766694565 | Q96: 0 | R96: 0 | S96: 0 | T96: 0 | U96: 0 | V96: 1 | W96: 0 | X96: =IFERROR($H96*K96 *IF($E96<>"Nominal",INDEX($K$16:$U$16,,MATCH($F96,Years,0))/INDEX($K$16:$U$16,,MATCH($E96,Years,0)), 1/K$19),0) -> 0 | Y96: =IFERROR($H96*L96 *IF($E96<>"Nominal",INDEX($K$16:$U$16,,MATCH($F96,Years,0))/INDEX($K$16:$U$16,,MATCH($E96,Years,0)), 1/L$19),0) -> 0 | Z96: =IFERROR($H96*M96 *IF($E96<>"Nominal",INDEX($K$16:$U$16,,MATCH($F96,Years,0))/INDEX($K$16:$U$16,,MATCH($E96,Years,0)), 1/M$19),0) -> 0 | AA96: =IFERROR($H96*N96 *IF($E96<>"Nominal",INDEX($K$16:$U$16,,MATCH($F96,Years,0))/INDEX($K$16:$U$16,,MATCH($E96,Years,0)), 1/N$19),0) -> 0 | AB96: =IFERROR($H96*O96 *IF($E96<>"Nominal",INDEX($K$16:$U$16,,MATCH($F96,Years,0))/INDEX($K$16:$U$16,,MATCH($E96,Years,0)), 1/O$19),0) -> 0.2697348781 | AC96: =IFERROR($H96*P96 *IF($E96<>"Nominal",INDEX($K$16:$U$16,,MATCH($F96,Years,0))/INDEX($K$16:$U$16,,MATCH($E96,Years,0)), 1/P$19),0) -> 0.01350098867 | AD96: =IFERROR($H96*Q96 *IF($E96<>"Nominal",INDEX($K$16:$U$16,,MATCH($F96,Years,0))/INDEX($K$16:$U$16,,MATCH($E96,Years,0)), 1/Q$19),0) -> 0 | AE96: =IFERROR($H96*R96 *IF($E96<>"Nominal",INDEX($K$16:$U$16,,MATCH($F96,Years,0))/INDEX($K$16:$U$16,,MATCH($E96,Years,0)), 1/R$19),0) -> 0 | AF96: =IFERROR($H96*S96 *IF($E96<>"Nominal",INDEX($K$16:$U$16,,MATCH($F96,Years,0))/INDEX($K$16:$U$16,,MATCH($E96,Years,0)), 1/S$19),0) -> 0 | AG96: =IFERROR($H96*T96 *IF($E96<>"Nominal",INDEX($K$16:$U$16,,MATCH($F96,Years,0))/INDEX($K$16:$U$16,,MATCH($E96,Years,0)), 1/T$19),0) -> 0 | AH96: =IFERROR($H96*U96 *IF($E96<>"Nominal",INDEX($K$16:$U$16,,MATCH($F96,Years,0))/INDEX($K$16:$U$16,,MATCH($E96,Years,0)), 1/U$19),0) -> 0 | AI96: 0.2832358668 | AM96: 0 | AN96: 0 | AO96: 0.8638098236 | AP96: 0.1361901764 | AQ96: 0 | AR96: 0 | AS96: 0 | AT96: 0 | AU96: 0 | AW96: 0 | AX96: 0 | AY96: 0 | AZ96: 0 | BA96: 0.2446619241 | BB96: 0.03857394265 | BC96: 0 | BD96: 0 | BE96: 0 | BF96: 0 | BG96: 0 | BH96: 0.2832358668 | BJ96: Communications (short life) - Other | BK96: Non SI Costs | BL96: Program implementation
A97: Shared | B97: Shared | C97: $Millions | E97: 2025 | F97: 2023 | H97: 0.1966171324 | I97: Other | J97: Business IT | L97: 0 | M97: 0 | N97: 0 | O97: 0.9523330544 | P97: 0.04766694565 | Q97: 0 | R97: 0 | S97: 0 | T97: 0 | U97: 0 | V97: 1 | W97: 0 | X97: =IFERROR($H97*K97 *IF($E97<>"Nominal",INDEX($K$16:$U$16,,MATCH($F97,Years,0))/INDEX($K$16:$U$16,,MATCH($E97,Years,0)), 1/K$19),0) -> 0 | Y97: =IFERROR($H97*L97 *IF($E97<>"Nominal",INDEX($K$16:$U$16,,MATCH($F97,Years,0))/INDEX($K$16:$U$16,,MATCH($E97,Years,0)), 1/L$19),0) -> 0 | Z97: =IFERROR($H97*M97 *IF($E97<>"Nominal",INDEX($K$16:$U$16,,MATCH($F97,Years,0))/INDEX($K$16:$U$16,,MATCH($E97,Years,0)), 1/M$19),0) -> 0 | AA97: =IFERROR($H97*N97 *IF($E97<>"Nominal",INDEX($K$16:$U$16,,MATCH($F97,Years,0))/INDEX($K$16:$U$16,,MATCH($E97,Years,0)), 1/N$19),0) -> 0 | AB97: =IFERROR($H97*O97 *IF($E97<>"Nominal",INDEX($K$16:$U$16,,MATCH($F97,Years,0))/INDEX($K$16:$U$16,,MATCH($E97,Years,0)), 1/O$19),0) -> 0.1766736466 | AC97: =IFERROR($H97*P97 *IF($E97<>"Nominal",INDEX($K$16:$U$16,,MATCH($F97,Years,0))/INDEX($K$16:$U$16,,MATCH($E97,Years,0)), 1/P$19),0) -> 0.008843012506 | AD97: =IFERROR($H97*Q97 *IF($E97<>"Nominal",INDEX($K$16:$U$16,,MATCH($F97,Years,0))/INDEX($K$16:$U$16,,MATCH($E97,Years,0)), 1/Q$19),0) -> 0 | AE97: =IFERROR($H97*R97 *IF($E97<>"Nominal",INDEX($K$16:$U$16,,MATCH($F97,Years,0))/INDEX($K$16:$U$16,,MATCH($E97,Years,0)), 1/R$19),0) -> 0 | AF97: =IFERROR($H97*S97 *IF($E97<>"Nominal",INDEX($K$16:$U$16,,MATCH($F97,Years,0))/INDEX($K$16:$U$16,,MATCH($E97,Years,0)), 1/S$19),0) -> 0 | AG97: =IFERROR($H97*T97 *IF($E97<>"Nominal",INDEX($K$16:$U$16,,MATCH($F97,Years,0))/INDEX($K$16:$U$16,,MATCH($E97,Years,0)), 1/T$19),0) -> 0 | AH97: =IFERROR($H97*U97 *IF($E97<>"Nominal",INDEX($K$16:$U$16,,MATCH($F97,Years,0))/INDEX($K$16:$U$16,,MATCH($E97,Years,0)), 1/U$19),0) -> 0 | AI97: 0.1855166591 | AM97: 0 | AN97: 0 | AO97: 0.8638098236 | AP97: 0.1361901764 | AQ97: 0 | AR97: 0 | AS97: 0 | AT97: 0 | AU97: 0 | AW97: 0 | AX97: 0 | AY97: 0 | AZ97: 0 | BA97: 0.1602511126 | BB97: 0.02526554652 | BC97: 0 | BD97: 0 | BE97: 0 | BF97: 0 | BG97: 0 | BH97: 0.1855166591 | BJ97: Business IT - Other | BK97: Non SI Costs | BL97: Program implementation
A98: Shared | B98: Shared | C98: $Millions | E98: 2025 | F98: 2023 | H98: 0.02414745461 | I98: Other | J98: Minor Plant, Motor Vehicles & Mobile Plant | L98: 0 | M98: 0 | N98: 0 | O98: 0.9523330544 | P98: 0.04766694565 | Q98: 0 | R98: 0 | S98: 0 | T98: 0 | U98: 0 | V98: 1 | W98: 0 | X98: =IFERROR($H98*K98 *IF($E98<>"Nominal",INDEX($K$16:$U$16,,MATCH($F98,Years,0))/INDEX($K$16:$U$16,,MATCH($E98,Years,0)), 1/K$19),0) -> 0 | Y98: =IFERROR($H98*L98 *IF($E98<>"Nominal",INDEX($K$16:$U$16,,MATCH($F98,Years,0))/INDEX($K$16:$U$16,,MATCH($E98,Years,0)), 1/L$19),0) -> 0 | Z98: =IFERROR($H98*M98 *IF($E98<>"Nominal",INDEX($K$16:$U$16,,MATCH($F98,Years,0))/INDEX($K$16:$U$16,,MATCH($E98,Years,0)), 1/M$19),0) -> 0 | AA98: =IFERROR($H98*N98 *IF($E98<>"Nominal",INDEX($K$16:$U$16,,MATCH($F98,Years,0))/INDEX($K$16:$U$16,,MATCH($E98,Years,0)), 1/N$19),0) -> 0 | AB98: =IFERROR($H98*O98 *IF($E98<>"Nominal",INDEX($K$16:$U$16,,MATCH($F98,Years,0))/INDEX($K$16:$U$16,,MATCH($E98,Years,0)), 1/O$19),0) -> 0.02169810337 | AC98: =IFERROR($H98*P98 *IF($E98<>"Nominal",INDEX($K$16:$U$16,,MATCH($F98,Years,0))/INDEX($K$16:$U$16,,MATCH($E98,Years,0)), 1/P$19),0) -> 0.00108605105 | AD98: =IFERROR($H98*Q98 *IF($E98<>"Nominal",INDEX($K$16:$U$16,,MATCH($F98,Years,0))/INDEX($K$16:$U$16,,MATCH($E98,Years,0)), 1/Q$19),0) -> 0 | AE98: =IFERROR($H98*R98 *IF($E98<>"Nominal",INDEX($K$16:$U$16,,MATCH($F98,Years,0))/INDEX($K$16:$U$16,,MATCH($E98,Years,0)), 1/R$19),0) -> 0 | AF98: =IFERROR($H98*S98 *IF($E98<>"Nominal",INDEX($K$16:$U$16,,MATCH($F98,Years,0))/INDEX($K$16:$U$16,,MATCH($E98,Years,0)), 1/S$19),0) -> 0 | AG98: =IFERROR($H98*T98 *IF($E98<>"Nominal",INDEX($K$16:$U$16,,MATCH($F98,Years,0))/INDEX($K$16:$U$16,,MATCH($E98,Years,0)), 1/T$19),0) -> 0 | AH98: =IFERROR($H98*U98 *IF($E98<>"Nominal",INDEX($K$16:$U$16,,MATCH($F98,Years,0))/INDEX($K$16:$U$16,,MATCH($E98,Years,0)), 1/U$19),0) -> 0 | AI98: 0.02278415442 | AM98: 0 | AN98: 0 | AO98: 0.8638098236 | AP98: 0.1361901764 | AQ98: 0 | AR98: 0 | AS98: 0 | AT98: 0 | AU98: 0 | AW98: 0 | AX98: 0 | AY98: 0 | AZ98: 0 | BA98: 0.01968117641 | BB98: 0.003102978009 | BC98: 0 | BD98: 0 | BE98: 0 | BF98: 0 | BG98: 0 | BH98: 0.02278415442 | BJ98: Minor Plant, Motor Vehicles & Mobile Plant - Other | BK98: Non SI Costs | BL98: Program implementation
C99: $Millions | E99: 2025 | F99: 2023 | H99: 0 | L99: 0 | M99: 0 | N99: 0 | O99: 0 | P99: 0 | Q99: 0 | R99: 0 | S99: 0 | T99: 0 | U99: 0 | V99: 0 | W99: 0 | X99: =IFERROR($H99*K99 *IF($E99<>"Nominal",INDEX($K$16:$U$16,,MATCH($F99,Years,0))/INDEX($K$16:$U$16,,MATCH($E99,Years,0)), 1/K$19),0) -> 0 | Y99: =IFERROR($H99*L99 *IF($E99<>"Nominal",INDEX($K$16:$U$16,,MATCH($F99,Years,0))/INDEX($K$16:$U$16,,MATCH($E99,Years,0)), 1/L$19),0) -> 0 | Z99: =IFERROR($H99*M99 *IF($E99<>"Nominal",INDEX($K$16:$U$16,,MATCH($F99,Years,0))/INDEX($K$16:$U$16,,MATCH($E99,Years,0)), 1/M$19),0) -> 0 | AA99: =IFERROR($H99*N99 *IF($E99<>"Nominal",INDEX($K$16:$U$16,,MATCH($F99,Years,0))/INDEX($K$16:$U$16,,MATCH($E99,Years,0)), 1/N$19),0) -> 0 | AB99: =IFERROR($H99*O99 *IF($E99<>"Nominal",INDEX($K$16:$U$16,,MATCH($F99,Years,0))/INDEX($K$16:$U$16,,MATCH($E99,Years,0)), 1/O$19),0) -> 0 | AC99: =IFERROR($H99*P99 *IF($E99<>"Nominal",INDEX($K$16:$U$16,,MATCH($F99,Years,0))/INDEX($K$16:$U$16,,MATCH($E99,Years,0)), 1/P$19),0) -> 0 | AD99: =IFERROR($H99*Q99 *IF($E99<>"Nominal",INDEX($K$16:$U$16,,MATCH($F99,Years,0))/INDEX($K$16:$U$16,,MATCH($E99,Years,0)), 1/Q$19),0) -> 0 | AE99: =IFERROR($H99*R99 *IF($E99<>"Nominal",INDEX($K$16:$U$16,,MATCH($F99,Years,0))/INDEX($K$16:$U$16,,MATCH($E99,Years,0)), 1/R$19),0) -> 0 | AF99: =IFERROR($H99*S99 *IF($E99<>"Nominal",INDEX($K$16:$U$16,,MATCH($F99,Years,0))/INDEX($K$16:$U$16,,MATCH($E99,Years,0)), 1/S$19),0) -> 0 | AG99: =IFERROR($H99*T99 *IF($E99<>"Nominal",INDEX($K$16:$U$16,,MATCH($F99,Years,0))/INDEX($K$16:$U$16,,MATCH($E99,Years,0)), 1/T$19),0) -> 0 | AH99: =IFERROR($H99*U99 *IF($E99<>"Nominal",INDEX($K$16:$U$16,,MATCH($F99,Years,0))/INDEX($K$16:$U$16,,MATCH($E99,Years,0)), 1/U$19),0) -> 0 | AI99: 0 | AM99: 0 | AN99: 0 | AO99: 0 | AP99: 0 | AQ99: 0 | AR99: 0 | AS99: 0 | AT99: 0 | AU99: 0 | AW99: 0 | AX99: 0 | AY99: 0 | AZ99: 0 | BA99: 0 | BB99: 0 | BC99: 0 | BD99: 0 | BE99: 0 | BF99: 0 | BG99: 0 | BH99: 0 | BJ99: - | BK99: Non SI Costs
C100: $Millions | E100: 2025 | F100: 2023 | H100: 0 | L100: 0 | M100: 0 | N100: 0 | O100: 0 | P100: 0 | Q100: 0 | R100: 0 | S100: 0 | T100: 0 | U100: 0 | V100: 0 | W100: 0 | X100: =IFERROR($H100*K100 *IF($E100<>"Nominal",INDEX($K$16:$U$16,,MATCH($F100,Years,0))/INDEX($K$16:$U$16,,MATCH($E100,Years,0)), 1/K$19),0) -> 0 | Y100: =IFERROR($H100*L100 *IF($E100<>"Nominal",INDEX($K$16:$U$16,,MATCH($F100,Years,0))/INDEX($K$16:$U$16,,MATCH($E100,Years,0)), 1/L$19),0) -> 0 | Z100: =IFERROR($H100*M100 *IF($E100<>"Nominal",INDEX($K$16:$U$16,,MATCH($F100,Years,0))/INDEX($K$16:$U$16,,MATCH($E100,Years,0)), 1/M$19),0) -> 0 | AA100: =IFERROR($H100*N100 *IF($E100<>"Nominal",INDEX($K$16:$U$16,,MATCH($F100,Years,0))/INDEX($K$16:$U$16,,MATCH($E100,Years,0)), 1/N$19),0) -> 0 | AB100: =IFERROR($H100*O100 *IF($E100<>"Nominal",INDEX($K$16:$U$16,,MATCH($F100,Years,0))/INDEX($K$16:$U$16,,MATCH($E100,Years,0)), 1/O$19),0) -> 0 | AC100: =IFERROR($H100*P100 *IF($E100<>"Nominal",INDEX($K$16:$U$16,,MATCH($F100,Years,0))/INDEX($K$16:$U$16,,MATCH($E100,Years,0)), 1/P$19),0) -> 0 | AD100: =IFERROR($H100*Q100 *IF($E100<>"Nominal",INDEX($K$16:$U$16,,MATCH($F100,Years,0))/INDEX($K$16:$U$16,,MATCH($E100,Years,0)), 1/Q$19),0) -> 0 | AE100: =IFERROR($H100*R100 *IF($E100<>"Nominal",INDEX($K$16:$U$16,,MATCH($F100,Years,0))/INDEX($K$16:$U$16,,MATCH($E100,Years,0)), 1/R$19),0) -> 0 | AF100: =IFERROR($H100*S100 *IF($E100<>"Nominal",INDEX($K$16:$U$16,,MATCH($F100,Years,0))/INDEX($K$16:$U$16,,MATCH($E100,Years,0)), 1/S$19),0) -> 0 | AG100: =IFERROR($H100*T100 *IF($E100<>"Nominal",INDEX($K$16:$U$16,,MATCH($F100,Years,0))/INDEX($K$16:$U$16,,MATCH($E100,Years,0)), 1/T$19),0) -> 0 | AH100: =IFERROR($H100*U100 *IF($E100<>"Nominal",INDEX($K$16:$U$16,,MATCH($F100,Years,0))/INDEX($K$16:$U$16,,MATCH($E100,Years,0)), 1/U$19),0) -> 0 | AI100: 0 | AM100: 0 | AN100: 0 | AO100: 0 | AP100: 0 | AQ100: 0 | AR100: 0 | AS100: 0 | AT100: 0 | AU100: 0 | AW100: 0 | AX100: 0 | AY100: 0 | AZ100: 0 | BA100: 0 | BB100: 0 | BC100: 0 | BD100: 0 | BE100: 0 | BF100: 0 | BG100: 0 | BH100: 0 | BJ100: - | BK100: Non SI Costs
C101: $Millions | E101: 2025 | F101: 2023 | H101: 0 | L101: 0 | M101: 0 | N101: 0 | O101: 0 | P101: 0 | Q101: 0 | R101: 0 | S101: 0 | T101: 0 | U101: 0 | V101: 0 | W101: 0 | X101: =IFERROR($H101*K101 *IF($E101<>"Nominal",INDEX($K$16:$U$16,,MATCH($F101,Years,0))/INDEX($K$16:$U$16,,MATCH($E101,Years,0)), 1/K$19),0) -> 0 | Y101: =IFERROR($H101*L101 *IF($E101<>"Nominal",INDEX($K$16:$U$16,,MATCH($F101,Years,0))/INDEX($K$16:$U$16,,MATCH($E101,Years,0)), 1/L$19),0) -> 0 | Z101: =IFERROR($H101*M101 *IF($E101<>"Nominal",INDEX($K$16:$U$16,,MATCH($F101,Years,0))/INDEX($K$16:$U$16,,MATCH($E101,Years,0)), 1/M$19),0) -> 0 | AA101: =IFERROR($H101*N101 *IF($E101<>"Nominal",INDEX($K$16:$U$16,,MATCH($F101,Years,0))/INDEX($K$16:$U$16,,MATCH($E101,Years,0)), 1/N$19),0) -> 0 | AB101: =IFERROR($H101*O101 *IF($E101<>"Nominal",INDEX($K$16:$U$16,,MATCH($F101,Years,0))/INDEX($K$16:$U$16,,MATCH($E101,Years,0)), 1/O$19),0) -> 0 | AC101: =IFERROR($H101*P101 *IF($E101<>"Nominal",INDEX($K$16:$U$16,,MATCH($F101,Years,0))/INDEX($K$16:$U$16,,MATCH($E101,Years,0)), 1/P$19),0) -> 0 | AD101: =IFERROR($H101*Q101 *IF($E101<>"Nominal",INDEX($K$16:$U$16,,MATCH($F101,Years,0))/INDEX($K$16:$U$16,,MATCH($E101,Years,0)), 1/Q$19),0) -> 0 | AE101: =IFERROR($H101*R101 *IF($E101<>"Nominal",INDEX($K$16:$U$16,,MATCH($F101,Years,0))/INDEX($K$16:$U$16,,MATCH($E101,Years,0)), 1/R$19),0) -> 0 | AF101: =IFERROR($H101*S101 *IF($E101<>"Nominal",INDEX($K$16:$U$16,,MATCH($F101,Years,0))/INDEX($K$16:$U$16,,MATCH($E101,Years,0)), 1/S$19),0) -> 0 | AG101: =IFERROR($H101*T101 *IF($E101<>"Nominal",INDEX($K$16:$U$16,,MATCH($F101,Years,0))/INDEX($K$16:$U$16,,MATCH($E101,Years,0)), 1/T$19),0) -> 0 | AH101: =IFERROR($H101*U101 *IF($E101<>"Nominal",INDEX($K$16:$U$16,,MATCH($F101,Years,0))/INDEX($K$16:$U$16,,MATCH($E101,Years,0)), 1/U$19),0) -> 0 | AI101: 0 | AM101: 0 | AN101: 0 | AO101: 0 | AP101: 0 | AQ101: 0 | AR101: 0 | AS101: 0 | AT101: 0 | AU101: 0 | AW101: 0 | AX101: 0 | AY101: 0 | AZ101: 0 | BA101: 0 | BB101: 0 | BC101: 0 | BD101: 0 | BE101: 0 | BF101: 0 | BG101: 0 | BH101: 0 | BJ101: - | BK101: Non SI Costs
C102: $Millions | E102: 2025 | F102: 2023 | H102: 0 | L102: 0 | M102: 0 | N102: 0 | O102: 0 | P102: 0 | Q102: 0 | R102: 0 | S102: 0 | T102: 0 | U102: 0 | V102: 0 | W102: 0 | X102: =IFERROR($H102*K102 *IF($E102<>"Nominal",INDEX($K$16:$U$16,,MATCH($F102,Years,0))/INDEX($K$16:$U$16,,MATCH($E102,Years,0)), 1/K$19),0) -> 0 | Y102: =IFERROR($H102*L102 *IF($E102<>"Nominal",INDEX($K$16:$U$16,,MATCH($F102,Years,0))/INDEX($K$16:$U$16,,MATCH($E102,Years,0)), 1/L$19),0) -> 0 | Z102: =IFERROR($H102*M102 *IF($E102<>"Nominal",INDEX($K$16:$U$16,,MATCH($F102,Years,0))/INDEX($K$16:$U$16,,MATCH($E102,Years,0)), 1/M$19),0) -> 0 | AA102: =IFERROR($H102*N102 *IF($E102<>"Nominal",INDEX($K$16:$U$16,,MATCH($F102,Years,0))/INDEX($K$16:$U$16,,MATCH($E102,Years,0)), 1/N$19),0) -> 0 | AB102: =IFERROR($H102*O102 *IF($E102<>"Nominal",INDEX($K$16:$U$16,,MATCH($F102,Years,0))/INDEX($K$16:$U$16,,MATCH($E102,Years,0)), 1/O$19),0) -> 0 | AC102: =IFERROR($H102*P102 *IF($E102<>"Nominal",INDEX($K$16:$U$16,,MATCH($F102,Years,0))/INDEX($K$16:$U$16,,MATCH($E102,Years,0)), 1/P$19),0) -> 0 | AD102: =IFERROR($H102*Q102 *IF($E102<>"Nominal",INDEX($K$16:$U$16,,MATCH($F102,Years,0))/INDEX($K$16:$U$16,,MATCH($E102,Years,0)), 1/Q$19),0) -> 0 | AE102: =IFERROR($H102*R102 *IF($E102<>"Nominal",INDEX($K$16:$U$16,,MATCH($F102,Years,0))/INDEX($K$16:$U$16,,MATCH($E102,Years,0)), 1/R$19),0) -> 0 | AF102: =IFERROR($H102*S102 *IF($E102<>"Nominal",INDEX($K$16:$U$16,,MATCH($F102,Years,0))/INDEX($K$16:$U$16,,MATCH($E102,Years,0)), 1/S$19),0) -> 0 | AG102: =IFERROR($H102*T102 *IF($E102<>"Nominal",INDEX($K$16:$U$16,,MATCH($F102,Years,0))/INDEX($K$16:$U$16,,MATCH($E102,Years,0)), 1/T$19),0) -> 0 | AH102: =IFERROR($H102*U102 *IF($E102<>"Nominal",INDEX($K$16:$U$16,,MATCH($F102,Years,0))/INDEX($K$16:$U$16,,MATCH($E102,Years,0)), 1/U$19),0) -> 0 | AI102: 0 | AM102: 0 | AN102: 0 | AO102: 0 | AP102: 0 | AQ102: 0 | AR102: 0 | AS102: 0 | AT102: 0 | AU102: 0 | AW102: 0 | AX102: 0 | AY102: 0 | AZ102: 0 | BA102: 0 | BB102: 0 | BC102: 0 | BD102: 0 | BE102: 0 | BF102: 0 | BG102: 0 | BH102: 0 | BJ102: - | BK102: Non SI Costs
C103: $Millions | E103: 2025 | F103: 2023 | V103: 0 | W103: 0 | X103: =IFERROR($H103*K103 *IF($E103<>"Nominal",INDEX($K$16:$U$16,,MATCH($F103,Years,0))/INDEX($K$16:$U$16,,MATCH($E103,Years,0)), 1/K$19),0) -> 0 | Y103: =IFERROR($H103*L103 *IF($E103<>"Nominal",INDEX($K$16:$U$16,,MATCH($F103,Years,0))/INDEX($K$16:$U$16,,MATCH($E103,Years,0)), 1/L$19),0) -> 0 | Z103: =IFERROR($H103*M103 *IF($E103<>"Nominal",INDEX($K$16:$U$16,,MATCH($F103,Years,0))/INDEX($K$16:$U$16,,MATCH($E103,Years,0)), 1/M$19),0) -> 0 | AA103: =IFERROR($H103*N103 *IF($E103<>"Nominal",INDEX($K$16:$U$16,,MATCH($F103,Years,0))/INDEX($K$16:$U$16,,MATCH($E103,Years,0)), 1/N$19),0) -> 0 | AB103: =IFERROR($H103*O103 *IF($E103<>"Nominal",INDEX($K$16:$U$16,,MATCH($F103,Years,0))/INDEX($K$16:$U$16,,MATCH($E103,Years,0)), 1/O$19),0) -> 0 | AC103: =IFERROR($H103*P103 *IF($E103<>"Nominal",INDEX($K$16:$U$16,,MATCH($F103,Years,0))/INDEX($K$16:$U$16,,MATCH($E103,Years,0)), 1/P$19),0) -> 0 | AD103: =IFERROR($H103*Q103 *IF($E103<>"Nominal",INDEX($K$16:$U$16,,MATCH($F103,Years,0))/INDEX($K$16:$U$16,,MATCH($E103,Years,0)), 1/Q$19),0) -> 0 | AE103: =IFERROR($H103*R103 *IF($E103<>"Nominal",INDEX($K$16:$U$16,,MATCH($F103,Years,0))/INDEX($K$16:$U$16,,MATCH($E103,Years,0)), 1/R$19),0) -> 0 | AF103: =IFERROR($H103*S103 *IF($E103<>"Nominal",INDEX($K$16:$U$16,,MATCH($F103,Years,0))/INDEX($K$16:$U$16,,MATCH($E103,Years,0)), 1/S$19),0) -> 0 | AG103: =IFERROR($H103*T103 *IF($E103<>"Nominal",INDEX($K$16:$U$16,,MATCH($F103,Years,0))/INDEX($K$16:$U$16,,MATCH($E103,Years,0)), 1/T$19),0) -> 0 | AH103: =IFERROR($H103*U103 *IF($E103<>"Nominal",INDEX($K$16:$U$16,,MATCH($F103,Years,0))/INDEX($K$16:$U$16,,MATCH($E103,Years,0)), 1/U$19),0) -> 0 | AI103: 0 | AW103: 0 | AX103: 0 | AY103: 0 | AZ103: 0 | BA103: 0 | BB103: 0 | BC103: 0 | BD103: 0 | BE103: 0 | BF103: 0 | BG103: 0 | BH103: 0 | BJ103: - | BK103: Non SI Costs
C104: $Millions | E104: 2025 | F104: 2023 | V104: 0 | W104: 0 | X104: =IFERROR($H104*K104 *IF($E104<>"Nominal",INDEX($K$16:$U$16,,MATCH($F104,Years,0))/INDEX($K$16:$U$16,,MATCH($E104,Years,0)), 1/K$19),0) -> 0 | Y104: =IFERROR($H104*L104 *IF($E104<>"Nominal",INDEX($K$16:$U$16,,MATCH($F104,Years,0))/INDEX($K$16:$U$16,,MATCH($E104,Years,0)), 1/L$19),0) -> 0 | Z104: =IFERROR($H104*M104 *IF($E104<>"Nominal",INDEX($K$16:$U$16,,MATCH($F104,Years,0))/INDEX($K$16:$U$16,,MATCH($E104,Years,0)), 1/M$19),0) -> 0 | AA104: =IFERROR($H104*N104 *IF($E104<>"Nominal",INDEX($K$16:$U$16,,MATCH($F104,Years,0))/INDEX($K$16:$U$16,,MATCH($E104,Years,0)), 1/N$19),0) -> 0 | AB104: =IFERROR($H104*O104 *IF($E104<>"Nominal",INDEX($K$16:$U$16,,MATCH($F104,Years,0))/INDEX($K$16:$U$16,,MATCH($E104,Years,0)), 1/O$19),0) -> 0 | AC104: =IFERROR($H104*P104 *IF($E104<>"Nominal",INDEX($K$16:$U$16,,MATCH($F104,Years,0))/INDEX($K$16:$U$16,,MATCH($E104,Years,0)), 1/P$19),0) -> 0 | AD104: =IFERROR($H104*Q104 *IF($E104<>"Nominal",INDEX($K$16:$U$16,,MATCH($F104,Years,0))/INDEX($K$16:$U$16,,MATCH($E104,Years,0)), 1/Q$19),0) -> 0 | AE104: =IFERROR($H104*R104 *IF($E104<>"Nominal",INDEX($K$16:$U$16,,MATCH($F104,Years,0))/INDEX($K$16:$U$16,,MATCH($E104,Years,0)), 1/R$19),0) -> 0 | AF104: =IFERROR($H104*S104 *IF($E104<>"Nominal",INDEX($K$16:$U$16,,MATCH($F104,Years,0))/INDEX($K$16:$U$16,,MATCH($E104,Years,0)), 1/S$19),0) -> 0 | AG104: =IFERROR($H104*T104 *IF($E104<>"Nominal",INDEX($K$16:$U$16,,MATCH($F104,Years,0))/INDEX($K$16:$U$16,,MATCH($E104,Years,0)), 1/T$19),0) -> 0 | AH104: =IFERROR($H104*U104 *IF($E104<>"Nominal",INDEX($K$16:$U$16,,MATCH($F104,Years,0))/INDEX($K$16:$U$16,,MATCH($E104,Years,0)), 1/U$19),0) -> 0 | AI104: 0 | AW104: 0 | AX104: 0 | AY104: 0 | AZ104: 0 | BA104: 0 | BB104: 0 | BC104: 0 | BD104: 0 | BE104: 0 | BF104: 0 | BG104: 0 | BH104: 0 | BJ104: - | BK104: Non SI Costs
C105: $Millions | E105: 2025 | F105: 2023 | V105: 0 | W105: 0 | X105: =IFERROR($H105*K105 *IF($E105<>"Nominal",INDEX($K$16:$U$16,,MATCH($F105,Years,0))/INDEX($K$16:$U$16,,MATCH($E105,Years,0)), 1/K$19),0) -> 0 | Y105: =IFERROR($H105*L105 *IF($E105<>"Nominal",INDEX($K$16:$U$16,,MATCH($F105,Years,0))/INDEX($K$16:$U$16,,MATCH($E105,Years,0)), 1/L$19),0) -> 0 | Z105: =IFERROR($H105*M105 *IF($E105<>"Nominal",INDEX($K$16:$U$16,,MATCH($F105,Years,0))/INDEX($K$16:$U$16,,MATCH($E105,Years,0)), 1/M$19),0) -> 0 | AA105: =IFERROR($H105*N105 *IF($E105<>"Nominal",INDEX($K$16:$U$16,,MATCH($F105,Years,0))/INDEX($K$16:$U$16,,MATCH($E105,Years,0)), 1/N$19),0) -> 0 | AB105: =IFERROR($H105*O105 *IF($E105<>"Nominal",INDEX($K$16:$U$16,,MATCH($F105,Years,0))/INDEX($K$16:$U$16,,MATCH($E105,Years,0)), 1/O$19),0) -> 0 | AC105: =IFERROR($H105*P105 *IF($E105<>"Nominal",INDEX($K$16:$U$16,,MATCH($F105,Years,0))/INDEX($K$16:$U$16,,MATCH($E105,Years,0)), 1/P$19),0) -> 0 | AD105: =IFERROR($H105*Q105 *IF($E105<>"Nominal",INDEX($K$16:$U$16,,MATCH($F105,Years,0))/INDEX($K$16:$U$16,,MATCH($E105,Years,0)), 1/Q$19),0) -> 0 | AE105: =IFERROR($H105*R105 *IF($E105<>"Nominal",INDEX($K$16:$U$16,,MATCH($F105,Years,0))/INDEX($K$16:$U$16,,MATCH($E105,Years,0)), 1/R$19),0) -> 0 | AF105: =IFERROR($H105*S105 *IF($E105<>"Nominal",INDEX($K$16:$U$16,,MATCH($F105,Years,0))/INDEX($K$16:$U$16,,MATCH($E105,Years,0)), 1/S$19),0) -> 0 | AG105: =IFERROR($H105*T105 *IF($E105<>"Nominal",INDEX($K$16:$U$16,,MATCH($F105,Years,0))/INDEX($K$16:$U$16,,MATCH($E105,Years,0)), 1/T$19),0) -> 0 | AH105: =IFERROR($H105*U105 *IF($E105<>"Nominal",INDEX($K$16:$U$16,,MATCH($F105,Years,0))/INDEX($K$16:$U$16,,MATCH($E105,Years,0)), 1/U$19),0) -> 0 | AI105: =SUM(X105:AH105) -> 0 | AW105: =$AI105*AK105 -> 0 | AX105: 0 | AY105: 0 | AZ105: 0 | BA105: 0 | BB105: 0 | BC105: 0 | BD105: 0 | BE105: 0 | BF105: 0 | BG105: 0 | BH105: =SUM(AW105:BG105) -> 0 | BJ105: - | BK105: Non SI Costs
C106: $Millions | E106: 2025 | F106: 2023 | H106: 0 | V106: 0 | W106: 0 | X106: =IFERROR($H106*K106 *IF($E106<>"Nominal",INDEX($K$16:$U$16,,MATCH($F106,Years,0))/INDEX($K$16:$U$16,,MATCH($E106,Years,0)), 1/K$19),0) -> 0 | Y106: =IFERROR($H106*L106 *IF($E106<>"Nominal",INDEX($K$16:$U$16,,MATCH($F106,Years,0))/INDEX($K$16:$U$16,,MATCH($E106,Years,0)), 1/L$19),0) -> 0 | Z106: =IFERROR($H106*M106 *IF($E106<>"Nominal",INDEX($K$16:$U$16,,MATCH($F106,Years,0))/INDEX($K$16:$U$16,,MATCH($E106,Years,0)), 1/M$19),0) -> 0 | AA106: =IFERROR($H106*N106 *IF($E106<>"Nominal",INDEX($K$16:$U$16,,MATCH($F106,Years,0))/INDEX($K$16:$U$16,,MATCH($E106,Years,0)), 1/N$19),0) -> 0 | AB106: =IFERROR($H106*O106 *IF($E106<>"Nominal",INDEX($K$16:$U$16,,MATCH($F106,Years,0))/INDEX($K$16:$U$16,,MATCH($E106,Years,0)), 1/O$19),0) -> 0 | AC106: =IFERROR($H106*P106 *IF($E106<>"Nominal",INDEX($K$16:$U$16,,MATCH($F106,Years,0))/INDEX($K$16:$U$16,,MATCH($E106,Years,0)), 1/P$19),0) -> 0 | AD106: =IFERROR($H106*Q106 *IF($E106<>"Nominal",INDEX($K$16:$U$16,,MATCH($F106,Years,0))/INDEX($K$16:$U$16,,MATCH($E106,Years,0)), 1/Q$19),0) -> 0 | AE106: =IFERROR($H106*R106 *IF($E106<>"Nominal",INDEX($K$16:$U$16,,MATCH($F106,Years,0))/INDEX($K$16:$U$16,,MATCH($E106,Years,0)), 1/R$19),0) -> 0 | AF106: =IFERROR($H106*S106 *IF($E106<>"Nominal",INDEX($K$16:$U$16,,MATCH($F106,Years,0))/INDEX($K$16:$U$16,,MATCH($E106,Years,0)), 1/S$19),0) -> 0 | AG106: =IFERROR($H106*T106 *IF($E106<>"Nominal",INDEX($K$16:$U$16,,MATCH($F106,Years,0))/INDEX($K$16:$U$16,,MATCH($E106,Years,0)), 1/T$19),0) -> 0 | AH106: =IFERROR($H106*U106 *IF($E106<>"Nominal",INDEX($K$16:$U$16,,MATCH($F106,Years,0))/INDEX($K$16:$U$16,,MATCH($E106,Years,0)), 1/U$19),0) -> 0 | AI106: =SUM(X106:AH106) -> 0 | AW106: 0 | AX106: 0 | AY106: 0 | AZ106: 0 | BA106: 0 | BB106: 0 | BC106: 0 | BD106: 0 | BE106: 0 | BF106: 0 | BG106: 0 | BH106: =SUM(AW106:BG106) -> 0 | BJ106: - | BK106: Non SI Costs
H108: =SUM(H27:H106) -> 128.0646113 | I108: ◄ Notional sum with various dollar basis for cross check only | W108: Total Direct Non Labour | X108: =SUM(X27:X106) -> 0 | Y108: 0 | Z108: 0 | AA108: 0 | AB108: 14.25745999 | AC108: 37.36957427 | AD108: 26.40377748 | AE108: 31.83347394 | AF108: 10.97014293 | AG108: 0 | AH108: 0 | AI108: 120.8344286 | AW108: =SUM(AW27:AW106) -> 0 | AX108: 0 | AY108: 0 | AZ108: 0 | BA108: 1.754989414 | BB108: 10.61927441 | BC108: 57.62567722 | BD108: 0 | BE108: 50.83448757 | BF108: 0 | BG108: 0 | BH108: 120.8344286
H109: 0 | V109: =IF(SUM(W27:W106)=0,0,1) -> 0
A110: Direct Non-Labour Costs | By Capex Category | X110: ="$ Spend Profile - As incurred (June "&$F$27&" dollars)" -> $ Spend Profile - As incurred (June 2023 dollars) | AW110: ="Direct Expenditure - As Commmissioned Profile (June "&$F$27&" dollars)" -> Direct Expenditure - As Commmissioned Profile (June 2023 dollars)
A111: Category | B111: RAB Asset class | C111: Source | D111: Units | X111: =K$26 -> 2023 | Y111: =L$26 -> 2024 | Z111: =M$26 -> 2025 | AA111: =N$26 -> 2026 | AB111: =O$26 -> 2027 | AC111: =P$26 -> 2028 | AD111: 2029 | AE111: 2030 | AF111: 2031 | AG111: 2032 | AH111: 2033 | AI111: Total | AW111: =AK$26 -> 2023 | AX111: =AL$26 -> 2024 | AY111: =AM$26 -> 2025 | AZ111: =AN$26 -> 2026 | BA111: 2027 | BB111: 2028 | BC111: 2029 | BD111: 2030 | BE111: 2031 | BF111: 2032 | BG111: 2033 | BH111: Total
A112: =A204 -> Communications (short life) - SCADA, network control and protection systems | B112: Communications (short life) | C112: Calculated | D112: $Millions | X112: =SUM(X$27:X$106*($BJ$27:$BJ$106=$A112)) -> 0 | Y112: =SUM(Y$27:Y$106*($BJ$27:$BJ$106=$A112)) -> 0 | Z112: =SUM(Z$27:Z$106*($BJ$27:$BJ$106=$A112)) -> 0 | AA112: =SUM(AA$27:AA$106*($BJ$27:$BJ$106=$A112)) -> 0 | AB112: =SUM(AB$27:AB$106*($BJ$27:$BJ$106=$A112)) -> 0.66942447 | AC112: =SUM(AC$27:AC$106*($BJ$27:$BJ$106=$A112)) -> 9.49949887 | AD112: =SUM(AD$27:AD$106*($BJ$27:$BJ$106=$A112)) -> 14.43572156 | AE112: =SUM(AE$27:AE$106*($BJ$27:$BJ$106=$A112)) -> 27.67146201 | AF112: =SUM(AF$27:AF$106*($BJ$27:$BJ$106=$A112)) -> 7.778572183 | AG112: =SUM(AG$27:AG$106*($BJ$27:$BJ$106=$A112)) -> 0 | AH112: =SUM(AH$27:AH$106*($BJ$27:$BJ$106=$A112)) -> 0 | AI112: =SUM(X112:AH112) -> 60.0546791 | AW112: =SUM(AW$27:AW$106*($BJ$27:$BJ$106=$A112)) -> 0 | AX112: =SUM(AX$27:AX$106*($BJ$27:$BJ$106=$A112)) -> 0 | AY112: =SUM(AY$27:AY$106*($BJ$27:$BJ$106=$A112)) -> 0 | AZ112: =SUM(AZ$27:AZ$106*($BJ$27:$BJ$106=$A112)) -> 0 | BA112: =SUM(BA$27:BA$106*($BJ$27:$BJ$106=$A112)) -> 0 | BB112: =SUM(BB$27:BB$106*($BJ$27:$BJ$106=$A112)) -> 0 | BC112: =SUM(BC$27:BC$106*($BJ$27:$BJ$106=$A112)) -> 26.2291819 | BD112: =SUM(BD$27:BD$106*($BJ$27:$BJ$106=$A112)) -> 0 | BE112: =SUM(BE$27:BE$106*($BJ$27:$BJ$106=$A112)) -> 33.8254972 | BF112: =SUM(BF$27:BF$106*($BJ$27:$BJ$106=$A112)) -> 0 | BG112: =SUM(BG$27:BG$106*($BJ$27:$BJ$106=$A112)) -> 0 | BH112: =SUM(AW112:BG112) -> 60.0546791
A113: Communications (short life) - Other | B113: Communications (short life) | C113: Calculated | D113: $Millions | X113: =SUM(X$27:X$106*($BJ$27:$BJ$106=$A113)) -> 0 | Y113: =SUM(Y$27:Y$106*($BJ$27:$BJ$106=$A113)) -> 0 | Z113: =SUM(Z$27:Z$106*($BJ$27:$BJ$106=$A113)) -> 0 | AA113: =SUM(AA$27:AA$106*($BJ$27:$BJ$106=$A113)) -> 0 | AB113: =SUM(AB$27:AB$106*($BJ$27:$BJ$106=$A113)) -> 2.124298248 | AC113: =SUM(AC$27:AC$106*($BJ$27:$BJ$106=$A113)) -> 1.868064358 | AD113: =SUM(AD$27:AD$106*($BJ$27:$BJ$106=$A113)) -> 1.85456337 | AE113: =SUM(AE$27:AE$106*($BJ$27:$BJ$106=$A113)) -> 1.85456337 | AF113: =SUM(AF$27:AF$106*($BJ$27:$BJ$106=$A113)) -> 1.545469475 | AG113: =SUM(AG$27:AG$106*($BJ$27:$BJ$106=$A113)) -> 0 | AH113: =SUM(AH$27:AH$106*($BJ$27:$BJ$106=$A113)) -> 0 | AI113: 9.24695882 | AW113: =SUM(AW$27:AW$106*($BJ$27:$BJ$106=$A113)) -> 0 | AX113: =SUM(AX$27:AX$106*($BJ$27:$BJ$106=$A113)) -> 0 | AY113: =SUM(AY$27:AY$106*($BJ$27:$BJ$106=$A113)) -> 0 | AZ113: =SUM(AZ$27:AZ$106*($BJ$27:$BJ$106=$A113)) -> 0 | BA113: =SUM(BA$27:BA$106*($BJ$27:$BJ$106=$A113)) -> 0.2446619241 | BB113: =SUM(BB$27:BB$106*($BJ$27:$BJ$106=$A113)) -> 0.03857394265 | BC113: =SUM(BC$27:BC$106*($BJ$27:$BJ$106=$A113)) -> 0 | BD113: =SUM(BD$27:BD$106*($BJ$27:$BJ$106=$A113)) -> 0 | BE113: =SUM(BE$27:BE$106*($BJ$27:$BJ$106=$A113)) -> 8.963722954 | BF113: =SUM(BF$27:BF$106*($BJ$27:$BJ$106=$A113)) -> 0 | BG113: =SUM(BG$27:BG$106*($BJ$27:$BJ$106=$A113)) -> 0 | BH113: 9.24695882
A114: Business IT - SCADA, network control and protection systems | B114: Business IT | C114: Calculated | D114: $Millions | X114: =SUM(X$27:X$106*($BJ$27:$BJ$106=$A114)) -> 0 | Y114: =SUM(Y$27:Y$106*($BJ$27:$BJ$106=$A114)) -> 0 | Z114: =SUM(Z$27:Z$106*($BJ$27:$BJ$106=$A114)) -> 0 | AA114: =SUM(AA$27:AA$106*($BJ$27:$BJ$106=$A114)) -> 0 | AB114: =SUM(AB$27:AB$106*($BJ$27:$BJ$106=$A114)) -> 2.724479534 | AC114: =SUM(AC$27:AC$106*($BJ$27:$BJ$106=$A114)) -> 7.314457619 | AD114: =SUM(AD$27:AD$106*($BJ$27:$BJ$106=$A114)) -> 0 | AE114: =SUM(AE$27:AE$106*($BJ$27:$BJ$106=$A114)) -> 0 | AF114: =SUM(AF$27:AF$106*($BJ$27:$BJ$106=$A114)) -> 0 | AG114: =SUM(AG$27:AG$106*($BJ$27:$BJ$106=$A114)) -> 0 | AH114: =SUM(AH$27:AH$106*($BJ$27:$BJ$106=$A114)) -> 0 | AI114: 10.03893715 | AW114: =SUM(AW$27:AW$106*($BJ$27:$BJ$106=$A114)) -> 0 | AX114: =SUM(AX$27:AX$106*($BJ$27:$BJ$106=$A114)) -> 0 | AY114: =SUM(AY$27:AY$106*($BJ$27:$BJ$106=$A114)) -> 0 | AZ114: =SUM(AZ$27:AZ$106*($BJ$27:$BJ$106=$A114)) -> 0 | BA114: =SUM(BA$27:BA$106*($BJ$27:$BJ$106=$A114)) -> 0 | BB114: =SUM(BB$27:BB$106*($BJ$27:$BJ$106=$A114)) -> 2.724479534 | BC114: =SUM(BC$27:BC$106*($BJ$27:$BJ$106=$A114)) -> 7.314457619 | BD114: =SUM(BD$27:BD$106*($BJ$27:$BJ$106=$A114)) -> 0 | BE114: =SUM(BE$27:BE$106*($BJ$27:$BJ$106=$A114)) -> 0 | BF114: =SUM(BF$27:BF$106*($BJ$27:$BJ$106=$A114)) -> 0 | BG114: =SUM(BG$27:BG$106*($BJ$27:$BJ$106=$A114)) -> 0 | BH114: 10.03893715
A115: Business IT - Other | B115: Business IT | C115: Calculated | D115: $Millions | X115: =SUM(X$27:X$106*($BJ$27:$BJ$106=$A115)) -> 0 | Y115: =SUM(Y$27:Y$106*($BJ$27:$BJ$106=$A115)) -> 0 | Z115: =SUM(Z$27:Z$106*($BJ$27:$BJ$106=$A115)) -> 0 | AA115: =SUM(AA$27:AA$106*($BJ$27:$BJ$106=$A115)) -> 0 | AB115: =SUM(AB$27:AB$106*($BJ$27:$BJ$106=$A115)) -> 4.692772601 | AC115: =SUM(AC$27:AC$106*($BJ$27:$BJ$106=$A115)) -> 18.09145804 | AD115: =SUM(AD$27:AD$106*($BJ$27:$BJ$106=$A115)) -> 9.964307143 | AE115: =SUM(AE$27:AE$106*($BJ$27:$BJ$106=$A115)) -> 2.158263149 | AF115: =SUM(AF$27:AF$106*($BJ$27:$BJ$106=$A115)) -> 1.012267044 | AG115: =SUM(AG$27:AG$106*($BJ$27:$BJ$106=$A115)) -> 0 | AH115: =SUM(AH$27:AH$106*($BJ$27:$BJ$106=$A115)) -> 0 | AI115: 35.91906797 | AW115: =SUM(AW$27:AW$106*($BJ$27:$BJ$106=$A115)) -> 0 | AX115: =SUM(AX$27:AX$106*($BJ$27:$BJ$106=$A115)) -> 0 | AY115: =SUM(AY$27:AY$106*($BJ$27:$BJ$106=$A115)) -> 0 | AZ115: =SUM(AZ$27:AZ$106*($BJ$27:$BJ$106=$A115)) -> 0 | BA115: =SUM(BA$27:BA$106*($BJ$27:$BJ$106=$A115)) -> 0.1602511126 | BB115: =SUM(BB$27:BB$106*($BJ$27:$BJ$106=$A115)) -> 4.86208761 | BC115: =SUM(BC$27:BC$106*($BJ$27:$BJ$106=$A115)) -> 24.0820377 | BD115: =SUM(BD$27:BD$106*($BJ$27:$BJ$106=$A115)) -> 0 | BE115: =SUM(BE$27:BE$106*($BJ$27:$BJ$106=$A115)) -> 6.814691553 | BF115: =SUM(BF$27:BF$106*($BJ$27:$BJ$106=$A115)) -> 0 | BG115: =SUM(BG$27:BG$106*($BJ$27:$BJ$106=$A115)) -> 0 | BH115: 35.91906797
A116: Minor Plant, Motor Vehicles & Mobile Plant - Other | B116: Minor Plant, Motor Vehicles & Mobile Plant | C116: Calculated | D116: $Millions | X116: =SUM(X$27:X$106*($BJ$27:$BJ$106=$A116)) -> 0 | Y116: =SUM(Y$27:Y$106*($BJ$27:$BJ$106=$A116)) -> 0 | Z116: =SUM(Z$27:Z$106*($BJ$27:$BJ$106=$A116)) -> 0 | AA116: =SUM(AA$27:AA$106*($BJ$27:$BJ$106=$A116)) -> 0 | AB116: =SUM(AB$27:AB$106*($BJ$27:$BJ$106=$A116)) -> 4.046485134 | AC116: =SUM(AC$27:AC$106*($BJ$27:$BJ$106=$A116)) -> 0.5960953823 | AD116: =SUM(AD$27:AD$106*($BJ$27:$BJ$106=$A116)) -> 0.1491854075 | AE116: =SUM(AE$27:AE$106*($BJ$27:$BJ$106=$A116)) -> 0.1491854075 | AF116: =SUM(AF$27:AF$106*($BJ$27:$BJ$106=$A116)) -> 0.6338342287 | AG116: =SUM(AG$27:AG$106*($BJ$27:$BJ$106=$A116)) -> 0 | AH116: =SUM(AH$27:AH$106*($BJ$27:$BJ$106=$A116)) -> 0 | AI116: 5.57478556 | AW116: =SUM(AW$27:AW$106*($BJ$27:$BJ$106=$A116)) -> 0 | AX116: =SUM(AX$27:AX$106*($BJ$27:$BJ$106=$A116)) -> 0 | AY116: =SUM(AY$27:AY$106*($BJ$27:$BJ$106=$A116)) -> 0 | AZ116: =SUM(AZ$27:AZ$106*($BJ$27:$BJ$106=$A116)) -> 0 | BA116: =SUM(BA$27:BA$106*($BJ$27:$BJ$106=$A116)) -> 1.350076378 | BB116: =SUM(BB$27:BB$106*($BJ$27:$BJ$106=$A116)) -> 2.994133324 | BC116: =SUM(BC$27:BC$106*($BJ$27:$BJ$106=$A116)) -> 0 | BD116: =SUM(BD$27:BD$106*($BJ$27:$BJ$106=$A116)) -> 0 | BE116: =SUM(BE$27:BE$106*($BJ$27:$BJ$106=$A116)) -> 1.230575859 | BF116: =SUM(BF$27:BF$106*($BJ$27:$BJ$106=$A116)) -> 0 | BG116: =SUM(BG$27:BG$106*($BJ$27:$BJ$106=$A116)) -> 0 | BH116: 5.57478556
A117: [Spare 1] - [Spare 2] | B117: [Spare 1] | C117: Calculated | D117: $Millions | X117: =SUM(X$27:X$106*($BJ$27:$BJ$106=$A117)) -> 0 | Y117: =SUM(Y$27:Y$106*($BJ$27:$BJ$106=$A117)) -> 0 | Z117: =SUM(Z$27:Z$106*($BJ$27:$BJ$106=$A117)) -> 0 | AA117: =SUM(AA$27:AA$106*($BJ$27:$BJ$106=$A117)) -> 0 | AB117: =SUM(AB$27:AB$106*($BJ$27:$BJ$106=$A117)) -> 0 | AC117: =SUM(AC$27:AC$106*($BJ$27:$BJ$106=$A117)) -> 0 | AD117: =SUM(AD$27:AD$106*($BJ$27:$BJ$106=$A117)) -> 0 | AE117: =SUM(AE$27:AE$106*($BJ$27:$BJ$106=$A117)) -> 0 | AF117: =SUM(AF$27:AF$106*($BJ$27:$BJ$106=$A117)) -> 0 | AG117: =SUM(AG$27:AG$106*($BJ$27:$BJ$106=$A117)) -> 0 | AH117: =SUM(AH$27:AH$106*($BJ$27:$BJ$106=$A117)) -> 0 | AI117: 0 | AW117: =SUM(AW$27:AW$106*($BJ$27:$BJ$106=$A117)) -> 0 | AX117: =SUM(AX$27:AX$106*($BJ$27:$BJ$106=$A117)) -> 0 | AY117: =SUM(AY$27:AY$106*($BJ$27:$BJ$106=$A117)) -> 0 | AZ117: =SUM(AZ$27:AZ$106*($BJ$27:$BJ$106=$A117)) -> 0 | BA117: =SUM(BA$27:BA$106*($BJ$27:$BJ$106=$A117)) -> 0 | BB117: =SUM(BB$27:BB$106*($BJ$27:$BJ$106=$A117)) -> 0 | BC117: =SUM(BC$27:BC$106*($BJ$27:$BJ$106=$A117)) -> 0 | BD117: =SUM(BD$27:BD$106*($BJ$27:$BJ$106=$A117)) -> 0 | BE117: =SUM(BE$27:BE$106*($BJ$27:$BJ$106=$A117)) -> 0 | BF117: =SUM(BF$27:BF$106*($BJ$27:$BJ$106=$A117)) -> 0 | BG117: =SUM(BG$27:BG$106*($BJ$27:$BJ$106=$A117)) -> 0 | BH117: 0
W119: Total Direct Non Labour | X119: =SUM(X112:X117) -> 0 | Y119: 0 | Z119: 0 | AA119: 0 | AB119: 14.25745999 | AC119: 37.36957427 | AD119: 26.40377748 | AE119: 31.83347394 | AF119: 10.97014293 | AG119: 0 | AH119: 0 | AI119: 120.8344286 | AW119: =SUM(AW112:AW117) -> 0 | AX119: 0 | AY119: 0 | AZ119: 0 | BA119: 1.754989414 | BB119: 10.61927441 | BC119: 57.62567722 | BD119: 0 | BE119: 50.83448757 | BF119: 0 | BG119: 0 | BH119: 120.8344286
X120: =IF(ROUND(X119-X108,3)=0,0,1) -> 0 | Y120: 0 | Z120: 0 | AA120: 0 | AB120: 0 | AC120: 0 | AD120: 0 | AE120: 0 | AF120: 0 | AG120: 0 | AH120: 0 | AI120: 0 | AW120: =IF(ROUND(AW119-AW108,3)=0,0,1) -> 0 | AX120: 0 | AY120: 0 | AZ120: 0 | BA120: 0 | BB120: 0 | BC120: 0 | BD120: 0 | BE120: 0 | BF120: 0 | BG120: 0 | BH120: 0
A122: Direct Labour and labour related
A124: Labour Costs | E124: Conversion | H124: Mapping | K124: ="Direct Labour and Direct Labour Related Costs (June "&E139&" dollars, unescalated)" -> Direct Labour and Direct Labour Related Costs (June 2023 dollars, unescalated)
A125: Component | B125: Source | C125: Units | E125: Dollar Yr | F125: Escalation Yr | K125: =K15 -> 2023 | L125: 2024 | M125: 2025 | N125: 2026 | O125: 2027 | P125: 2028 | Q125: 2029 | R125: 2030 | S125: 2031 | T125: 2032 | U125: 2033 | V125: Total
A126: Actuals (to 30 June 2025)
A127: ="Labour - "&H127 -> Labour - Corporate | B127: Transgrid | C127: $Millions | E127: 2023 | F127: n/a | H127: =Inputs!$A$247 -> Corporate | L127: 0.00034384144 | M127: 0.08321335974 | V127: =SUM(K127:U127) -> 0.08355720118
A128: ="Labour - "&H128 -> Labour - Asset Management | B128: Transgrid | C128: $Millions | E128: =$E$127 -> 2023 | F128: n/a | H128: =Inputs!$A$248 -> Asset Management | L128: 0.0005597147178 | M128: 0 | V128: 0.0005597147178
A129: Labour - Delivery | B129: Transgrid | C129: $Millions | E129: =$E$127 -> 2023 | F129: n/a | H129: =Inputs!$A$249 -> Delivery | L129: 0.06277978021 | M129: 0.09227980253 | V129: 0.1550595827
A130: Labour - Network Operations | B130: Transgrid | C130: $Millions | E130: 2023 | F130: n/a | H130: =Inputs!$A$250 -> Network Operations | L130: 0.4166266798 | M130: 2.922445777 | V130: 3.339072457
A131: Labour - Finance | B131: Transgrid | C131: $Millions | E131: 2023 | F131: n/a | H131: =Inputs!$A$251 -> Finance | L131: 0 | M131: 0 | V131: 0
A132: Labour - IT | B132: Transgrid | C132: $Millions | E132: 2023 | F132: n/a | H132: =Inputs!$A$252 -> IT | L132: 0.03568066623 | M132: 0.02248569044 | V132: 0.05816635667
A133: Labour - Regulatory submissions | B133: Transgrid | C133: $Millions | E133: 2023 | F133: n/a | H133: =Inputs!$A$253 -> Regulatory submissions | L133: 0.006013765566 | M133: 0.06098871523 | V133: 0.06700248079
A134: Labour - System Resilience | B134: Transgrid | C134: $Millions | E134: 2023 | F134: n/a | H134: =Inputs!$A$254 -> System Resilience | L134: 2.099722292 | M134: -0.4158854861 | V134: 1.683836806
A135: Labour - Network Planning | B135: Transgrid | C135: $Millions | E135: 2023 | F135: n/a | H135: =Inputs!$A$255 -> Network Planning | L135: 0 | M135: 0.01044779536 | V135: 0.01044779536
A136: Labour - [Spare] | B136: Transgrid | C136: $Millions | E136: 2023 | F136: n/a | H136: =Inputs!$A$256 -> [Spare] | L136: 0 | M136: 0 | V136: 0
L137: 0 | M137: 0 | V137: 0
A138: Forecasts (from 01 July 2025)
A139: =A127 -> Labour - Corporate | B139: Transgrid | C139: $Millions | E139: =$E$127 -> 2023 | F139: 2026 | H139: =Inputs!$A$247 -> Corporate | N139: 0.03526434213 | O139: 0.1072111824 | P139: 0.3739798383 | Q139: 0.3739798383 | R139: 0.3779405777 | S139: 0.3116498653 | T139: 0 | U139: 0 | V139: =SUM(K139:U139) -> 1.580025644
A140: Labour - Asset Management | B140: Transgrid | C140: $Millions | E140: 2023 | F140: =F139 -> 2026 | H140: =Inputs!$A$248 -> Asset Management | N140: 0 | O140: 0 | P140: 0 | Q140: 0 | R140: 0 | S140: 0 | T140: 0 | U140: 0 | V140: 0
A141: Labour - Delivery | B141: Transgrid | C141: $Millions | E141: 2023 | F141: 2026 | H141: =Inputs!$A$249 -> Delivery | N141: 0.03302399435 | O141: 1.863923452 | P141: 1.514312356 | Q141: 0.9539418701 | R141: 0.7257023603 | S141: 0.7067890112 | T141: 0.08253699641 | U141: 0 | V141: 5.88023004
A142: Labour - Network Operations | B142: Transgrid | C142: $Millions | E142: 2023 | F142: 2026 | H142: =Inputs!$A$250 -> Network Operations | N142: 0 | O142: 0.9843054179 | P142: 3.382509206 | Q142: 3.416722404 | R142: 2.182592597 | S142: 2.557938634 | T142: 0.04427143316 | U142: 0 | V142: 12.56833969
A143: Labour - Finance | B143: Transgrid | C143: $Millions | E143: 2023 | F143: 2026 | H143: =Inputs!$A$251 -> Finance | N143: 0 | O143: 0.06556580204 | P143: 0.1778878395 | Q143: 0.116556047 | R143: 0.113019647 | S143: 0.08386853921 | T143: 0 | U143: 0 | V143: 0.5568978749
A144: Labour - IT | B144: Transgrid | C144: $Millions | E144: 2023 | F144: 2026 | H144: =Inputs!$A$252 -> IT | N144: 0 | O144: 0.3432900792 | P144: 1.000537227 | Q144: 0.8480753225 | R144: 0.0800583734 | S144: 0.1046355327 | T144: 0 | U144: 0 | V144: 2.376596535
A145: Labour - Regulatory submissions | B145: Transgrid | C145: $Millions | E145: 2023 | F145: 2026 | H145: =Inputs!$A$253 -> Regulatory submissions | N145: 0.3052652176 | O145: 0 | P145: 0 | Q145: 0 | R145: 0 | S145: 0 | T145: 0 | U145: 0 | V145: 0.3052652176
A146: Labour - System Resilience | B146: Transgrid | C146: $Millions | E146: 2023 | F146: 2026 | H146: =Inputs!$A$254 -> System Resilience | N146: 0.3750290661 | O146: 0 | P146: 0 | Q146: 0 | R146: 0 | S146: 0 | T146: 0 | U146: 0 | V146: 0.3750290661
A147: Labour - Network Planning | B147: Transgrid | C147: $Millions | E147: 2023 | F147: 2026 | H147: =Inputs!$A$255 -> Network Planning | N147: 0 | O147: 0 | P147: 0 | Q147: 0 | R147: 0 | S147: 0 | T147: 0 | U147: 0 | V147: 0
A148: Labour - [Spare] | B148: Transgrid | C148: $Millions | E148: 2023 | F148: 2026 | H148: =Inputs!$A$256 -> [Spare] | N148: 0 | O148: 0 | P148: 0 | Q148: 0 | R148: 0 | S148: 0 | T148: 0 | U148: 0 | V148: 0
N149: 0 | O149: 0 | P149: 0 | Q149: 0 | R149: 0 | S149: 0 | T149: 0 | U149: 0 | V149: 0
A150: Total
A151: Labour | B151: Transgrid | C151: $Millions | K151: =SUM(K127:K137,K139:K149) -> 0 | L151: 2.62172674 | M151: 2.775975655 | N151: 0.7485826202 | O151: 3.364295934 | P151: =SUM(P127:P137,P139:P149) -> 6.449226467 | Q151: 5.709275482 | R151: 3.479313556 | S151: 3.764881582 | T151: 0.1268084296 | U151: 0 | V151: 29.04008646 | W151: =IF(ROUND(V151-SUM(K127:U149),3)=0,0,1) -> 0
A153: Note: Direct labour costs for each year are pro-rated across escalated capex by asset class for that year | J153: Total | K153: =K151 -> 0 | L153: 2.62172674 | M153: 2.775975655 | N153: 0.7485826202 | O153: 3.364295934 | P153: 6.449226467 | Q153: 5.709275482 | R153: =R151 -> 3.479313556 | S153: =S151 -> 3.764881582 | T153: =T151 -> 0.1268084296 | U153: =U151 -> 0 | V153: =SUM(K153:U153) -> 29.04008646
J154: ="Actuals ("&$C$5&")" -> Actuals (Real $2023) | K154: =SUM(K127:K137) -> 0 | L154: 2.62172674 | M154: 2.775975655 | N154: 0 | O154: 0 | P154: 0 | Q154: 0 | R154: =SUM(R127:R137) -> 0 | S154: =SUM(S127:S137) -> 0 | T154: =SUM(T127:T137) -> 0 | U154: =SUM(U127:U137) -> 0 | V154: =SUM(K154:U154) -> 5.397702394
A155: Note: Input dollar basis conversion factor | E155: =INDEX($K$16:$U$16,,MATCH($B$5,$K$15:$U$15,0))/INDEX($K$16:$U$16,,MATCH(E139,$K$15:$U$15,0)) -> 1 | J155: ="Forecast ("&$C$5&")" -> Forecast (Real $2023) | K155: =SUM(K139:K149)*$E$155 -> 0 | L155: 0 | M155: 0 | N155: 0.7485826202 | O155: 3.364295934 | P155: 6.449226467 | Q155: 5.709275482 | R155: =SUM(R139:R149)*$E$155 -> 3.479313556 | S155: =SUM(S139:S149)*$E$155 -> 3.764881582 | T155: =SUM(T139:T149)*$E$155 -> 0.1268084296 | U155: =SUM(U139:U149)*$E$155 -> 0 | V155: =SUM(K155:U155) -> 23.64238407
J156: ="Total ("&$C$5&")" -> Total (Real $2023) | K156: =SUM(K154:K155) -> 0 | L156: 2.62172674 | M156: 2.775975655 | N156: 0.7485826202 | O156: 3.364295934 | P156: 6.449226467 | Q156: 5.709275482 | R156: =SUM(R154:R155) -> 3.479313556 | S156: =SUM(S154:S155) -> 3.764881582 | T156: =SUM(T154:T155) -> 0.1268084296 | U156: =SUM(U154:U155) -> 0 | V156: =SUM(K156:U156) -> 29.04008646
J157: ="Total including escalation ("&$C$5&")" -> Total including escalation (Real $2023) | K157: =K156* IF(K125<$F$139,1,K$17/INDEX(Inputs!$K$17:$U$17,MATCH(Inputs!$F$139,Years,0))) -> 0 | L157: =L156* IF(L125<$F$139,1,L$17/INDEX(Inputs!$K$17:$U$17,MATCH(Inputs!$F$139,Years,0))) -> 2.62172674 | M157: =M156* IF(M125<$F$139,1,M$17/INDEX(Inputs!$K$17:$U$17,MATCH(Inputs!$F$139,Years,0))) -> 2.775975655 | N157: =N156* IF(N125<$F$139,1,N$17/INDEX(Inputs!$K$17:$U$17,MATCH(Inputs!$F$139,Years,0))) -> 0.7485826202 | O157: =O156* IF(O125<$F$139,1,O$17/INDEX(Inputs!$K$17:$U$17,MATCH(Inputs!$F$139,Years,0))) -> 3.364295934 | P157: =P156* IF(P125<$F$139,1,P$17/INDEX(Inputs!$K$17:$U$17,MATCH(Inputs!$F$139,Years,0))) -> 6.468634855 | Q157: =Q156* IF(Q125<$F$139,1,Q$17/INDEX(Inputs!$K$17:$U$17,MATCH(Inputs!$F$139,Years,0))) -> 5.767535733 | R157: =R156* IF(R125<$F$139,1,R$17/INDEX(Inputs!$K$17:$U$17,MATCH(Inputs!$F$139,Years,0))) -> 3.540031692 | S157: =S156* IF(S125<$F$139,1,S$17/INDEX(Inputs!$K$17:$U$17,MATCH(Inputs!$F$139,Years,0))) -> 3.858061868 | T157: =T156* IF(T125<$F$139,1,T$17/INDEX(Inputs!$K$17:$U$17,MATCH(Inputs!$F$139,Years,0))) -> 0.1308790932 | U157: =U156* IF(U125<$F$139,1,U$17/INDEX(Inputs!$K$17:$U$17,MATCH(Inputs!$F$139,Years,0))) -> 0 | V157: =SUM(K157:U157) -> 29.27572419
A159: Indirect Costs - Non Labour and Indirect Labour
A161: Indirect Costs | E161: Conversion | H161: Mapping | K161: ="Indirect Costs (June "&E176&" dollars, unescalated)" -> Indirect Costs (June 2023 dollars, unescalated)
A162: Component | B162: Source | C162: Units | E162: Dollar Yr | F162: Escalation Yr | K162: =K$15 -> 2023 | L162: 2024 | M162: 2025 | N162: 2026 | O162: 2027 | P162: 2028 | Q162: 2029 | U162: 2033 | V162: Total
A163: =A126 -> Actuals (to 30 June 2025)
A164: ="Non Labour - "&H164 -> Non Labour - Corporate | B164: Transgrid | C164: $Millions | E164: =$E$127 -> 2023 | F164: n/a | H164: =Inputs!$A$247 -> Corporate | K164: 0 | L164: 0 | M164: 0 | V164: =SUM(K164:U164) -> 0
A165: ="Non Labour - "&H165 -> Non Labour - Asset Management | B165: Transgrid | C165: $Millions | E165: 2023 | F165: n/a | H165: =Inputs!$A$248 -> Asset Management | K165: 0 | L165: 0 | M165: 0 | V165: 0
A166: Non Labour - Delivery | B166: Transgrid | C166: $Millions | E166: 2023 | F166: n/a | H166: =Inputs!$A$249 -> Delivery | K166: 0 | L166: 0 | M166: 0 | V166: 0
A167: Non Labour - Network Operations | B167: Transgrid | C167: $Millions | E167: 2023 | F167: n/a | H167: =Inputs!$A$250 -> Network Operations | K167: 0 | L167: 0 | M167: 0 | V167: 0
A168: Non Labour - Finance | B168: Transgrid | C168: $Millions | E168: 2023 | F168: n/a | H168: =Inputs!$A$251 -> Finance | K168: 0 | L168: 0 | M168: 0 | V168: 0
A169: Non Labour - IT | B169: Transgrid | C169: $Millions | E169: 2023 | F169: n/a | H169: =Inputs!$A$252 -> IT | K169: 0 | L169: 0 | M169: 0 | V169: 0
A170: Non Labour - Regulatory submissions | B170: Transgrid | C170: $Millions | E170: 2023 | F170: n/a | H170: =Inputs!$A$253 -> Regulatory submissions | K170: 0 | L170: 0.08676319125 | M170: 0.4727083872 | V170: 0.5594715784
A171: Non Labour - System Resilience | B171: Transgrid | C171: $Millions | E171: 2023 | F171: n/a | H171: =Inputs!$A$254 -> System Resilience | K171: 0 | L171: 0.9738644194 | M171: 0.6063666169 | V171: 1.580231036
A172: Non Labour - Network Planning | B172: Transgrid | C172: $Millions | E172: 2023 | F172: n/a | H172: =Inputs!$A$255 -> Network Planning | K172: 0 | L172: 0 | M172: 0 | V172: 0
A173: Non Labour - [Spare] | B173: Transgrid | C173: $Millions | E173: 2023 | F173: n/a | H173: =Inputs!$A$256 -> [Spare] | K173: 0 | L173: 0 | M173: 0 | V173: 0
V174: 0
A175: =A138 -> Forecasts (from 01 July 2025)
A176: =A164 -> Non Labour - Corporate | B176: Transgrid | C176: $Millions | E176: =$E$127 -> 2023 | F176: n/a | H176: =Inputs!$A$247 -> Corporate | N176: 0.01511328948 | O176: 0.04594764959 | P176: 0.1602770736 | Q176: 0.1602770736 | R176: 0.1619745333 | S176: 0.133564228 | T176: 0 | U176: 0 | V176: =SUM(K176:U176) -> 0.6771538475
A177: Non Labour - Asset Management | B177: Transgrid | C177: $Millions | E177: 2023 | F177: n/a | H177: =Inputs!$A$248 -> Asset Management | N177: 0 | O177: 0 | P177: 0 | Q177: 0 | R177: 0 | S177: 0 | T177: 0 | U177: 0 | V177: 0
A178: Non Labour - Delivery | B178: Transgrid | C178: $Millions | E178: 2023 | F178: n/a | H178: =Inputs!$A$249 -> Delivery | N178: 0.01415314044 | O178: 0.7988243367 | P178: 0.6489910096 | Q178: 0.40883223 | R178: 0.3110152973 | S178: 0.3029095762 | T178: 0.03537299846 | U178: 0 | V178: 2.520098589
A179: Non Labour - Network Operations | B179: Transgrid | C179: $Millions | E179: 2023 | F179: n/a | H179: =Inputs!$A$250 -> Network Operations | N179: 0 | O179: 0.6058360048 | P179: 1.492106224 | Q179: 1.506769023 | R179: 0.9778562487 | S179: 1.138718836 | T179: 0.01897347136 | U179: 0 | V179: 5.740259807
A180: Non Labour - Finance | B180: Transgrid | C180: $Millions | E180: 2023 | F180: n/a | H180: =Inputs!$A$251 -> Finance | N180: 0 | O180: 0.02809962945 | P180: 0.07623764552 | Q180: 0.04995259159 | R180: 0.04843699159 | S180: 0.03594365966 | T180: 0 | U180: 0 | V180: 0.2386705178
A181: Non Labour - IT | B181: Transgrid | C181: $Millions | E181: 2023 | F181: n/a | H181: =Inputs!$A$252 -> IT | N181: 0 | O181: 0.1471243196 | P181: 0.4288016689 | Q181: 0.3634608525 | R181: 0.03431073146 | S181: 0.04484379975 | T181: 0 | U181: 0 | V181: 1.018541372
A182: Non Labour - Regulatory submissions | B182: Transgrid | C182: $Millions | E182: 2023 | F182: n/a | H182: =Inputs!$A$253 -> Regulatory submissions | N182: 0.1308279504 | O182: 0 | P182: 0 | Q182: 0 | R182: 0 | S182: 0 | T182: 0 | U182: 0 | V182: 0.1308279504
A183: Non Labour - System Resilience | B183: Transgrid | C183: $Millions | E183: 2023 | F183: n/a | H183: =Inputs!$A$254 -> System Resilience | N183: 0.1607267426 | O183: 0 | P183: 0 | Q183: 0 | R183: 0 | S183: 0 | T183: 0 | U183: 0 | V183: 0.1607267426
A184: Non Labour - Network Planning | B184: Transgrid | C184: $Millions | E184: 2023 | F184: n/a | H184: =Inputs!$A$255 -> Network Planning | N184: 0 | O184: 0 | P184: 0 | Q184: 0 | R184: 0 | S184: 0 | T184: 0 | U184: 0 | V184: 0
A185: Non Labour - [Spare] | B185: Transgrid | C185: $Millions | E185: 2023 | F185: n/a | H185: =Inputs!$A$256 -> [Spare] | N185: 0 | O185: 0 | P185: 0 | Q185: 0 | R185: 0 | S185: 0 | T185: 0 | U185: 0 | V185: 0
A186: =A150 -> Total | N186: 1.069403743 | O186: 4.990127874 | P186: 9.255640088 | Q186: 8.198567252 | R186: 5.012907358 | S186: 5.420861681 | T186: 0.1811548994 | U186: 0
A187: Non-Labour | B187: Transgrid | C187: $Millions | K187: =SUM(K164:K174,K176:K185) -> 0 | L187: 1.060627611 | M187: 1.079075004 | N187: 0.3208211229 | O187: 1.62583194 | P187: 2.806413621 | Q187: 2.489291771 | R187: 1.533593802 | S187: 1.655980099 | T187: 0.05434646982 | U187: 0 | V187: 12.62598144 | W187: =IF(ROUND(V187-SUM(K164:U185),3)=0,0,1) -> 0
A189: Note: Indirect costs for each year are pro-rated across escalated capex (including direct labour costs) by asset class for that year | J189: Total | K189: =K187 -> 0 | L189: 1.060627611 | M189: 1.079075004 | N189: 0.3208211229 | O189: 1.62583194 | P189: 2.806413621 | Q189: 2.489291771 | R189: =R187 -> 1.533593802 | S189: =S187 -> 1.655980099 | T189: =T187 -> 0.05434646982 | U189: =U187 -> 0 | V189: =SUM(K189:U189) -> 12.62598144
J190: ="Actuals ("&$C$5&")" -> Actuals (Real $2023) | K190: =SUM(K164:K174) -> 0 | L190: 1.060627611 | M190: 1.079075004 | N190: 0 | O190: 0 | P190: 0 | Q190: 0 | R190: =SUM(R164:R174) -> 0 | S190: =SUM(S164:S174) -> 0 | T190: =SUM(T164:T174) -> 0 | U190: =SUM(U164:U174) -> 0 | V190: =SUM(K190:U190) -> 2.139702615
A191: Note: Input dollar basis conversion factor | E191: =INDEX($K$16:$U$16,,MATCH($B$5,$K$15:$U$15,0))/INDEX($K$16:$U$16,,MATCH(E176,$K$15:$U$15,0)) -> 1 | J191: ="Forecast ("&$C$5&")" -> Forecast (Real $2023) | K191: =SUM(K176:K185)*$E$191 -> 0 | L191: 0 | M191: 0 | N191: 0.3208211229 | O191: 1.62583194 | P191: 2.806413621 | Q191: 2.489291771 | R191: =SUM(R176:R185)*$E$191 -> 1.533593802 | S191: =SUM(S176:S185)*$E$191 -> 1.655980099 | T191: =SUM(T176:T185)*$E$191 -> 0.05434646982 | U191: =SUM(U176:U185)*$E$191 -> 0 | V191: =SUM(K191:U191) -> 10.48627883
J192: ="Total ("&$C$5&")" -> Total (Real $2023) | K192: =SUM(K190:K191) -> 0 | L192: 1.060627611 | M192: 1.079075004 | N192: 0.3208211229 | O192: 1.62583194 | P192: 2.806413621 | Q192: 2.489291771 | R192: =SUM(R190:R191) -> 1.533593802 | S192: =SUM(S190:S191) -> 1.655980099 | T192: =SUM(T190:T191) -> 0.05434646982 | U192: =SUM(U190:U191) -> 0 | V192: =SUM(K192:U192) -> 12.62598144
A194: Equity Raising Costs (Used in Output|Tables and Charts)
A196: Equity Raising Costs | E196: Conversion | K196: ="Expenditure (June "&E198&" dollars, unescalated)" -> Expenditure (June 2023 dollars, unescalated)
B197: Source | C197: Units | E197: Dollar Year | K197: =K$15 -> 2023 | L197: 2024 | M197: 2025 | N197: 2026 | O197: 2027 | P197: 2028 | Q197: 2029 | U197: 2033 | V197: Total
A198: Equity Raising Cost | B198: PTRM | C198: $Millions | E198: 2023 | L198: 0.8006160325 | M198: 0 | N198: 0 | O198: 0 | P198: 0 | V198: =SUM(K198:U198) -> 0.8006160325
A200: Lookup tables and mapping
A202: Capex input template | B202: =$A$211 -> PTRM and RFM models | C202: Regulatory Information Notice
A203: Categories | B203: =$A$212 -> RAB Asset Classes | C203: Network and Non Network Categories
A204: =B204&" - "&C204 -> Communications (short life) - SCADA, network control and protection systems | B204: =$A$217 -> Communications (short life) | C204: =$A$239 -> SCADA, network control and protection systems
A205: Communications (short life) - Other | B205: =$A$217 -> Communications (short life) | C205: =$A$241 -> Other
A206: Business IT - SCADA, network control and protection systems | B206: =$A$219 -> Business IT | C206: =$A$239 -> SCADA, network control and protection systems
A207: Business IT - Other | B207: =$A$219 -> Business IT | C207: =$A$241 -> Other
A208: Minor Plant, Motor Vehicles & Mobile Plant - Other | B208: =$A$220 -> Minor Plant, Motor Vehicles & Mobile Plant | C208: =$A$241 -> Other
A209: [Spare 1] - [Spare 2] | B209: [Spare 1] | C209: [Spare 2]
A211: PTRM and RFM models
A212: RAB Asset Classes
A213: Transmission Lines
A214: Underground Cables
A215: Substations
A216: Secondary System
A217: Communications (short life)
A218: SIPS Control
A219: Business IT
A220: Minor Plant, Motor Vehicles & Mobile Plant
A221: Transmission Line Life Extension
... 55 more rows

Sheet Calculations
A1: Calculations | C1: =Inputs!$C$5 -> Real $2023
B3: Incremental Capital Expenditure (Excluding Equity Raising Costs) by Capex Category | P3: Total | R3: Mapping | S3: Mapping
B4: Capex category | C4: Dollar basis | D4: Units | E4: =Inputs!K$15 -> 2023 | F4: =Inputs!L$15 -> 2024 | G4: =Inputs!M$15 -> 2025 | H4: =Inputs!N$15 -> 2026 | I4: =Inputs!O$15 -> 2027 | J4: =Inputs!P$15 -> 2028 | K4: =Inputs!Q$15 -> 2029 | L4: =Inputs!R$15 -> 2030 | M4: =Inputs!S$15 -> 2031 | N4: =Inputs!T$15 -> 2032 | O4: =Inputs!U$15 -> 2033 | R4: RAB Asset Class | S4: RIN Network and Non network
B6: Direct Non-Labour Costs
B7: =Inputs!$A$204 -> Communications (short life) - SCADA, network control and protection systems | C7: =Inputs!$C$5 -> Real $2023 | D7: $Million | E7: =Inputs!X112 -> 0 | F7: =Inputs!Y112 -> 0 | G7: =Inputs!Z112 -> 0 | H7: =Inputs!AA112 -> 0 | I7: =Inputs!AB112 -> 0.66942447 | J7: =Inputs!AC112 -> 9.49949887 | K7: =Inputs!AD112 -> 14.43572156 | L7: =Inputs!AE112 -> 27.67146201 | M7: =Inputs!AF112 -> 7.778572183 | N7: =Inputs!AG112 -> 0 | O7: =Inputs!AH112 -> 0 | P7: =SUM(E7:O7) -> 60.0546791 | R7: =Inputs!B204 -> Communications (short life) | S7: =Inputs!C204 -> SCADA, network control and protection systems
B8: =Inputs!$A$205 -> Communications (short life) - Other | C8: =Inputs!$C$5 -> Real $2023 | D8: $Million | E8: =Inputs!X113 -> 0 | F8: =Inputs!Y113 -> 0 | G8: =Inputs!Z113 -> 0 | H8: =Inputs!AA113 -> 0 | I8: =Inputs!AB113 -> 2.124298248 | J8: =Inputs!AC113 -> 1.868064358 | K8: =Inputs!AD113 -> 1.85456337 | L8: =Inputs!AE113 -> 1.85456337 | M8: =Inputs!AF113 -> 1.545469475 | N8: =Inputs!AG113 -> 0 | O8: =Inputs!AH113 -> 0 | P8: 9.24695882 | R8: =Inputs!B205 -> Communications (short life) | S8: =Inputs!C205 -> Other
B9: =Inputs!$A$206 -> Business IT - SCADA, network control and protection systems | C9: =Inputs!$C$5 -> Real $2023 | D9: $Million | E9: =Inputs!X114 -> 0 | F9: =Inputs!Y114 -> 0 | G9: =Inputs!Z114 -> 0 | H9: =Inputs!AA114 -> 0 | I9: =Inputs!AB114 -> 2.724479534 | J9: =Inputs!AC114 -> 7.314457619 | K9: =Inputs!AD114 -> 0 | L9: =Inputs!AE114 -> 0 | M9: =Inputs!AF114 -> 0 | N9: =Inputs!AG114 -> 0 | O9: =Inputs!AH114 -> 0 | P9: 10.03893715 | R9: =Inputs!B206 -> Business IT | S9: =Inputs!C206 -> SCADA, network control and protection systems
B10: =Inputs!$A$207 -> Business IT - Other | C10: =Inputs!$C$5 -> Real $2023 | D10: $Million | E10: =Inputs!X115 -> 0 | F10: =Inputs!Y115 -> 0 | G10: =Inputs!Z115 -> 0 | H10: =Inputs!AA115 -> 0 | I10: =Inputs!AB115 -> 4.692772601 | J10: =Inputs!AC115 -> 18.09145804 | K10: =Inputs!AD115 -> 9.964307143 | L10: =Inputs!AE115 -> 2.158263149 | M10: =Inputs!AF115 -> 1.012267044 | N10: =Inputs!AG115 -> 0 | O10: =Inputs!AH115 -> 0 | P10: 35.91906797 | R10: =Inputs!B207 -> Business IT | S10: =Inputs!C207 -> Other
B11: =Inputs!$A$208 -> Minor Plant, Motor Vehicles & Mobile Plant - Other | C11: =Inputs!$C$5 -> Real $2023 | D11: $Million | E11: =Inputs!X116 -> 0 | F11: =Inputs!Y116 -> 0 | G11: =Inputs!Z116 -> 0 | H11: =Inputs!AA116 -> 0 | I11: =Inputs!AB116 -> 4.046485134 | J11: =Inputs!AC116 -> 0.5960953823 | K11: =Inputs!AD116 -> 0.1491854075 | L11: =Inputs!AE116 -> 0.1491854075 | M11: =Inputs!AF116 -> 0.6338342287 | N11: =Inputs!AG116 -> 0 | O11: =Inputs!AH116 -> 0 | P11: 5.57478556 | R11: =Inputs!B208 -> Minor Plant, Motor Vehicles & Mobile Plant | S11: =Inputs!C208 -> Other
B12: =Inputs!$A$209 -> [Spare 1] - [Spare 2] | C12: =Inputs!$C$5 -> Real $2023 | D12: $Million | E12: =Inputs!X117 -> 0 | F12: =Inputs!Y117 -> 0 | G12: =Inputs!Z117 -> 0 | H12: =Inputs!AA117 -> 0 | I12: =Inputs!AB117 -> 0 | J12: =Inputs!AC117 -> 0 | K12: =Inputs!AD117 -> 0 | L12: =Inputs!AE117 -> 0 | M12: =Inputs!AF117 -> 0 | N12: =Inputs!AG117 -> 0 | O12: =Inputs!AH117 -> 0 | P12: 0 | R12: =Inputs!B209 -> [Spare 1] | S12: =Inputs!C209 -> [Spare 2]
B13: Sub-Total | C13: =Inputs!$C$5 -> Real $2023 | D13: $Million | E13: =SUM(E7:E12) -> 0 | F13: =SUM(F7:F12) -> 0 | G13: =SUM(G7:G12) -> 0 | H13: =SUM(H7:H12) -> 0 | I13: =SUM(I7:I12) -> 14.25745999 | J13: 37.36957427 | K13: 26.40377748 | L13: 31.83347394 | M13: 10.97014293 | N13: 0 | O13: 0 | P13: =SUM(P7:P12) -> 120.8344286
B15: Labour Costs | U15: ← This value is pro-rated over the escalated capital forecast by year and asset class
B16: =Inputs!$A$204 -> Communications (short life) - SCADA, network control and protection systems | C16: =Inputs!$C$5 -> Real $2023 | D16: $Million | E16: =IFERROR(Inputs!K$157*IF((E$13)=0,$P7/($P$13),E7/(E$13)),0) -> 0 | F16: =IFERROR(Inputs!L$157*IF((F$13)=0,$P7/($P$13),F7/(F$13)),0) -> 1.302997497 | G16: =IFERROR(Inputs!M$157*IF((G$13)=0,$P7/($P$13),G7/(G$13)),0) -> 1.379659167 | H16: =IFERROR(Inputs!N$157*IF((H$13)=0,$P7/($P$13),H7/(H$13)),0) -> 0.3720453645 | I16: =IFERROR(Inputs!O$157*IF((I$13)=0,$P7/($P$13),I7/(I$13)),0) -> 0.1579623597 | J16: =IFERROR(Inputs!P$157*IF((J$13)=0,$P7/($P$13),J7/(J$13)),0) -> 1.64435348 | K16: =IFERROR(Inputs!Q$157*IF((K$13)=0,$P7/($P$13),K7/(K$13)),0) -> 3.153281382 | L16: =IFERROR(Inputs!R$157*IF((L$13)=0,$P7/($P$13),L7/(L$13)),0) -> 3.077196434 | M16: =IFERROR(Inputs!S$157*IF((M$13)=0,$P7/($P$13),M7/(M$13)),0) -> 2.73562641 | N16: =IFERROR(Inputs!T$157*IF((N$13)=0,$P7/($P$13),N7/(N$13)),0) -> 0.06504687473 | O16: =IFERROR(Inputs!U$157*IF((O$13)=0,$P7/($P$13),O7/(O$13)),0) -> 0 | P16: =SUM(E16:O16) -> 13.88816897 | R16: =R7 -> Communications (short life) | S16: SCADA, network control and protection systems
B17: =Inputs!$A$205 -> Communications (short life) - Other | C17: =Inputs!$C$5 -> Real $2023 | D17: $Million | E17: =IFERROR(Inputs!K$157*IF((E$13)=0,$P8/($P$13),E8/(E$13)),0) -> 0 | F17: =IFERROR(Inputs!L$157*IF((F$13)=0,$P8/($P$13),F8/(F$13)),0) -> 0.2006298989 | G17: =IFERROR(Inputs!M$157*IF((G$13)=0,$P8/($P$13),G8/(G$13)),0) -> 0.2124339301 | H17: =IFERROR(Inputs!N$157*IF((H$13)=0,$P8/($P$13),H8/(H$13)),0) -> 0.05728593036 | I17: =IFERROR(Inputs!O$157*IF((I$13)=0,$P8/($P$13),I8/(I$13)),0) -> 0.5012651597 | J17: =IFERROR(Inputs!P$157*IF((J$13)=0,$P8/($P$13),J8/(J$13)),0) -> 0.3233600183 | K17: =IFERROR(Inputs!Q$157*IF((K$13)=0,$P8/($P$13),K8/(K$13)),0) -> 0.4051034179 | L17: =IFERROR(Inputs!R$157*IF((L$13)=0,$P8/($P$13),L8/(L$13)),0) -> 0.2062361499 | M17: =IFERROR(Inputs!S$157*IF((M$13)=0,$P8/($P$13),M8/(M$13)),0) -> 0.5435222573 | N17: =IFERROR(Inputs!T$157*IF((N$13)=0,$P8/($P$13),N8/(N$13)),0) -> 0.01001563543 | O17: =IFERROR(Inputs!U$157*IF((O$13)=0,$P8/($P$13),O8/(O$13)),0) -> 0 | P17: 2.459852398 | R17: Communications (short life) | S17: Other
B18: =Inputs!$A$206 -> Business IT - SCADA, network control and protection systems | C18: =Inputs!$C$5 -> Real $2023 | D18: $Million | E18: =IFERROR(Inputs!K$157*IF((E$13)=0,$P9/($P$13),E9/(E$13)),0) -> 0 | F18: =IFERROR(Inputs!L$157*IF((F$13)=0,$P9/($P$13),F9/(F$13)),0) -> 0.2178133358 | G18: =IFERROR(Inputs!M$157*IF((G$13)=0,$P9/($P$13),G9/(G$13)),0) -> 0.230628352 | H18: =IFERROR(Inputs!N$157*IF((H$13)=0,$P9/($P$13),H9/(H$13)),0) -> 0.06219232353 | I18: =IFERROR(Inputs!O$157*IF((I$13)=0,$P9/($P$13),I9/(I$13)),0) -> 0.6428883846 | J18: =IFERROR(Inputs!P$157*IF((J$13)=0,$P9/($P$13),J9/(J$13)),0) -> 1.266125088 | K18: =IFERROR(Inputs!Q$157*IF((K$13)=0,$P9/($P$13),K9/(K$13)),0) -> 0 | L18: =IFERROR(Inputs!R$157*IF((L$13)=0,$P9/($P$13),L9/(L$13)),0) -> 0 | M18: =IFERROR(Inputs!S$157*IF((M$13)=0,$P9/($P$13),M9/(M$13)),0) -> 0 | N18: =IFERROR(Inputs!T$157*IF((N$13)=0,$P9/($P$13),N9/(N$13)),0) -> 0.01087344895 | O18: =IFERROR(Inputs!U$157*IF((O$13)=0,$P9/($P$13),O9/(O$13)),0) -> 0 | P18: 2.430520933 | R18: Business IT | S18: SCADA, network control and protection systems
B19: =Inputs!$A$207 -> Business IT - Other | C19: =Inputs!$C$5 -> Real $2023 | D19: $Million | E19: =IFERROR(Inputs!K$157*IF((E$13)=0,$P10/($P$13),E10/(E$13)),0) -> 0 | F19: =IFERROR(Inputs!L$157*IF((F$13)=0,$P10/($P$13),F10/(F$13)),0) -> 0.7793307094 | G19: =IFERROR(Inputs!M$157*IF((G$13)=0,$P10/($P$13),G10/(G$13)),0) -> 0.8251825194 | H19: =IFERROR(Inputs!N$157*IF((H$13)=0,$P10/($P$13),H10/(H$13)),0) -> 0.22252259 | I19: =IFERROR(Inputs!O$157*IF((I$13)=0,$P10/($P$13),I10/(I$13)),0) -> 1.107341405 | J19: =IFERROR(Inputs!P$157*IF((J$13)=0,$P10/($P$13),J10/(J$13)),0) -> 3.131612771 | K19: =IFERROR(Inputs!Q$157*IF((K$13)=0,$P10/($P$13),K10/(K$13)),0) -> 2.176563468 | L19: =IFERROR(Inputs!R$157*IF((L$13)=0,$P10/($P$13),L10/(L$13)),0) -> 0.2400089906 | M19: =IFERROR(Inputs!S$157*IF((M$13)=0,$P10/($P$13),M10/(M$13)),0) -> 0.3560016408 | N19: =IFERROR(Inputs!T$157*IF((N$13)=0,$P10/($P$13),N10/(N$13)),0) -> 0.03890493047 | O19: =IFERROR(Inputs!U$157*IF((O$13)=0,$P10/($P$13),O10/(O$13)),0) -> 0 | P19: 8.877469026 | R19: Business IT | S19: Other
B20: =Inputs!$A$208 -> Minor Plant, Motor Vehicles & Mobile Plant - Other | C20: =Inputs!$C$5 -> Real $2023 | D20: $Million | E20: =IFERROR(Inputs!K$157*IF((E$13)=0,$P11/($P$13),E11/(E$13)),0) -> 0 | F20: =IFERROR(Inputs!L$157*IF((F$13)=0,$P11/($P$13),F11/(F$13)),0) -> 0.1209552984 | G20: =IFERROR(Inputs!M$157*IF((G$13)=0,$P11/($P$13),G11/(G$13)),0) -> 0.128071686 | H20: =IFERROR(Inputs!N$157*IF((H$13)=0,$P11/($P$13),H11/(H$13)),0) -> 0.03453641176 | I20: =IFERROR(Inputs!O$157*IF((I$13)=0,$P11/($P$13),I11/(I$13)),0) -> 0.9548386245 | J20: =IFERROR(Inputs!P$157*IF((J$13)=0,$P11/($P$13),J11/(J$13)),0) -> 0.1031834973 | K20: =IFERROR(Inputs!Q$157*IF((K$13)=0,$P11/($P$13),K11/(K$13)),0) -> 0.03258746477 | L20: =IFERROR(Inputs!R$157*IF((L$13)=0,$P11/($P$13),L11/(L$13)),0) -> 0.01659011742 | M20: =IFERROR(Inputs!S$157*IF((M$13)=0,$P11/($P$13),M11/(M$13)),0) -> 0.2229115595 | N20: =IFERROR(Inputs!T$157*IF((N$13)=0,$P11/($P$13),N11/(N$13)),0) -> 0.006038203573 | O20: =IFERROR(Inputs!U$157*IF((O$13)=0,$P11/($P$13),O11/(O$13)),0) -> 0 | P20: 1.619712863 | R20: Minor Plant, Motor Vehicles & Mobile Plant | S20: Other
B21: =Inputs!$A$209 -> [Spare 1] - [Spare 2] | C21: =Inputs!$C$5 -> Real $2023 | D21: $Million | E21: =IFERROR(Inputs!K$157*IF((E$13)=0,$P12/($P$13),E12/(E$13)),0) -> 0 | F21: =IFERROR(Inputs!L$157*IF((F$13)=0,$P12/($P$13),F12/(F$13)),0) -> 0 | G21: =IFERROR(Inputs!M$157*IF((G$13)=0,$P12/($P$13),G12/(G$13)),0) -> 0 | H21: =IFERROR(Inputs!N$157*IF((H$13)=0,$P12/($P$13),H12/(H$13)),0) -> 0 | I21: =IFERROR(Inputs!O$157*IF((I$13)=0,$P12/($P$13),I12/(I$13)),0) -> 0 | J21: =IFERROR(Inputs!P$157*IF((J$13)=0,$P12/($P$13),J12/(J$13)),0) -> 0 | K21: =IFERROR(Inputs!Q$157*IF((K$13)=0,$P12/($P$13),K12/(K$13)),0) -> 0 | L21: =IFERROR(Inputs!R$157*IF((L$13)=0,$P12/($P$13),L12/(L$13)),0) -> 0 | M21: =IFERROR(Inputs!S$157*IF((M$13)=0,$P12/($P$13),M12/(M$13)),0) -> 0 | N21: =IFERROR(Inputs!T$157*IF((N$13)=0,$P12/($P$13),N12/(N$13)),0) -> 0 | O21: =IFERROR(Inputs!U$157*IF((O$13)=0,$P12/($P$13),O12/(O$13)),0) -> 0 | P21: 0 | R21: [Spare 1] | S21: [Spare 2]
B22: Sub-Total | C22: =Inputs!$C$5 -> Real $2023 | D22: $Million | E22: =SUM(E16:E21) -> 0 | F22: =SUM(F16:F21) -> 2.62172674 | G22: =SUM(G16:G21) -> 2.775975655 | H22: =SUM(H16:H21) -> 0.7485826202 | I22: =SUM(I16:I21) -> 3.364295934 | J22: 6.468634855 | K22: 5.767535733 | L22: 3.540031692 | M22: 3.858061868 | N22: 0.1308790932 | O22: 0 | P22: =SUM(P16:P21) -> 29.27572419
B24: Indirect Non-Labour Costs | U24: ← This value is pro-rated over the escalated capital forecast (including direct labour costs) by year and asset class
B25: =Inputs!$A$204 -> Communications (short life) - SCADA, network control and protection systems | C25: =Inputs!$C$5 -> Real $2023 | D25: $Million | E25: =IFERROR(Inputs!K$192 *IF((E$13+E$22)=0,($P7+$P16)/($P$13+$P$22),(E7+E16)/(E$13+E$22)),0) -> 0 | F25: =IFERROR(Inputs!L$192 *IF((F$13+F$22)=0,($P7+$P16)/($P$13+$P$22),(F7+F16)/(F$13+F$22)),0) -> 0.5271316423 | G25: =IFERROR(Inputs!M$192 *IF((G$13+G$22)=0,($P7+$P16)/($P$13+$P$22),(G7+G16)/(G$13+G$22)),0) -> 0.536299992 | H25: =IFERROR(Inputs!N$192 *IF((H$13+H$22)=0,($P7+$P16)/($P$13+$P$22),(H7+H16)/(H$13+H$22)),0) -> 0.1594480134 | I25: =IFERROR(Inputs!O$192 *IF((I$13+I$22)=0,($P7+$P16)/($P$13+$P$22),(I7+I16)/(I$13+I$22)),0) -> 0.07633699733 | J25: =IFERROR(Inputs!P$192 *IF((J$13+J$22)=0,($P7+$P16)/($P$13+$P$22),(J7+J16)/(J$13+J$22)),0) -> 0.7134018395 | K25: =IFERROR(Inputs!Q$192 *IF((K$13+K$22)=0,($P7+$P16)/($P$13+$P$22),(K7+K16)/(K$13+K$22)),0) -> 1.36096901 | L25: =IFERROR(Inputs!R$192 *IF((L$13+L$22)=0,($P7+$P16)/($P$13+$P$22),(L7+L16)/(L$13+L$22)),0) -> 1.33308676 | M25: =IFERROR(Inputs!S$192 *IF((M$13+M$22)=0,($P7+$P16)/($P$13+$P$22),(M7+M16)/(M$13+M$22)),0) -> 1.174201723 | N25: =IFERROR(Inputs!T$192 *IF((N$13+N$22)=0,($P7+$P16)/($P$13+$P$22),(N7+N16)/(N$13+N$22)),0) -> 0.02701018114 | O25: =IFERROR(Inputs!U$192 *IF((O$13+O$22)=0,($P7+$P16)/($P$13+$P$22),(O7+O16)/(O$13+O$22)),0) -> 0 | P25: =SUM(E25:O25) -> 5.907886159 | R25: =R16 -> Communications (short life) | S25: SCADA, network control and protection systems
B26: =Inputs!$A$205 -> Communications (short life) - Other | C26: =Inputs!$C$5 -> Real $2023 | D26: $Million | E26: =IFERROR(Inputs!K$192 *IF((E$13+E$22)=0,($P8+$P17)/($P$13+$P$22),(E8+E17)/(E$13+E$22)),0) -> 0 | F26: =IFERROR(Inputs!L$192 *IF((F$13+F$22)=0,($P8+$P17)/($P$13+$P$22),(F8+F17)/(F$13+F$22)),0) -> 0.08116544227 | G26: =IFERROR(Inputs!M$192 *IF((G$13+G$22)=0,($P8+$P17)/($P$13+$P$22),(G8+G17)/(G$13+G$22)),0) -> 0.08257714496 | H26: =IFERROR(Inputs!N$192 *IF((H$13+H$22)=0,($P8+$P17)/($P$13+$P$22),(H8+H17)/(H$13+H$22)),0) -> 0.02455111301 | I26: =IFERROR(Inputs!O$192 *IF((I$13+I$22)=0,($P8+$P17)/($P$13+$P$22),(I8+I17)/(I$13+I$22)),0) -> 0.2422417419 | J26: =IFERROR(Inputs!P$192 *IF((J$13+J$22)=0,($P8+$P17)/($P$13+$P$22),(J8+J17)/(J$13+J$22)),0) -> 0.1402895635 | K26: =IFERROR(Inputs!Q$192 *IF((K$13+K$22)=0,($P8+$P17)/($P$13+$P$22),(K8+K17)/(K$13+K$22)),0) -> 0.1748442751 | L26: =IFERROR(Inputs!R$192 *IF((L$13+L$22)=0,($P8+$P17)/($P$13+$P$22),(L8+L17)/(L$13+L$22)),0) -> 0.08934453384 | M26: =IFERROR(Inputs!S$192 *IF((M$13+M$22)=0,($P8+$P17)/($P$13+$P$22),(M8+M17)/(M$13+M$22)),0) -> 0.2332938331 | N26: =IFERROR(Inputs!T$192 *IF((N$13+N$22)=0,($P8+$P17)/($P$13+$P$22),(N8+N17)/(N$13+N$22)),0) -> 0.004158910455 | O26: =IFERROR(Inputs!U$192 *IF((O$13+O$22)=0,($P8+$P17)/($P$13+$P$22),(O8+O17)/(O$13+O$22)),0) -> 0 | P26: 1.072466558 | R26: Communications (short life) | S26: Other
B27: =Inputs!$A$206 -> Business IT - SCADA, network control and protection systems | C27: =Inputs!$C$5 -> Real $2023 | D27: $Million | E27: =IFERROR(Inputs!K$192 *IF((E$13+E$22)=0,($P9+$P18)/($P$13+$P$22),(E9+E18)/(E$13+E$22)),0) -> 0 | F27: =IFERROR(Inputs!L$192 *IF((F$13+F$22)=0,($P9+$P18)/($P$13+$P$22),(F9+F18)/(F$13+F$22)),0) -> 0.08811705446 | G27: =IFERROR(Inputs!M$192 *IF((G$13+G$22)=0,($P9+$P18)/($P$13+$P$22),(G9+G18)/(G$13+G$22)),0) -> 0.08964966586 | H27: =IFERROR(Inputs!N$192 *IF((H$13+H$22)=0,($P9+$P18)/($P$13+$P$22),(H9+H18)/(H$13+H$22)),0) -> 0.02665385294 | I27: =IFERROR(Inputs!O$192 *IF((I$13+I$22)=0,($P9+$P18)/($P$13+$P$22),(I9+I18)/(I$13+I$22)),0) -> 0.3106826778 | J27: =IFERROR(Inputs!P$192 *IF((J$13+J$22)=0,($P9+$P18)/($P$13+$P$22),(J9+J18)/(J$13+J$22)),0) -> 0.5493076626 | K27: =IFERROR(Inputs!Q$192 *IF((K$13+K$22)=0,($P9+$P18)/($P$13+$P$22),(K9+K18)/(K$13+K$22)),0) -> 0 | L27: =IFERROR(Inputs!R$192 *IF((L$13+L$22)=0,($P9+$P18)/($P$13+$P$22),(L9+L18)/(L$13+L$22)),0) -> 0 | M27: =IFERROR(Inputs!S$192 *IF((M$13+M$22)=0,($P9+$P18)/($P$13+$P$22),(M9+M18)/(M$13+M$22)),0) -> 0 | N27: =IFERROR(Inputs!T$192 *IF((N$13+N$22)=0,($P9+$P18)/($P$13+$P$22),(N9+N18)/(N$13+N$22)),0) -> 0.00451511048 | O27: =IFERROR(Inputs!U$192 *IF((O$13+O$22)=0,($P9+$P18)/($P$13+$P$22),(O9+O18)/(O$13+O$22)),0) -> 0 | P27: 1.068926024 | R27: Business IT | S27: SCADA, network control and protection systems
B28: =Inputs!$A$207 -> Business IT - Other | C28: =Inputs!$C$5 -> Real $2023 | D28: $Million | E28: =IFERROR(Inputs!K$192 *IF((E$13+E$22)=0,($P10+$P19)/($P$13+$P$22),(E10+E19)/(E$13+E$22)),0) -> 0 | F28: =IFERROR(Inputs!L$192 *IF((F$13+F$22)=0,($P10+$P19)/($P$13+$P$22),(F10+F19)/(F$13+F$22)),0) -> 0.3152806338 | G28: =IFERROR(Inputs!M$192 *IF((G$13+G$22)=0,($P10+$P19)/($P$13+$P$22),(G10+G19)/(G$13+G$22)),0) -> 0.3207642794 | H28: =IFERROR(Inputs!N$192 *IF((H$13+H$22)=0,($P10+$P19)/($P$13+$P$22),(H10+H19)/(H$13+H$22)),0) -> 0.0953668243 | I28: =IFERROR(Inputs!O$192 *IF((I$13+I$22)=0,($P10+$P19)/($P$13+$P$22),(I10+I19)/(I$13+I$22)),0) -> 0.5351345604 | J28: =IFERROR(Inputs!P$192 *IF((J$13+J$22)=0,($P10+$P19)/($P$13+$P$22),(J10+J19)/(J$13+J$22)),0) -> 1.358648453 | K28: =IFERROR(Inputs!Q$192 *IF((K$13+K$22)=0,($P10+$P19)/($P$13+$P$22),(K10+K19)/(K$13+K$22)),0) -> 0.9394136042 | L28: =IFERROR(Inputs!R$192 *IF((L$13+L$22)=0,($P10+$P19)/($P$13+$P$22),(L10+L19)/(L$13+L$22)),0) -> 0.1039754252 | M28: =IFERROR(Inputs!S$192 *IF((M$13+M$22)=0,($P10+$P19)/($P$13+$P$22),(M10+M19)/(M$13+M$22)),0) -> 0.1528051267 | N28: =IFERROR(Inputs!T$192 *IF((N$13+N$22)=0,($P10+$P19)/($P$13+$P$22),(N10+N19)/(N$13+N$22)),0) -> 0.01615495324 | O28: =IFERROR(Inputs!U$192 *IF((O$13+O$22)=0,($P10+$P19)/($P$13+$P$22),(O10+O19)/(O$13+O$22)),0) -> 0 | P28: 3.83754386 | R28: Business IT | S28: Other
B29: =Inputs!$A$208 -> Minor Plant, Motor Vehicles & Mobile Plant - Other | C29: =Inputs!$C$5 -> Real $2023 | D29: $Million | E29: =IFERROR(Inputs!K$192 *IF((E$13+E$22)=0,($P11+$P20)/($P$13+$P$22),(E11+E20)/(E$13+E$22)),0) -> 0 | F29: =IFERROR(Inputs!L$192 *IF((F$13+F$22)=0,($P11+$P20)/($P$13+$P$22),(F11+F20)/(F$13+F$22)),0) -> 0.04893283774 | G29: =IFERROR(Inputs!M$192 *IF((G$13+G$22)=0,($P11+$P20)/($P$13+$P$22),(G11+G20)/(G$13+G$22)),0) -> 0.04978392185 | H29: =IFERROR(Inputs!N$192 *IF((H$13+H$22)=0,($P11+$P20)/($P$13+$P$22),(H11+H20)/(H$13+H$22)),0) -> 0.01480131933 | I29: =IFERROR(Inputs!O$192 *IF((I$13+I$22)=0,($P11+$P20)/($P$13+$P$22),(I11+I20)/(I$13+I$22)),0) -> 0.4614359628 | J29: =IFERROR(Inputs!P$192 *IF((J$13+J$22)=0,($P11+$P20)/($P$13+$P$22),(J11+J20)/(J$13+J$22)),0) -> 0.04476610273 | K29: =IFERROR(Inputs!Q$192 *IF((K$13+K$22)=0,($P11+$P20)/($P$13+$P$22),(K11+K20)/(K$13+K$22)),0) -> 0.01406488172 | L29: =IFERROR(Inputs!R$192 *IF((L$13+L$22)=0,($P11+$P20)/($P$13+$P$22),(L11+L20)/(L$13+L$22)),0) -> 0.007187082904 | M29: =IFERROR(Inputs!S$192 *IF((M$13+M$22)=0,($P11+$P20)/($P$13+$P$22),(M11+M20)/(M$13+M$22)),0) -> 0.09567941599 | N29: =IFERROR(Inputs!T$192 *IF((N$13+N$22)=0,($P11+$P20)/($P$13+$P$22),(N11+N20)/(N$13+N$22)),0) -> 0.002507314502 | O29: =IFERROR(Inputs!U$192 *IF((O$13+O$22)=0,($P11+$P20)/($P$13+$P$22),(O11+O20)/(O$13+O$22)),0) -> 0 | P29: 0.7391588396 | R29: Minor Plant, Motor Vehicles & Mobile Plant | S29: Other
B30: =Inputs!$A$209 -> [Spare 1] - [Spare 2] | C30: =Inputs!$C$5 -> Real $2023 | D30: $Million | E30: =IFERROR(Inputs!K$192 *IF((E$13+E$22)=0,($P12+$P21)/($P$13+$P$22),(E12+E21)/(E$13+E$22)),0) -> 0 | F30: =IFERROR(Inputs!L$192 *IF((F$13+F$22)=0,($P12+$P21)/($P$13+$P$22),(F12+F21)/(F$13+F$22)),0) -> 0 | G30: =IFERROR(Inputs!M$192 *IF((G$13+G$22)=0,($P12+$P21)/($P$13+$P$22),(G12+G21)/(G$13+G$22)),0) -> 0 | H30: =IFERROR(Inputs!N$192 *IF((H$13+H$22)=0,($P12+$P21)/($P$13+$P$22),(H12+H21)/(H$13+H$22)),0) -> 0 | I30: =IFERROR(Inputs!O$192 *IF((I$13+I$22)=0,($P12+$P21)/($P$13+$P$22),(I12+I21)/(I$13+I$22)),0) -> 0 | J30: =IFERROR(Inputs!P$192 *IF((J$13+J$22)=0,($P12+$P21)/($P$13+$P$22),(J12+J21)/(J$13+J$22)),0) -> 0 | K30: =IFERROR(Inputs!Q$192 *IF((K$13+K$22)=0,($P12+$P21)/($P$13+$P$22),(K12+K21)/(K$13+K$22)),0) -> 0 | L30: =IFERROR(Inputs!R$192 *IF((L$13+L$22)=0,($P12+$P21)/($P$13+$P$22),(L12+L21)/(L$13+L$22)),0) -> 0 | M30: =IFERROR(Inputs!S$192 *IF((M$13+M$22)=0,($P12+$P21)/($P$13+$P$22),(M12+M21)/(M$13+M$22)),0) -> 0 | N30: =IFERROR(Inputs!T$192 *IF((N$13+N$22)=0,($P12+$P21)/($P$13+$P$22),(N12+N21)/(N$13+N$22)),0) -> 0 | O30: =IFERROR(Inputs!U$192 *IF((O$13+O$22)=0,($P12+$P21)/($P$13+$P$22),(O12+O21)/(O$13+O$22)),0) -> 0 | P30: 0 | R30: [Spare 1] | S30: [Spare 2]
B31: Sub-Total | C31: =Inputs!$C$5 -> Real $2023 | D31: $Million | E31: =SUM(E25:E30) -> 0 | F31: =SUM(F25:F30) -> 1.060627611 | G31: =SUM(G25:G30) -> 1.079075004 | H31: =SUM(H25:H30) -> 0.3208211229 | I31: =SUM(I25:I30) -> 1.62583194 | J31: 2.806413621 | K31: 2.489291771 | L31: 1.533593802 | M31: 1.655980099 | N31: 0.05434646982 | O31: 0 | P31: =SUM(P25:P30) -> 12.62598144
B33: Total
B34: =Inputs!$A$204 -> Communications (short life) - SCADA, network control and protection systems | C34: =Inputs!$C$5 -> Real $2023 | D34: $Million | E34: =E7+E16+E25 -> 0 | F34: 1.830129139 | G34: 1.915959159 | H34: 0.5314933779 | I34: =I7+I16+I25 -> 0.903723827 | J34: 11.85725419 | K34: 18.94997195 | L34: 32.08174521 | M34: 11.68840032 | N34: 0.09205705587 | O34: 0 | P34: =SUM(E34:O34) -> 79.85073423 | R34: =R25 -> Communications (short life) | S34: SCADA, network control and protection systems
B35: =Inputs!$A$205 -> Communications (short life) - Other | C35: =Inputs!$C$5 -> Real $2023 | D35: $Million | E35: 0 | F35: 0.2817953412 | G35: 0.2950110751 | H35: 0.08183704337 | I35: =I8+I17+I26 -> 2.867805149 | J35: 2.33171394 | K35: 2.434511063 | L35: 2.150144053 | M35: 2.322285565 | N35: 0.01417454589 | O35: 0 | P35: 12.77927778 | R35: Communications (short life) | S35: Other
B36: =Inputs!$A$206 -> Business IT - SCADA, network control and protection systems | C36: =Inputs!$C$5 -> Real $2023 | D36: $Million | E36: 0 | F36: 0.3059303902 | G36: 0.3202780179 | H36: 0.08884617647 | I36: =I9+I18+I27 -> 3.678050597 | J36: 9.129890369 | K36: 0 | L36: 0 | M36: 0 | N36: 0.01538855943 | O36: 0 | P36: 13.53838411 | R36: Business IT | S36: SCADA, network control and protection systems
B37: =Inputs!$A$207 -> Business IT - Other | C37: =Inputs!$C$5 -> Real $2023 | D37: $Million | E37: 0 | F37: 1.094611343 | G37: 1.145946799 | H37: 0.3178894143 | I37: =I10+I19+I28 -> 6.335248566 | J37: 22.58171926 | K37: 13.08028422 | L37: 2.502247565 | M37: 1.521073812 | N37: 0.05505988371 | O37: 0 | P37: 48.63408086 | R37: Business IT | S37: Other
B38: =Inputs!$A$208 -> Minor Plant, Motor Vehicles & Mobile Plant - Other | C38: =Inputs!$C$5 -> Real $2023 | D38: $Million | E38: 0 | F38: 0.1698881362 | G38: 0.1778556078 | H38: 0.04933773109 | I38: =I11+I20+I29 -> 5.462759721 | J38: 0.7440449824 | K38: 0.195837754 | L38: 0.1729626078 | M38: 0.9524252041 | N38: 0.008545518075 | O38: 0 | P38: 7.933657263 | R38: Minor Plant, Motor Vehicles & Mobile Plant | S38: Other
B39: =Inputs!$A$209 -> [Spare 1] - [Spare 2] | C39: =Inputs!$C$5 -> Real $2023 | D39: $Million | E39: 0 | F39: 0 | G39: 0 | H39: 0 | I39: =I12+I21+I30 -> 0 | J39: 0 | K39: 0 | L39: 0 | M39: 0 | N39: 0 | O39: 0 | P39: 0 | R39: [Spare 1] | S39: [Spare 2]
B40: Total | C40: =Inputs!$C$5 -> Real $2023 | D40: $Million | E40: =SUM(E34:E39) -> 0 | F40: =SUM(F34:F39) -> 3.68235435 | G40: =SUM(G34:G39) -> 3.855050659 | H40: =SUM(H34:H39) -> 1.069403743 | I40: =SUM(I34:I39) -> 19.24758786 | J40: 46.64462274 | K40: 34.66060499 | L40: 36.90709944 | M40: 16.4841849 | N40: 0.185225563 | O40: 0 | P40: =SUM(P34:P39) -> 162.7361342
A42: =IF(SUM(E42:P42)=0,0,1) -> 0 | B42: ="Check "&$B$49 -> Check Direct Non-Labour | E42: =IF(ROUND(E$13-Inputs!X119,3)=0,0,1) -> 0 | F42: =IF(ROUND(F$13-Inputs!Y119,3)=0,0,1) -> 0 | G42: =IF(ROUND(G$13-Inputs!Z119,3)=0,0,1) -> 0 | H42: =IF(ROUND(H$13-Inputs!AA119,3)=0,0,1) -> 0 | I42: =IF(ROUND(I$13-Inputs!AB119,3)=0,0,1) -> 0 | J42: =IF(ROUND(J$13-Inputs!AC119,3)=0,0,1) -> 0 | K42: =IF(ROUND(K$13-Inputs!AD119,3)=0,0,1) -> 0 | L42: =IF(ROUND(L$13-Inputs!AE119,3)=0,0,1) -> 0 | M42: =IF(ROUND(M$13-Inputs!AF119,3)=0,0,1) -> 0 | N42: =IF(ROUND(N$13-Inputs!AG119,3)=0,0,1) -> 0 | O42: =IF(ROUND(O$13-Inputs!AH119,3)=0,0,1) -> 0 | P42: =IF(ROUND(P$13-Inputs!AI119,3)=0,0,1) -> 0
A43: =IF(SUM(E43:P43)=0,0,1) -> 0 | B43: ="Check "&$B$53 -> Check Labour Costs | E43: =IF(ROUND(E$22-Inputs!K157,3)=0,0,1) -> 0 | F43: =IF(ROUND(F$22-Inputs!L157,3)=0,0,1) -> 0 | G43: =IF(ROUND(G$22-Inputs!M157,3)=0,0,1) -> 0 | H43: =IF(ROUND(H$22-Inputs!N157,3)=0,0,1) -> 0 | I43: =IF(ROUND(I$22-Inputs!O157,3)=0,0,1) -> 0 | J43: =IF(ROUND(J$22-Inputs!P157,3)=0,0,1) -> 0 | K43: =IF(ROUND(K$22-Inputs!Q157,3)=0,0,1) -> 0 | L43: =IF(ROUND(L$22-Inputs!R157,3)=0,0,1) -> 0 | M43: =IF(ROUND(M$22-Inputs!S157,3)=0,0,1) -> 0 | N43: =IF(ROUND(N$22-Inputs!T157,3)=0,0,1) -> 0 | O43: =IF(ROUND(O$22-Inputs!U157,3)=0,0,1) -> 0 | P43: =IF(ROUND(P$22-Inputs!V157,3)=0,0,1) -> 0
A44: =IF(SUM(E44:P44)=0,0,1) -> 0 | B44: ="Check "&$B$58 -> Check Indirect Non-Labour Costs | E44: =IF(ROUND(E$31-Inputs!K192,3)=0,0,1) -> 0 | F44: =IF(ROUND(F$31-Inputs!L192,3)=0,0,1) -> 0 | G44: =IF(ROUND(G$31-Inputs!M192,3)=0,0,1) -> 0 | H44: =IF(ROUND(H$31-Inputs!N192,3)=0,0,1) -> 0 | I44: =IF(ROUND(I$31-Inputs!O192,3)=0,0,1) -> 0 | J44: =IF(ROUND(J$31-Inputs!P192,3)=0,0,1) -> 0 | K44: =IF(ROUND(K$31-Inputs!Q192,3)=0,0,1) -> 0 | L44: =IF(ROUND(L$31-Inputs!R192,3)=0,0,1) -> 0 | M44: =IF(ROUND(M$31-Inputs!S192,3)=0,0,1) -> 0 | N44: =IF(ROUND(N$31-Inputs!T192,3)=0,0,1) -> 0 | O44: =IF(ROUND(O$31-Inputs!U192,3)=0,0,1) -> 0 | P44: =IF(ROUND(P$31-Inputs!V192,3)=0,0,1) -> 0
B46: Incremental Capital Expenditure (Excluding Equity Raising Costs) by Driver | P46: Total
B47: Component | C47: Dollar basis | D47: Units | E47: =Inputs!K$15 -> 2023 | F47: =Inputs!L$15 -> 2024 | G47: =Inputs!M$15 -> 2025 | H47: =Inputs!N$15 -> 2026 | I47: =Inputs!O$15 -> 2027 | J47: =Inputs!P$15 -> 2028 | K47: =Inputs!Q$15 -> 2029 | L47: =Inputs!R$15 -> 2030 | M47: =Inputs!S$15 -> 2031 | N47: =Inputs!T$15 -> 2032 | O47: =Inputs!U$15 -> 2033
B49: Direct Non-Labour
B50: Non-Labour | C50: =Inputs!$C$5 -> Real $2023 | D50: $Million | E50: =Inputs!X119 -> 0 | F50: =Inputs!Y119 -> 0 | G50: =Inputs!Z119 -> 0 | H50: =Inputs!AA119 -> 0 | I50: =Inputs!AB119 -> 14.25745999 | J50: =Inputs!AC119 -> 37.36957427 | K50: =Inputs!AD119 -> 26.40377748 | L50: =Inputs!AE119 -> 31.83347394 | M50: =Inputs!AF119 -> 10.97014293 | N50: =Inputs!AG119 -> 0 | O50: =Inputs!AH119 -> 0 | P50: =SUM(E50:O50) -> 120.8344286
B51: Sub-Total | C51: =Inputs!$C$5 -> Real $2023 | D51: $Million | E51: =SUM(E50:E50) -> 0 | F51: =SUM(F50:F50) -> 0 | G51: =SUM(G50:G50) -> 0 | H51: =SUM(H50:H50) -> 0 | I51: 14.25745999 | J51: 37.36957427 | K51: 26.40377748 | L51: 31.83347394 | M51: 10.97014293 | N51: 0 | O51: 0 | P51: =SUM(P50:P50) -> 120.8344286
B53: Labour Costs
B54: Labour | C54: =Inputs!$C$5 -> Real $2023 | D54: $Million | E54: =Inputs!K$156 -> 0 | F54: =Inputs!L$156 -> 2.62172674 | G54: =Inputs!M$156 -> 2.775975655 | H54: =Inputs!N$156 -> 0.7485826202 | I54: =Inputs!O$156 -> 3.364295934 | J54: =Inputs!P$156 -> 6.449226467 | K54: =Inputs!Q$156 -> 5.709275482 | L54: =Inputs!R$156 -> 3.479313556 | M54: =Inputs!S$156 -> 3.764881582 | N54: =Inputs!T$156 -> 0.1268084296 | O54: =Inputs!U$156 -> 0 | P54: =SUM(E54:O54) -> 29.04008646
B55: Labour Escalation | C55: =Inputs!$C$5 -> Real $2023 | D55: $Million | E55: =E54* IF(E4<Inputs!$F$139,1,Inputs!K$17/INDEX(Inputs!$K$17:$U$17,MATCH(Inputs!$F$139,Years,0)))-E54 -> 0 | F55: =F54* IF(F4<Inputs!$F$139,1,Inputs!L$17/INDEX(Inputs!$K$17:$U$17,MATCH(Inputs!$F$139,Years,0)))-F54 -> 0 | G55: =G54* IF(G4<Inputs!$F$139,1,Inputs!M$17/INDEX(Inputs!$K$17:$U$17,MATCH(Inputs!$F$139,Years,0)))-G54 -> 0 | H55: =H54* IF(H4<Inputs!$F$139,1,Inputs!N$17/INDEX(Inputs!$K$17:$U$17,MATCH(Inputs!$F$139,Years,0)))-H54 -> 0 | I55: =I54* IF(I4<Inputs!$F$139,1,Inputs!O$17/INDEX(Inputs!$K$17:$U$17,MATCH(Inputs!$F$139,Years,0)))-I54 -> 0 | J55: =J54* IF(J4<Inputs!$F$139,1,Inputs!P$17/INDEX(Inputs!$K$17:$U$17,MATCH(Inputs!$F$139,Years,0)))-J54 -> 0.01940838815 | K55: =K54* IF(K4<Inputs!$F$139,1,Inputs!Q$17/INDEX(Inputs!$K$17:$U$17,MATCH(Inputs!$F$139,Years,0)))-K54 -> 0.05826025092 | L55: =L54* IF(L4<Inputs!$F$139,1,Inputs!R$17/INDEX(Inputs!$K$17:$U$17,MATCH(Inputs!$F$139,Years,0)))-L54 -> 0.06071813655 | M55: =M54* IF(M4<Inputs!$F$139,1,Inputs!S$17/INDEX(Inputs!$K$17:$U$17,MATCH(Inputs!$F$139,Years,0)))-M54 -> 0.09318028592 | N55: =N54* IF(N4<Inputs!$F$139,1,Inputs!T$17/INDEX(Inputs!$K$17:$U$17,MATCH(Inputs!$F$139,Years,0)))-N54 -> 0.004070663576 | O55: =O54* IF(O4<Inputs!$F$139,1,Inputs!U$17/INDEX(Inputs!$K$17:$U$17,MATCH(Inputs!$F$139,Years,0)))-O54 -> 0 | P55: =SUM(E55:O55) -> 0.2356377251
B56: Sub-Total | C56: =Inputs!$C$5 -> Real $2023 | D56: $Million | E56: =SUM(E54:E55) -> 0 | F56: =SUM(F54:F55) -> 2.62172674 | G56: =SUM(G54:G55) -> 2.775975655 | H56: =SUM(H54:H55) -> 0.7485826202 | I56: 3.364295934 | J56: 6.468634855 | K56: 5.767535733 | L56: 3.540031692 | M56: 3.858061868 | N56: 0.1308790932 | O56: 0 | P56: =SUM(P54:P55) -> 29.27572419
B58: Indirect Non-Labour Costs
B59: Non-Labour | C59: =Inputs!$C$5 -> Real $2023 | D59: $Million | E59: =Inputs!K$192 -> 0 | F59: =Inputs!L$192 -> 1.060627611 | G59: =Inputs!M$192 -> 1.079075004 | H59: =Inputs!N$192 -> 0.3208211229 | I59: =Inputs!O$192 -> 1.62583194 | J59: =Inputs!P$192 -> 2.806413621 | K59: =Inputs!Q$192 -> 2.489291771 | L59: =Inputs!R$192 -> 1.533593802 | M59: =Inputs!S$192 -> 1.655980099 | N59: =Inputs!T$192 -> 0.05434646982 | O59: =Inputs!U$192 -> 0 | P59: =SUM(E59:O59) -> 12.62598144
B60: Sub-Total | C60: =Inputs!$C$5 -> Real $2023 | D60: $Million | E60: =SUM(E59:E59) -> 0 | F60: =SUM(F59:F59) -> 1.060627611 | G60: =SUM(G59:G59) -> 1.079075004 | H60: =SUM(H59:H59) -> 0.3208211229 | I60: 1.62583194 | J60: 2.806413621 | K60: 2.489291771 | L60: 1.533593802 | M60: 1.655980099 | N60: 0.05434646982 | O60: 0 | P60: =SUM(P59:P59) -> 12.62598144
B62: Total
B63: Labour | C63: =Inputs!$C$5 -> Real $2023 | D63: $Million | E63: =E54 -> 0 | F63: 2.62172674 | G63: 2.775975655 | H63: =H54 -> 0.7485826202 | I63: 3.364295934 | J63: 6.449226467 | K63: 5.709275482 | L63: 3.479313556 | M63: 3.764881582 | N63: 0.1268084296 | O63: 0 | P63: =SUM(E63:O63) -> 29.04008646
B64: Labour Escalation | C64: =Inputs!$C$5 -> Real $2023 | D64: $Million | E64: 0 | F64: 0 | G64: 0 | H64: =H55 -> 0 | I64: 0 | J64: 0.01940838815 | K64: 0.05826025092 | L64: 0.06071813655 | M64: 0.09318028592 | N64: 0.004070663576 | O64: 0 | P64: =SUM(E64:O64) -> 0.2356377251
B65: Non-Labour | C65: =Inputs!$C$5 -> Real $2023 | D65: $Million | E65: =E50+E59 -> 0 | F65: =F50+F59 -> 1.060627611 | G65: =G50+G59 -> 1.079075004 | H65: =H50+H59 -> 0.3208211229 | I65: 15.88329193 | J65: 40.17598789 | K65: 28.89306925 | L65: 33.36706774 | M65: 12.62612303 | N65: 0.05434646982 | O65: 0 | P65: =SUM(E65:O65) -> 133.46041
B66: Total | C66: =Inputs!$C$5 -> Real $2023 | D66: $Million | E66: =SUM(E63:E65) -> 0 | F66: =SUM(F63:F65) -> 3.68235435 | G66: =SUM(G63:G65) -> 3.855050659 | H66: =SUM(H63:H65) -> 1.069403743 | I66: 19.24758786 | J66: 46.64462274 | K66: 34.66060499 | L66: 36.90709944 | M66: 16.4841849 | N66: 0.185225563 | O66: 0 | P66: =SUM(P63:P65) -> 162.7361342
A68: =IF(SUM(E68:Q68)=0,0,1) -> 0 | B68: ="Check "&$B$49 -> Check Direct Non-Labour | E68: =IF(ROUND(E$13-E51,3)=0,0,1) -> 0 | F68: =IF(ROUND(F$13-F51,3)=0,0,1) -> 0 | G68: =IF(ROUND(G$13-G51,3)=0,0,1) -> 0 | H68: =IF(ROUND(H$13-H51,3)=0,0,1) -> 0 | I68: 0 | J68: 0 | K68: 0 | L68: 0 | M68: 0 | N68: 0 | O68: 0 | P68: =IF(ROUND(P$13-P51,3)=0,0,1) -> 0
A69: =IF(SUM(E69:Q69)=0,0,1) -> 0 | B69: ="Check "&$B$53 -> Check Labour Costs | E69: =IF(ROUND(E$22-E56,3)=0,0,1) -> 0 | F69: =IF(ROUND(F$22-F56,3)=0,0,1) -> 0 | G69: =IF(ROUND(G$22-G56,3)=0,0,1) -> 0 | H69: =IF(ROUND(H$22-H56,3)=0,0,1) -> 0 | I69: 0 | J69: 0 | K69: 0 | L69: 0 | M69: 0 | N69: 0 | O69: 0 | P69: =IF(ROUND(P$22-P56,3)=0,0,1) -> 0
A70: =IF(SUM(E70:Q70)=0,0,1) -> 0 | B70: ="Check "&$B$58 -> Check Indirect Non-Labour Costs | E70: =IF(ROUND(E$31-E60,3)=0,0,1) -> 0 | F70: =IF(ROUND(F$31-F60,3)=0,0,1) -> 0 | G70: =IF(ROUND(G$31-G60,3)=0,0,1) -> 0 | H70: =IF(ROUND(H$31-H60,3)=0,0,1) -> 0 | I70: 0 | J70: 0 | K70: 0 | L70: 0 | M70: 0 | N70: 0 | O70: 0 | P70: =IF(ROUND(P$31-P60,3)=0,0,1) -> 0
B72: Incremental Capital Expenditure (Excluding Equity Raising Costs) by Component | P72: Total
B73: Component | C73: Dollar basis | D73: Units | E73: =Inputs!K$15 -> 2023 | F73: =Inputs!L$15 -> 2024 | G73: =Inputs!M$15 -> 2025 | H73: =Inputs!N$15 -> 2026 | I73: =Inputs!O$15 -> 2027 | J73: =Inputs!P$15 -> 2028 | K73: =Inputs!Q$15 -> 2029 | L73: =Inputs!R$15 -> 2030 | M73: =Inputs!S$15 -> 2031 | N73: =Inputs!T$15 -> 2032 | O73: =Inputs!U$15 -> 2033
B75: Direct Non-Labour Cost
B76: =Inputs!$A$247 -> Corporate | C76: =Inputs!$C$5 -> Real $2023 | D76: $Million | E76: =IFERROR(E$51 *IF((E$125+E$164)<>0,(E115+E154)/(E$125+E$164),($P115+$P154)/($P$125+$P$164)),0) -> 0 | F76: 0 | G76: 0 | H76: 0 | I76: 0.4375951827 | J76: =IFERROR(J$51 *IF((J$125+J$164)<>0,(J115+J154)/(J$125+J$164),($P115+$P154)/($P$125+$P$164)),0) -> 2.157078894 | K76: 1.720656592 | L76: 3.428974337 | M76: 0.9010954508 | N76: 0 | O76: 0 | P76: =SUM(E76:O76) -> 8.645400455
B77: =Inputs!$A$248 -> Asset Management | C77: =Inputs!$C$5 -> Real $2023 | D77: $Million | E77: 0 | F77: 0 | G77: 0 | H77: 0 | I77: 0 | J77: =IFERROR(J$51 *IF((J$125+J$164)<>0,(J116+J155)/(J$125+J$164),($P116+$P155)/($P$125+$P$164)),0) -> 0 | K77: 0 | L77: 0 | M77: 0 | N77: 0 | O77: 0 | P77: 0
B78: =Inputs!$A$249 -> Delivery | C78: =Inputs!$C$5 -> Real $2023 | D78: $Million | E78: 0 | F78: 0 | G78: 0 | H78: 0 | I78: 7.607825093 | J78: =IFERROR(J$51 *IF((J$125+J$164)<>0,(J117+J156)/(J$125+J$164),($P117+$P156)/($P$125+$P$164)),0) -> 8.734404601 | K78: 4.389023681 | L78: 6.584142895 | M78: 2.043589405 | N78: 0 | O78: 0 | P78: 29.35898567
B79: =Inputs!$A$250 -> Network Operations | C79: =Inputs!$C$5 -> Real $2023 | D79: $Million | E79: 0 | F79: 0 | G79: 0 | H79: 0 | I79: 4.54324584 | J79: =IFERROR(J$51 *IF((J$125+J$164)<>0,(J118+J157)/(J$125+J$164),($P118+$P157)/($P$125+$P$164)),0) -> 19.68105099 | K79: 15.85589185 | L79: 20.06860097 | M79: 7.480422827 | N79: 0 | O79: 0 | P79: 67.62921247
B80: =Inputs!$A$251 -> Finance | C80: =Inputs!$C$5 -> Real $2023 | D80: $Million | E80: 0 | F80: 0 | G80: 0 | H80: 0 | I80: 0.2676146134 | J80: =IFERROR(J$51 *IF((J$125+J$164)<>0,(J119+J158)/(J$125+J$164),($P119+$P158)/($P$125+$P$164)),0) -> 1.026039547 | K80: 0.5362666916 | L80: 1.025403177 | M80: 0.2424950804 | N80: 0 | O80: 0 | P80: 3.09781911
B81: =Inputs!$A$252 -> IT | C81: =Inputs!$C$5 -> Real $2023 | D81: $Million | E81: 0 | F81: 0 | G81: 0 | H81: 0 | I81: 1.401179257 | J81: =IFERROR(J$51 *IF((J$125+J$164)<>0,(J120+J159)/(J$125+J$164),($P120+$P159)/($P$125+$P$164)),0) -> 5.771000236 | K81: 3.901938672 | L81: 0.7263525644 | M81: 0.3025401678 | N81: 0 | O81: 0 | P81: 12.1030109
B82: =Inputs!$A$253 -> Regulatory submissions | C82: =Inputs!$C$5 -> Real $2023 | D82: $Million | E82: 0 | F82: 0 | G82: 0 | H82: 0 | I82: 0 | J82: =IFERROR(J$51 *IF((J$125+J$164)<>0,(J121+J160)/(J$125+J$164),($P121+$P160)/($P$125+$P$164)),0) -> 0 | K82: 0 | L82: 0 | M82: 0 | N82: 0 | O82: 0 | P82: 0
B83: =Inputs!$A$254 -> System Resilience | C83: =Inputs!$C$5 -> Real $2023 | D83: $Million | E83: 0 | F83: 0 | G83: 0 | H83: 0 | I83: 0 | J83: =IFERROR(J$51 *IF((J$125+J$164)<>0,(J122+J161)/(J$125+J$164),($P122+$P161)/($P$125+$P$164)),0) -> 0 | K83: 0 | L83: 0 | M83: 0 | N83: 0 | O83: 0 | P83: 0
B84: =Inputs!$A$255 -> Network Planning | C84: =Inputs!$C$5 -> Real $2023 | D84: $Million | E84: 0 | F84: 0 | G84: 0 | H84: 0 | I84: 0 | J84: =IFERROR(J$51 *IF((J$125+J$164)<>0,(J123+J162)/(J$125+J$164),($P123+$P162)/($P$125+$P$164)),0) -> 0 | K84: 0 | L84: 0 | M84: 0 | N84: 0 | O84: 0 | P84: 0
B85: =Inputs!$A$256 -> [Spare] | C85: =Inputs!$C$5 -> Real $2023 | D85: $Million | E85: 0 | F85: 0 | G85: 0 | H85: 0 | I85: 0 | J85: =IFERROR(J$51 *IF((J$125+J$164)<>0,(J124+J163)/(J$125+J$164),($P124+$P163)/($P$125+$P$164)),0) -> 0 | K85: 0 | L85: 0 | M85: 0 | N85: 0 | O85: 0 | P85: 0
B86: Sub-Total | C86: =Inputs!$C$5 -> Real $2023 | D86: $Million | E86: =SUM(E76:E85) -> 0 | F86: 0 | G86: 0 | H86: 0 | I86: 14.25745999 | J86: =SUM(J76:J85) -> 37.36957427 | K86: 26.40377748 | L86: 31.83347394 | M86: 10.97014293 | N86: 0 | O86: 0 | P86: 120.8344286
B88: Labour Costs - Actual
B89: =Inputs!$A$247 -> Corporate | C89: =Inputs!$C$5 -> Real $2023 | D89: $Million | E89: =IFERROR(SUMIF(Inputs!$H$127:$H$137,$B89,Inputs!K$127:K$137),0) -> 0 | F89: =IFERROR(SUMIF(Inputs!$H$127:$H$137,$B89,Inputs!L$127:L$137),0) -> 0.00034384144 | G89: =IFERROR(SUMIF(Inputs!$H$127:$H$137,$B89,Inputs!M$127:M$137),0) -> 0.08321335974 | H89: =IFERROR(SUMIF(Inputs!$H$127:$H$137,$B89,Inputs!N$127:N$137),0) -> 0 | I89: =IFERROR(SUMIF(Inputs!$H$127:$H$137,$B89,Inputs!O$127:O$137),0) -> 0 | J89: =IFERROR(SUMIF(Inputs!$H$127:$H$137,$B89,Inputs!P$127:P$137),0) -> 0 | K89: =IFERROR(SUMIF(Inputs!$H$127:$H$137,$B89,Inputs!Q$127:Q$137),0) -> 0 | L89: =IFERROR(SUMIF(Inputs!$H$127:$H$137,$B89,Inputs!R$127:R$137),0) -> 0 | M89: =IFERROR(SUMIF(Inputs!$H$127:$H$137,$B89,Inputs!S$127:S$137),0) -> 0 | N89: =IFERROR(SUMIF(Inputs!$H$127:$H$137,$B89,Inputs!T$127:T$137),0) -> 0 | O89: =IFERROR(SUMIF(Inputs!$H$127:$H$137,$B89,Inputs!U$127:U$137),0) -> 0 | P89: =SUM(E89:O89) -> 0.08355720118
B90: =Inputs!$A$248 -> Asset Management | C90: =Inputs!$C$5 -> Real $2023 | D90: $Million | E90: =IFERROR(SUMIF(Inputs!$H$127:$H$137,$B90,Inputs!K$127:K$137),0) -> 0 | F90: =IFERROR(SUMIF(Inputs!$H$127:$H$137,$B90,Inputs!L$127:L$137),0) -> 0.0005597147178 | G90: =IFERROR(SUMIF(Inputs!$H$127:$H$137,$B90,Inputs!M$127:M$137),0) -> 0 | H90: =IFERROR(SUMIF(Inputs!$H$127:$H$137,$B90,Inputs!N$127:N$137),0) -> 0 | I90: =IFERROR(SUMIF(Inputs!$H$127:$H$137,$B90,Inputs!O$127:O$137),0) -> 0 | J90: =IFERROR(SUMIF(Inputs!$H$127:$H$137,$B90,Inputs!P$127:P$137),0) -> 0 | K90: =IFERROR(SUMIF(Inputs!$H$127:$H$137,$B90,Inputs!Q$127:Q$137),0) -> 0 | L90: =IFERROR(SUMIF(Inputs!$H$127:$H$137,$B90,Inputs!R$127:R$137),0) -> 0 | M90: =IFERROR(SUMIF(Inputs!$H$127:$H$137,$B90,Inputs!S$127:S$137),0) -> 0 | N90: =IFERROR(SUMIF(Inputs!$H$127:$H$137,$B90,Inputs!T$127:T$137),0) -> 0 | O90: =IFERROR(SUMIF(Inputs!$H$127:$H$137,$B90,Inputs!U$127:U$137),0) -> 0 | P90: 0.0005597147178
B91: =Inputs!$A$249 -> Delivery | C91: =Inputs!$C$5 -> Real $2023 | D91: $Million | E91: =IFERROR(SUMIF(Inputs!$H$127:$H$137,$B91,Inputs!K$127:K$137),0) -> 0 | F91: =IFERROR(SUMIF(Inputs!$H$127:$H$137,$B91,Inputs!L$127:L$137),0) -> 0.06277978021 | G91: =IFERROR(SUMIF(Inputs!$H$127:$H$137,$B91,Inputs!M$127:M$137),0) -> 0.09227980253 | H91: =IFERROR(SUMIF(Inputs!$H$127:$H$137,$B91,Inputs!N$127:N$137),0) -> 0 | I91: =IFERROR(SUMIF(Inputs!$H$127:$H$137,$B91,Inputs!O$127:O$137),0) -> 0 | J91: =IFERROR(SUMIF(Inputs!$H$127:$H$137,$B91,Inputs!P$127:P$137),0) -> 0 | K91: =IFERROR(SUMIF(Inputs!$H$127:$H$137,$B91,Inputs!Q$127:Q$137),0) -> 0 | L91: =IFERROR(SUMIF(Inputs!$H$127:$H$137,$B91,Inputs!R$127:R$137),0) -> 0 | M91: =IFERROR(SUMIF(Inputs!$H$127:$H$137,$B91,Inputs!S$127:S$137),0) -> 0 | N91: =IFERROR(SUMIF(Inputs!$H$127:$H$137,$B91,Inputs!T$127:T$137),0) -> 0 | O91: =IFERROR(SUMIF(Inputs!$H$127:$H$137,$B91,Inputs!U$127:U$137),0) -> 0 | P91: 0.1550595827
B92: =Inputs!$A$250 -> Network Operations | C92: =Inputs!$C$5 -> Real $2023 | D92: $Million | E92: =IFERROR(SUMIF(Inputs!$H$127:$H$137,$B92,Inputs!K$127:K$137),0) -> 0 | F92: =IFERROR(SUMIF(Inputs!$H$127:$H$137,$B92,Inputs!L$127:L$137),0) -> 0.4166266798 | G92: =IFERROR(SUMIF(Inputs!$H$127:$H$137,$B92,Inputs!M$127:M$137),0) -> 2.922445777 | H92: =IFERROR(SUMIF(Inputs!$H$127:$H$137,$B92,Inputs!N$127:N$137),0) -> 0 | I92: =IFERROR(SUMIF(Inputs!$H$127:$H$137,$B92,Inputs!O$127:O$137),0) -> 0 | J92: =IFERROR(SUMIF(Inputs!$H$127:$H$137,$B92,Inputs!P$127:P$137),0) -> 0 | K92: =IFERROR(SUMIF(Inputs!$H$127:$H$137,$B92,Inputs!Q$127:Q$137),0) -> 0 | L92: =IFERROR(SUMIF(Inputs!$H$127:$H$137,$B92,Inputs!R$127:R$137),0) -> 0 | M92: =IFERROR(SUMIF(Inputs!$H$127:$H$137,$B92,Inputs!S$127:S$137),0) -> 0 | N92: =IFERROR(SUMIF(Inputs!$H$127:$H$137,$B92,Inputs!T$127:T$137),0) -> 0 | O92: =IFERROR(SUMIF(Inputs!$H$127:$H$137,$B92,Inputs!U$127:U$137),0) -> 0 | P92: 3.339072457
B93: =Inputs!$A$251 -> Finance | C93: =Inputs!$C$5 -> Real $2023 | D93: $Million | E93: =IFERROR(SUMIF(Inputs!$H$127:$H$137,$B93,Inputs!K$127:K$137),0) -> 0 | F93: =IFERROR(SUMIF(Inputs!$H$127:$H$137,$B93,Inputs!L$127:L$137),0) -> 0 | G93: =IFERROR(SUMIF(Inputs!$H$127:$H$137,$B93,Inputs!M$127:M$137),0) -> 0 | H93: =IFERROR(SUMIF(Inputs!$H$127:$H$137,$B93,Inputs!N$127:N$137),0) -> 0 | I93: =IFERROR(SUMIF(Inputs!$H$127:$H$137,$B93,Inputs!O$127:O$137),0) -> 0 | J93: =IFERROR(SUMIF(Inputs!$H$127:$H$137,$B93,Inputs!P$127:P$137),0) -> 0 | K93: =IFERROR(SUMIF(Inputs!$H$127:$H$137,$B93,Inputs!Q$127:Q$137),0) -> 0 | L93: =IFERROR(SUMIF(Inputs!$H$127:$H$137,$B93,Inputs!R$127:R$137),0) -> 0 | M93: =IFERROR(SUMIF(Inputs!$H$127:$H$137,$B93,Inputs!S$127:S$137),0) -> 0 | N93: =IFERROR(SUMIF(Inputs!$H$127:$H$137,$B93,Inputs!T$127:T$137),0) -> 0 | O93: =IFERROR(SUMIF(Inputs!$H$127:$H$137,$B93,Inputs!U$127:U$137),0) -> 0 | P93: 0
B94: =Inputs!$A$252 -> IT | C94: =Inputs!$C$5 -> Real $2023 | D94: $Million | E94: =IFERROR(SUMIF(Inputs!$H$127:$H$137,$B94,Inputs!K$127:K$137),0) -> 0 | F94: =IFERROR(SUMIF(Inputs!$H$127:$H$137,$B94,Inputs!L$127:L$137),0) -> 0.03568066623 | G94: =IFERROR(SUMIF(Inputs!$H$127:$H$137,$B94,Inputs!M$127:M$137),0) -> 0.02248569044 | H94: =IFERROR(SUMIF(Inputs!$H$127:$H$137,$B94,Inputs!N$127:N$137),0) -> 0 | I94: =IFERROR(SUMIF(Inputs!$H$127:$H$137,$B94,Inputs!O$127:O$137),0) -> 0 | J94: =IFERROR(SUMIF(Inputs!$H$127:$H$137,$B94,Inputs!P$127:P$137),0) -> 0 | K94: =IFERROR(SUMIF(Inputs!$H$127:$H$137,$B94,Inputs!Q$127:Q$137),0) -> 0 | L94: =IFERROR(SUMIF(Inputs!$H$127:$H$137,$B94,Inputs!R$127:R$137),0) -> 0 | M94: =IFERROR(SUMIF(Inputs!$H$127:$H$137,$B94,Inputs!S$127:S$137),0) -> 0 | N94: =IFERROR(SUMIF(Inputs!$H$127:$H$137,$B94,Inputs!T$127:T$137),0) -> 0 | O94: =IFERROR(SUMIF(Inputs!$H$127:$H$137,$B94,Inputs!U$127:U$137),0) -> 0 | P94: 0.05816635667
B95: =Inputs!$A$253 -> Regulatory submissions | C95: =Inputs!$C$5 -> Real $2023 | D95: $Million | E95: =IFERROR(SUMIF(Inputs!$H$127:$H$137,$B95,Inputs!K$127:K$137),0) -> 0 | F95: =IFERROR(SUMIF(Inputs!$H$127:$H$137,$B95,Inputs!L$127:L$137),0) -> 0.006013765566 | G95: =IFERROR(SUMIF(Inputs!$H$127:$H$137,$B95,Inputs!M$127:M$137),0) -> 0.06098871523 | H95: =IFERROR(SUMIF(Inputs!$H$127:$H$137,$B95,Inputs!N$127:N$137),0) -> 0 | I95: =IFERROR(SUMIF(Inputs!$H$127:$H$137,$B95,Inputs!O$127:O$137),0) -> 0 | J95: =IFERROR(SUMIF(Inputs!$H$127:$H$137,$B95,Inputs!P$127:P$137),0) -> 0 | K95: =IFERROR(SUMIF(Inputs!$H$127:$H$137,$B95,Inputs!Q$127:Q$137),0) -> 0 | L95: =IFERROR(SUMIF(Inputs!$H$127:$H$137,$B95,Inputs!R$127:R$137),0) -> 0 | M95: =IFERROR(SUMIF(Inputs!$H$127:$H$137,$B95,Inputs!S$127:S$137),0) -> 0 | N95: =IFERROR(SUMIF(Inputs!$H$127:$H$137,$B95,Inputs!T$127:T$137),0) -> 0 | O95: =IFERROR(SUMIF(Inputs!$H$127:$H$137,$B95,Inputs!U$127:U$137),0) -> 0 | P95: 0.06700248079
B96: =Inputs!$A$254 -> System Resilience | C96: =Inputs!$C$5 -> Real $2023 | D96: $Million | E96: =IFERROR(SUMIF(Inputs!$H$127:$H$137,$B96,Inputs!K$127:K$137),0) -> 0 | F96: =IFERROR(SUMIF(Inputs!$H$127:$H$137,$B96,Inputs!L$127:L$137),0) -> 2.099722292 | G96: =IFERROR(SUMIF(Inputs!$H$127:$H$137,$B96,Inputs!M$127:M$137),0) -> -0.4158854861 | H96: =IFERROR(SUMIF(Inputs!$H$127:$H$137,$B96,Inputs!N$127:N$137),0) -> 0 | I96: =IFERROR(SUMIF(Inputs!$H$127:$H$137,$B96,Inputs!O$127:O$137),0) -> 0 | J96: =IFERROR(SUMIF(Inputs!$H$127:$H$137,$B96,Inputs!P$127:P$137),0) -> 0 | K96: =IFERROR(SUMIF(Inputs!$H$127:$H$137,$B96,Inputs!Q$127:Q$137),0) -> 0 | L96: =IFERROR(SUMIF(Inputs!$H$127:$H$137,$B96,Inputs!R$127:R$137),0) -> 0 | M96: =IFERROR(SUMIF(Inputs!$H$127:$H$137,$B96,Inputs!S$127:S$137),0) -> 0 | N96: =IFERROR(SUMIF(Inputs!$H$127:$H$137,$B96,Inputs!T$127:T$137),0) -> 0 | O96: =IFERROR(SUMIF(Inputs!$H$127:$H$137,$B96,Inputs!U$127:U$137),0) -> 0 | P96: 1.683836806
B97: =Inputs!$A$255 -> Network Planning | C97: =Inputs!$C$5 -> Real $2023 | D97: $Million | E97: =IFERROR(SUMIF(Inputs!$H$127:$H$137,$B97,Inputs!K$127:K$137),0) -> 0 | F97: =IFERROR(SUMIF(Inputs!$H$127:$H$137,$B97,Inputs!L$127:L$137),0) -> 0 | G97: =IFERROR(SUMIF(Inputs!$H$127:$H$137,$B97,Inputs!M$127:M$137),0) -> 0.01044779536 | H97: =IFERROR(SUMIF(Inputs!$H$127:$H$137,$B97,Inputs!N$127:N$137),0) -> 0 | I97: =IFERROR(SUMIF(Inputs!$H$127:$H$137,$B97,Inputs!O$127:O$137),0) -> 0 | J97: =IFERROR(SUMIF(Inputs!$H$127:$H$137,$B97,Inputs!P$127:P$137),0) -> 0 | K97: =IFERROR(SUMIF(Inputs!$H$127:$H$137,$B97,Inputs!Q$127:Q$137),0) -> 0 | L97: =IFERROR(SUMIF(Inputs!$H$127:$H$137,$B97,Inputs!R$127:R$137),0) -> 0 | M97: =IFERROR(SUMIF(Inputs!$H$127:$H$137,$B97,Inputs!S$127:S$137),0) -> 0 | N97: =IFERROR(SUMIF(Inputs!$H$127:$H$137,$B97,Inputs!T$127:T$137),0) -> 0 | O97: =IFERROR(SUMIF(Inputs!$H$127:$H$137,$B97,Inputs!U$127:U$137),0) -> 0 | P97: 0.01044779536
B98: =Inputs!$A$256 -> [Spare] | C98: =Inputs!$C$5 -> Real $2023 | D98: $Million | E98: =IFERROR(SUMIF(Inputs!$H$127:$H$137,$B98,Inputs!K$127:K$137),0) -> 0 | F98: =IFERROR(SUMIF(Inputs!$H$127:$H$137,$B98,Inputs!L$127:L$137),0) -> 0 | G98: =IFERROR(SUMIF(Inputs!$H$127:$H$137,$B98,Inputs!M$127:M$137),0) -> 0 | H98: =IFERROR(SUMIF(Inputs!$H$127:$H$137,$B98,Inputs!N$127:N$137),0) -> 0 | I98: =IFERROR(SUMIF(Inputs!$H$127:$H$137,$B98,Inputs!O$127:O$137),0) -> 0 | J98: =IFERROR(SUMIF(Inputs!$H$127:$H$137,$B98,Inputs!P$127:P$137),0) -> 0 | K98: =IFERROR(SUMIF(Inputs!$H$127:$H$137,$B98,Inputs!Q$127:Q$137),0) -> 0 | L98: =IFERROR(SUMIF(Inputs!$H$127:$H$137,$B98,Inputs!R$127:R$137),0) -> 0 | M98: =IFERROR(SUMIF(Inputs!$H$127:$H$137,$B98,Inputs!S$127:S$137),0) -> 0 | N98: =IFERROR(SUMIF(Inputs!$H$127:$H$137,$B98,Inputs!T$127:T$137),0) -> 0 | O98: =IFERROR(SUMIF(Inputs!$H$127:$H$137,$B98,Inputs!U$127:U$137),0) -> 0 | P98: 0
B99: Sub-Total | C99: =Inputs!$C$5 -> Real $2023 | D99: $Million | E99: =SUM(E89:E98) -> 0 | F99: 2.62172674 | G99: 2.775975655 | H99: 0 | I99: 0 | J99: =SUM(J89:J98) -> 0 | K99: 0 | L99: 0 | M99: 0 | N99: 0 | O99: 0 | P99: 5.397702394
B101: Labour Costs - Forecast
B102: =Inputs!$A$247 -> Corporate | C102: =Inputs!$C$5 -> Real $2023 | D102: $Million | E102: =IFERROR(SUMIF(Inputs!$H$139:$H$149,$B102,Inputs!K$139:K$149)*Inputs!$E$155*Inputs!K$17/INDEX(Inputs!$K$17:$N$17,MATCH(Inputs!$F$139,Years,0)),0) -> 0 | F102: =IFERROR(SUMIF(Inputs!$H$139:$H$149,$B102,Inputs!L$139:L$149)*Inputs!$E$155*Inputs!L$17/INDEX(Inputs!$K$17:$N$17,MATCH(Inputs!$F$139,Years,0)),0) -> 0 | G102: =IFERROR(SUMIF(Inputs!$H$139:$H$149,$B102,Inputs!M$139:M$149)*Inputs!$E$155*Inputs!M$17/INDEX(Inputs!$K$17:$N$17,MATCH(Inputs!$F$139,Years,0)),0) -> 0 | H102: =IFERROR(SUMIF(Inputs!$H$139:$H$149,$B102,Inputs!N$139:N$149)*Inputs!$E$155*Inputs!N$17/INDEX(Inputs!$K$17:$N$17,MATCH(Inputs!$F$139,Years,0)),0) -> 0.03526434213 | I102: =IFERROR(SUMIF(Inputs!$H$139:$H$149,$B102,Inputs!O$139:O$149)*Inputs!$E$155*Inputs!O$17/INDEX(Inputs!$K$17:$N$17,MATCH(Inputs!$F$139,Years,0)),0) -> 0.1072111824 | J102: =IFERROR(SUMIF(Inputs!$H$139:$H$149,$B102,Inputs!P$139:P$149)*Inputs!$E$155*Inputs!P$17/INDEX(Inputs!$K$17:$N$17,MATCH(Inputs!$F$139,Years,0)),0) -> 0.3751052983 | K102: =IFERROR(SUMIF(Inputs!$H$139:$H$149,$B102,Inputs!Q$139:Q$149)*Inputs!$E$155*Inputs!Q$17/INDEX(Inputs!$K$17:$N$17,MATCH(Inputs!$F$139,Years,0)),0) -> 0.3777961123 | L102: =IFERROR(SUMIF(Inputs!$H$139:$H$149,$B102,Inputs!R$139:R$149)*Inputs!$E$155*Inputs!R$17/INDEX(Inputs!$K$17:$N$17,MATCH(Inputs!$F$139,Years,0)),0) -> 0.3845360878 | M102: =IFERROR(SUMIF(Inputs!$H$139:$H$149,$B102,Inputs!S$139:S$149)*Inputs!$E$155*Inputs!S$17/INDEX(Inputs!$K$17:$N$17,MATCH(Inputs!$F$139,Years,0)),0) -> 0.3193631553 | N102: =IFERROR(SUMIF(Inputs!$H$139:$H$149,$B102,Inputs!T$139:T$149)*Inputs!$E$155*Inputs!T$17/INDEX(Inputs!$K$17:$N$17,MATCH(Inputs!$F$139,Years,0)),0) -> 0 | O102: =IFERROR(SUMIF(Inputs!$H$139:$H$149,$B102,Inputs!U$139:U$149)*Inputs!$E$155*Inputs!U$17/INDEX(Inputs!$K$17:$N$17,MATCH(Inputs!$F$139,Years,0)),0) -> 0 | P102: =SUM(E102:O102) -> 1.599276178
B103: =Inputs!$A$248 -> Asset Management | C103: =Inputs!$C$5 -> Real $2023 | D103: $Million | E103: =IFERROR(SUMIF(Inputs!$H$139:$H$149,$B103,Inputs!K$139:K$149)*Inputs!$E$155*Inputs!K$17/INDEX(Inputs!$K$17:$N$17,MATCH(Inputs!$F$139,Years,0)),0) -> 0 | F103: =IFERROR(SUMIF(Inputs!$H$139:$H$149,$B103,Inputs!L$139:L$149)*Inputs!$E$155*Inputs!L$17/INDEX(Inputs!$K$17:$N$17,MATCH(Inputs!$F$139,Years,0)),0) -> 0 | G103: =IFERROR(SUMIF(Inputs!$H$139:$H$149,$B103,Inputs!M$139:M$149)*Inputs!$E$155*Inputs!M$17/INDEX(Inputs!$K$17:$N$17,MATCH(Inputs!$F$139,Years,0)),0) -> 0 | H103: =IFERROR(SUMIF(Inputs!$H$139:$H$149,$B103,Inputs!N$139:N$149)*Inputs!$E$155*Inputs!N$17/INDEX(Inputs!$K$17:$N$17,MATCH(Inputs!$F$139,Years,0)),0) -> 0 | I103: =IFERROR(SUMIF(Inputs!$H$139:$H$149,$B103,Inputs!O$139:O$149)*Inputs!$E$155*Inputs!O$17/INDEX(Inputs!$K$17:$N$17,MATCH(Inputs!$F$139,Years,0)),0) -> 0 | J103: =IFERROR(SUMIF(Inputs!$H$139:$H$149,$B103,Inputs!P$139:P$149)*Inputs!$E$155*Inputs!P$17/INDEX(Inputs!$K$17:$N$17,MATCH(Inputs!$F$139,Years,0)),0) -> 0 | K103: =IFERROR(SUMIF(Inputs!$H$139:$H$149,$B103,Inputs!Q$139:Q$149)*Inputs!$E$155*Inputs!Q$17/INDEX(Inputs!$K$17:$N$17,MATCH(Inputs!$F$139,Years,0)),0) -> 0 | L103: =IFERROR(SUMIF(Inputs!$H$139:$H$149,$B103,Inputs!R$139:R$149)*Inputs!$E$155*Inputs!R$17/INDEX(Inputs!$K$17:$N$17,MATCH(Inputs!$F$139,Years,0)),0) -> 0 | M103: =IFERROR(SUMIF(Inputs!$H$139:$H$149,$B103,Inputs!S$139:S$149)*Inputs!$E$155*Inputs!S$17/INDEX(Inputs!$K$17:$N$17,MATCH(Inputs!$F$139,Years,0)),0) -> 0 | N103: =IFERROR(SUMIF(Inputs!$H$139:$H$149,$B103,Inputs!T$139:T$149)*Inputs!$E$155*Inputs!T$17/INDEX(Inputs!$K$17:$N$17,MATCH(Inputs!$F$139,Years,0)),0) -> 0 | O103: =IFERROR(SUMIF(Inputs!$H$139:$H$149,$B103,Inputs!U$139:U$149)*Inputs!$E$155*Inputs!U$17/INDEX(Inputs!$K$17:$N$17,MATCH(Inputs!$F$139,Years,0)),0) -> 0 | P103: 0
B104: =Inputs!$A$249 -> Delivery | C104: =Inputs!$C$5 -> Real $2023 | D104: $Million | E104: =IFERROR(SUMIF(Inputs!$H$139:$H$149,$B104,Inputs!K$139:K$149)*Inputs!$E$155*Inputs!K$17/INDEX(Inputs!$K$17:$N$17,MATCH(Inputs!$F$139,Years,0)),0) -> 0 | F104: =IFERROR(SUMIF(Inputs!$H$139:$H$149,$B104,Inputs!L$139:L$149)*Inputs!$E$155*Inputs!L$17/INDEX(Inputs!$K$17:$N$17,MATCH(Inputs!$F$139,Years,0)),0) -> 0 | G104: =IFERROR(SUMIF(Inputs!$H$139:$H$149,$B104,Inputs!M$139:M$149)*Inputs!$E$155*Inputs!M$17/INDEX(Inputs!$K$17:$N$17,MATCH(Inputs!$F$139,Years,0)),0) -> 0 | H104: =IFERROR(SUMIF(Inputs!$H$139:$H$149,$B104,Inputs!N$139:N$149)*Inputs!$E$155*Inputs!N$17/INDEX(Inputs!$K$17:$N$17,MATCH(Inputs!$F$139,Years,0)),0) -> 0.03302399435 | I104: =IFERROR(SUMIF(Inputs!$H$139:$H$149,$B104,Inputs!O$139:O$149)*Inputs!$E$155*Inputs!O$17/INDEX(Inputs!$K$17:$N$17,MATCH(Inputs!$F$139,Years,0)),0) -> 1.863923452 | J104: =IFERROR(SUMIF(Inputs!$H$139:$H$149,$B104,Inputs!P$139:P$149)*Inputs!$E$155*Inputs!P$17/INDEX(Inputs!$K$17:$N$17,MATCH(Inputs!$F$139,Years,0)),0) -> 1.518869547 | K104: =IFERROR(SUMIF(Inputs!$H$139:$H$149,$B104,Inputs!Q$139:Q$149)*Inputs!$E$155*Inputs!Q$17/INDEX(Inputs!$K$17:$N$17,MATCH(Inputs!$F$139,Years,0)),0) -> 0.9636763614 | L104: =IFERROR(SUMIF(Inputs!$H$139:$H$149,$B104,Inputs!R$139:R$149)*Inputs!$E$155*Inputs!R$17/INDEX(Inputs!$K$17:$N$17,MATCH(Inputs!$F$139,Years,0)),0) -> 0.7383667247 | M104: =IFERROR(SUMIF(Inputs!$H$139:$H$149,$B104,Inputs!S$139:S$149)*Inputs!$E$155*Inputs!S$17/INDEX(Inputs!$K$17:$N$17,MATCH(Inputs!$F$139,Years,0)),0) -> 0.7242819392 | N104: =IFERROR(SUMIF(Inputs!$H$139:$H$149,$B104,Inputs!T$139:T$149)*Inputs!$E$155*Inputs!T$17/INDEX(Inputs!$K$17:$N$17,MATCH(Inputs!$F$139,Years,0)),0) -> 0.08518650754 | O104: =IFERROR(SUMIF(Inputs!$H$139:$H$149,$B104,Inputs!U$139:U$149)*Inputs!$E$155*Inputs!U$17/INDEX(Inputs!$K$17:$N$17,MATCH(Inputs!$F$139,Years,0)),0) -> 0 | P104: 5.927328527
B105: =Inputs!$A$250 -> Network Operations | C105: =Inputs!$C$5 -> Real $2023 | D105: $Million | E105: =IFERROR(SUMIF(Inputs!$H$139:$H$149,$B105,Inputs!K$139:K$149)*Inputs!$E$155*Inputs!K$17/INDEX(Inputs!$K$17:$N$17,MATCH(Inputs!$F$139,Years,0)),0) -> 0 | F105: =IFERROR(SUMIF(Inputs!$H$139:$H$149,$B105,Inputs!L$139:L$149)*Inputs!$E$155*Inputs!L$17/INDEX(Inputs!$K$17:$N$17,MATCH(Inputs!$F$139,Years,0)),0) -> 0 | G105: =IFERROR(SUMIF(Inputs!$H$139:$H$149,$B105,Inputs!M$139:M$149)*Inputs!$E$155*Inputs!M$17/INDEX(Inputs!$K$17:$N$17,MATCH(Inputs!$F$139,Years,0)),0) -> 0 | H105: =IFERROR(SUMIF(Inputs!$H$139:$H$149,$B105,Inputs!N$139:N$149)*Inputs!$E$155*Inputs!N$17/INDEX(Inputs!$K$17:$N$17,MATCH(Inputs!$F$139,Years,0)),0) -> 0 | I105: =IFERROR(SUMIF(Inputs!$H$139:$H$149,$B105,Inputs!O$139:O$149)*Inputs!$E$155*Inputs!O$17/INDEX(Inputs!$K$17:$N$17,MATCH(Inputs!$F$139,Years,0)),0) -> 0.9843054179 | J105: =IFERROR(SUMIF(Inputs!$H$139:$H$149,$B105,Inputs!P$139:P$149)*Inputs!$E$155*Inputs!P$17/INDEX(Inputs!$K$17:$N$17,MATCH(Inputs!$F$139,Years,0)),0) -> 3.392688574 | K105: =IFERROR(SUMIF(Inputs!$H$139:$H$149,$B105,Inputs!Q$139:Q$149)*Inputs!$E$155*Inputs!Q$17/INDEX(Inputs!$K$17:$N$17,MATCH(Inputs!$F$139,Years,0)),0) -> 3.451588317 | L105: =IFERROR(SUMIF(Inputs!$H$139:$H$149,$B105,Inputs!R$139:R$149)*Inputs!$E$155*Inputs!R$17/INDEX(Inputs!$K$17:$N$17,MATCH(Inputs!$F$139,Years,0)),0) -> 2.220681419 | M105: =IFERROR(SUMIF(Inputs!$H$139:$H$149,$B105,Inputs!S$139:S$149)*Inputs!$E$155*Inputs!S$17/INDEX(Inputs!$K$17:$N$17,MATCH(Inputs!$F$139,Years,0)),0) -> 2.621247252 | N105: =IFERROR(SUMIF(Inputs!$H$139:$H$149,$B105,Inputs!T$139:T$149)*Inputs!$E$155*Inputs!T$17/INDEX(Inputs!$K$17:$N$17,MATCH(Inputs!$F$139,Years,0)),0) -> 0.04569258561 | O105: =IFERROR(SUMIF(Inputs!$H$139:$H$149,$B105,Inputs!U$139:U$149)*Inputs!$E$155*Inputs!U$17/INDEX(Inputs!$K$17:$N$17,MATCH(Inputs!$F$139,Years,0)),0) -> 0 | P105: 12.71620357
B106: =Inputs!$A$251 -> Finance | C106: =Inputs!$C$5 -> Real $2023 | D106: $Million | E106: =IFERROR(SUMIF(Inputs!$H$139:$H$149,$B106,Inputs!K$139:K$149)*Inputs!$E$155*Inputs!K$17/INDEX(Inputs!$K$17:$N$17,MATCH(Inputs!$F$139,Years,0)),0) -> 0 | F106: =IFERROR(SUMIF(Inputs!$H$139:$H$149,$B106,Inputs!L$139:L$149)*Inputs!$E$155*Inputs!L$17/INDEX(Inputs!$K$17:$N$17,MATCH(Inputs!$F$139,Years,0)),0) -> 0 | G106: =IFERROR(SUMIF(Inputs!$H$139:$H$149,$B106,Inputs!M$139:M$149)*Inputs!$E$155*Inputs!M$17/INDEX(Inputs!$K$17:$N$17,MATCH(Inputs!$F$139,Years,0)),0) -> 0 | H106: =IFERROR(SUMIF(Inputs!$H$139:$H$149,$B106,Inputs!N$139:N$149)*Inputs!$E$155*Inputs!N$17/INDEX(Inputs!$K$17:$N$17,MATCH(Inputs!$F$139,Years,0)),0) -> 0 | I106: =IFERROR(SUMIF(Inputs!$H$139:$H$149,$B106,Inputs!O$139:O$149)*Inputs!$E$155*Inputs!O$17/INDEX(Inputs!$K$17:$N$17,MATCH(Inputs!$F$139,Years,0)),0) -> 0.06556580204 | J106: =IFERROR(SUMIF(Inputs!$H$139:$H$149,$B106,Inputs!P$139:P$149)*Inputs!$E$155*Inputs!P$17/INDEX(Inputs!$K$17:$N$17,MATCH(Inputs!$F$139,Years,0)),0) -> 0.1784231776 | K106: =IFERROR(SUMIF(Inputs!$H$139:$H$149,$B106,Inputs!Q$139:Q$149)*Inputs!$E$155*Inputs!Q$17/INDEX(Inputs!$K$17:$N$17,MATCH(Inputs!$F$139,Years,0)),0) -> 0.1177454422 | L106: =IFERROR(SUMIF(Inputs!$H$139:$H$149,$B106,Inputs!R$139:R$149)*Inputs!$E$155*Inputs!R$17/INDEX(Inputs!$K$17:$N$17,MATCH(Inputs!$F$139,Years,0)),0) -> 0.1149919736 | M106: =IFERROR(SUMIF(Inputs!$H$139:$H$149,$B106,Inputs!S$139:S$149)*Inputs!$E$155*Inputs!S$17/INDEX(Inputs!$K$17:$N$17,MATCH(Inputs!$F$139,Years,0)),0) -> 0.08594427367 | N106: =IFERROR(SUMIF(Inputs!$H$139:$H$149,$B106,Inputs!T$139:T$149)*Inputs!$E$155*Inputs!T$17/INDEX(Inputs!$K$17:$N$17,MATCH(Inputs!$F$139,Years,0)),0) -> 0 | O106: =IFERROR(SUMIF(Inputs!$H$139:$H$149,$B106,Inputs!U$139:U$149)*Inputs!$E$155*Inputs!U$17/INDEX(Inputs!$K$17:$N$17,MATCH(Inputs!$F$139,Years,0)),0) -> 0 | P106: 0.562670669
B107: =Inputs!$A$252 -> IT | C107: =Inputs!$C$5 -> Real $2023 | D107: $Million | E107: =IFERROR(SUMIF(Inputs!$H$139:$H$149,$B107,Inputs!K$139:K$149)*Inputs!$E$155*Inputs!K$17/INDEX(Inputs!$K$17:$N$17,MATCH(Inputs!$F$139,Years,0)),0) -> 0 | F107: =IFERROR(SUMIF(Inputs!$H$139:$H$149,$B107,Inputs!L$139:L$149)*Inputs!$E$155*Inputs!L$17/INDEX(Inputs!$K$17:$N$17,MATCH(Inputs!$F$139,Years,0)),0) -> 0 | G107: =IFERROR(SUMIF(Inputs!$H$139:$H$149,$B107,Inputs!M$139:M$149)*Inputs!$E$155*Inputs!M$17/INDEX(Inputs!$K$17:$N$17,MATCH(Inputs!$F$139,Years,0)),0) -> 0 | H107: =IFERROR(SUMIF(Inputs!$H$139:$H$149,$B107,Inputs!N$139:N$149)*Inputs!$E$155*Inputs!N$17/INDEX(Inputs!$K$17:$N$17,MATCH(Inputs!$F$139,Years,0)),0) -> 0 | I107: =IFERROR(SUMIF(Inputs!$H$139:$H$149,$B107,Inputs!O$139:O$149)*Inputs!$E$155*Inputs!O$17/INDEX(Inputs!$K$17:$N$17,MATCH(Inputs!$F$139,Years,0)),0) -> 0.3432900792 | J107: =IFERROR(SUMIF(Inputs!$H$139:$H$149,$B107,Inputs!P$139:P$149)*Inputs!$E$155*Inputs!P$17/INDEX(Inputs!$K$17:$N$17,MATCH(Inputs!$F$139,Years,0)),0) -> 1.003548257 | K107: =IFERROR(SUMIF(Inputs!$H$139:$H$149,$B107,Inputs!Q$139:Q$149)*Inputs!$E$155*Inputs!Q$17/INDEX(Inputs!$K$17:$N$17,MATCH(Inputs!$F$139,Years,0)),0) -> 0.8567294996 | L107: =IFERROR(SUMIF(Inputs!$H$139:$H$149,$B107,Inputs!R$139:R$149)*Inputs!$E$155*Inputs!R$17/INDEX(Inputs!$K$17:$N$17,MATCH(Inputs!$F$139,Years,0)),0) -> 0.0814554867 | M107: =IFERROR(SUMIF(Inputs!$H$139:$H$149,$B107,Inputs!S$139:S$149)*Inputs!$E$155*Inputs!S$17/INDEX(Inputs!$K$17:$N$17,MATCH(Inputs!$F$139,Years,0)),0) -> 0.1072252474 | N107: =IFERROR(SUMIF(Inputs!$H$139:$H$149,$B107,Inputs!T$139:T$149)*Inputs!$E$155*Inputs!T$17/INDEX(Inputs!$K$17:$N$17,MATCH(Inputs!$F$139,Years,0)),0) -> 0 | O107: =IFERROR(SUMIF(Inputs!$H$139:$H$149,$B107,Inputs!U$139:U$149)*Inputs!$E$155*Inputs!U$17/INDEX(Inputs!$K$17:$N$17,MATCH(Inputs!$F$139,Years,0)),0) -> 0 | P107: 2.39224857
B108: =Inputs!$A$253 -> Regulatory submissions | C108: =Inputs!$C$5 -> Real $2023 | D108: $Million | E108: =IFERROR(SUMIF(Inputs!$H$139:$H$149,$B108,Inputs!K$139:K$149)*Inputs!$E$155*Inputs!K$17/INDEX(Inputs!$K$17:$N$17,MATCH(Inputs!$F$139,Years,0)),0) -> 0 | F108: =IFERROR(SUMIF(Inputs!$H$139:$H$149,$B108,Inputs!L$139:L$149)*Inputs!$E$155*Inputs!L$17/INDEX(Inputs!$K$17:$N$17,MATCH(Inputs!$F$139,Years,0)),0) -> 0 | G108: =IFERROR(SUMIF(Inputs!$H$139:$H$149,$B108,Inputs!M$139:M$149)*Inputs!$E$155*Inputs!M$17/INDEX(Inputs!$K$17:$N$17,MATCH(Inputs!$F$139,Years,0)),0) -> 0 | H108: =IFERROR(SUMIF(Inputs!$H$139:$H$149,$B108,Inputs!N$139:N$149)*Inputs!$E$155*Inputs!N$17/INDEX(Inputs!$K$17:$N$17,MATCH(Inputs!$F$139,Years,0)),0) -> 0.3052652176 | I108: =IFERROR(SUMIF(Inputs!$H$139:$H$149,$B108,Inputs!O$139:O$149)*Inputs!$E$155*Inputs!O$17/INDEX(Inputs!$K$17:$N$17,MATCH(Inputs!$F$139,Years,0)),0) -> 0 | J108: =IFERROR(SUMIF(Inputs!$H$139:$H$149,$B108,Inputs!P$139:P$149)*Inputs!$E$155*Inputs!P$17/INDEX(Inputs!$K$17:$N$17,MATCH(Inputs!$F$139,Years,0)),0) -> 0 | K108: =IFERROR(SUMIF(Inputs!$H$139:$H$149,$B108,Inputs!Q$139:Q$149)*Inputs!$E$155*Inputs!Q$17/INDEX(Inputs!$K$17:$N$17,MATCH(Inputs!$F$139,Years,0)),0) -> 0 | L108: =IFERROR(SUMIF(Inputs!$H$139:$H$149,$B108,Inputs!R$139:R$149)*Inputs!$E$155*Inputs!R$17/INDEX(Inputs!$K$17:$N$17,MATCH(Inputs!$F$139,Years,0)),0) -> 0 | M108: =IFERROR(SUMIF(Inputs!$H$139:$H$149,$B108,Inputs!S$139:S$149)*Inputs!$E$155*Inputs!S$17/INDEX(Inputs!$K$17:$N$17,MATCH(Inputs!$F$139,Years,0)),0) -> 0 | N108: =IFERROR(SUMIF(Inputs!$H$139:$H$149,$B108,Inputs!T$139:T$149)*Inputs!$E$155*Inputs!T$17/INDEX(Inputs!$K$17:$N$17,MATCH(Inputs!$F$139,Years,0)),0) -> 0 | O108: =IFERROR(SUMIF(Inputs!$H$139:$H$149,$B108,Inputs!U$139:U$149)*Inputs!$E$155*Inputs!U$17/INDEX(Inputs!$K$17:$N$17,MATCH(Inputs!$F$139,Years,0)),0) -> 0 | P108: 0.3052652176
B109: =Inputs!$A$254 -> System Resilience | C109: =Inputs!$C$5 -> Real $2023 | D109: $Million | E109: =IFERROR(SUMIF(Inputs!$H$139:$H$149,$B109,Inputs!K$139:K$149)*Inputs!$E$155*Inputs!K$17/INDEX(Inputs!$K$17:$N$17,MATCH(Inputs!$F$139,Years,0)),0) -> 0 | F109: =IFERROR(SUMIF(Inputs!$H$139:$H$149,$B109,Inputs!L$139:L$149)*Inputs!$E$155*Inputs!L$17/INDEX(Inputs!$K$17:$N$17,MATCH(Inputs!$F$139,Years,0)),0) -> 0 | G109: =IFERROR(SUMIF(Inputs!$H$139:$H$149,$B109,Inputs!M$139:M$149)*Inputs!$E$155*Inputs!M$17/INDEX(Inputs!$K$17:$N$17,MATCH(Inputs!$F$139,Years,0)),0) -> 0 | H109: =IFERROR(SUMIF(Inputs!$H$139:$H$149,$B109,Inputs!N$139:N$149)*Inputs!$E$155*Inputs!N$17/INDEX(Inputs!$K$17:$N$17,MATCH(Inputs!$F$139,Years,0)),0) -> 0.3750290661 | I109: =IFERROR(SUMIF(Inputs!$H$139:$H$149,$B109,Inputs!O$139:O$149)*Inputs!$E$155*Inputs!O$17/INDEX(Inputs!$K$17:$N$17,MATCH(Inputs!$F$139,Years,0)),0) -> 0 | J109: =IFERROR(SUMIF(Inputs!$H$139:$H$149,$B109,Inputs!P$139:P$149)*Inputs!$E$155*Inputs!P$17/INDEX(Inputs!$K$17:$N$17,MATCH(Inputs!$F$139,Years,0)),0) -> 0 | K109: =IFERROR(SUMIF(Inputs!$H$139:$H$149,$B109,Inputs!Q$139:Q$149)*Inputs!$E$155*Inputs!Q$17/INDEX(Inputs!$K$17:$N$17,MATCH(Inputs!$F$139,Years,0)),0) -> 0 | L109: =IFERROR(SUMIF(Inputs!$H$139:$H$149,$B109,Inputs!R$139:R$149)*Inputs!$E$155*Inputs!R$17/INDEX(Inputs!$K$17:$N$17,MATCH(Inputs!$F$139,Years,0)),0) -> 0 | M109: =IFERROR(SUMIF(Inputs!$H$139:$H$149,$B109,Inputs!S$139:S$149)*Inputs!$E$155*Inputs!S$17/INDEX(Inputs!$K$17:$N$17,MATCH(Inputs!$F$139,Years,0)),0) -> 0 | N109: =IFERROR(SUMIF(Inputs!$H$139:$H$149,$B109,Inputs!T$139:T$149)*Inputs!$E$155*Inputs!T$17/INDEX(Inputs!$K$17:$N$17,MATCH(Inputs!$F$139,Years,0)),0) -> 0 | O109: =IFERROR(SUMIF(Inputs!$H$139:$H$149,$B109,Inputs!U$139:U$149)*Inputs!$E$155*Inputs!U$17/INDEX(Inputs!$K$17:$N$17,MATCH(Inputs!$F$139,Years,0)),0) -> 0 | P109: 0.3750290661
B110: =Inputs!$A$255 -> Network Planning | C110: =Inputs!$C$5 -> Real $2023 | D110: $Million | E110: =IFERROR(SUMIF(Inputs!$H$139:$H$149,$B110,Inputs!K$139:K$149)*Inputs!$E$155*Inputs!K$17/INDEX(Inputs!$K$17:$N$17,MATCH(Inputs!$F$139,Years,0)),0) -> 0 | F110: =IFERROR(SUMIF(Inputs!$H$139:$H$149,$B110,Inputs!L$139:L$149)*Inputs!$E$155*Inputs!L$17/INDEX(Inputs!$K$17:$N$17,MATCH(Inputs!$F$139,Years,0)),0) -> 0 | G110: =IFERROR(SUMIF(Inputs!$H$139:$H$149,$B110,Inputs!M$139:M$149)*Inputs!$E$155*Inputs!M$17/INDEX(Inputs!$K$17:$N$17,MATCH(Inputs!$F$139,Years,0)),0) -> 0 | H110: =IFERROR(SUMIF(Inputs!$H$139:$H$149,$B110,Inputs!N$139:N$149)*Inputs!$E$155*Inputs!N$17/INDEX(Inputs!$K$17:$N$17,MATCH(Inputs!$F$139,Years,0)),0) -> 0 | I110: =IFERROR(SUMIF(Inputs!$H$139:$H$149,$B110,Inputs!O$139:O$149)*Inputs!$E$155*Inputs!O$17/INDEX(Inputs!$K$17:$N$17,MATCH(Inputs!$F$139,Years,0)),0) -> 0 | J110: =IFERROR(SUMIF(Inputs!$H$139:$H$149,$B110,Inputs!P$139:P$149)*Inputs!$E$155*Inputs!P$17/INDEX(Inputs!$K$17:$N$17,MATCH(Inputs!$F$139,Years,0)),0) -> 0 | K110: =IFERROR(SUMIF(Inputs!$H$139:$H$149,$B110,Inputs!Q$139:Q$149)*Inputs!$E$155*Inputs!Q$17/INDEX(Inputs!$K$17:$N$17,MATCH(Inputs!$F$139,Years,0)),0) -> 0 | L110: =IFERROR(SUMIF(Inputs!$H$139:$H$149,$B110,Inputs!R$139:R$149)*Inputs!$E$155*Inputs!R$17/INDEX(Inputs!$K$17:$N$17,MATCH(Inputs!$F$139,Years,0)),0) -> 0 | M110: =IFERROR(SUMIF(Inputs!$H$139:$H$149,$B110,Inputs!S$139:S$149)*Inputs!$E$155*Inputs!S$17/INDEX(Inputs!$K$17:$N$17,MATCH(Inputs!$F$139,Years,0)),0) -> 0 | N110: =IFERROR(SUMIF(Inputs!$H$139:$H$149,$B110,Inputs!T$139:T$149)*Inputs!$E$155*Inputs!T$17/INDEX(Inputs!$K$17:$N$17,MATCH(Inputs!$F$139,Years,0)),0) -> 0 | O110: =IFERROR(SUMIF(Inputs!$H$139:$H$149,$B110,Inputs!U$139:U$149)*Inputs!$E$155*Inputs!U$17/INDEX(Inputs!$K$17:$N$17,MATCH(Inputs!$F$139,Years,0)),0) -> 0 | P110: 0
B111: =Inputs!$A$256 -> [Spare] | C111: =Inputs!$C$5 -> Real $2023 | D111: $Million | E111: =IFERROR(SUMIF(Inputs!$H$139:$H$149,$B111,Inputs!K$139:K$149)*Inputs!$E$155*Inputs!K$17/INDEX(Inputs!$K$17:$N$17,MATCH(Inputs!$F$139,Years,0)),0) -> 0 | F111: =IFERROR(SUMIF(Inputs!$H$139:$H$149,$B111,Inputs!L$139:L$149)*Inputs!$E$155*Inputs!L$17/INDEX(Inputs!$K$17:$N$17,MATCH(Inputs!$F$139,Years,0)),0) -> 0 | G111: =IFERROR(SUMIF(Inputs!$H$139:$H$149,$B111,Inputs!M$139:M$149)*Inputs!$E$155*Inputs!M$17/INDEX(Inputs!$K$17:$N$17,MATCH(Inputs!$F$139,Years,0)),0) -> 0 | H111: =IFERROR(SUMIF(Inputs!$H$139:$H$149,$B111,Inputs!N$139:N$149)*Inputs!$E$155*Inputs!N$17/INDEX(Inputs!$K$17:$N$17,MATCH(Inputs!$F$139,Years,0)),0) -> 0 | I111: =IFERROR(SUMIF(Inputs!$H$139:$H$149,$B111,Inputs!O$139:O$149)*Inputs!$E$155*Inputs!O$17/INDEX(Inputs!$K$17:$N$17,MATCH(Inputs!$F$139,Years,0)),0) -> 0 | J111: =IFERROR(SUMIF(Inputs!$H$139:$H$149,$B111,Inputs!P$139:P$149)*Inputs!$E$155*Inputs!P$17/INDEX(Inputs!$K$17:$N$17,MATCH(Inputs!$F$139,Years,0)),0) -> 0 | K111: =IFERROR(SUMIF(Inputs!$H$139:$H$149,$B111,Inputs!Q$139:Q$149)*Inputs!$E$155*Inputs!Q$17/INDEX(Inputs!$K$17:$N$17,MATCH(Inputs!$F$139,Years,0)),0) -> 0 | L111: =IFERROR(SUMIF(Inputs!$H$139:$H$149,$B111,Inputs!R$139:R$149)*Inputs!$E$155*Inputs!R$17/INDEX(Inputs!$K$17:$N$17,MATCH(Inputs!$F$139,Years,0)),0) -> 0 | M111: =IFERROR(SUMIF(Inputs!$H$139:$H$149,$B111,Inputs!S$139:S$149)*Inputs!$E$155*Inputs!S$17/INDEX(Inputs!$K$17:$N$17,MATCH(Inputs!$F$139,Years,0)),0) -> 0 | N111: =IFERROR(SUMIF(Inputs!$H$139:$H$149,$B111,Inputs!T$139:T$149)*Inputs!$E$155*Inputs!T$17/INDEX(Inputs!$K$17:$N$17,MATCH(Inputs!$F$139,Years,0)),0) -> 0 | O111: =IFERROR(SUMIF(Inputs!$H$139:$H$149,$B111,Inputs!U$139:U$149)*Inputs!$E$155*Inputs!U$17/INDEX(Inputs!$K$17:$N$17,MATCH(Inputs!$F$139,Years,0)),0) -> 0 | P111: 0
B112: Sub-Total | C112: =Inputs!$C$5 -> Real $2023 | D112: $Million | E112: =SUM(E102:E111) -> 0 | F112: 0 | G112: 0 | H112: 0.7485826202 | I112: 3.364295934 | J112: =SUM(J102:J111) -> 6.468634855 | K112: 5.767535733 | L112: 3.540031692 | M112: 3.858061868 | N112: 0.1308790932 | O112: 0 | P112: 23.87802179
B114: Labour Costs - Total
B115: =Inputs!$A$247 -> Corporate | C115: =Inputs!$C$5 -> Real $2023 | D115: $Million | E115: =E89+E102 -> 0 | F115: 0.00034384144 | G115: 0.08321335974 | H115: 0.03526434213 | I115: 0.1072111824 | J115: =J89+J102 -> 0.3751052983 | K115: 0.3777961123 | L115: 0.3845360878 | M115: 0.3193631553 | N115: 0 | O115: 0 | P115: =SUM(E115:O115) -> 1.682833379
B116: =Inputs!$A$248 -> Asset Management | C116: =Inputs!$C$5 -> Real $2023 | D116: $Million | E116: 0 | F116: 0.0005597147178 | G116: 0 | H116: 0 | I116: 0 | J116: =J90+J103 -> 0 | K116: 0 | L116: 0 | M116: 0 | N116: 0 | O116: 0 | P116: 0.0005597147178
B117: =Inputs!$A$249 -> Delivery | C117: =Inputs!$C$5 -> Real $2023 | D117: $Million | E117: 0 | F117: 0.06277978021 | G117: 0.09227980253 | H117: 0.03302399435 | I117: 1.863923452 | J117: =J91+J104 -> 1.518869547 | K117: 0.9636763614 | L117: 0.7383667247 | M117: 0.7242819392 | N117: 0.08518650754 | O117: 0 | P117: 6.08238811
B118: =Inputs!$A$250 -> Network Operations | C118: =Inputs!$C$5 -> Real $2023 | D118: $Million | E118: 0 | F118: 0.4166266798 | G118: 2.922445777 | H118: 0 | I118: 0.9843054179 | J118: =J92+J105 -> 3.392688574 | K118: 3.451588317 | L118: 2.220681419 | M118: 2.621247252 | N118: 0.04569258561 | O118: 0 | P118: 16.05527602
B119: =Inputs!$A$251 -> Finance | C119: =Inputs!$C$5 -> Real $2023 | D119: $Million | E119: 0 | F119: 0 | G119: 0 | H119: 0 | I119: 0.06556580204 | J119: =J93+J106 -> 0.1784231776 | K119: 0.1177454422 | L119: 0.1149919736 | M119: 0.08594427367 | N119: 0 | O119: 0 | P119: 0.562670669
B120: =Inputs!$A$252 -> IT | C120: =Inputs!$C$5 -> Real $2023 | D120: $Million | E120: 0 | F120: 0.03568066623 | G120: 0.02248569044 | H120: 0 | I120: 0.3432900792 | J120: =J94+J107 -> 1.003548257 | K120: 0.8567294996 | L120: 0.0814554867 | M120: 0.1072252474 | N120: 0 | O120: 0 | P120: 2.450414927
B121: =Inputs!$A$253 -> Regulatory submissions | C121: =Inputs!$C$5 -> Real $2023 | D121: $Million | E121: 0 | F121: 0.006013765566 | G121: 0.06098871523 | H121: 0.3052652176 | I121: 0 | J121: =J95+J108 -> 0 | K121: 0 | L121: 0 | M121: 0 | N121: 0 | O121: 0 | P121: 0.3722676984
B122: =Inputs!$A$254 -> System Resilience | C122: =Inputs!$C$5 -> Real $2023 | D122: $Million | E122: 0 | F122: 2.099722292 | G122: -0.4158854861 | H122: 0.3750290661 | I122: 0 | J122: =J96+J109 -> 0 | K122: 0 | L122: 0 | M122: 0 | N122: 0 | O122: 0 | P122: 2.058865872
B123: =Inputs!$A$255 -> Network Planning | C123: =Inputs!$C$5 -> Real $2023 | D123: $Million | E123: 0 | F123: 0 | G123: 0.01044779536 | H123: 0 | I123: 0 | J123: =J97+J110 -> 0 | K123: 0 | L123: 0 | M123: 0 | N123: 0 | O123: 0 | P123: 0.01044779536
B124: =Inputs!$A$256 -> [Spare] | C124: =Inputs!$C$5 -> Real $2023 | D124: $Million | E124: 0 | F124: 0 | G124: 0 | H124: 0 | I124: 0 | J124: =J98+J111 -> 0 | K124: 0 | L124: 0 | M124: 0 | N124: 0 | O124: 0 | P124: 0
B125: Sub-Total | C125: =Inputs!$C$5 -> Real $2023 | D125: $Million | E125: =SUM(E115:E124) -> 0 | F125: 2.62172674 | G125: 2.775975655 | H125: 0.7485826202 | I125: 3.364295934 | J125: =SUM(J115:J124) -> 6.468634855 | K125: 5.767535733 | L125: 3.540031692 | M125: 3.858061868 | N125: 0.1308790932 | O125: 0 | P125: 29.27572419
B127: Indirect Non-Labour Costs - Actual
B128: =Inputs!$A$247 -> Corporate | C128: =Inputs!$C$5 -> Real $2023 | D128: $Million | E128: =IFERROR( SUMIF(Inputs!$H$164:$H$174,$B128,Inputs!K$164:K$174),0) -> 0 | F128: =IFERROR( SUMIF(Inputs!$H$164:$H$174,$B128,Inputs!L$164:L$174),0) -> 0 | G128: =IFERROR( SUMIF(Inputs!$H$164:$H$174,$B128,Inputs!M$164:M$174),0) -> 0 | H128: =IFERROR( SUMIF(Inputs!$H$164:$H$174,$B128,Inputs!N$164:N$174),0) -> 0 | I128: =IFERROR( SUMIF(Inputs!$H$164:$H$174,$B128,Inputs!O$164:O$174),0) -> 0 | J128: =IFERROR( SUMIF(Inputs!$H$164:$H$174,$B128,Inputs!P$164:P$174),0) -> 0 | K128: =IFERROR( SUMIF(Inputs!$H$164:$H$174,$B128,Inputs!Q$164:Q$174),0) -> 0 | L128: =IFERROR( SUMIF(Inputs!$H$164:$H$174,$B128,Inputs!R$164:R$174),0) -> 0 | M128: =IFERROR( SUMIF(Inputs!$H$164:$H$174,$B128,Inputs!S$164:S$174),0) -> 0 | N128: =IFERROR( SUMIF(Inputs!$H$164:$H$174,$B128,Inputs!T$164:T$174),0) -> 0 | O128: =IFERROR( SUMIF(Inputs!$H$164:$H$174,$B128,Inputs!U$164:U$174),0) -> 0 | P128: =SUM(E128:O128) -> 0
B129: =Inputs!$A$248 -> Asset Management | C129: =Inputs!$C$5 -> Real $2023 | D129: $Million | E129: =IFERROR( SUMIF(Inputs!$H$164:$H$174,$B129,Inputs!K$164:K$174),0) -> 0 | F129: =IFERROR( SUMIF(Inputs!$H$164:$H$174,$B129,Inputs!L$164:L$174),0) -> 0 | G129: =IFERROR( SUMIF(Inputs!$H$164:$H$174,$B129,Inputs!M$164:M$174),0) -> 0 | H129: =IFERROR( SUMIF(Inputs!$H$164:$H$174,$B129,Inputs!N$164:N$174),0) -> 0 | I129: =IFERROR( SUMIF(Inputs!$H$164:$H$174,$B129,Inputs!O$164:O$174),0) -> 0 | J129: =IFERROR( SUMIF(Inputs!$H$164:$H$174,$B129,Inputs!P$164:P$174),0) -> 0 | K129: =IFERROR( SUMIF(Inputs!$H$164:$H$174,$B129,Inputs!Q$164:Q$174),0) -> 0 | L129: =IFERROR( SUMIF(Inputs!$H$164:$H$174,$B129,Inputs!R$164:R$174),0) -> 0 | M129: =IFERROR( SUMIF(Inputs!$H$164:$H$174,$B129,Inputs!S$164:S$174),0) -> 0 | N129: =IFERROR( SUMIF(Inputs!$H$164:$H$174,$B129,Inputs!T$164:T$174),0) -> 0 | O129: =IFERROR( SUMIF(Inputs!$H$164:$H$174,$B129,Inputs!U$164:U$174),0) -> 0 | P129: 0
B130: =Inputs!$A$249 -> Delivery | C130: =Inputs!$C$5 -> Real $2023 | D130: $Million | E130: =IFERROR( SUMIF(Inputs!$H$164:$H$174,$B130,Inputs!K$164:K$174),0) -> 0 | F130: =IFERROR( SUMIF(Inputs!$H$164:$H$174,$B130,Inputs!L$164:L$174),0) -> 0 | G130: =IFERROR( SUMIF(Inputs!$H$164:$H$174,$B130,Inputs!M$164:M$174),0) -> 0 | H130: =IFERROR( SUMIF(Inputs!$H$164:$H$174,$B130,Inputs!N$164:N$174),0) -> 0 | I130: =IFERROR( SUMIF(Inputs!$H$164:$H$174,$B130,Inputs!O$164:O$174),0) -> 0 | J130: =IFERROR( SUMIF(Inputs!$H$164:$H$174,$B130,Inputs!P$164:P$174),0) -> 0 | K130: =IFERROR( SUMIF(Inputs!$H$164:$H$174,$B130,Inputs!Q$164:Q$174),0) -> 0 | L130: =IFERROR( SUMIF(Inputs!$H$164:$H$174,$B130,Inputs!R$164:R$174),0) -> 0 | M130: =IFERROR( SUMIF(Inputs!$H$164:$H$174,$B130,Inputs!S$164:S$174),0) -> 0 | N130: =IFERROR( SUMIF(Inputs!$H$164:$H$174,$B130,Inputs!T$164:T$174),0) -> 0 | O130: =IFERROR( SUMIF(Inputs!$H$164:$H$174,$B130,Inputs!U$164:U$174),0) -> 0 | P130: 0
B131: =Inputs!$A$250 -> Network Operations | C131: =Inputs!$C$5 -> Real $2023 | D131: $Million | E131: =IFERROR( SUMIF(Inputs!$H$164:$H$174,$B131,Inputs!K$164:K$174),0) -> 0 | F131: =IFERROR( SUMIF(Inputs!$H$164:$H$174,$B131,Inputs!L$164:L$174),0) -> 0 | G131: =IFERROR( SUMIF(Inputs!$H$164:$H$174,$B131,Inputs!M$164:M$174),0) -> 0 | H131: =IFERROR( SUMIF(Inputs!$H$164:$H$174,$B131,Inputs!N$164:N$174),0) -> 0 | I131: =IFERROR( SUMIF(Inputs!$H$164:$H$174,$B131,Inputs!O$164:O$174),0) -> 0 | J131: =IFERROR( SUMIF(Inputs!$H$164:$H$174,$B131,Inputs!P$164:P$174),0) -> 0 | K131: =IFERROR( SUMIF(Inputs!$H$164:$H$174,$B131,Inputs!Q$164:Q$174),0) -> 0 | L131: =IFERROR( SUMIF(Inputs!$H$164:$H$174,$B131,Inputs!R$164:R$174),0) -> 0 | M131: =IFERROR( SUMIF(Inputs!$H$164:$H$174,$B131,Inputs!S$164:S$174),0) -> 0 | N131: =IFERROR( SUMIF(Inputs!$H$164:$H$174,$B131,Inputs!T$164:T$174),0) -> 0 | O131: =IFERROR( SUMIF(Inputs!$H$164:$H$174,$B131,Inputs!U$164:U$174),0) -> 0 | P131: 0
B132: =Inputs!$A$251 -> Finance | C132: =Inputs!$C$5 -> Real $2023 | D132: $Million | E132: =IFERROR( SUMIF(Inputs!$H$164:$H$174,$B132,Inputs!K$164:K$174),0) -> 0 | F132: =IFERROR( SUMIF(Inputs!$H$164:$H$174,$B132,Inputs!L$164:L$174),0) -> 0 | G132: =IFERROR( SUMIF(Inputs!$H$164:$H$174,$B132,Inputs!M$164:M$174),0) -> 0 | H132: =IFERROR( SUMIF(Inputs!$H$164:$H$174,$B132,Inputs!N$164:N$174),0) -> 0 | I132: =IFERROR( SUMIF(Inputs!$H$164:$H$174,$B132,Inputs!O$164:O$174),0) -> 0 | J132: =IFERROR( SUMIF(Inputs!$H$164:$H$174,$B132,Inputs!P$164:P$174),0) -> 0 | K132: =IFERROR( SUMIF(Inputs!$H$164:$H$174,$B132,Inputs!Q$164:Q$174),0) -> 0 | L132: =IFERROR( SUMIF(Inputs!$H$164:$H$174,$B132,Inputs!R$164:R$174),0) -> 0 | M132: =IFERROR( SUMIF(Inputs!$H$164:$H$174,$B132,Inputs!S$164:S$174),0) -> 0 | N132: =IFERROR( SUMIF(Inputs!$H$164:$H$174,$B132,Inputs!T$164:T$174),0) -> 0 | O132: =IFERROR( SUMIF(Inputs!$H$164:$H$174,$B132,Inputs!U$164:U$174),0) -> 0 | P132: 0
B133: =Inputs!$A$252 -> IT | C133: =Inputs!$C$5 -> Real $2023 | D133: $Million | E133: =IFERROR( SUMIF(Inputs!$H$164:$H$174,$B133,Inputs!K$164:K$174),0) -> 0 | F133: =IFERROR( SUMIF(Inputs!$H$164:$H$174,$B133,Inputs!L$164:L$174),0) -> 0 | G133: =IFERROR( SUMIF(Inputs!$H$164:$H$174,$B133,Inputs!M$164:M$174),0) -> 0 | H133: =IFERROR( SUMIF(Inputs!$H$164:$H$174,$B133,Inputs!N$164:N$174),0) -> 0 | I133: =IFERROR( SUMIF(Inputs!$H$164:$H$174,$B133,Inputs!O$164:O$174),0) -> 0 | J133: =IFERROR( SUMIF(Inputs!$H$164:$H$174,$B133,Inputs!P$164:P$174),0) -> 0 | K133: =IFERROR( SUMIF(Inputs!$H$164:$H$174,$B133,Inputs!Q$164:Q$174),0) -> 0 | L133: =IFERROR( SUMIF(Inputs!$H$164:$H$174,$B133,Inputs!R$164:R$174),0) -> 0 | M133: =IFERROR( SUMIF(Inputs!$H$164:$H$174,$B133,Inputs!S$164:S$174),0) -> 0 | N133: =IFERROR( SUMIF(Inputs!$H$164:$H$174,$B133,Inputs!T$164:T$174),0) -> 0 | O133: =IFERROR( SUMIF(Inputs!$H$164:$H$174,$B133,Inputs!U$164:U$174),0) -> 0 | P133: 0
B134: =Inputs!$A$253 -> Regulatory submissions | C134: =Inputs!$C$5 -> Real $2023 | D134: $Million | E134: =IFERROR( SUMIF(Inputs!$H$164:$H$174,$B134,Inputs!K$164:K$174),0) -> 0 | F134: =IFERROR( SUMIF(Inputs!$H$164:$H$174,$B134,Inputs!L$164:L$174),0) -> 0.08676319125 | G134: =IFERROR( SUMIF(Inputs!$H$164:$H$174,$B134,Inputs!M$164:M$174),0) -> 0.4727083872 | H134: =IFERROR( SUMIF(Inputs!$H$164:$H$174,$B134,Inputs!N$164:N$174),0) -> 0 | I134: =IFERROR( SUMIF(Inputs!$H$164:$H$174,$B134,Inputs!O$164:O$174),0) -> 0 | J134: =IFERROR( SUMIF(Inputs!$H$164:$H$174,$B134,Inputs!P$164:P$174),0) -> 0 | K134: =IFERROR( SUMIF(Inputs!$H$164:$H$174,$B134,Inputs!Q$164:Q$174),0) -> 0 | L134: =IFERROR( SUMIF(Inputs!$H$164:$H$174,$B134,Inputs!R$164:R$174),0) -> 0 | M134: =IFERROR( SUMIF(Inputs!$H$164:$H$174,$B134,Inputs!S$164:S$174),0) -> 0 | N134: =IFERROR( SUMIF(Inputs!$H$164:$H$174,$B134,Inputs!T$164:T$174),0) -> 0 | O134: =IFERROR( SUMIF(Inputs!$H$164:$H$174,$B134,Inputs!U$164:U$174),0) -> 0 | P134: 0.5594715784
B135: =Inputs!$A$254 -> System Resilience | C135: =Inputs!$C$5 -> Real $2023 | D135: $Million | E135: =IFERROR( SUMIF(Inputs!$H$164:$H$174,$B135,Inputs!K$164:K$174),0) -> 0 | F135: =IFERROR( SUMIF(Inputs!$H$164:$H$174,$B135,Inputs!L$164:L$174),0) -> 0.9738644194 | G135: =IFERROR( SUMIF(Inputs!$H$164:$H$174,$B135,Inputs!M$164:M$174),0) -> 0.6063666169 | H135: =IFERROR( SUMIF(Inputs!$H$164:$H$174,$B135,Inputs!N$164:N$174),0) -> 0 | I135: =IFERROR( SUMIF(Inputs!$H$164:$H$174,$B135,Inputs!O$164:O$174),0) -> 0 | J135: =IFERROR( SUMIF(Inputs!$H$164:$H$174,$B135,Inputs!P$164:P$174),0) -> 0 | K135: =IFERROR( SUMIF(Inputs!$H$164:$H$174,$B135,Inputs!Q$164:Q$174),0) -> 0 | L135: =IFERROR( SUMIF(Inputs!$H$164:$H$174,$B135,Inputs!R$164:R$174),0) -> 0 | M135: =IFERROR( SUMIF(Inputs!$H$164:$H$174,$B135,Inputs!S$164:S$174),0) -> 0 | N135: =IFERROR( SUMIF(Inputs!$H$164:$H$174,$B135,Inputs!T$164:T$174),0) -> 0 | O135: =IFERROR( SUMIF(Inputs!$H$164:$H$174,$B135,Inputs!U$164:U$174),0) -> 0 | P135: 1.580231036
B136: =Inputs!$A$255 -> Network Planning | C136: =Inputs!$C$5 -> Real $2023 | D136: $Million | E136: =IFERROR( SUMIF(Inputs!$H$164:$H$174,$B136,Inputs!K$164:K$174),0) -> 0 | F136: =IFERROR( SUMIF(Inputs!$H$164:$H$174,$B136,Inputs!L$164:L$174),0) -> 0 | G136: =IFERROR( SUMIF(Inputs!$H$164:$H$174,$B136,Inputs!M$164:M$174),0) -> 0 | H136: =IFERROR( SUMIF(Inputs!$H$164:$H$174,$B136,Inputs!N$164:N$174),0) -> 0 | I136: =IFERROR( SUMIF(Inputs!$H$164:$H$174,$B136,Inputs!O$164:O$174),0) -> 0 | J136: =IFERROR( SUMIF(Inputs!$H$164:$H$174,$B136,Inputs!P$164:P$174),0) -> 0 | K136: =IFERROR( SUMIF(Inputs!$H$164:$H$174,$B136,Inputs!Q$164:Q$174),0) -> 0 | L136: =IFERROR( SUMIF(Inputs!$H$164:$H$174,$B136,Inputs!R$164:R$174),0) -> 0 | M136: =IFERROR( SUMIF(Inputs!$H$164:$H$174,$B136,Inputs!S$164:S$174),0) -> 0 | N136: =IFERROR( SUMIF(Inputs!$H$164:$H$174,$B136,Inputs!T$164:T$174),0) -> 0 | O136: =IFERROR( SUMIF(Inputs!$H$164:$H$174,$B136,Inputs!U$164:U$174),0) -> 0 | P136: 0
B137: =Inputs!$A$256 -> [Spare] | C137: =Inputs!$C$5 -> Real $2023 | D137: $Million | E137: =IFERROR( SUMIF(Inputs!$H$164:$H$174,$B137,Inputs!K$164:K$174),0) -> 0 | F137: =IFERROR( SUMIF(Inputs!$H$164:$H$174,$B137,Inputs!L$164:L$174),0) -> 0 | G137: =IFERROR( SUMIF(Inputs!$H$164:$H$174,$B137,Inputs!M$164:M$174),0) -> 0 | H137: =IFERROR( SUMIF(Inputs!$H$164:$H$174,$B137,Inputs!N$164:N$174),0) -> 0 | I137: =IFERROR( SUMIF(Inputs!$H$164:$H$174,$B137,Inputs!O$164:O$174),0) -> 0 | J137: =IFERROR( SUMIF(Inputs!$H$164:$H$174,$B137,Inputs!P$164:P$174),0) -> 0 | K137: =IFERROR( SUMIF(Inputs!$H$164:$H$174,$B137,Inputs!Q$164:Q$174),0) -> 0 | L137: =IFERROR( SUMIF(Inputs!$H$164:$H$174,$B137,Inputs!R$164:R$174),0) -> 0 | M137: =IFERROR( SUMIF(Inputs!$H$164:$H$174,$B137,Inputs!S$164:S$174),0) -> 0 | N137: =IFERROR( SUMIF(Inputs!$H$164:$H$174,$B137,Inputs!T$164:T$174),0) -> 0 | O137: =IFERROR( SUMIF(Inputs!$H$164:$H$174,$B137,Inputs!U$164:U$174),0) -> 0 | P137: 0
B138: Sub-Total | C138: =Inputs!$C$5 -> Real $2023 | D138: $Million | E138: =SUM(E128:E137) -> 0 | F138: 1.060627611 | G138: 1.079075004 | H138: 0 | I138: 0 | J138: =SUM(J128:J137) -> 0 | K138: 0 | L138: 0 | M138: 0 | N138: 0 | O138: 0 | P138: 2.139702615
B140: Indirect Non-Labour Costs - Forecast
B141: =Inputs!$A$247 -> Corporate | C141: =Inputs!$C$5 -> Real $2023 | D141: $Million | E141: =IFERROR( SUMIF(Inputs!$H$176:$H$185,$B141,Inputs!K$176:K$185) *Inputs!$E$191,0) -> 0 | F141: =IFERROR( SUMIF(Inputs!$H$176:$H$185,$B141,Inputs!L$176:L$185) *Inputs!$E$191,0) -> 0 | G141: =IFERROR( SUMIF(Inputs!$H$176:$H$185,$B141,Inputs!M$176:M$185) *Inputs!$E$191,0) -> 0 | H141: =IFERROR( SUMIF(Inputs!$H$176:$H$185,$B141,Inputs!N$176:N$185) *Inputs!$E$191,0) -> 0.01511328948 | I141: =IFERROR( SUMIF(Inputs!$H$176:$H$185,$B141,Inputs!O$176:O$185) *Inputs!$E$191,0) -> 0.04594764959 | J141: =IFERROR( SUMIF(Inputs!$H$176:$H$185,$B141,Inputs!P$176:P$185) *Inputs!$E$191,0) -> 0.1602770736 | K141: =IFERROR( SUMIF(Inputs!$H$176:$H$185,$B141,Inputs!Q$176:Q$185) *Inputs!$E$191,0) -> 0.1602770736 | L141: =IFERROR( SUMIF(Inputs!$H$176:$H$185,$B141,Inputs!R$176:R$185) *Inputs!$E$191,0) -> 0.1619745333 | M141: =IFERROR( SUMIF(Inputs!$H$176:$H$185,$B141,Inputs!S$176:S$185) *Inputs!$E$191,0) -> 0.133564228 | N141: =IFERROR( SUMIF(Inputs!$H$176:$H$185,$B141,Inputs!T$176:T$185) *Inputs!$E$191,0) -> 0 | O141: =IFERROR( SUMIF(Inputs!$H$176:$H$185,$B141,Inputs!U$176:U$185) *Inputs!$E$191,0) -> 0 | P141: =SUM(E141:O141) -> 0.6771538475
B142: =Inputs!$A$248 -> Asset Management | C142: =Inputs!$C$5 -> Real $2023 | D142: $Million | E142: =IFERROR( SUMIF(Inputs!$H$176:$H$185,$B142,Inputs!K$176:K$185) *Inputs!$E$191,0) -> 0 | F142: =IFERROR( SUMIF(Inputs!$H$176:$H$185,$B142,Inputs!L$176:L$185) *Inputs!$E$191,0) -> 0 | G142: =IFERROR( SUMIF(Inputs!$H$176:$H$185,$B142,Inputs!M$176:M$185) *Inputs!$E$191,0) -> 0 | H142: =IFERROR( SUMIF(Inputs!$H$176:$H$185,$B142,Inputs!N$176:N$185) *Inputs!$E$191,0) -> 0 | I142: =IFERROR( SUMIF(Inputs!$H$176:$H$185,$B142,Inputs!O$176:O$185) *Inputs!$E$191,0) -> 0 | J142: =IFERROR( SUMIF(Inputs!$H$176:$H$185,$B142,Inputs!P$176:P$185) *Inputs!$E$191,0) -> 0 | K142: =IFERROR( SUMIF(Inputs!$H$176:$H$185,$B142,Inputs!Q$176:Q$185) *Inputs!$E$191,0) -> 0 | L142: =IFERROR( SUMIF(Inputs!$H$176:$H$185,$B142,Inputs!R$176:R$185) *Inputs!$E$191,0) -> 0 | M142: =IFERROR( SUMIF(Inputs!$H$176:$H$185,$B142,Inputs!S$176:S$185) *Inputs!$E$191,0) -> 0 | N142: =IFERROR( SUMIF(Inputs!$H$176:$H$185,$B142,Inputs!T$176:T$185) *Inputs!$E$191,0) -> 0 | O142: =IFERROR( SUMIF(Inputs!$H$176:$H$185,$B142,Inputs!U$176:U$185) *Inputs!$E$191,0) -> 0 | P142: 0
B143: =Inputs!$A$249 -> Delivery | C143: =Inputs!$C$5 -> Real $2023 | D143: $Million | E143: =IFERROR( SUMIF(Inputs!$H$176:$H$185,$B143,Inputs!K$176:K$185) *Inputs!$E$191,0) -> 0 | F143: =IFERROR( SUMIF(Inputs!$H$176:$H$185,$B143,Inputs!L$176:L$185) *Inputs!$E$191,0) -> 0 | G143: =IFERROR( SUMIF(Inputs!$H$176:$H$185,$B143,Inputs!M$176:M$185) *Inputs!$E$191,0) -> 0 | H143: =IFERROR( SUMIF(Inputs!$H$176:$H$185,$B143,Inputs!N$176:N$185) *Inputs!$E$191,0) -> 0.01415314044 | I143: =IFERROR( SUMIF(Inputs!$H$176:$H$185,$B143,Inputs!O$176:O$185) *Inputs!$E$191,0) -> 0.7988243367 | J143: =IFERROR( SUMIF(Inputs!$H$176:$H$185,$B143,Inputs!P$176:P$185) *Inputs!$E$191,0) -> 0.6489910096 | K143: =IFERROR( SUMIF(Inputs!$H$176:$H$185,$B143,Inputs!Q$176:Q$185) *Inputs!$E$191,0) -> 0.40883223 | L143: =IFERROR( SUMIF(Inputs!$H$176:$H$185,$B143,Inputs!R$176:R$185) *Inputs!$E$191,0) -> 0.3110152973 | M143: =IFERROR( SUMIF(Inputs!$H$176:$H$185,$B143,Inputs!S$176:S$185) *Inputs!$E$191,0) -> 0.3029095762 | N143: =IFERROR( SUMIF(Inputs!$H$176:$H$185,$B143,Inputs!T$176:T$185) *Inputs!$E$191,0) -> 0.03537299846 | O143: =IFERROR( SUMIF(Inputs!$H$176:$H$185,$B143,Inputs!U$176:U$185) *Inputs!$E$191,0) -> 0 | P143: 2.520098589
B144: =Inputs!$A$250 -> Network Operations | C144: =Inputs!$C$5 -> Real $2023 | D144: $Million | E144: =IFERROR( SUMIF(Inputs!$H$176:$H$185,$B144,Inputs!K$176:K$185) *Inputs!$E$191,0) -> 0 | F144: =IFERROR( SUMIF(Inputs!$H$176:$H$185,$B144,Inputs!L$176:L$185) *Inputs!$E$191,0) -> 0 | G144: =IFERROR( SUMIF(Inputs!$H$176:$H$185,$B144,Inputs!M$176:M$185) *Inputs!$E$191,0) -> 0 | H144: =IFERROR( SUMIF(Inputs!$H$176:$H$185,$B144,Inputs!N$176:N$185) *Inputs!$E$191,0) -> 0 | I144: =IFERROR( SUMIF(Inputs!$H$176:$H$185,$B144,Inputs!O$176:O$185) *Inputs!$E$191,0) -> 0.6058360048 | J144: =IFERROR( SUMIF(Inputs!$H$176:$H$185,$B144,Inputs!P$176:P$185) *Inputs!$E$191,0) -> 1.492106224 | K144: =IFERROR( SUMIF(Inputs!$H$176:$H$185,$B144,Inputs!Q$176:Q$185) *Inputs!$E$191,0) -> 1.506769023 | L144: =IFERROR( SUMIF(Inputs!$H$176:$H$185,$B144,Inputs!R$176:R$185) *Inputs!$E$191,0) -> 0.9778562487 | M144: =IFERROR( SUMIF(Inputs!$H$176:$H$185,$B144,Inputs!S$176:S$185) *Inputs!$E$191,0) -> 1.138718836 | N144: =IFERROR( SUMIF(Inputs!$H$176:$H$185,$B144,Inputs!T$176:T$185) *Inputs!$E$191,0) -> 0.01897347136 | O144: =IFERROR( SUMIF(Inputs!$H$176:$H$185,$B144,Inputs!U$176:U$185) *Inputs!$E$191,0) -> 0 | P144: 5.740259807
B145: =Inputs!$A$251 -> Finance | C145: =Inputs!$C$5 -> Real $2023 | D145: $Million | E145: =IFERROR( SUMIF(Inputs!$H$176:$H$185,$B145,Inputs!K$176:K$185) *Inputs!$E$191,0) -> 0 | F145: =IFERROR( SUMIF(Inputs!$H$176:$H$185,$B145,Inputs!L$176:L$185) *Inputs!$E$191,0) -> 0 | G145: =IFERROR( SUMIF(Inputs!$H$176:$H$185,$B145,Inputs!M$176:M$185) *Inputs!$E$191,0) -> 0 | H145: =IFERROR( SUMIF(Inputs!$H$176:$H$185,$B145,Inputs!N$176:N$185) *Inputs!$E$191,0) -> 0 | I145: =IFERROR( SUMIF(Inputs!$H$176:$H$185,$B145,Inputs!O$176:O$185) *Inputs!$E$191,0) -> 0.02809962945 | J145: =IFERROR( SUMIF(Inputs!$H$176:$H$185,$B145,Inputs!P$176:P$185) *Inputs!$E$191,0) -> 0.07623764552 | K145: =IFERROR( SUMIF(Inputs!$H$176:$H$185,$B145,Inputs!Q$176:Q$185) *Inputs!$E$191,0) -> 0.04995259159 | L145: =IFERROR( SUMIF(Inputs!$H$176:$H$185,$B145,Inputs!R$176:R$185) *Inputs!$E$191,0) -> 0.04843699159 | M145: =IFERROR( SUMIF(Inputs!$H$176:$H$185,$B145,Inputs!S$176:S$185) *Inputs!$E$191,0) -> 0.03594365966 | N145: =IFERROR( SUMIF(Inputs!$H$176:$H$185,$B145,Inputs!T$176:T$185) *Inputs!$E$191,0) -> 0 | O145: =IFERROR( SUMIF(Inputs!$H$176:$H$185,$B145,Inputs!U$176:U$185) *Inputs!$E$191,0) -> 0 | P145: 0.2386705178
